Workbook

Sheet Simulación Cliente
D4: SIMULADOR VEHICULAR PYME
V6: Porcentaje %
D7: Valor del Vehiculo | E7: 100,000.00 | G7: Ingresa el valor total del Activo | V7: Valor
D8: % Desembolso | E8: =E9/E7 -> 80%
D9: Monto financiado (no mayor al 80% del vehiculo) | E9: 80,000.00 | G9: Ingresa el monto a financiar
D10: =IF(E17="Natural","Prima total del seguros","Seguro de desgravamen total máximo a cobrar") -> Prima total del seguros | E10: =IFERROR(IF(E17="Natural",E11-E9,'Simulador para calculos'!F5),"NO APLICA") -> 24,006.00 | W10: SD. Exonerado | X10: 0.0000
D11: Monto a Financiar (Desembolso + Prima Seguro) | E11: =IF($E$17="Natural",'Simulador Cronograma'!$C$3,'Simulador para calculos'!$C$3) -> 104,006.00
D13: Fecha de Desembolso | E13: 2025-10-01 | G13: Ingresa la fecha de desembolso
D14: Fecha Primer Pago | E14: 2025-11-01 | G14: Ingresar primera fecha de pago
Z15: =E18+AC24 -> 61
Q16: PN | R16: Tasa | Z16: Identificador | AA16: Plazo | AB16: TITULAR | AC16: TITULAR +CONYUGE
D17: Persona | E17: Natural | G17: Selecciona si eres Persona Natural o Persona Jurídica | Q17: Seguro Desgravamen sin devolución - Titular | R17: 0.2000 | W17: SEGURO DEL BIEN VEHICULAR | Z17: =IF(Z15<13,1,0) -> 0 | AA17: 0-12 | AB17: 0.2195% | AC17: 0.4390%
D18: Plazo (meses) | E18: 60 | G18: Ingresa el plazo en meses de tu préstamo | Q18: Seguro Desgravamen con devolución - Titular | R18: 0.2600 | W18: TIPO_SEGURO | X18: Valor | Z18: =IF(AND(Z15>12,Z15<=36),1,0) -> 0 | AA18: 13-36 | AB18: 0.1400% | AC18: 0.2800%
D19: Tipo de Seguro Desgravamen/Vida (%mensual) | E19: Sin seguro Desgravamen | F19: =IFERROR(IF($E$17="Natural",VLOOKUP($E$19,$Q$16:$R$24,2,FALSE),VLOOKUP($E$19,$Q$27:$R$31,2,FALSE))/100,"No aplica este seguro en esta Persona Jurídica") -> 0.0000% | G19: Selecciona el Seguro que deseas adquirir | Q19: Seguro Desgravamen sin devolución Titular + Cónyuge | R19: 0.4000 | W19: Seguro Endosado | X19: 0.0000% | Z19: =IF(AND(Z15>36,Z15<=60),1,0) -> 0 | AA19: 37-60 | AB19: 0.0975% | AC19: 0.1950%
D20: Seguro del Bien Vehicular | E20: PC - Auto/4x4 con GPS Lima/Valor >50k | F20: =_xlfn.XLOOKUP($E$20,$W$19:$W$31,$X$19:$X$31) -> 0.4001% | G20: Selecciona un Seguro del Bien Vehicular | Q20: Seguro Desgravamen con devolución Titular + Cónyuge | R20: 0.5200 | W20: PC - Auto y 4x4 sin GPS Lima | X20: 0.3342% | Z20: =IF(AND(Z15>60,Z15<=84),1,0) -> 1 | AA20: 61-84 | AB20: 0.0575% | AC20: 0.1150%
D21: TEA (Tasa efectiva anual) | E21: 12.00% | G21: La tasa efectiva anual es fija y debe ser ingresada según lo indicado en tarifario | Q21: Seguro Vida Titular | R21: =_xlfn.XLOOKUP(1,Z17:Z22,AB17:AB22)*100 -> 0.0575 | W21: PC - Auto y 4x4 sin GPS Provincia | X21: 0.2735% | Z21: =IF(AND(Z15>84,Z15<=108),1,0) -> 0 | AA21: 85-108 | AB21: 0.0450% | AC21: 0.0900%
D22: TCEA (Tasa de costo efectivo anual) | E22: 26.10% | Q22: Seguro Vida Titular + Cónyuge | R22: =_xlfn.XLOOKUP(1,Z17:Z22,AC17:AC22)*100 -> 0.1150 | W22: PC - Auto/4x4 con GPS Lima/Valor >50k | X22: 0.4001% | Z22: =IF(Z15>108,1,0) -> 0 | AA22: 109-más | AB22: 0.0350% | AC22: 0.0700%
Q23: Sin seguro Desgravamen | R23: 0.0000 | W23: PC - Auto/4x4 con GPS Prov/Valor >50k | X23: 0.3440%
Q24: Endosado | R24: 0.0000 | W24: PC - Auto y 4x4 Med. Riesgo Lima con GPS | X24: 0.5064% | Z24: Identificador | AA24: Periodo Gracia | AB24: Meses | AC24: =SUMPRODUCT(Z25:Z31,AB25:AB31) -> 1
W25: PC - Auto y 4x4 Med. Riesgo Provincia con GPS | X25: 0.3950% | Z25: =IF($E$14-$E$13<31,1,0) -> 0 | AA25: 0-30 | AB25: 0
D26: Valor Cuota | E26: =IFERROR(IF($E$17="Natural",'Simulador Cronograma'!$C$17, 'Simulador para calculos'!$C$17),"NO APLICA") -> 2,290.14 | W26: PC - Vehic. Chinos (Autos y Rurales) Lima | X26: 0.3747% | Z26: =IF(AND($E$14-$E$13>30,$E$14-$E$13<=60),1,0) -> 1 | AA26: 31-60 | AB26: 1
Q27: PJ | R27: Tasa | W27: PC - Vehic. Chinos (Autos y Rurales) Provincia | X27: 0.3747% | Z27: =IF(AND($E$14-$E$13>60,$E$14-$E$13<=90),1,0) -> 0 | AA27: 61-90 | AB27: 2
Q28: Seguro Desgravamen sin devolución - Titular | R28: 0.0909 | W28: PC - Vehic. Chinos Pick Up Privado Lima | X28: 0.5328% | Z28: =IF(AND($E$14-$E$13>90,$E$14-$E$13<=120),1,0) -> 0 | AA28: 91-120 | AB28: 3
Q29: Seguro Desgravamen sin devolución Titular + Cónyuge | R29: 0.1591 | W29: PC - Vehic. Chinos Pick Up Privado Provincia | X29: 0.5328%
G30: =+TODAY() -> 2025-09-03 | Q30: Exonerado | R30: 0.0000 | W30: PC - Vehic. Chinos Pick Up Alquiler, Minas, Comercial y transporte de personal Lima | X30: 0.7090% | Z30: =IF(AND($E$14-$E$13>120,$E$14-$E$13<=150),1,0) -> 0 | AA30: 121-150 | AB30: 4
Q31: Endosado | R31: 0.0000 | W31: PC - Vehic. Chinos Pick Up Alquiler, Minas, Comercial y transporte de personal Provincia | X31: 0.7090% | Z31: =IF(AND($E$14-$E$13>150,$E$14-$E$13<=180),1,0) -> 0 | AA31: 151-180 | AB31: 5
W32: PC - Camionetas Pick up Privado/sin GPS/ Lima | X32: 0.4608%
W33: PC - Camionetas Pick up Privado/sin GPS/ Provincia | X33: 0.4608%
W34: PC - Camionetas Pick up Privado/con GPS/ Lima | X34: 0.5317%
W35: Camionetas Pick up/con GPS Privado/ Provincia | X35: 0.5317%
D39: Importante:
D40: → Valor cuota: Incluye el seguro de desgravamen (CARDIF BNP Paribas), calculado sobre el saldo del crédito, y el seguro del inmueble (MAPFRE), calculado sobre el valor asegurable, según la opción elegida por el cliente. → Endoso de seguro: El cliente puede endosar su póliza de seguro a favor del banco, siempre que cumpla con los requisitos establecidos por la entidad financiera. → Los términos son referenciales y sujetos a evaluación crediticia. La información del simulador es estimativa y puede variar según condiciones del mercado.

Sheet datos (hidden)
A1: Tarifa | B1: Tipo de Seguro | C1: Nombre Seguro | D1: TASA | F1: Nombre Seguro | G1: TASA
A2: Exonerado | B2: Exonerado | C2: SD. Exonerado | D2: 0.0000 | F2: SD. Exonerado | G2: 0.0000
A3: Titular | B3: Sin Retorno | C3: SR Titular Premium | D3: 0.0200 | F3: Endosado | G3: 0.0000
A4: Titular | B4: Sin Retorno | C4: SR SD. Hipotecario CV/BF Titular CAMPAØA | D4: 0.0285 | F4: SR Titular Premium | G4: 0.0250
A5: Titular | B5: Sin Retorno | C5: SR Degravamen TIT Sobretasa 50% | D5: 0.0428 | F5: CR Titular Premium | G5: 0.0470
A6: Titular | B6: Sin Retorno | C6: SR SD. HIPOT. WP Tit Sobretasa (Nvo) | D6: 0.0428 | F6: SR Titular + Cony. Premium | G6: 0.0425
A7: Titular | B7: Sin Retorno | C7: SR Desgravamen TIT Sobretasa (100%) | D7: 0.0570 | F7: CR Titular + Cony. Premium | G7: 0.0799
A8: Titular + Cónyuge | B8: Sin Retorno | C8: SR Titular + Cony. Premium | D8: 0.0470 | F8: SR SD. Hipotecario CV/BF Titular CAMPAØA | G8: 0.0285
A9: Titular + Cónyuge | B9: Sin Retorno | C9: SR SD. HIPOT. WP Tit Sobretasa + Cony (N | D9: 0.0500 | F9: CR SD. Hipotecario CV/BF Titular CAMPAØA | G9: 0.0485
A10: Titular + Cónyuge | B10: Sin Retorno | C10: SR SD. Hipotecario CV/BF Tit.+ Cony.CAMP | D10: 0.0546 | F10: SR SD. Hipotecario CV/BF Tit.+ Cony.CAMP | G10: 0.0546
A11: Titular + Cónyuge | B11: Sin Retorno | C11: SR Desgravamen TIT+ CONY Sobretasa (50%) | D11: 0.0600 | F11: CR SD. Hipotecario CV/BF Tit.+ Cony.CAMP | G11: 0.0928
A12: Titular + Cónyuge | B12: Sin Retorno | C12: SR Degravamen TIT Sobretasa(50%)+CONY | D12: 0.0683 | F12: SR Desgravamen TIT Sobretasa (100%) | G12: 0.0570
A13: Titular + Cónyuge | B13: Sin Retorno | C13: SR SD. HIPOT. WP Tit + Cony Sobretasa (N | D13: 0.0683 | F13: CR Desgravamen TIT Sobretasa (100%) | G13: 0.0969
A14: Titular + Cónyuge | B14: Sin Retorno | C14: SR Desgravamen TIT Sobretasa(100%)+CONY | D14: 0.0800 | F14: SR Desgravamen TIT + CONY Sobretasa (100 | G14: 0.0819
A15: Titular + Cónyuge | B15: Sin Retorno | C15: SR Desgravamen (TIT+CONY)Sobretasa (50%) | D15: 0.0819 | F15: CR Desgravamen TIT + CONY Sobretasa (100 | G15: 0.1392
A16: Titular + Cónyuge | B16: Sin Retorno | C16: SR SD. HIPOT. WP(Tit + Cony)Sobretasa (N | D16: 0.0819 | F16: SR Degravamen TIT Sobretasa 50% | G16: 0.0428
A17: Titular + Cónyuge | B17: Sin Retorno | C17: SR Desgravamen TIT + CONY Sobretasa (100 | D17: 0.0819 | F17: CR Degravamen TIT Sobretasa 50% | G17: 0.0728
A18: Titular + Cónyuge | B18: Sin Retorno | C18: SR SD Titul.Sobretasa50%+Cony.Sobretasa1 | D18: 0.0956 | F18: SR Degravamen TIT Sobretasa(50%)+CONY | G18: 0.0683
A19: Titular + Cónyuge | B19: Sin Retorno | C19: SR SD Titul.Sobretasa100%+Cony.Sobretasa | D19: 0.0956 | F19: CR Degravamen TIT Sobretasa(50%)+CONY | G19: 0.1161
A20: Titular + Cónyuge | B20: Sin Retorno | C20: SR Desgravamen (TIT+CONY ) Sobretasa (10 | D20: 0.1000 | F20: SR Desgravamen TIT+ CONY Sobretasa (50%) | G20: 0.0683
A21: Titular | B21: Con Retorno | C21: CR Titular Premium | D21: 0.0400 | F21: CR Desgravamen TIT+ CONY Sobretasa (50%) | G21: 0.1100
A22: Titular | B22: Con Retorno | C22: CR SD. Hipotecario CV/BF Titular CAMPAØA | D22: 0.0485 | F22: SR Desgravamen TIT Sobretasa(100%)+CONY | G22: 0.0819
A23: Titular | B23: Con Retorno | C23: CR Degravamen TIT Sobretasa 50% | D23: 0.0728 | F23: CR Desgravamen TIT Sobretasa(100%)+CONY | G23: 0.1300
A24: Titular | B24: Con Retorno | C24: CR SD. HIPOT. WP Tit Sobretasa (Nvo) | D24: 0.0728 | F24: SR Desgravamen (TIT+CONY)Sobretasa (50%) | G24: 0.0819
A25: Titular | B25: Con Retorno | C25: CR Desgravamen TIT Sobretasa (100%) | D25: 0.0969 | F25: CR Desgravamen (TIT+CONY)Sobretasa (50%) | G25: 0.1392
A26: Titular + Cónyuge | B26: Con Retorno | C26: CR Titular + Cony. Premium | D26: 0.0799 | F26: SR Desgravamen (TIT+CONY ) Sobretasa (10 | G26: 0.1092
A27: Titular + Cónyuge | B27: Con Retorno | C27: CR SD. Hipotecario CV/BF Tit.+ Cony.CAMP | D27: 0.0900 | F27: CR Desgravamen (TIT+CONY ) Sobretasa (10 | G27: 0.1856
A28: Titular + Cónyuge | B28: Con Retorno | C28: CR SD. HIPOT. WP Tit Sobretasa + Cony (N | D28: 0.0900 | F28: SR SD Titul.Sobretasa100%+Cony.Sobretasa | G28: 0.0956
A29: Titular + Cónyuge | B29: Con Retorno | C29: CR Desgravamen TIT+ CONY Sobretasa (50%) | D29: 0.1100 | F29: CR SD Titul.Sobretasa100%+Cony.Sobretasa | G29: 0.1625
A30: Titular + Cónyuge | B30: Con Retorno | C30: CR Degravamen TIT Sobretasa(50%)+CONY | D30: 0.1161 | F30: SR SD Titul.Sobretasa50%+Cony.Sobretasa1 | G30: 0.0956
A31: Titular + Cónyuge | B31: Con Retorno | C31: CR SD. HIPOT. WP Tit + Cony Sobretasa (N | D31: 0.1161 | F31: CR SD Titul.Sobretasa50%+Cony.Sobretasa1 | G31: 0.1625
A32: Titular + Cónyuge | B32: Con Retorno | C32: CR Desgravamen TIT Sobretasa(100%)+CONY | D32: 0.1300
A33: Titular + Cónyuge | B33: Con Retorno | C33: CR Desgravamen (TIT+CONY)Sobretasa (50%) | D33: 0.1392
A34: Titular + Cónyuge | B34: Con Retorno | C34: CR SD. HIPOT. WP(Tit + Cony)Sobretasa (N | D34: 0.1392
A35: Titular + Cónyuge | B35: Con Retorno | C35: CR Desgravamen TIT + CONY Sobretasa (100 | D35: 0.1392
A36: Titular + Cónyuge | B36: Con Retorno | C36: CR SD Titul.Sobretasa50%+Cony.Sobretasa1 | D36: 0.1625
A37: Titular + Cónyuge | B37: Con Retorno | C37: CR SD Titul.Sobretasa100%+Cony.Sobretasa | D37: 0.1625
A38: Titular + Cónyuge | B38: Con Retorno | C38: CR Desgravamen (TIT+CONY ) Sobretasa (10 | D38: 0.1800

Sheet Simulador Cronograma (hidden)
B1: simulacion con Cuota simple | AB1: simulacion con CD | AS1: simulacion a 180 | BJ1: simulacion a 180 con CD | CA1: simulacion a 240 | CR1: simulacion a 240 con CD
B3: MAF | C3: ='Simulación Cliente'!E9*(1+C12*I12*'Simulación Cliente'!$Z$15)+'Simulador para calculos'!$F$11+'Simulador para calculos'!I8 -> 104,006.00 | AB3: MAF | AC3: =+'Simulación Cliente'!$E$11 -> 104,006.00 | AS3: MAF | AT3: =+'Simulación Cliente'!$E$11 -> 104,006.00 | BJ3: MAF | BK3: =+'Simulación Cliente'!$E$11 -> 104,006.00 | CA3: MAF | CB3: =+'Simulación Cliente'!$E$11 -> 104,006.00 | CR3: MAF | CS3: =+'Simulación Cliente'!$E$11 -> 104,006.00
B4: Monto del Bien | C4: =+'Simulación Cliente'!$E$7 -> 100,000.00 | D4: =C4*'Simulador para calculos'!J12 -> 0 | AB4: Monto del Bien | AC4: =+'Simulación Cliente'!$E$7 -> 100,000.00 | AS4: Monto del Bien | AT4: =+'Simulación Cliente'!$E$7 -> 100,000.00 | BJ4: Monto del Bien | BK4: =+'Simulación Cliente'!$E$7 -> 100,000.00 | CA4: Monto del Bien | CB4: =+'Simulación Cliente'!$E$7 -> 100,000.00 | CR4: Monto del Bien | CS4: =+'Simulación Cliente'!$E$7 -> 100,000.00
B5: Moneda | C5: Soles | AB5: Moneda | AC5: Soles | AS5: Moneda | AT5: Soles | BJ5: Moneda | BK5: Soles | CA5: Moneda | CB5: Soles | CR5: Moneda | CS5: Soles
B6: Plazo | C6: =+'Simulación Cliente'!$E$18 -> 60 | AB6: Plazo | AC6: =+'Simulación Cliente'!$E$18 -> 60 | AS6: Plazo | AT6: 180 | BJ6: Plazo | BK6: 180 | CA6: Plazo | CB6: 240 | CR6: Plazo | CS6: 240
B7: Fecha de Desembolso | C7: ='Simulación Cliente'!E13 -> 2025-10-01 | AB7: Fecha de Desembolso | AC7: 2022-09-01 | AS7: Fecha de Desembolso | AT7: 2022-09-01 | BJ7: Fecha de Desembolso | BK7: 2022-09-01 | CA7: Fecha de Desembolso | CB7: 2022-09-01 | CR7: Fecha de Desembolso | CS7: 2022-09-01
B8: Fecha de 1er Pago | C8: ='Simulación Cliente'!E14 -> 2025-11-01 | AB8: Fecha de 1er Pago | AC8: 2022-10-01 | AS8: Fecha de 1er Pago | AT8: 2022-10-01 | BJ8: Fecha de 1er Pago | BK8: 2022-10-01 | CA8: Fecha de 1er Pago | CB8: 2022-10-01 | CR8: Fecha de 1er Pago | CS8: 2022-10-01
B9: Cuota Julio | C9: 1 | AB9: Cuota Julio | AC9: 2 | AS9: Cuota Julio | AT9: 1 | BJ9: Cuota Julio | BK9: 2 | CA9: Cuota Julio | CB9: 1 | CR9: Cuota Julio | CS9: 2
B10: Cuota Diciembre | C10: 1 | AB10: Cuota Diciembre | AC10: 2 | AS10: Cuota Diciembre | AT10: 1 | BJ10: Cuota Diciembre | BK10: 2 | CA10: Cuota Diciembre | CB10: 1 | CR10: Cuota Diciembre | CS10: 2
B11: TEA | C11: =+'Simulación Cliente'!$E$21 -> 12.000% | H11: seg desg/exon/end | I11: seg vida | J11: Natural | AB11: TEA | AC11: =+'Simulación Cliente'!$E$21 -> 12.000% | AS11: TEA | AT11: =+'Simulación Cliente'!$E$21 -> 12.000% | BJ11: TEA | BK11: =+'Simulación Cliente'!$E$21 -> 12.000% | CA11: TEA | CB11: =+'Simulación Cliente'!$E$21 -> 12.000% | CR11: TEA | CS11: =+'Simulación Cliente'!$E$21 -> 12.000%
B12: Seguro de Desgravamen/Vida | C12: =+'Simulación Cliente'!$F$19 -> 0.0000% | H12: =NOT(OR('Simulación Cliente'!$E$19='Simulación Cliente'!$Q$21,'Simulación Cliente'!$E$19='Simulación Cliente'!$Q$22)) -> TRUE | I12: =OR('Simulación Cliente'!$E$19='Simulación Cliente'!$Q$21,'Simulación Cliente'!$E$19='Simulación Cliente'!$Q$22) -> FALSE | J12: =('Simulación Cliente'!$E$17="Natural") -> TRUE | AB12: Seguro de Desgravamen | AC12: =+'Simulación Cliente'!$F$19 -> 0.000% | AS12: Seguro de Desgravamen | AT12: =+'Simulación Cliente'!$F$19 -> 0.000% | BJ12: Seguro de Desgravamen | BK12: =+'Simulación Cliente'!$F$19 -> 0.000% | CA12: Seguro de Desgravamen | CB12: =+'Simulación Cliente'!$F$19 -> 0.000% | CR12: Seguro de Desgravamen | CS12: =+'Simulación Cliente'!$F$19 -> 0.000%
B13: TEA Total | C13: =(1+(((1+C11)^(30/360)-1)+C12*H12+C16+C14))^12-1 -> 17.4445% | AB13: TCEA | AC13: =(1+(((1+AC11)^(30/360)-1)+AC12+AC16))^12-1 ->  | AS13: TCEA | AT13: =(1+(((1+AT11)^(30/360)-1)+AT12+AT16))^12-1 ->  | BJ13: TCEA | BK13: =(1+(((1+BK11)^(30/360)-1)+BK12+BK16))^12-1 ->  | CA13: TCEA | CB13: =(1+(((1+CB11)^(30/360)-1)+CB12+CB16))^12-1 ->  | CR13: TCEA | CS13: =(1+(((1+CS11)^(30/360)-1)+CS12+CS16))^12-1 -> 
B14: Seguro del Bien | C14: =+'Simulación Cliente'!$F$20 -> 0.400% | AB14: Seguro del Bien | AC14: =+'Simulación Cliente'!$F$20 -> 0.400% | AS14: Seguro del Bien | AT14: =+'Simulación Cliente'!$F$20 -> 0.400% | BJ14: Seguro del Bien | BK14: =+'Simulación Cliente'!$F$20 -> 0.400% | CA14: Seguro del Bien | CB14: =+'Simulación Cliente'!$F$20 -> 0.400% | CR14: Seguro del Bien | CS14: =+'Simulación Cliente'!$F$20 -> 0.400%
B15: Portes | U15: Seg desg | V15: ='Simulador para calculos'!$F$6*'Simulador Cronograma'!J12 -> 0 | AB15: Portes | AC15: =+'Simulación Cliente'!$E$20 -> PC - Auto/4x4 con GPS Lima/Valor >50k | AS15: Portes | AT15: =+'Simulación Cliente'!$E$20 -> PC - Auto/4x4 con GPS Lima/Valor >50k | BJ15: Portes | BK15: =+'Simulación Cliente'!$E$20 -> PC - Auto/4x4 con GPS Lima/Valor >50k | CA15: Portes | CB15: =+'Simulación Cliente'!$E$20 -> PC - Auto/4x4 con GPS Lima/Valor >50k | CR15: Portes | CS15: =+'Simulación Cliente'!$E$20 -> PC - Auto/4x4 con GPS Lima/Valor >50k
B16: % Portes | C16: =C15/C3 -> 0.0000% | U16: Seg vida | V16: ='Simulación Cliente'!$E$9*I12*C12*'Simulación Cliente'!$E$18 -> 0 | AB16: % Portes | AC16: =AC15/AC3 ->  | AS16: % Portes | AT16: =AT15/AT3 ->  | BJ16: % Portes | BK16: =BK15/BK3 ->  | CA16: % Portes | CB16: =CB15/CB3 ->  | CR16: % Portes | CS16: =CS15/CS3 -> 
B17: VALOR CUOTA | C17: =(C3+(C14*D4)*Q20)/P20 -> 2,290.1 | U17: Seg bien | V17: ='Simulador para calculos'!I8 -> 24,006.00 | AB17: VALOR CUOTA | AC17: =(AC3+(AC14*AC4)*AO20)/AN20 ->  | AS17: VALOR CUOTA | AT17: =(AT3+(AT14*AT4)*BF20)/BE20 ->  | BJ17: VALOR CUOTA | BK17: =(BK3+(BK14*BK4)*BW20)/BV20 ->  | CA17: VALOR CUOTA | CB17: =(CB3+(CB14*CB4)*CN20)/CM20 ->  | CR17: VALOR CUOTA | CS17: =(CS3+(CS14*CS4)*DE20)/DD20 -> 
V19: ='Simulación Cliente'!$E$11-V15-V16-V17-'Simulador Cronograma'!$V$20 -> 0
P20: =SUM(P22:P381) -> 45.41 | Q20: =SUM(Q22:Q381) -> 45.41 | V20: =SUM(V22:V381) -> 80,000.00 | AN20: =SUM(AN22:AN381) -> 0 | AO20: =SUM(AO22:AO381) -> 0 | BE20: =SUM(BE22:BE381) -> 0 | BF20: =SUM(BF22:BF381) -> 0 | BV20: =SUM(BV22:BV381) -> 0 | BW20: =SUM(BW22:BW381) -> 0 | CM20: =SUM(CM22:CM381) -> 0 | CN20: =SUM(CN22:CN381) -> 0 | DD20: =SUM(DD22:DD381) -> 0 | DE20: =SUM(DE22:DE381) -> 0
B21: N° Cuota | C21: Fecha de pago Simul | D21: Día | E21: Fecha Pago | F21: Días | G21: Dias Acumulados | H21: Saldo Inicial | I21: Amortización | J21: Interés | K21: Seguro Desgravamen | L21: Seguro del Bien | M21: Portes | N21: VALOR CUOTA | O21: Saldo Final | P21: Factor Cronograma | Q21: Factor Cronograma 2 | S21: Vector i,1 Cuota | T21: Vector i,2 Días Acum | U21: Vector i,3 Factor | V21: Vector i,4 Calculo VA | AB21: N° Cuota | AC21: Fecha de pago | AD21: Días | AE21: Dias Acumulados | AF21: Saldo Inicial | AG21: Amortización | AH21: Interés | AI21: Seguro Desgravamen | AJ21: Seguro del Bien | AK21: Portes | AL21: VALOR CUOTA | AM21: Saldo Final | AN21: Factor Cronograma | AO21: Factor Cronograma 2 | AS21: N° Cuota | AT21: Fecha de pago | AU21: Días | AV21: Dias Acumulados | AW21: Saldo Inicial | AX21: Amortización | AY21: Interés | AZ21: Seguro Desgravamen | BA21: Seguro del Bien | BB21: Portes | BC21: VALOR CUOTA | BD21: Saldo Final | BE21: Factor Cronograma | BF21: Factor Cronograma 2 | BJ21: N° Cuota | BK21: Fecha de pago | BL21: Días | BM21: Dias Acumulados | BN21: Saldo Inicial | BO21: Amortización | BP21: Interés | BQ21: Seguro Desgravamen | BR21: Seguro del Bien | BS21: Portes | BT21: VALOR CUOTA | BU21: Saldo Final | BV21: Factor Cronograma | BW21: Factor Cronograma 2 | CA21: N° Cuota | CB21: Fecha de pago | CC21: Días | CD21: Dias Acumulados | CE21: Saldo Inicial | CF21: Amortización | CG21: Interés | CH21: Seguro Desgravamen | CI21: Seguro del Bien | CJ21: Portes | CK21: VALOR CUOTA | CL21: Saldo Final | CM21: Factor Cronograma | CN21: Factor Cronograma 2 | CR21: N° Cuota | CS21: Fecha de pago | CT21: Días | CU21: Dias Acumulados | CV21: Saldo Inicial | CW21: Amortización | CX21: Interés | CY21: Seguro Desgravamen | CZ21: Seguro del Bien | DA21: Portes | DB21: VALOR CUOTA | DC21: Saldo Final | DD21: Factor Cronograma | DE21: Factor Cronograma 2
B22: 1 | C22: =C8 -> 2025-11-01 | D22: =IF(B22<=$C$6,WEEKDAY(C22,2),"") -> 6 | E22: =IF(D22=7,C22+1,C22) -> 2025-11-01 | F22: =E22-C7 -> 31 | G22: =F22 -> 31 | H22: =C3 -> 104,006.00 | I22: =IF(B22>C$6,"",N22-M22-L22-K22-J22) -> 1,270.20 | J22: =IF(B22>C$6,"",((1+C$11)^(F22/360)-1)*H22) -> 1,019.95 | K22: =IF(B22>C$6,"",0) -> 0 | L22: =IF(B22>C$6,"",D$4*C$14) -> 0.00 | M22: =IF(B22>C$6,"",C$15) -> 0 | N22: =IF(B22>C$6,"",IF(B22=C$6,H22+J22+K22+L22+M22,IF(AND(C$9=2,MONTH(C22)=7),2*C$17,IF(AND(C$10=2,MONTH(C22)=12),2*C$17,C$17)))) -> 2,290.14 | O22: =IF(B22>C$6,"",H22-I22) -> 102,735.80 | P22: =IFERROR(IF(AND(MONTH(C22)=7,C$9=2),2/(1+C$11)^(G22/360),IF(AND(MONTH(C22)=12,C$10=2),2/(1+C$11)^(G22/360),1/(1+C$11)^(G22/360))),"") -> 0.99 | Q22: =IFERROR(1/(1+C$11)^(G22/360),"") -> 0.99 | S22: =IFERROR((I22+J22+K22+L22+M22)*$J$12+('Simulador para calculos'!I22+'Simulador para calculos'!J22+'Simulador para calculos'!K22+'Simulador para calculos'!L22+'Simulador para calculos'!M22)*NOT($J$12),"") -> 2,290.14 | T22: =G22 -> 31.00 | U22: =IFERROR((1+'Simulación Cliente'!$E$22)^(T22/360),"") -> 1.02 | V22: =IFERROR(ROUND(S22/U22,2),"") -> 2,244.87 | AB22: 1 | AC22: =AC8 -> 2022-10-01 | AD22: =AC22-AC7 -> 30 | AE22: =AD22 -> 30 | AF22: =AC3 -> 104,006.00 | AG22: =IF(AB22>AC$6,"",AL22-AK22-AJ22-AI22-AH22) ->  | AH22: =IF(AB22>AC$6,"",((1+AC$11)^(AD22/360)-1)*AF22) -> 986.89 | AI22: =IF(AB22>AC$6,"",((1+AC$12)^(AD22/30)-1)*AF22) -> 0 | AJ22: =IF(AB22>AC$6,"",AC$4*AC$14) -> 400.10 | AK22: =IF(AB22>AC$6,"",AC$15) -> PC - Auto/4x4 con GPS Lima/Valor >50k | AL22: =IF(AB22>AC$6,"",IF(AB22=AC$6,AF22+AH22+AI22+AJ22+AK22,IF(AND(AC$9=2,MONTH(AC22)=7),2*AC$17,IF(AND(AC$10=2,MONTH(AC22)=12),2*AC$17,AC$17)))) ->  | AM22: =IF(AB22>AC$6,"",AF22-AG22) ->  | AN22: =IFERROR(IF(AND(MONTH(AC22)=7,AC$9=2),2/(1+AC$13)^(AE22/360),IF(AND(MONTH(AC22)=12,AC$10=2),2/(1+AC$13)^(AE22/360),1/(1+AC$13)^(AE22/360))),"") ->  | AO22: =IFERROR(1/(1+AC$13)^(AE22/360),"") ->  | AS22: 1 | AT22: =AT8 -> 2022-10-01 | AU22: =AT22-AT7 -> 30 | AV22: =AU22 -> 30 | AW22: =AT3 -> 104,006.00 | AX22: =IF(AS22>AT$6,"",BC22-BB22-BA22-AZ22-AY22) ->  | AY22: =IF(AS22>AT$6,"",((1+AT$11)^(AU22/360)-1)*AW22) -> 986.89 | AZ22: =IF(AS22>AT$6,"",((1+AT$12)^(AU22/30)-1)*AW22) -> 0 | BA22: =IF(AS22>AT$6,"",AT$4*AT$14) -> 400.10 | BB22: =IF(AS22>AT$6,"",AT$15) -> PC - Auto/4x4 con GPS Lima/Valor >50k | BC22: =IF(AS22>AT$6,"",IF(AS22=AT$6,AW22+AY22+AZ22+BA22+BB22,IF(AND(AT$9=2,MONTH(AT22)=7),2*AT$17,IF(AND(AT$10=2,MONTH(AT22)=12),2*AT$17,AT$17)))) ->  | BD22: =IF(AS22>AT$6,"",AW22-AX22) ->  | BE22: =IFERROR(IF(AND(MONTH(AT22)=7,AT$9=2),2/(1+AT$13)^(AV22/360),IF(AND(MONTH(AT22)=12,AT$10=2),2/(1+AT$13)^(AV22/360),1/(1+AT$13)^(AV22/360))),"") ->  | BF22: =IFERROR(1/(1+AT$13)^(AV22/360),"") ->  | BJ22: 1 | BK22: =BK8 -> 2022-10-01 | BL22: =BK22-BK7 -> 30 | BM22: =BL22 -> 30 | BN22: =BK3 -> 104,006.00 | BO22: =IF(BJ22>BK$6,"",BT22-BS22-BR22-BQ22-BP22) ->  | BP22: =IF(BJ22>BK$6,"",((1+BK$11)^(BL22/360)-1)*BN22) -> 986.89 | BQ22: =IF(BJ22>BK$6,"",((1+BK$12)^(BL22/30)-1)*BN22) -> 0 | BR22: =IF(BJ22>BK$6,"",BK$4*BK$14) -> 400.10 | BS22: =IF(BJ22>BK$6,"",BK$15) -> PC - Auto/4x4 con GPS Lima/Valor >50k | BT22: =IF(BJ22>BK$6,"",IF(BJ22=BK$6,BN22+BP22+BQ22+BR22+BS22,IF(AND(BK$9=2,MONTH(BK22)=7),2*BK$17,IF(AND(BK$10=2,MONTH(BK22)=12),2*BK$17,BK$17)))) ->  | BU22: =IF(BJ22>BK$6,"",BN22-BO22) ->  | BV22: =IFERROR(IF(AND(MONTH(BK22)=7,BK$9=2),2/(1+BK$13)^(BM22/360),IF(AND(MONTH(BK22)=12,BK$10=2),2/(1+BK$13)^(BM22/360),1/(1+BK$13)^(BM22/360))),"") ->  | BW22: =IFERROR(1/(1+BK$13)^(BM22/360),"") ->  | CA22: 1 | CB22: =CB8 -> 2022-10-01 | CC22: =CB22-CB7 -> 30 | CD22: =CC22 -> 30 | CE22: =CB3 -> 104,006.00 | CF22: =IF(CA22>CB$6,"",CK22-CJ22-CI22-CH22-CG22) ->  | CG22: =IF(CA22>CB$6,"",((1+CB$11)^(CC22/360)-1)*CE22) -> 986.89 | CH22: =IF(CA22>CB$6,"",((1+CB$12)^(CC22/30)-1)*CE22) -> 0 | CI22: =IF(CA22>CB$6,"",CB$4*CB$14) -> 400.10 | CJ22: =IF(CA22>CB$6,"",CB$15) -> PC - Auto/4x4 con GPS Lima/Valor >50k | CK22: =IF(CA22>CB$6,"",IF(CA22=CB$6,CE22+CG22+CH22+CI22+CJ22,IF(AND(CB$9=2,MONTH(CB22)=7),2*CB$17,IF(AND(CB$10=2,MONTH(CB22)=12),2*CB$17,CB$17)))) ->  | CL22: =IF(CA22>CB$6,"",CE22-CF22) ->  | CM22: =IFERROR(IF(AND(MONTH(CB22)=7,CB$9=2),2/(1+CB$13)^(CD22/360),IF(AND(MONTH(CB22)=12,CB$10=2),2/(1+CB$13)^(CD22/360),1/(1+CB$13)^(CD22/360))),"") ->  | CN22: =IFERROR(1/(1+CB$13)^(CD22/360),"") ->  | CR22: 1 | CS22: =CS8 -> 2022-10-01 | CT22: =CS22-CS7 -> 30 | CU22: =CT22 -> 30 | CV22: =CS3 -> 104,006.00 | CW22: =IF(CR22>CS$6,"",DB22-DA22-CZ22-CY22-CX22) ->  | CX22: =IF(CR22>CS$6,"",((1+CS$11)^(CT22/360)-1)*CV22) -> 986.89 | CY22: =IF(CR22>CS$6,"",((1+CS$12)^(CT22/30)-1)*CV22) -> 0 | CZ22: =IF(CR22>CS$6,"",CS$4*CS$14) -> 400.10 | DA22: =IF(CR22>CS$6,"",CS$15) -> PC - Auto/4x4 con GPS Lima/Valor >50k | DB22: =IF(CR22>CS$6,"",IF(CR22=CS$6,CV22+CX22+CY22+CZ22+DA22,IF(AND(CS$9=2,MONTH(CS22)=7),2*CS$17,IF(AND(CS$10=2,MONTH(CS22)=12),2*CS$17,CS$17)))) ->  | DC22: =IF(CR22>CS$6,"",CV22-CW22) ->  | DD22: =IFERROR(IF(AND(MONTH(CS22)=7,CS$9=2),2/(1+CS$13)^(CU22/360),IF(AND(MONTH(CS22)=12,CS$10=2),2/(1+CS$13)^(CU22/360),1/(1+CS$13)^(CU22/360))),"") ->  | DE22: =IFERROR(1/(1+CS$13)^(CU22/360),"") -> 
B23: 2 | C23: =IF(B23>C$6,"",EDATE(C$22,B22)) -> 2025-12-01 | D23: =IF(B23<=$C$6,WEEKDAY(C23,2),"") -> 1 | E23: =IF(D23=7,C23+1,C23) -> 2025-12-01 | F23: =IF(B23>C$6,"",E23-E22) -> 30 | G23: =IFERROR(F23+G22,"") -> 61 | H23: =IF(B23>C$6,"",O22) -> 102,735.80 | I23: =IF(B23>C$6,"",N23-M23-L23-K23-J23) -> 1,315.31 | J23: =IF(B23>C$6,"",((1+C$11)^(F23/360)-1)*H23) -> 974.84 | K23: =IF(B23>C$6,"",0) -> 0 | L23: =IF(B23>C$6,"",D$4*C$14) -> 0.00 | M23: 0 | N23: =IF(B23>C$6,"",IF(B23=C$6,H23+J23+K23+L23+M23,IF(AND(C$9=2,MONTH(C23)=7),2*C$17,IF(AND(C$10=2,MONTH(C23)=12),2*C$17,C$17)))) -> 2,290.14 | O23: =IF(B23>C$6,"",H23-I23) -> 101,420.50 | P23: =IFERROR(IF(AND(MONTH(C23)=7,C$9=2),2/(1+C$11)^(G23/360),IF(AND(MONTH(C23)=12,C$10=2),2/(1+C$11)^(G23/360),1/(1+C$11)^(G23/360))),"") -> 0.98 | Q23: =IFERROR(1/(1+C$11)^(G23/360),"") -> 0.98 | S23: =IFERROR((I23+J23+K23+L23+M23)*$J$12+('Simulador para calculos'!I23+'Simulador para calculos'!J23+'Simulador para calculos'!K23+'Simulador para calculos'!L23+'Simulador para calculos'!M23)*NOT($J$12),"") -> 2,290.14 | T23: =G23 -> 61.00 | U23: =IFERROR((1+'Simulación Cliente'!$E$22)^(T23/360),"") -> 1.04 | V23: =IFERROR(ROUND(S23/U23,2),"") -> 2,201.91 | AB23: 2 | AC23: =IF(AB23>AC$6,"",EDATE(AC$22,AB22)) -> 2022-11-01 | AD23: =IF(AB23>AC$6,"",AC23-AC22) -> 31 | AE23: =IFERROR(AD23+AE22,"") -> 61 | AF23: =IF(AB23>AC$6,"",AM22) ->  | AH23: =IF(AB23>AC$6,"",((1+AC$11)^(AD23/360)-1)*AF23) ->  | AJ23: 400.10 | AK23: PC - Auto/4x4 con GPS Lima/Valor >50k | AN23: =IFERROR(IF(AND(MONTH(AC23)=7,AC$9=2),2/(1+AC$13)^(AE23/360),IF(AND(MONTH(AC23)=12,AC$10=2),2/(1+AC$13)^(AE23/360),1/(1+AC$13)^(AE23/360))),"") ->  | AO23: =IFERROR(1/(1+AC$13)^(AE23/360),"") ->  | AS23: 2 | AT23: =IF(AS23>AT$6,"",EDATE(AT$22,AS22)) -> 2022-11-01 | AU23: =IF(AS23>AT$6,"",AT23-AT22) -> 31 | AV23: =IFERROR(AU23+AV22,"") -> 61 | AW23: =IF(AS23>AT$6,"",BD22) ->  | AY23: =IF(AS23>AT$6,"",((1+AT$11)^(AU23/360)-1)*AW23) ->  | BA23: 400.10 | BB23: PC - Auto/4x4 con GPS Lima/Valor >50k | BE23: =IFERROR(IF(AND(MONTH(AT23)=7,AT$9=2),2/(1+AT$13)^(AV23/360),IF(AND(MONTH(AT23)=12,AT$10=2),2/(1+AT$13)^(AV23/360),1/(1+AT$13)^(AV23/360))),"") ->  | BF23: =IFERROR(1/(1+AT$13)^(AV23/360),"") ->  | BJ23: 2 | BK23: =IF(BJ23>BK$6,"",EDATE(BK$22,BJ22)) -> 2022-11-01 | BL23: =IF(BJ23>BK$6,"",BK23-BK22) -> 31 | BM23: =IFERROR(BL23+BM22,"") -> 61 | BN23: =IF(BJ23>BK$6,"",BU22) ->  | BP23: =IF(BJ23>BK$6,"",((1+BK$11)^(BL23/360)-1)*BN23) ->  | BR23: 400.10 | BS23: PC - Auto/4x4 con GPS Lima/Valor >50k | BV23: =IFERROR(IF(AND(MONTH(BK23)=7,BK$9=2),2/(1+BK$13)^(BM23/360),IF(AND(MONTH(BK23)=12,BK$10=2),2/(1+BK$13)^(BM23/360),1/(1+BK$13)^(BM23/360))),"") ->  | BW23: =IFERROR(1/(1+BK$13)^(BM23/360),"") ->  | CA23: 2 | CB23: =IF(CA23>CB$6,"",EDATE(CB$22,CA22)) -> 2022-11-01 | CC23: =IF(CA23>CB$6,"",CB23-CB22) -> 31 | CD23: =IFERROR(CC23+CD22,"") -> 61 | CE23: =IF(CA23>CB$6,"",CL22) ->  | CG23: =IF(CA23>CB$6,"",((1+CB$11)^(CC23/360)-1)*CE23) ->  | CI23: 400.10 | CJ23: PC - Auto/4x4 con GPS Lima/Valor >50k | CM23: =IFERROR(IF(AND(MONTH(CB23)=7,CB$9=2),2/(1+CB$13)^(CD23/360),IF(AND(MONTH(CB23)=12,CB$10=2),2/(1+CB$13)^(CD23/360),1/(1+CB$13)^(CD23/360))),"") ->  | CN23: =IFERROR(1/(1+CB$13)^(CD23/360),"") ->  | CR23: 2 | CS23: =IF(CR23>CS$6,"",EDATE(CS$22,CR22)) -> 2022-11-01 | CT23: =IF(CR23>CS$6,"",CS23-CS22) -> 31 | CU23: =IFERROR(CT23+CU22,"") -> 61 | CV23: =IF(CR23>CS$6,"",DC22) ->  | CX23: =IF(CR23>CS$6,"",((1+CS$11)^(CT23/360)-1)*CV23) ->  | CZ23: 400.10 | DA23: PC - Auto/4x4 con GPS Lima/Valor >50k | DD23: =IFERROR(IF(AND(MONTH(CS23)=7,CS$9=2),2/(1+CS$13)^(CU23/360),IF(AND(MONTH(CS23)=12,CS$10=2),2/(1+CS$13)^(CU23/360),1/(1+CS$13)^(CU23/360))),"") ->  | DE23: =IFERROR(1/(1+CS$13)^(CU23/360),"") -> 
B24: 3 | C24: =IF(B24>C$6,"",EDATE(C$22,B23)) -> 2026-01-01 | D24: 4 | E24: 2026-01-01 | F24: =IF(B24>C$6,"",E24-E23) -> 31 | G24: 92 | H24: 101,420.50 | I24: =IF(B24>C$6,"",N24-M24-L24-K24-J24) -> 1,295.55 | J24: =IF(B24>C$6,"",((1+C$11)^(F24/360)-1)*H24) -> 994.59 | K24: 0 | L24: 0.00 | M24: 0 | N24: 2,290.14 | O24: 100,124.95 | P24: 0.97 | Q24: 0.97 | S24: =IFERROR((I24+J24+K24+L24+M24)*$J$12+('Simulador para calculos'!I24+'Simulador para calculos'!J24+'Simulador para calculos'!K24+'Simulador para calculos'!L24+'Simulador para calculos'!M24)*NOT($J$12),"") -> 2,290.14 | T24: 92.00 | U24: =IFERROR((1+'Simulación Cliente'!$E$22)^(T24/360),"") -> 1.06 | V24: 2,158.38 | AB24: 3 | AC24: 2022-12-01 | AD24: =IF(AB24>AC$6,"",AC24-AC23) -> 30 | AE24: 91 | AG24: =IF(AB24>AC$6,"",AL24-AK24-AJ24-AI24-AH24) ->  | AH24: =IF(AB24>AC$6,"",((1+AC$11)^(AD24/360)-1)*AF24) ->  | AJ24: 400.10 | AK24: PC - Auto/4x4 con GPS Lima/Valor >50k | AS24: 3 | AT24: 2022-12-01 | AU24: =IF(AS24>AT$6,"",AT24-AT23) -> 30 | AV24: 91 | AX24: =IF(AS24>AT$6,"",BC24-BB24-BA24-AZ24-AY24) ->  | AY24: =IF(AS24>AT$6,"",((1+AT$11)^(AU24/360)-1)*AW24) ->  | BA24: 400.10 | BB24: PC - Auto/4x4 con GPS Lima/Valor >50k | BJ24: 3 | BK24: 2022-12-01 | BL24: =IF(BJ24>BK$6,"",BK24-BK23) -> 30 | BM24: 91 | BO24: =IF(BJ24>BK$6,"",BT24-BS24-BR24-BQ24-BP24) ->  | BP24: =IF(BJ24>BK$6,"",((1+BK$11)^(BL24/360)-1)*BN24) ->  | BR24: 400.10 | BS24: PC - Auto/4x4 con GPS Lima/Valor >50k | CA24: 3 | CB24: 2022-12-01 | CC24: =IF(CA24>CB$6,"",CB24-CB23) -> 30 | CD24: 91 | CF24: =IF(CA24>CB$6,"",CK24-CJ24-CI24-CH24-CG24) ->  | CG24: =IF(CA24>CB$6,"",((1+CB$11)^(CC24/360)-1)*CE24) ->  | CI24: 400.10 | CJ24: PC - Auto/4x4 con GPS Lima/Valor >50k | CR24: 3 | CS24: 2022-12-01 | CT24: =IF(CR24>CS$6,"",CS24-CS23) -> 30 | CU24: 91 | CW24: =IF(CR24>CS$6,"",DB24-DA24-CZ24-CY24-CX24) ->  | CX24: =IF(CR24>CS$6,"",((1+CS$11)^(CT24/360)-1)*CV24) ->  | CZ24: 400.10 | DA24: PC - Auto/4x4 con GPS Lima/Valor >50k
B25: 4 | C25: 2026-02-01 | D25: 7 | E25: 2026-02-02 | F25: 32 | G25: 124 | H25: 100,124.95 | I25: 1,276.42 | J25: 1,013.72 | K25: 0 | L25: 0.00 | M25: 0 | N25: 2,290.14 | O25: 98,848.53 | P25: 0.96 | Q25: 0.96 | S25: =IFERROR((I25+J25+K25+L25+M25)*$J$12+('Simulador para calculos'!I25+'Simulador para calculos'!J25+'Simulador para calculos'!K25+'Simulador para calculos'!L25+'Simulador para calculos'!M25)*NOT($J$12),"") -> 2,290.14 | T25: 124.00 | U25: =IFERROR((1+'Simulación Cliente'!$E$22)^(T25/360),"") -> 1.08 | V25: 2,114.35 | AB25: 4 | AC25: 2023-01-01 | AD25: =IF(AB25>AC$6,"",AC25-AC24) -> 31 | AE25: 122 | AG25: =IF(AB25>AC$6,"",AL25-AK25-AJ25-AI25-AH25) ->  | AJ25: 400.10 | AK25: PC - Auto/4x4 con GPS Lima/Valor >50k | AS25: 4 | AT25: 2023-01-01 | AU25: =IF(AS25>AT$6,"",AT25-AT24) -> 31 | AV25: 122 | AX25: =IF(AS25>AT$6,"",BC25-BB25-BA25-AZ25-AY25) ->  | BA25: 400.10 | BB25: PC - Auto/4x4 con GPS Lima/Valor >50k | BJ25: 4 | BK25: 2023-01-01 | BL25: =IF(BJ25>BK$6,"",BK25-BK24) -> 31 | BM25: 122 | BO25: =IF(BJ25>BK$6,"",BT25-BS25-BR25-BQ25-BP25) ->  | BR25: 400.10 | BS25: PC - Auto/4x4 con GPS Lima/Valor >50k | CA25: 4 | CB25: 2023-01-01 | CC25: =IF(CA25>CB$6,"",CB25-CB24) -> 31 | CD25: 122 | CF25: =IF(CA25>CB$6,"",CK25-CJ25-CI25-CH25-CG25) ->  | CI25: 400.10 | CJ25: PC - Auto/4x4 con GPS Lima/Valor >50k | CR25: 4 | CS25: 2023-01-01 | CT25: =IF(CR25>CS$6,"",CS25-CS24) -> 31 | CU25: 122 | CW25: =IF(CR25>CS$6,"",DB25-DA25-CZ25-CY25-CX25) ->  | CZ25: 400.10 | DA25: PC - Auto/4x4 con GPS Lima/Valor >50k
B26: 5 | C26: 2026-03-01 | D26: 7 | E26: 2026-03-02 | F26: 28 | G26: 152 | H26: 98,848.53 | I26: 1,415.00 | J26: 875.15 | K26: 0 | L26: 0.00 | M26: 0 | N26: 2,290.14 | O26: 97,433.53 | P26: 0.95 | Q26: 0.95 | S26: =IFERROR((I26+J26+K26+L26+M26)*$J$12+('Simulador para calculos'!I26+'Simulador para calculos'!J26+'Simulador para calculos'!K26+'Simulador para calculos'!L26+'Simulador para calculos'!M26)*NOT($J$12),"") -> 2,290.14 | T26: 152.00 | U26: =IFERROR((1+'Simulación Cliente'!$E$22)^(T26/360),"") -> 1.10 | V26: 2,076.57 | AB26: 5 | AC26: 2023-02-01 | AD26: 31 | AE26: 153 | AJ26: 400.10 | AK26: PC - Auto/4x4 con GPS Lima/Valor >50k | AS26: 5 | AT26: 2023-02-01 | AU26: 31 | AV26: 153 | BA26: 400.10 | BB26: PC - Auto/4x4 con GPS Lima/Valor >50k | BJ26: 5 | BK26: 2023-02-01 | BL26: 31 | BM26: 153 | BR26: 400.10 | BS26: PC - Auto/4x4 con GPS Lima/Valor >50k | CA26: 5 | CB26: 2023-02-01 | CC26: 31 | CD26: 153 | CI26: 400.10 | CJ26: PC - Auto/4x4 con GPS Lima/Valor >50k | CR26: 5 | CS26: 2023-02-01 | CT26: 31 | CU26: 153 | CZ26: 400.10 | DA26: PC - Auto/4x4 con GPS Lima/Valor >50k
B27: 6 | C27: 2026-04-01 | D27: 3 | E27: 2026-04-01 | F27: 30 | G27: 182 | H27: 97,433.53 | I27: 1,365.62 | J27: 924.53 | K27: 0 | L27: 0.00 | M27: 0 | N27: 2,290.14 | O27: 96,067.91 | P27: 0.94 | Q27: 0.94 | S27: =IFERROR((I27+J27+K27+L27+M27)*$J$12+('Simulador para calculos'!I27+'Simulador para calculos'!J27+'Simulador para calculos'!K27+'Simulador para calculos'!L27+'Simulador para calculos'!M27)*NOT($J$12),"") -> 2,290.14 | T27: 182.00 | U27: =IFERROR((1+'Simulación Cliente'!$E$22)^(T27/360),"") -> 1.12 | V27: 2,036.83 | AB27: 6 | AC27: 2023-03-01 | AD27: 28 | AE27: 181 | AJ27: 400.10 | AK27: PC - Auto/4x4 con GPS Lima/Valor >50k | AS27: 6 | AT27: 2023-03-01 | AU27: 28 | AV27: 181 | BA27: 400.10 | BB27: PC - Auto/4x4 con GPS Lima/Valor >50k | BJ27: 6 | BK27: 2023-03-01 | BL27: 28 | BM27: 181 | BR27: 400.10 | BS27: PC - Auto/4x4 con GPS Lima/Valor >50k | CA27: 6 | CB27: 2023-03-01 | CC27: 28 | CD27: 181 | CI27: 400.10 | CJ27: PC - Auto/4x4 con GPS Lima/Valor >50k | CR27: 6 | CS27: 2023-03-01 | CT27: 28 | CU27: 181 | CZ27: 400.10 | DA27: PC - Auto/4x4 con GPS Lima/Valor >50k
B28: 7 | C28: 2026-05-01 | D28: 5 | E28: 2026-05-01 | F28: 30 | G28: 212 | H28: 96,067.91 | I28: 1,378.58 | J28: 911.57 | K28: 0 | L28: 0.00 | M28: 0 | N28: 2,290.14 | O28: 94,689.34 | P28: 0.94 | Q28: 0.94 | S28: =IFERROR((I28+J28+K28+L28+M28)*$J$12+('Simulador para calculos'!I28+'Simulador para calculos'!J28+'Simulador para calculos'!K28+'Simulador para calculos'!L28+'Simulador para calculos'!M28)*NOT($J$12),"") -> 2,290.14 | T28: 212.00 | U28: =IFERROR((1+'Simulación Cliente'!$E$22)^(T28/360),"") -> 1.15 | V28: 1,997.85 | AB28: 7 | AC28: 2023-04-01 | AD28: 31 | AE28: 212 | AJ28: 400.10 | AK28: PC - Auto/4x4 con GPS Lima/Valor >50k | AS28: 7 | AT28: 2023-04-01 | AU28: 31 | AV28: 212 | BA28: 400.10 | BB28: PC - Auto/4x4 con GPS Lima/Valor >50k | BJ28: 7 | BK28: 2023-04-01 | BL28: 31 | BM28: 212 | BR28: 400.10 | BS28: PC - Auto/4x4 con GPS Lima/Valor >50k | CA28: 7 | CB28: 2023-04-01 | CC28: 31 | CD28: 212 | CI28: 400.10 | CJ28: PC - Auto/4x4 con GPS Lima/Valor >50k | CR28: 7 | CS28: 2023-04-01 | CT28: 31 | CU28: 212 | CZ28: 400.10 | DA28: PC - Auto/4x4 con GPS Lima/Valor >50k
B29: 8 | C29: 2026-06-01 | D29: 1 | E29: 2026-06-01 | F29: 31 | G29: 243 | H29: 94,689.34 | I29: 1,361.56 | J29: 928.58 | K29: 0 | L29: 0.00 | M29: 0 | N29: 2,290.14 | O29: 93,327.77 | P29: 0.93 | Q29: 0.93 | S29: =IFERROR((I29+J29+K29+L29+M29)*$J$12+('Simulador para calculos'!I29+'Simulador para calculos'!J29+'Simulador para calculos'!K29+'Simulador para calculos'!L29+'Simulador para calculos'!M29)*NOT($J$12),"") -> 2,290.14 | T29: 243.00 | U29: =IFERROR((1+'Simulación Cliente'!$E$22)^(T29/360),"") -> 1.17 | V29: 1,958.36 | AB29: 8 | AC29: 2023-05-01 | AD29: 30 | AE29: 242 | AJ29: 400.10 | AK29: PC - Auto/4x4 con GPS Lima/Valor >50k | AS29: 8 | AT29: 2023-05-01 | AU29: 30 | AV29: 242 | BA29: 400.10 | BB29: PC - Auto/4x4 con GPS Lima/Valor >50k | BJ29: 8 | BK29: 2023-05-01 | BL29: 30 | BM29: 242 | BR29: 400.10 | BS29: PC - Auto/4x4 con GPS Lima/Valor >50k | CA29: 8 | CB29: 2023-05-01 | CC29: 30 | CD29: 242 | CI29: 400.10 | CJ29: PC - Auto/4x4 con GPS Lima/Valor >50k | CR29: 8 | CS29: 2023-05-01 | CT29: 30 | CU29: 242 | CZ29: 400.10 | DA29: PC - Auto/4x4 con GPS Lima/Valor >50k
B30: 9 | C30: 2026-07-01 | D30: 3 | E30: 2026-07-01 | F30: 30 | G30: 273 | H30: 93,327.77 | I30: 1,404.58 | J30: 885.57 | K30: 0 | L30: 0.00 | M30: 0 | N30: 2,290.14 | O30: 91,923.20 | P30: 0.92 | Q30: 0.92 | S30: =IFERROR((I30+J30+K30+L30+M30)*$J$12+('Simulador para calculos'!I30+'Simulador para calculos'!J30+'Simulador para calculos'!K30+'Simulador para calculos'!L30+'Simulador para calculos'!M30)*NOT($J$12),"") -> 2,290.14 | T30: 273.00 | U30: =IFERROR((1+'Simulación Cliente'!$E$22)^(T30/360),"") -> 1.19 | V30: 1,920.88 | AB30: 9 | AC30: 2023-06-01 | AD30: 31 | AE30: 273 | AJ30: 400.10 | AK30: PC - Auto/4x4 con GPS Lima/Valor >50k | AS30: 9 | AT30: 2023-06-01 | AU30: 31 | AV30: 273 | BA30: 400.10 | BB30: PC - Auto/4x4 con GPS Lima/Valor >50k | BJ30: 9 | BK30: 2023-06-01 | BL30: 31 | BM30: 273 | BR30: 400.10 | BS30: PC - Auto/4x4 con GPS Lima/Valor >50k | CA30: 9 | CB30: 2023-06-01 | CC30: 31 | CD30: 273 | CI30: 400.10 | CJ30: PC - Auto/4x4 con GPS Lima/Valor >50k | CR30: 9 | CS30: 2023-06-01 | CT30: 31 | CU30: 273 | CZ30: 400.10 | DA30: PC - Auto/4x4 con GPS Lima/Valor >50k
B31: 10 | C31: 2026-08-01 | D31: 6 | E31: 2026-08-01 | F31: 31 | G31: 304 | H31: 91,923.20 | I31: =IF(B31>C$6,"",N31-M31-L31-K31-J31) -> 1,388.69 | J31: 901.46 | K31: 0 | L31: 0.00 | M31: 0 | N31: 2,290.14 | O31: 90,534.51 | P31: 0.91 | Q31: 0.91 | S31: =IFERROR((I31+J31+K31+L31+M31)*$J$12+('Simulador para calculos'!I31+'Simulador para calculos'!J31+'Simulador para calculos'!K31+'Simulador para calculos'!L31+'Simulador para calculos'!M31)*NOT($J$12),"") -> 2,290.14 | T31: 304.00 | U31: =IFERROR((1+'Simulación Cliente'!$E$22)^(T31/360),"") -> 1.22 | V31: 1,882.91 | AB31: 10 | AC31: 2023-07-01 | AD31: 30 | AE31: 303 | AJ31: 400.10 | AK31: PC - Auto/4x4 con GPS Lima/Valor >50k | AS31: 10 | AT31: 2023-07-01 | AU31: 30 | AV31: 303 | BA31: 400.10 | BB31: PC - Auto/4x4 con GPS Lima/Valor >50k | BJ31: 10 | BK31: 2023-07-01 | BL31: 30 | BM31: 303 | BR31: 400.10 | BS31: PC - Auto/4x4 con GPS Lima/Valor >50k | CA31: 10 | CB31: 2023-07-01 | CC31: 30 | CD31: 303 | CI31: 400.10 | CJ31: PC - Auto/4x4 con GPS Lima/Valor >50k | CR31: 10 | CS31: 2023-07-01 | CT31: 30 | CU31: 303 | CZ31: 400.10 | DA31: PC - Auto/4x4 con GPS Lima/Valor >50k
B32: 11 | C32: 2026-09-01 | D32: 2 | E32: 2026-09-01 | F32: 31 | G32: 335 | H32: 90,534.51 | I32: 1,402.31 | J32: 887.84 | K32: 0 | L32: 0.00 | M32: 0 | N32: 2,290.14 | O32: 89,132.21 | P32: 0.90 | Q32: 0.90 | S32: =IFERROR((I32+J32+K32+L32+M32)*$J$12+('Simulador para calculos'!I32+'Simulador para calculos'!J32+'Simulador para calculos'!K32+'Simulador para calculos'!L32+'Simulador para calculos'!M32)*NOT($J$12),"") -> 2,290.14 | T32: 335.00 | U32: =IFERROR((1+'Simulación Cliente'!$E$22)^(T32/360),"") -> 1.24 | V32: 1,845.68 | AB32: 11 | AC32: 2023-08-01 | AD32: 31 | AE32: 334 | AJ32: 400.10 | AK32: PC - Auto/4x4 con GPS Lima/Valor >50k | AS32: 11 | AT32: 2023-08-01 | AU32: 31 | AV32: 334 | BA32: 400.10 | BB32: PC - Auto/4x4 con GPS Lima/Valor >50k | BJ32: 11 | BK32: 2023-08-01 | BL32: 31 | BM32: 334 | BR32: 400.10 | BS32: PC - Auto/4x4 con GPS Lima/Valor >50k | CA32: 11 | CB32: 2023-08-01 | CC32: 31 | CD32: 334 | CI32: 400.10 | CJ32: PC - Auto/4x4 con GPS Lima/Valor >50k | CR32: 11 | CS32: 2023-08-01 | CT32: 31 | CU32: 334 | CZ32: 400.10 | DA32: PC - Auto/4x4 con GPS Lima/Valor >50k
B33: 12 | C33: 2026-10-01 | D33: 4 | E33: 2026-10-01 | F33: 30 | G33: 365 | H33: 89,132.21 | I33: 1,444.39 | J33: 845.76 | K33: 0 | L33: 0.00 | M33: 0 | N33: =IF(B33>C$6,"",IF(B33=C$6,H33+J33+K33+L33+M33,IF(AND(C$9=2,MONTH(C33)=7),2*C$17,IF(AND(C$10=2,MONTH(C33)=12),2*C$17,C$17)))) -> 2,290.14 | O33: 87,687.82 | P33: 0.89 | Q33: 0.89 | S33: =IFERROR((I33+J33+K33+L33+M33)*$J$12+('Simulador para calculos'!I33+'Simulador para calculos'!J33+'Simulador para calculos'!K33+'Simulador para calculos'!L33+'Simulador para calculos'!M33)*NOT($J$12),"") -> 2,290.14 | T33: 365.00 | U33: =IFERROR((1+'Simulación Cliente'!$E$22)^(T33/360),"") -> 1.27 | V33: 1,810.36 | AB33: 12 | AC33: 2023-09-01 | AD33: 31 | AE33: 365 | AJ33: 400.10 | AK33: PC - Auto/4x4 con GPS Lima/Valor >50k | AS33: 12 | AT33: 2023-09-01 | AU33: 31 | AV33: 365 | BA33: 400.10 | BB33: PC - Auto/4x4 con GPS Lima/Valor >50k | BJ33: 12 | BK33: 2023-09-01 | BL33: 31 | BM33: 365 | BR33: 400.10 | BS33: PC - Auto/4x4 con GPS Lima/Valor >50k | CA33: 12 | CB33: 2023-09-01 | CC33: 31 | CD33: 365 | CI33: 400.10 | CJ33: PC - Auto/4x4 con GPS Lima/Valor >50k | CR33: 12 | CS33: 2023-09-01 | CT33: 31 | CU33: 365 | CZ33: 400.10 | DA33: PC - Auto/4x4 con GPS Lima/Valor >50k
B34: 13 | C34: 2026-11-01 | D34: 7 | E34: 2026-11-02 | F34: 32 | G34: 397 | H34: 87,687.82 | I34: 1,402.34 | J34: 887.80 | K34: 0 | L34: 0.00 | M34: 0 | N34: 2,290.14 | O34: 86,285.48 | P34: 0.88 | Q34: 0.88 | S34: =IFERROR((I34+J34+K34+L34+M34)*$J$12+('Simulador para calculos'!I34+'Simulador para calculos'!J34+'Simulador para calculos'!K34+'Simulador para calculos'!L34+'Simulador para calculos'!M34)*NOT($J$12),"") -> 2,290.14 | T34: 397.00 | U34: =IFERROR((1+'Simulación Cliente'!$E$22)^(T34/360),"") -> 1.29 | V34: 1,773.43 | AB34: 13 | AC34: 2023-10-01 | AD34: 30 | AE34: 395 | AJ34: 400.10 | AK34: PC - Auto/4x4 con GPS Lima/Valor >50k | AS34: 13 | AT34: 2023-10-01 | AU34: 30 | AV34: 395 | BA34: 400.10 | BB34: PC - Auto/4x4 con GPS Lima/Valor >50k | BJ34: 13 | BK34: 2023-10-01 | BL34: 30 | BM34: 395 | BR34: 400.10 | BS34: PC - Auto/4x4 con GPS Lima/Valor >50k | CA34: 13 | CB34: 2023-10-01 | CC34: 30 | CD34: 395 | CI34: 400.10 | CJ34: PC - Auto/4x4 con GPS Lima/Valor >50k | CR34: 13 | CS34: 2023-10-01 | CT34: 30 | CU34: 395 | CZ34: 400.10 | DA34: PC - Auto/4x4 con GPS Lima/Valor >50k
B35: 14 | C35: 2026-12-01 | D35: 2 | E35: 2026-12-01 | F35: 29 | G35: 426 | H35: 86,285.48 | I35: 1,498.82 | J35: 791.33 | K35: 0 | L35: 0.00 | M35: 0 | N35: 2,290.14 | O35: 84,786.66 | P35: 0.87 | Q35: 0.87 | S35: =IFERROR((I35+J35+K35+L35+M35)*$J$12+('Simulador para calculos'!I35+'Simulador para calculos'!J35+'Simulador para calculos'!K35+'Simulador para calculos'!L35+'Simulador para calculos'!M35)*NOT($J$12),"") -> 2,290.14 | T35: 426.00 | U35: =IFERROR((1+'Simulación Cliente'!$E$22)^(T35/360),"") -> 1.32 | V35: 1,740.62 | AB35: 14 | AC35: 2023-11-01 | AD35: 31 | AE35: 426 | AJ35: 400.10 | AK35: PC - Auto/4x4 con GPS Lima/Valor >50k | AS35: 14 | AT35: 2023-11-01 | AU35: 31 | AV35: 426 | BA35: 400.10 | BB35: PC - Auto/4x4 con GPS Lima/Valor >50k | BJ35: 14 | BK35: 2023-11-01 | BL35: 31 | BM35: 426 | BR35: 400.10 | BS35: PC - Auto/4x4 con GPS Lima/Valor >50k | CA35: 14 | CB35: 2023-11-01 | CC35: 31 | CD35: 426 | CI35: 400.10 | CJ35: PC - Auto/4x4 con GPS Lima/Valor >50k | CR35: 14 | CS35: 2023-11-01 | CT35: 31 | CU35: 426 | CZ35: 400.10 | DA35: PC - Auto/4x4 con GPS Lima/Valor >50k
B36: 15 | C36: 2027-01-01 | D36: 5 | E36: 2027-01-01 | F36: 31 | G36: 457 | H36: 84,786.66 | I36: 1,458.67 | J36: 831.47 | K36: 0 | L36: 0.00 | M36: 0 | N36: 2,290.14 | O36: 83,327.99 | P36: 0.87 | Q36: 0.87 | S36: =IFERROR((I36+J36+K36+L36+M36)*$J$12+('Simulador para calculos'!I36+'Simulador para calculos'!J36+'Simulador para calculos'!K36+'Simulador para calculos'!L36+'Simulador para calculos'!M36)*NOT($J$12),"") -> 2,290.14 | T36: 457.00 | U36: =IFERROR((1+'Simulación Cliente'!$E$22)^(T36/360),"") -> 1.34 | V36: 1,706.21 | AB36: 15 | AC36: 2023-12-01 | AD36: 30 | AE36: 456 | AJ36: 400.10 | AK36: PC - Auto/4x4 con GPS Lima/Valor >50k | AS36: 15 | AT36: 2023-12-01 | AU36: 30 | AV36: 456 | BA36: 400.10 | BB36: PC - Auto/4x4 con GPS Lima/Valor >50k | BJ36: 15 | BK36: 2023-12-01 | BL36: 30 | BM36: 456 | BR36: 400.10 | BS36: PC - Auto/4x4 con GPS Lima/Valor >50k | CA36: 15 | CB36: 2023-12-01 | CC36: 30 | CD36: 456 | CI36: 400.10 | CJ36: PC - Auto/4x4 con GPS Lima/Valor >50k | CR36: 15 | CS36: 2023-12-01 | CT36: 30 | CU36: 456 | CZ36: 400.10 | DA36: PC - Auto/4x4 con GPS Lima/Valor >50k
B37: 16 | C37: 2027-02-01 | D37: 1 | E37: 2027-02-01 | F37: 31 | G37: 488 | H37: 83,327.99 | I37: 1,472.98 | J37: 817.17 | K37: 0 | L37: 0.00 | M37: 0 | N37: 2,290.14 | O37: 81,855.01 | P37: 0.86 | Q37: 0.86 | S37: =IFERROR((I37+J37+K37+L37+M37)*$J$12+('Simulador para calculos'!I37+'Simulador para calculos'!J37+'Simulador para calculos'!K37+'Simulador para calculos'!L37+'Simulador para calculos'!M37)*NOT($J$12),"") -> 2,290.14 | T37: 488.00 | U37: =IFERROR((1+'Simulación Cliente'!$E$22)^(T37/360),"") -> 1.37 | V37: 1,672.48 | AB37: 16 | AC37: 2024-01-01 | AD37: 31 | AE37: 487 | AJ37: 400.10 | AK37: PC - Auto/4x4 con GPS Lima/Valor >50k | AS37: 16 | AT37: 2024-01-01 | AU37: 31 | AV37: 487 | BA37: 400.10 | BB37: PC - Auto/4x4 con GPS Lima/Valor >50k | BJ37: 16 | BK37: 2024-01-01 | BL37: 31 | BM37: 487 | BR37: 400.10 | BS37: PC - Auto/4x4 con GPS Lima/Valor >50k | CA37: 16 | CB37: 2024-01-01 | CC37: 31 | CD37: 487 | CI37: 400.10 | CJ37: PC - Auto/4x4 con GPS Lima/Valor >50k | CR37: 16 | CS37: 2024-01-01 | CT37: 31 | CU37: 487 | CZ37: 400.10 | DA37: PC - Auto/4x4 con GPS Lima/Valor >50k
B38: 17 | C38: 2027-03-01 | D38: 1 | E38: 2027-03-01 | F38: 28 | G38: 516 | H38: 81,855.01 | I38: 1,565.45 | J38: 724.70 | K38: 0 | L38: 0.00 | M38: 0 | N38: 2,290.14 | O38: 80,289.56 | P38: 0.85 | Q38: 0.85 | S38: =IFERROR((I38+J38+K38+L38+M38)*$J$12+('Simulador para calculos'!I38+'Simulador para calculos'!J38+'Simulador para calculos'!K38+'Simulador para calculos'!L38+'Simulador para calculos'!M38)*NOT($J$12),"") -> 2,290.14 | T38: 516.00 | U38: =IFERROR((1+'Simulación Cliente'!$E$22)^(T38/360),"") -> 1.39 | V38: 1,642.59 | AB38: 17 | AC38: 2024-02-01 | AD38: 31 | AE38: 518 | AJ38: 400.10 | AK38: PC - Auto/4x4 con GPS Lima/Valor >50k | AS38: 17 | AT38: 2024-02-01 | AU38: 31 | AV38: 518 | BA38: 400.10 | BB38: PC - Auto/4x4 con GPS Lima/Valor >50k | BJ38: 17 | BK38: 2024-02-01 | BL38: 31 | BM38: 518 | BR38: 400.10 | BS38: PC - Auto/4x4 con GPS Lima/Valor >50k | CA38: 17 | CB38: 2024-02-01 | CC38: 31 | CD38: 518 | CI38: 400.10 | CJ38: PC - Auto/4x4 con GPS Lima/Valor >50k | CR38: 17 | CS38: 2024-02-01 | CT38: 31 | CU38: 518 | CZ38: 400.10 | DA38: PC - Auto/4x4 con GPS Lima/Valor >50k
B39: 18 | C39: 2027-04-01 | D39: 4 | E39: 2027-04-01 | F39: 31 | G39: 547 | H39: 80,289.56 | I39: 1,502.77 | J39: 787.37 | K39: 0 | L39: 0.00 | M39: 0 | N39: =IF(B39>C$6,"",IF(B39=C$6,H39+J39+K39+L39+M39,IF(AND(C$9=2,MONTH(C39)=7),2*C$17,IF(AND(C$10=2,MONTH(C39)=12),2*C$17,C$17)))) -> 2,290.14 | O39: 78,786.79 | P39: 0.84 | Q39: 0.84 | S39: =IFERROR((I39+J39+K39+L39+M39)*$J$12+('Simulador para calculos'!I39+'Simulador para calculos'!J39+'Simulador para calculos'!K39+'Simulador para calculos'!L39+'Simulador para calculos'!M39)*NOT($J$12),"") -> 2,290.14 | T39: 547.00 | U39: =IFERROR((1+'Simulación Cliente'!$E$22)^(T39/360),"") -> 1.42 | V39: 1,610.12 | AB39: 18 | AC39: 2024-03-01 | AD39: 29 | AE39: 547 | AJ39: 400.10 | AK39: PC - Auto/4x4 con GPS Lima/Valor >50k | AS39: 18 | AT39: 2024-03-01 | AU39: 29 | AV39: 547 | BA39: 400.10 | BB39: PC - Auto/4x4 con GPS Lima/Valor >50k | BJ39: 18 | BK39: 2024-03-01 | BL39: 29 | BM39: 547 | BR39: 400.10 | BS39: PC - Auto/4x4 con GPS Lima/Valor >50k | CA39: 18 | CB39: 2024-03-01 | CC39: 29 | CD39: 547 | CI39: 400.10 | CJ39: PC - Auto/4x4 con GPS Lima/Valor >50k | CR39: 18 | CS39: 2024-03-01 | CT39: 29 | CU39: 547 | CZ39: 400.10 | DA39: PC - Auto/4x4 con GPS Lima/Valor >50k
B40: 19 | C40: 2027-05-01 | D40: 6 | E40: 2027-05-01 | F40: 30 | G40: 577 | H40: 78,786.79 | I40: 1,542.55 | J40: 747.59 | K40: 0 | L40: 0.00 | M40: 0 | N40: 2,290.14 | O40: =IF(B40>C$6,"",H40-I40) -> 77,244.24 | P40: 0.83 | Q40: 0.83 | S40: =IFERROR((I40+J40+K40+L40+M40)*$J$12+('Simulador para calculos'!I40+'Simulador para calculos'!J40+'Simulador para calculos'!K40+'Simulador para calculos'!L40+'Simulador para calculos'!M40)*NOT($J$12),"") -> 2,290.14 | T40: 577.00 | U40: =IFERROR((1+'Simulación Cliente'!$E$22)^(T40/360),"") -> 1.45 | V40: 1,579.31 | AB40: 19 | AC40: 2024-04-01 | AD40: 31 | AE40: 578 | AJ40: 400.10 | AK40: PC - Auto/4x4 con GPS Lima/Valor >50k | AS40: 19 | AT40: 2024-04-01 | AU40: 31 | AV40: 578 | BA40: 400.10 | BB40: PC - Auto/4x4 con GPS Lima/Valor >50k | BJ40: 19 | BK40: 2024-04-01 | BL40: 31 | BM40: 578 | BR40: 400.10 | BS40: PC - Auto/4x4 con GPS Lima/Valor >50k | CA40: 19 | CB40: 2024-04-01 | CC40: 31 | CD40: 578 | CI40: 400.10 | CJ40: PC - Auto/4x4 con GPS Lima/Valor >50k | CR40: 19 | CS40: 2024-04-01 | CT40: 31 | CU40: 578 | CZ40: 400.10 | DA40: PC - Auto/4x4 con GPS Lima/Valor >50k
B41: 20 | C41: 2027-06-01 | D41: 2 | E41: 2027-06-01 | F41: 31 | G41: 608 | H41: 77,244.24 | I41: 1,532.64 | J41: 757.51 | K41: 0 | L41: 0.00 | M41: 0 | N41: =IF(B41>C$6,"",IF(B41=C$6,H41+J41+K41+L41+M41,IF(AND(C$9=2,MONTH(C41)=7),2*C$17,IF(AND(C$10=2,MONTH(C41)=12),2*C$17,C$17)))) -> 2,290.14 | O41: =IF(B41>C$6,"",H41-I41) -> 75,711.60 | P41: 0.83 | Q41: 0.83 | S41: =IFERROR((I41+J41+K41+L41+M41)*$J$12+('Simulador para calculos'!I41+'Simulador para calculos'!J41+'Simulador para calculos'!K41+'Simulador para calculos'!L41+'Simulador para calculos'!M41)*NOT($J$12),"") -> 2,290.14 | T41: 608.00 | U41: =IFERROR((1+'Simulación Cliente'!$E$22)^(T41/360),"") -> 1.48 | V41: 1,548.08 | AB41: 20 | AC41: 2024-05-01 | AD41: 30 | AE41: 608 | AJ41: 400.10 | AK41: PC - Auto/4x4 con GPS Lima/Valor >50k | AS41: 20 | AT41: 2024-05-01 | AU41: 30 | AV41: 608 | BA41: 400.10 | BB41: PC - Auto/4x4 con GPS Lima/Valor >50k | BJ41: 20 | BK41: 2024-05-01 | BL41: 30 | BM41: 608 | BR41: 400.10 | BS41: PC - Auto/4x4 con GPS Lima/Valor >50k | CA41: 20 | CB41: 2024-05-01 | CC41: 30 | CD41: 608 | CI41: 400.10 | CJ41: PC - Auto/4x4 con GPS Lima/Valor >50k | CR41: 20 | CS41: 2024-05-01 | CT41: 30 | CU41: 608 | CZ41: 400.10 | DA41: PC - Auto/4x4 con GPS Lima/Valor >50k
B42: 21 | C42: 2027-07-01 | D42: 4 | E42: 2027-07-01 | F42: 30 | G42: 638 | H42: 75,711.60 | I42: 1,571.73 | J42: 718.41 | K42: 0 | L42: 0.00 | M42: 0 | N42: 2,290.14 | O42: 74,139.87 | P42: 0.82 | Q42: 0.82 | S42: =IFERROR((I42+J42+K42+L42+M42)*$J$12+('Simulador para calculos'!I42+'Simulador para calculos'!J42+'Simulador para calculos'!K42+'Simulador para calculos'!L42+'Simulador para calculos'!M42)*NOT($J$12),"") -> 2,290.14 | T42: 638.00 | U42: =IFERROR((1+'Simulación Cliente'!$E$22)^(T42/360),"") -> 1.51 | V42: 1,518.46 | AB42: 21 | AC42: 2024-06-01 | AD42: 31 | AE42: 639 | AJ42: 400.10 | AK42: PC - Auto/4x4 con GPS Lima/Valor >50k | AS42: 21 | AT42: 2024-06-01 | AU42: 31 | AV42: 639 | BA42: 400.10 | BB42: PC - Auto/4x4 con GPS Lima/Valor >50k | BJ42: 21 | BK42: 2024-06-01 | BL42: 31 | BM42: 639 | BR42: 400.10 | BS42: PC - Auto/4x4 con GPS Lima/Valor >50k | CA42: 21 | CB42: 2024-06-01 | CC42: 31 | CD42: 639 | CI42: 400.10 | CJ42: PC - Auto/4x4 con GPS Lima/Valor >50k | CR42: 21 | CS42: 2024-06-01 | CT42: 31 | CU42: 639 | CZ42: 400.10 | DA42: PC - Auto/4x4 con GPS Lima/Valor >50k
B43: 22 | C43: 2027-08-01 | D43: 7 | E43: 2027-08-02 | F43: 32 | G43: 670 | H43: 74,139.87 | I43: 1,539.51 | J43: 750.63 | K43: 0 | L43: 0.00 | M43: 0 | N43: 2,290.14 | O43: 72,600.36 | P43: 0.81 | Q43: 0.81 | S43: =IFERROR((I43+J43+K43+L43+M43)*$J$12+('Simulador para calculos'!I43+'Simulador para calculos'!J43+'Simulador para calculos'!K43+'Simulador para calculos'!L43+'Simulador para calculos'!M43)*NOT($J$12),"") -> 2,290.14 | T43: 670.00 | U43: =IFERROR((1+'Simulación Cliente'!$E$22)^(T43/360),"") -> 1.54 | V43: 1,487.48 | AB43: 22 | AC43: 2024-07-01 | AD43: 30 | AE43: 669 | AJ43: 400.10 | AK43: PC - Auto/4x4 con GPS Lima/Valor >50k | AS43: 22 | AT43: 2024-07-01 | AU43: 30 | AV43: 669 | BA43: 400.10 | BB43: PC - Auto/4x4 con GPS Lima/Valor >50k | BJ43: 22 | BK43: 2024-07-01 | BL43: 30 | BM43: 669 | BR43: 400.10 | BS43: PC - Auto/4x4 con GPS Lima/Valor >50k | CA43: 22 | CB43: 2024-07-01 | CC43: 30 | CD43: 669 | CI43: 400.10 | CJ43: PC - Auto/4x4 con GPS Lima/Valor >50k | CR43: 22 | CS43: 2024-07-01 | CT43: 30 | CU43: 669 | CZ43: 400.10 | DA43: PC - Auto/4x4 con GPS Lima/Valor >50k
B44: 23 | C44: 2027-09-01 | D44: 3 | E44: 2027-09-01 | F44: 30 | G44: 700 | H44: 72,600.36 | I44: 1,601.25 | J44: 688.89 | K44: 0 | L44: 0.00 | M44: 0 | N44: 2,290.14 | O44: 70,999.10 | P44: 0.80 | Q44: 0.80 | S44: =IFERROR((I44+J44+K44+L44+M44)*$J$12+('Simulador para calculos'!I44+'Simulador para calculos'!J44+'Simulador para calculos'!K44+'Simulador para calculos'!L44+'Simulador para calculos'!M44)*NOT($J$12),"") -> 2,290.14 | T44: 700.00 | U44: =IFERROR((1+'Simulación Cliente'!$E$22)^(T44/360),"") -> 1.57 | V44: 1,459.02 | AB44: 23 | AC44: 2024-08-01 | AD44: 31 | AE44: 700 | AJ44: 400.10 | AK44: PC - Auto/4x4 con GPS Lima/Valor >50k | AS44: 23 | AT44: 2024-08-01 | AU44: 31 | AV44: 700 | BA44: 400.10 | BB44: PC - Auto/4x4 con GPS Lima/Valor >50k | BJ44: 23 | BK44: 2024-08-01 | BL44: 31 | BM44: 700 | BR44: 400.10 | BS44: PC - Auto/4x4 con GPS Lima/Valor >50k | CA44: 23 | CB44: 2024-08-01 | CC44: 31 | CD44: 700 | CI44: 400.10 | CJ44: PC - Auto/4x4 con GPS Lima/Valor >50k | CR44: 23 | CS44: 2024-08-01 | CT44: 31 | CU44: 700 | CZ44: 400.10 | DA44: PC - Auto/4x4 con GPS Lima/Valor >50k
B45: 24 | C45: 2027-10-01 | D45: 5 | E45: 2027-10-01 | F45: 30 | G45: 730 | H45: 70,999.10 | I45: 1,616.45 | J45: 673.70 | K45: 0 | L45: 0.00 | M45: 0 | N45: 2,290.14 | O45: 69,382.65 | P45: 0.79 | Q45: 0.79 | S45: =IFERROR((I45+J45+K45+L45+M45)*$J$12+('Simulador para calculos'!I45+'Simulador para calculos'!J45+'Simulador para calculos'!K45+'Simulador para calculos'!L45+'Simulador para calculos'!M45)*NOT($J$12),"") -> 2,290.14 | T45: 730.00 | U45: =IFERROR((1+'Simulación Cliente'!$E$22)^(T45/360),"") -> 1.60 | V45: 1,431.10 | AB45: 24 | AC45: 2024-09-01 | AD45: 31 | AE45: 731 | AJ45: 400.10 | AK45: PC - Auto/4x4 con GPS Lima/Valor >50k | AS45: 24 | AT45: 2024-09-01 | AU45: 31 | AV45: 731 | BA45: 400.10 | BB45: PC - Auto/4x4 con GPS Lima/Valor >50k | BJ45: 24 | BK45: 2024-09-01 | BL45: 31 | BM45: 731 | BR45: 400.10 | BS45: PC - Auto/4x4 con GPS Lima/Valor >50k | CA45: 24 | CB45: 2024-09-01 | CC45: 31 | CD45: 731 | CI45: 400.10 | CJ45: PC - Auto/4x4 con GPS Lima/Valor >50k | CR45: 24 | CS45: 2024-09-01 | CT45: 31 | CU45: 731 | CZ45: 400.10 | DA45: PC - Auto/4x4 con GPS Lima/Valor >50k
B46: 25 | C46: 2027-11-01 | D46: 1 | E46: 2027-11-01 | F46: 31 | G46: 761 | H46: 69,382.65 | I46: 1,609.73 | J46: 680.41 | K46: 0 | L46: 0.00 | M46: 0 | N46: 2,290.14 | O46: 67,772.92 | P46: 0.79 | Q46: 0.79 | S46: =IFERROR((I46+J46+K46+L46+M46)*$J$12+('Simulador para calculos'!I46+'Simulador para calculos'!J46+'Simulador para calculos'!K46+'Simulador para calculos'!L46+'Simulador para calculos'!M46)*NOT($J$12),"") -> 2,290.14 | T46: 761.00 | U46: =IFERROR((1+'Simulación Cliente'!$E$22)^(T46/360),"") -> 1.63 | V46: 1,402.81 | AB46: 25 | AC46: 2024-10-01 | AD46: 30 | AE46: 761 | AJ46: 400.10 | AK46: PC - Auto/4x4 con GPS Lima/Valor >50k | AS46: 25 | AT46: 2024-10-01 | AU46: 30 | AV46: 761 | BA46: 400.10 | BB46: PC - Auto/4x4 con GPS Lima/Valor >50k | BJ46: 25 | BK46: 2024-10-01 | BL46: 30 | BM46: 761 | BR46: 400.10 | BS46: PC - Auto/4x4 con GPS Lima/Valor >50k | CA46: 25 | CB46: 2024-10-01 | CC46: 30 | CD46: 761 | CI46: 400.10 | CJ46: PC - Auto/4x4 con GPS Lima/Valor >50k | CR46: 25 | CS46: 2024-10-01 | CT46: 30 | CU46: 761 | CZ46: 400.10 | DA46: PC - Auto/4x4 con GPS Lima/Valor >50k
B47: 26 | C47: 2027-12-01 | D47: 3 | E47: 2027-12-01 | F47: 30 | G47: 791 | H47: 67,772.92 | I47: 1,647.06 | J47: 643.08 | K47: 0 | L47: 0.00 | M47: 0 | N47: 2,290.14 | O47: 66,125.86 | P47: 0.78 | Q47: 0.78 | S47: =IFERROR((I47+J47+K47+L47+M47)*$J$12+('Simulador para calculos'!I47+'Simulador para calculos'!J47+'Simulador para calculos'!K47+'Simulador para calculos'!L47+'Simulador para calculos'!M47)*NOT($J$12),"") -> 2,290.14 | T47: 791.00 | U47: =IFERROR((1+'Simulación Cliente'!$E$22)^(T47/360),"") -> 1.66 | V47: 1,375.96 | AB47: 26 | AC47: 2024-11-01 | AD47: 31 | AE47: 792 | AJ47: 400.10 | AK47: PC - Auto/4x4 con GPS Lima/Valor >50k | AS47: 26 | AT47: 2024-11-01 | AU47: 31 | AV47: 792 | BA47: 400.10 | BB47: PC - Auto/4x4 con GPS Lima/Valor >50k | BJ47: 26 | BK47: 2024-11-01 | BL47: 31 | BM47: 792 | BR47: 400.10 | BS47: PC - Auto/4x4 con GPS Lima/Valor >50k | CA47: 26 | CB47: 2024-11-01 | CC47: 31 | CD47: 792 | CI47: 400.10 | CJ47: PC - Auto/4x4 con GPS Lima/Valor >50k | CR47: 26 | CS47: 2024-11-01 | CT47: 31 | CU47: 792 | CZ47: 400.10 | DA47: PC - Auto/4x4 con GPS Lima/Valor >50k
B48: 27 | C48: 2028-01-01 | D48: 6 | E48: 2028-01-01 | F48: 31 | G48: 822 | H48: 66,125.86 | I48: 1,641.67 | J48: 648.47 | K48: 0 | L48: 0.00 | M48: 0 | N48: 2,290.14 | O48: 64,484.18 | P48: 0.77 | Q48: 0.77 | S48: =IFERROR((I48+J48+K48+L48+M48)*$J$12+('Simulador para calculos'!I48+'Simulador para calculos'!J48+'Simulador para calculos'!K48+'Simulador para calculos'!L48+'Simulador para calculos'!M48)*NOT($J$12),"") -> 2,290.14 | T48: 822.00 | U48: =IFERROR((1+'Simulación Cliente'!$E$22)^(T48/360),"") -> 1.70 | V48: 1,348.76 | AB48: 27 | AC48: 2024-12-01 | AD48: 30 | AE48: 822 | AJ48: 400.10 | AK48: PC - Auto/4x4 con GPS Lima/Valor >50k | AS48: 27 | AT48: 2024-12-01 | AU48: 30 | AV48: 822 | BA48: 400.10 | BB48: PC - Auto/4x4 con GPS Lima/Valor >50k | BJ48: 27 | BK48: 2024-12-01 | BL48: 30 | BM48: 822 | BR48: 400.10 | BS48: PC - Auto/4x4 con GPS Lima/Valor >50k | CA48: 27 | CB48: 2024-12-01 | CC48: 30 | CD48: 822 | CI48: 400.10 | CJ48: PC - Auto/4x4 con GPS Lima/Valor >50k | CR48: 27 | CS48: 2024-12-01 | CT48: 30 | CU48: 822 | CZ48: 400.10 | DA48: PC - Auto/4x4 con GPS Lima/Valor >50k
B49: 28 | C49: 2028-02-01 | D49: 2 | E49: 2028-02-01 | F49: 31 | G49: 853 | H49: 64,484.18 | I49: 1,657.77 | J49: 632.37 | K49: 0 | L49: 0.00 | M49: 0 | N49: 2,290.14 | O49: 62,826.41 | P49: 0.76 | Q49: 0.76 | S49: =IFERROR((I49+J49+K49+L49+M49)*$J$12+('Simulador para calculos'!I49+'Simulador para calculos'!J49+'Simulador para calculos'!K49+'Simulador para calculos'!L49+'Simulador para calculos'!M49)*NOT($J$12),"") -> 2,290.14 | T49: 853.00 | U49: =IFERROR((1+'Simulación Cliente'!$E$22)^(T49/360),"") -> 1.73 | V49: 1,322.10 | AB49: 28 | AC49: 2025-01-01 | AD49: 31 | AE49: 853 | AJ49: 400.10 | AK49: PC - Auto/4x4 con GPS Lima/Valor >50k | AS49: 28 | AT49: 2025-01-01 | AU49: 31 | AV49: 853 | BA49: 400.10 | BB49: PC - Auto/4x4 con GPS Lima/Valor >50k | BJ49: 28 | BK49: 2025-01-01 | BL49: 31 | BM49: 853 | BR49: 400.10 | BS49: PC - Auto/4x4 con GPS Lima/Valor >50k | CA49: 28 | CB49: 2025-01-01 | CC49: 31 | CD49: 853 | CI49: 400.10 | CJ49: PC - Auto/4x4 con GPS Lima/Valor >50k | CR49: 28 | CS49: 2025-01-01 | CT49: 31 | CU49: 853 | CZ49: 400.10 | DA49: PC - Auto/4x4 con GPS Lima/Valor >50k
B50: 29 | C50: 2028-03-01 | D50: 3 | E50: 2028-03-01 | F50: 29 | G50: 882 | H50: 62,826.41 | I50: 1,713.96 | J50: 576.18 | K50: 0 | L50: 0.00 | M50: 0 | N50: 2,290.14 | O50: 61,112.45 | P50: 0.76 | Q50: 0.76 | S50: =IFERROR((I50+J50+K50+L50+M50)*$J$12+('Simulador para calculos'!I50+'Simulador para calculos'!J50+'Simulador para calculos'!K50+'Simulador para calculos'!L50+'Simulador para calculos'!M50)*NOT($J$12),"") -> 2,290.14 | T50: 882.00 | U50: =IFERROR((1+'Simulación Cliente'!$E$22)^(T50/360),"") -> 1.76 | V50: 1,297.63 | AB50: 29 | AC50: 2025-02-01 | AD50: 31 | AE50: 884 | AJ50: 400.10 | AK50: PC - Auto/4x4 con GPS Lima/Valor >50k | AS50: 29 | AT50: 2025-02-01 | AU50: 31 | AV50: 884 | BA50: 400.10 | BB50: PC - Auto/4x4 con GPS Lima/Valor >50k | BJ50: 29 | BK50: 2025-02-01 | BL50: 31 | BM50: 884 | BR50: 400.10 | BS50: PC - Auto/4x4 con GPS Lima/Valor >50k | CA50: 29 | CB50: 2025-02-01 | CC50: 31 | CD50: 884 | CI50: 400.10 | CJ50: PC - Auto/4x4 con GPS Lima/Valor >50k | CR50: 29 | CS50: 2025-02-01 | CT50: 31 | CU50: 884 | CZ50: 400.10 | DA50: PC - Auto/4x4 con GPS Lima/Valor >50k
B51: 30 | C51: 2028-04-01 | D51: 6 | E51: 2028-04-01 | F51: 31 | G51: 913 | H51: 61,112.45 | I51: 1,690.84 | J51: 599.31 | K51: 0 | L51: 0.00 | M51: 0 | N51: 2,290.14 | O51: 59,421.62 | P51: 0.75 | Q51: 0.75 | S51: =IFERROR((I51+J51+K51+L51+M51)*$J$12+('Simulador para calculos'!I51+'Simulador para calculos'!J51+'Simulador para calculos'!K51+'Simulador para calculos'!L51+'Simulador para calculos'!M51)*NOT($J$12),"") -> 2,290.14 | T51: 913.00 | U51: =IFERROR((1+'Simulación Cliente'!$E$22)^(T51/360),"") -> 1.80 | V51: 1,271.98 | AB51: 30 | AC51: 2025-03-01 | AD51: 28 | AE51: 912 | AJ51: 400.10 | AK51: PC - Auto/4x4 con GPS Lima/Valor >50k | AS51: 30 | AT51: 2025-03-01 | AU51: 28 | AV51: 912 | BA51: 400.10 | BB51: PC - Auto/4x4 con GPS Lima/Valor >50k | BJ51: 30 | BK51: 2025-03-01 | BL51: 28 | BM51: 912 | BR51: 400.10 | BS51: PC - Auto/4x4 con GPS Lima/Valor >50k | CA51: 30 | CB51: 2025-03-01 | CC51: 28 | CD51: 912 | CI51: 400.10 | CJ51: PC - Auto/4x4 con GPS Lima/Valor >50k | CR51: 30 | CS51: 2025-03-01 | CT51: 28 | CU51: 912 | CZ51: 400.10 | DA51: PC - Auto/4x4 con GPS Lima/Valor >50k
B52: 31 | C52: 2028-05-01 | D52: 1 | E52: 2028-05-01 | F52: 30 | G52: 943 | H52: 59,421.62 | I52: 1,726.30 | J52: 563.84 | K52: 0 | L52: 0.00 | M52: 0 | N52: 2,290.14 | O52: 57,695.31 | P52: 0.74 | Q52: 0.74 | S52: =IFERROR((I52+J52+K52+L52+M52)*$J$12+('Simulador para calculos'!I52+'Simulador para calculos'!J52+'Simulador para calculos'!K52+'Simulador para calculos'!L52+'Simulador para calculos'!M52)*NOT($J$12),"") -> 2,290.14 | T52: 943.00 | U52: =IFERROR((1+'Simulación Cliente'!$E$22)^(T52/360),"") -> 1.84 | V52: 1,247.64 | AB52: 31 | AC52: 2025-04-01 | AD52: 31 | AE52: 943 | AJ52: 400.10 | AK52: PC - Auto/4x4 con GPS Lima/Valor >50k | AS52: 31 | AT52: 2025-04-01 | AU52: 31 | AV52: 943 | BA52: 400.10 | BB52: PC - Auto/4x4 con GPS Lima/Valor >50k | BJ52: 31 | BK52: 2025-04-01 | BL52: 31 | BM52: 943 | BR52: 400.10 | BS52: PC - Auto/4x4 con GPS Lima/Valor >50k | CA52: 31 | CB52: 2025-04-01 | CC52: 31 | CD52: 943 | CI52: 400.10 | CJ52: PC - Auto/4x4 con GPS Lima/Valor >50k | CR52: 31 | CS52: 2025-04-01 | CT52: 31 | CU52: 943 | CZ52: 400.10 | DA52: PC - Auto/4x4 con GPS Lima/Valor >50k
B53: 32 | C53: 2028-06-01 | D53: 4 | E53: 2028-06-01 | F53: 31 | G53: 974 | H53: 57,695.31 | I53: 1,724.35 | J53: 565.80 | K53: 0 | L53: 0.00 | M53: 0 | N53: 2,290.14 | O53: 55,970.96 | P53: 0.74 | Q53: 0.74 | S53: =IFERROR((I53+J53+K53+L53+M53)*$J$12+('Simulador para calculos'!I53+'Simulador para calculos'!J53+'Simulador para calculos'!K53+'Simulador para calculos'!L53+'Simulador para calculos'!M53)*NOT($J$12),"") -> 2,290.14 | T53: 974.00 | U53: =IFERROR((1+'Simulación Cliente'!$E$22)^(T53/360),"") -> 1.87 | V53: 1,222.98 | AB53: 32 | AC53: 2025-05-01 | AD53: 30 | AE53: 973 | AJ53: 400.10 | AK53: PC - Auto/4x4 con GPS Lima/Valor >50k | AS53: 32 | AT53: 2025-05-01 | AU53: 30 | AV53: 973 | BA53: 400.10 | BB53: PC - Auto/4x4 con GPS Lima/Valor >50k | BJ53: 32 | BK53: 2025-05-01 | BL53: 30 | BM53: 973 | BR53: 400.10 | BS53: PC - Auto/4x4 con GPS Lima/Valor >50k | CA53: 32 | CB53: 2025-05-01 | CC53: 30 | CD53: 973 | CI53: 400.10 | CJ53: PC - Auto/4x4 con GPS Lima/Valor >50k | CR53: 32 | CS53: 2025-05-01 | CT53: 30 | CU53: 973 | CZ53: 400.10 | DA53: PC - Auto/4x4 con GPS Lima/Valor >50k
B54: 33 | C54: 2028-07-01 | D54: 6 | E54: 2028-07-01 | F54: 30 | G54: 1004 | H54: 55,970.96 | I54: 1,759.05 | J54: 531.10 | K54: 0 | L54: 0.00 | M54: 0 | N54: 2,290.14 | O54: 54,211.92 | P54: 0.73 | Q54: 0.73 | S54: =IFERROR((I54+J54+K54+L54+M54)*$J$12+('Simulador para calculos'!I54+'Simulador para calculos'!J54+'Simulador para calculos'!K54+'Simulador para calculos'!L54+'Simulador para calculos'!M54)*NOT($J$12),"") -> 2,290.14 | T54: 1,004.00 | U54: =IFERROR((1+'Simulación Cliente'!$E$22)^(T54/360),"") -> 1.91 | V54: 1,199.57 | AB54: 33 | AC54: 2025-06-01 | AD54: 31 | AE54: 1004 | AJ54: 400.10 | AK54: PC - Auto/4x4 con GPS Lima/Valor >50k | AS54: 33 | AT54: 2025-06-01 | AU54: 31 | AV54: 1004 | BA54: 400.10 | BB54: PC - Auto/4x4 con GPS Lima/Valor >50k | BJ54: 33 | BK54: 2025-06-01 | BL54: 31 | BM54: 1004 | BR54: 400.10 | BS54: PC - Auto/4x4 con GPS Lima/Valor >50k | CA54: 33 | CB54: 2025-06-01 | CC54: 31 | CD54: 1004 | CI54: 400.10 | CJ54: PC - Auto/4x4 con GPS Lima/Valor >50k | CR54: 33 | CS54: 2025-06-01 | CT54: 31 | CU54: 1004 | CZ54: 400.10 | DA54: PC - Auto/4x4 con GPS Lima/Valor >50k
B55: 34 | C55: 2028-08-01 | D55: 2 | E55: 2028-08-01 | F55: 31 | G55: 1035 | H55: 54,211.92 | I55: 1,758.51 | J55: 531.64 | K55: 0 | L55: 0.00 | M55: 0 | N55: 2,290.14 | O55: 52,453.41 | P55: 0.72 | Q55: 0.72 | S55: =IFERROR((I55+J55+K55+L55+M55)*$J$12+('Simulador para calculos'!I55+'Simulador para calculos'!J55+'Simulador para calculos'!K55+'Simulador para calculos'!L55+'Simulador para calculos'!M55)*NOT($J$12),"") -> 2,290.14 | T55: 1,035.00 | U55: =IFERROR((1+'Simulación Cliente'!$E$22)^(T55/360),"") -> 1.95 | V55: 1,175.86 | AB55: 34 | AC55: 2025-07-01 | AD55: 30 | AE55: 1034 | AJ55: 400.10 | AK55: PC - Auto/4x4 con GPS Lima/Valor >50k | AS55: 34 | AT55: 2025-07-01 | AU55: 30 | AV55: 1034 | BA55: 400.10 | BB55: PC - Auto/4x4 con GPS Lima/Valor >50k | BJ55: 34 | BK55: 2025-07-01 | BL55: 30 | BM55: 1034 | BR55: 400.10 | BS55: PC - Auto/4x4 con GPS Lima/Valor >50k | CA55: 34 | CB55: 2025-07-01 | CC55: 30 | CD55: 1034 | CI55: 400.10 | CJ55: PC - Auto/4x4 con GPS Lima/Valor >50k | CR55: 34 | CS55: 2025-07-01 | CT55: 30 | CU55: 1034 | CZ55: 400.10 | DA55: PC - Auto/4x4 con GPS Lima/Valor >50k
B56: 35 | C56: 2028-09-01 | D56: 5 | E56: 2028-09-01 | F56: 31 | G56: 1066 | H56: 52,453.41 | I56: 1,775.75 | J56: 514.39 | K56: 0 | L56: 0.00 | M56: 0 | N56: 2,290.14 | O56: 50,677.66 | P56: 0.71 | Q56: 0.71 | S56: =IFERROR((I56+J56+K56+L56+M56)*$J$12+('Simulador para calculos'!I56+'Simulador para calculos'!J56+'Simulador para calculos'!K56+'Simulador para calculos'!L56+'Simulador para calculos'!M56)*NOT($J$12),"") -> 2,290.14 | T56: 1,066.00 | U56: =IFERROR((1+'Simulación Cliente'!$E$22)^(T56/360),"") -> 1.99 | V56: 1,152.62 | AB56: 35 | AC56: 2025-08-01 | AD56: 31 | AE56: 1065 | AJ56: 400.10 | AK56: PC - Auto/4x4 con GPS Lima/Valor >50k | AS56: 35 | AT56: 2025-08-01 | AU56: 31 | AV56: 1065 | BA56: 400.10 | BB56: PC - Auto/4x4 con GPS Lima/Valor >50k | BJ56: 35 | BK56: 2025-08-01 | BL56: 31 | BM56: 1065 | BR56: 400.10 | BS56: PC - Auto/4x4 con GPS Lima/Valor >50k | CA56: 35 | CB56: 2025-08-01 | CC56: 31 | CD56: 1065 | CI56: 400.10 | CJ56: PC - Auto/4x4 con GPS Lima/Valor >50k | CR56: 35 | CS56: 2025-08-01 | CT56: 31 | CU56: 1065 | CZ56: 400.10 | DA56: PC - Auto/4x4 con GPS Lima/Valor >50k
B57: 36 | C57: 2028-10-01 | D57: 7 | E57: 2028-10-02 | F57: 31 | G57: 1097 | H57: 50,677.66 | I57: 1,793.17 | J57: 496.98 | K57: 0 | L57: 0.00 | M57: 0 | N57: 2,290.14 | O57: 48,884.49 | P57: 0.71 | Q57: 0.71 | S57: =IFERROR((I57+J57+K57+L57+M57)*$J$12+('Simulador para calculos'!I57+'Simulador para calculos'!J57+'Simulador para calculos'!K57+'Simulador para calculos'!L57+'Simulador para calculos'!M57)*NOT($J$12),"") -> 2,290.14 | T57: 1,097.00 | U57: =IFERROR((1+'Simulación Cliente'!$E$22)^(T57/360),"") -> 2.03 | V57: 1,129.83 | AB57: 36 | AC57: 2025-09-01 | AD57: 31 | AE57: 1096 | AJ57: 400.10 | AK57: PC - Auto/4x4 con GPS Lima/Valor >50k | AS57: 36 | AT57: 2025-09-01 | AU57: 31 | AV57: 1096 | BA57: 400.10 | BB57: PC - Auto/4x4 con GPS Lima/Valor >50k | BJ57: 36 | BK57: 2025-09-01 | BL57: 31 | BM57: 1096 | BR57: 400.10 | BS57: PC - Auto/4x4 con GPS Lima/Valor >50k | CA57: 36 | CB57: 2025-09-01 | CC57: 31 | CD57: 1096 | CI57: 400.10 | CJ57: PC - Auto/4x4 con GPS Lima/Valor >50k | CR57: 36 | CS57: 2025-09-01 | CT57: 31 | CU57: 1096 | CZ57: 400.10 | DA57: PC - Auto/4x4 con GPS Lima/Valor >50k
B58: 37 | C58: 2028-11-01 | D58: 3 | E58: 2028-11-01 | F58: 30 | G58: 1127 | H58: 48,884.49 | I58: 1,826.29 | J58: 463.85 | K58: 0 | L58: 0.00 | M58: 0 | N58: 2,290.14 | O58: 47,058.20 | P58: 0.70 | Q58: 0.70 | S58: =IFERROR((I58+J58+K58+L58+M58)*$J$12+('Simulador para calculos'!I58+'Simulador para calculos'!J58+'Simulador para calculos'!K58+'Simulador para calculos'!L58+'Simulador para calculos'!M58)*NOT($J$12),"") -> 2,290.14 | T58: 1,127.00 | U58: =IFERROR((1+'Simulación Cliente'!$E$22)^(T58/360),"") -> 2.07 | V58: 1,108.21 | AB58: 37 | AC58: 2025-10-01 | AD58: 30 | AE58: 1126 | AJ58: 400.10 | AK58: PC - Auto/4x4 con GPS Lima/Valor >50k | AS58: 37 | AT58: 2025-10-01 | AU58: 30 | AV58: 1126 | BA58: 400.10 | BB58: PC - Auto/4x4 con GPS Lima/Valor >50k | BJ58: 37 | BK58: 2025-10-01 | BL58: 30 | BM58: 1126 | BR58: 400.10 | BS58: PC - Auto/4x4 con GPS Lima/Valor >50k | CA58: 37 | CB58: 2025-10-01 | CC58: 30 | CD58: 1126 | CI58: 400.10 | CJ58: PC - Auto/4x4 con GPS Lima/Valor >50k | CR58: 37 | CS58: 2025-10-01 | CT58: 30 | CU58: 1126 | CZ58: 400.10 | DA58: PC - Auto/4x4 con GPS Lima/Valor >50k
B59: 38 | C59: 2028-12-01 | D59: 5 | E59: 2028-12-01 | F59: 30 | G59: 1157 | H59: 47,058.20 | I59: 1,843.62 | J59: 446.53 | K59: 0 | L59: 0.00 | M59: 0 | N59: 2,290.14 | O59: 45,214.58 | P59: 0.69 | Q59: 0.69 | S59: =IFERROR((I59+J59+K59+L59+M59)*$J$12+('Simulador para calculos'!I59+'Simulador para calculos'!J59+'Simulador para calculos'!K59+'Simulador para calculos'!L59+'Simulador para calculos'!M59)*NOT($J$12),"") -> 2,290.14 | T59: 1,157.00 | U59: =IFERROR((1+'Simulación Cliente'!$E$22)^(T59/360),"") -> 2.11 | V59: 1,087.00 | AB59: 38 | AC59: 2025-11-01 | AD59: 31 | AE59: 1157 | AJ59: 400.10 | AK59: PC - Auto/4x4 con GPS Lima/Valor >50k | AS59: 38 | AT59: 2025-11-01 | AU59: 31 | AV59: 1157 | BA59: 400.10 | BB59: PC - Auto/4x4 con GPS Lima/Valor >50k | BJ59: 38 | BK59: 2025-11-01 | BL59: 31 | BM59: 1157 | BR59: 400.10 | BS59: PC - Auto/4x4 con GPS Lima/Valor >50k | CA59: 38 | CB59: 2025-11-01 | CC59: 31 | CD59: 1157 | CI59: 400.10 | CJ59: PC - Auto/4x4 con GPS Lima/Valor >50k | CR59: 38 | CS59: 2025-11-01 | CT59: 31 | CU59: 1157 | CZ59: 400.10 | DA59: PC - Auto/4x4 con GPS Lima/Valor >50k
B60: 39 | C60: 2029-01-01 | D60: 1 | E60: 2029-01-01 | F60: 31 | G60: 1188 | H60: 45,214.58 | I60: 1,846.74 | J60: 443.40 | K60: 0 | L60: 0.00 | M60: 0 | N60: 2,290.14 | O60: 43,367.84 | P60: 0.69 | Q60: 0.69 | S60: =IFERROR((I60+J60+K60+L60+M60)*$J$12+('Simulador para calculos'!I60+'Simulador para calculos'!J60+'Simulador para calculos'!K60+'Simulador para calculos'!L60+'Simulador para calculos'!M60)*NOT($J$12),"") -> 2,290.14 | T60: 1,188.00 | U60: =IFERROR((1+'Simulación Cliente'!$E$22)^(T60/360),"") -> 2.15 | V60: 1,065.51 | AB60: 39 | AC60: 2025-12-01 | AD60: 30 | AE60: 1187 | AJ60: 400.10 | AK60: PC - Auto/4x4 con GPS Lima/Valor >50k | AS60: 39 | AT60: 2025-12-01 | AU60: 30 | AV60: 1187 | BA60: 400.10 | BB60: PC - Auto/4x4 con GPS Lima/Valor >50k | BJ60: 39 | BK60: 2025-12-01 | BL60: 30 | BM60: 1187 | BR60: 400.10 | BS60: PC - Auto/4x4 con GPS Lima/Valor >50k | CA60: 39 | CB60: 2025-12-01 | CC60: 30 | CD60: 1187 | CI60: 400.10 | CJ60: PC - Auto/4x4 con GPS Lima/Valor >50k | CR60: 39 | CS60: 2025-12-01 | CT60: 30 | CU60: 1187 | CZ60: 400.10 | DA60: PC - Auto/4x4 con GPS Lima/Valor >50k
B61: 40 | C61: 2029-02-01 | D61: 4 | E61: 2029-02-01 | F61: 31 | G61: 1219 | H61: 43,367.84 | I61: 1,864.85 | J61: 425.29 | K61: 0 | L61: 0.00 | M61: 0 | N61: 2,290.14 | O61: 41,502.99 | P61: 0.68 | Q61: 0.68 | S61: =IFERROR((I61+J61+K61+L61+M61)*$J$12+('Simulador para calculos'!I61+'Simulador para calculos'!J61+'Simulador para calculos'!K61+'Simulador para calculos'!L61+'Simulador para calculos'!M61)*NOT($J$12),"") -> 2,290.14 | T61: 1,219.00 | U61: =IFERROR((1+'Simulación Cliente'!$E$22)^(T61/360),"") -> 2.19 | V61: 1,044.45 | AB61: 40 | AC61: 2026-01-01 | AD61: 31 | AE61: 1218 | AJ61: 400.10 | AK61: PC - Auto/4x4 con GPS Lima/Valor >50k | AS61: 40 | AT61: 2026-01-01 | AU61: 31 | AV61: 1218 | BA61: 400.10 | BB61: PC - Auto/4x4 con GPS Lima/Valor >50k | BJ61: 40 | BK61: 2026-01-01 | BL61: 31 | BM61: 1218 | BR61: 400.10 | BS61: PC - Auto/4x4 con GPS Lima/Valor >50k | CA61: 40 | CB61: 2026-01-01 | CC61: 31 | CD61: 1218 | CI61: 400.10 | CJ61: PC - Auto/4x4 con GPS Lima/Valor >50k | CR61: 40 | CS61: 2026-01-01 | CT61: 31 | CU61: 1218 | CZ61: 400.10 | DA61: PC - Auto/4x4 con GPS Lima/Valor >50k
B62: 41 | C62: 2029-03-01 | D62: 4 | E62: 2029-03-01 | F62: 28 | G62: 1247 | H62: 41,502.99 | I62: 1,922.70 | J62: 367.44 | K62: 0 | L62: 0.00 | M62: 0 | N62: 2,290.14 | O62: 39,580.29 | P62: 0.68 | Q62: 0.68 | S62: =IFERROR((I62+J62+K62+L62+M62)*$J$12+('Simulador para calculos'!I62+'Simulador para calculos'!J62+'Simulador para calculos'!K62+'Simulador para calculos'!L62+'Simulador para calculos'!M62)*NOT($J$12),"") -> 2,290.14 | T62: 1,247.00 | U62: =IFERROR((1+'Simulación Cliente'!$E$22)^(T62/360),"") -> 2.23 | V62: 1,025.78 | AB62: 41 | AC62: 2026-02-01 | AD62: 31 | AE62: 1249 | AJ62: 400.10 | AK62: PC - Auto/4x4 con GPS Lima/Valor >50k | AS62: 41 | AT62: 2026-02-01 | AU62: 31 | AV62: 1249 | BA62: 400.10 | BB62: PC - Auto/4x4 con GPS Lima/Valor >50k | BJ62: 41 | BK62: 2026-02-01 | BL62: 31 | BM62: 1249 | BR62: 400.10 | BS62: PC - Auto/4x4 con GPS Lima/Valor >50k | CA62: 41 | CB62: 2026-02-01 | CC62: 31 | CD62: 1249 | CI62: 400.10 | CJ62: PC - Auto/4x4 con GPS Lima/Valor >50k | CR62: 41 | CS62: 2026-02-01 | CT62: 31 | CU62: 1249 | CZ62: 400.10 | DA62: PC - Auto/4x4 con GPS Lima/Valor >50k
B63: 42 | C63: 2029-04-01 | D63: 7 | E63: 2029-04-02 | F63: 32 | G63: 1279 | H63: 39,580.29 | I63: 1,889.41 | J63: 400.73 | K63: 0 | L63: 0.00 | M63: 0 | N63: 2,290.14 | O63: 37,690.88 | P63: 0.67 | Q63: 0.67 | S63: =IFERROR((I63+J63+K63+L63+M63)*$J$12+('Simulador para calculos'!I63+'Simulador para calculos'!J63+'Simulador para calculos'!K63+'Simulador para calculos'!L63+'Simulador para calculos'!M63)*NOT($J$12),"") -> 2,290.14 | T63: 1,279.00 | U63: =IFERROR((1+'Simulación Cliente'!$E$22)^(T63/360),"") -> 2.28 | V63: 1,004.86 | AB63: 42 | AC63: 2026-03-01 | AD63: 28 | AE63: 1277 | AJ63: 400.10 | AK63: PC - Auto/4x4 con GPS Lima/Valor >50k | AS63: 42 | AT63: 2026-03-01 | AU63: 28 | AV63: 1277 | BA63: 400.10 | BB63: PC - Auto/4x4 con GPS Lima/Valor >50k | BJ63: 42 | BK63: 2026-03-01 | BL63: 28 | BM63: 1277 | BR63: 400.10 | BS63: PC - Auto/4x4 con GPS Lima/Valor >50k | CA63: 42 | CB63: 2026-03-01 | CC63: 28 | CD63: 1277 | CI63: 400.10 | CJ63: PC - Auto/4x4 con GPS Lima/Valor >50k | CR63: 42 | CS63: 2026-03-01 | CT63: 28 | CU63: 1277 | CZ63: 400.10 | DA63: PC - Auto/4x4 con GPS Lima/Valor >50k
B64: 43 | C64: 2029-05-01 | D64: 2 | E64: 2029-05-01 | F64: 29 | G64: 1308 | H64: 37,690.88 | I64: 1,944.48 | J64: 345.67 | K64: 0 | L64: 0.00 | M64: 0 | N64: 2,290.14 | O64: 35,746.40 | P64: 0.66 | Q64: 0.66 | S64: =IFERROR((I64+J64+K64+L64+M64)*$J$12+('Simulador para calculos'!I64+'Simulador para calculos'!J64+'Simulador para calculos'!K64+'Simulador para calculos'!L64+'Simulador para calculos'!M64)*NOT($J$12),"") -> 2,290.14 | T64: 1,308.00 | U64: =IFERROR((1+'Simulación Cliente'!$E$22)^(T64/360),"") -> 2.32 | V64: 986.26 | AB64: 43 | AC64: 2026-04-01 | AD64: 31 | AE64: 1308 | AJ64: 400.10 | AK64: PC - Auto/4x4 con GPS Lima/Valor >50k | AS64: 43 | AT64: 2026-04-01 | AU64: 31 | AV64: 1308 | BA64: 400.10 | BB64: PC - Auto/4x4 con GPS Lima/Valor >50k | BJ64: 43 | BK64: 2026-04-01 | BL64: 31 | BM64: 1308 | BR64: 400.10 | BS64: PC - Auto/4x4 con GPS Lima/Valor >50k | CA64: 43 | CB64: 2026-04-01 | CC64: 31 | CD64: 1308 | CI64: 400.10 | CJ64: PC - Auto/4x4 con GPS Lima/Valor >50k | CR64: 43 | CS64: 2026-04-01 | CT64: 31 | CU64: 1308 | CZ64: 400.10 | DA64: PC - Auto/4x4 con GPS Lima/Valor >50k
B65: 44 | C65: 2029-06-01 | D65: 5 | E65: 2029-06-01 | F65: 31 | G65: 1339 | H65: 35,746.40 | I65: 1,939.59 | J65: 350.55 | K65: 0 | L65: 0.00 | M65: 0 | N65: 2,290.14 | O65: 33,806.80 | P65: 0.66 | Q65: 0.66 | S65: =IFERROR((I65+J65+K65+L65+M65)*$J$12+('Simulador para calculos'!I65+'Simulador para calculos'!J65+'Simulador para calculos'!K65+'Simulador para calculos'!L65+'Simulador para calculos'!M65)*NOT($J$12),"") -> 2,290.14 | T65: 1,339.00 | U65: =IFERROR((1+'Simulación Cliente'!$E$22)^(T65/360),"") -> 2.37 | V65: 966.77 | AB65: 44 | AC65: 2026-05-01 | AD65: 30 | AE65: 1338 | AJ65: 400.10 | AK65: PC - Auto/4x4 con GPS Lima/Valor >50k | AS65: 44 | AT65: 2026-05-01 | AU65: 30 | AV65: 1338 | BA65: 400.10 | BB65: PC - Auto/4x4 con GPS Lima/Valor >50k | BJ65: 44 | BK65: 2026-05-01 | BL65: 30 | BM65: 1338 | BR65: 400.10 | BS65: PC - Auto/4x4 con GPS Lima/Valor >50k | CA65: 44 | CB65: 2026-05-01 | CC65: 30 | CD65: 1338 | CI65: 400.10 | CJ65: PC - Auto/4x4 con GPS Lima/Valor >50k | CR65: 44 | CS65: 2026-05-01 | CT65: 30 | CU65: 1338 | CZ65: 400.10 | DA65: PC - Auto/4x4 con GPS Lima/Valor >50k
B66: 45 | C66: 2029-07-01 | D66: 7 | E66: 2029-07-02 | F66: 31 | G66: 1370 | H66: 33,806.80 | I66: 1,958.61 | J66: 331.53 | K66: 0 | L66: 0.00 | M66: 0 | N66: 2,290.14 | O66: 31,848.19 | P66: 0.65 | Q66: 0.65 | S66: =IFERROR((I66+J66+K66+L66+M66)*$J$12+('Simulador para calculos'!I66+'Simulador para calculos'!J66+'Simulador para calculos'!K66+'Simulador para calculos'!L66+'Simulador para calculos'!M66)*NOT($J$12),"") -> 2,290.14 | T66: 1,370.00 | U66: =IFERROR((1+'Simulación Cliente'!$E$22)^(T66/360),"") -> 2.42 | V66: 947.66 | AB66: 45 | AC66: 2026-06-01 | AD66: 31 | AE66: 1369 | AJ66: 400.10 | AK66: PC - Auto/4x4 con GPS Lima/Valor >50k | AS66: 45 | AT66: 2026-06-01 | AU66: 31 | AV66: 1369 | BA66: 400.10 | BB66: PC - Auto/4x4 con GPS Lima/Valor >50k | BJ66: 45 | BK66: 2026-06-01 | BL66: 31 | BM66: 1369 | BR66: 400.10 | BS66: PC - Auto/4x4 con GPS Lima/Valor >50k | CA66: 45 | CB66: 2026-06-01 | CC66: 31 | CD66: 1369 | CI66: 400.10 | CJ66: PC - Auto/4x4 con GPS Lima/Valor >50k | CR66: 45 | CS66: 2026-06-01 | CT66: 31 | CU66: 1369 | CZ66: 400.10 | DA66: PC - Auto/4x4 con GPS Lima/Valor >50k
B67: 46 | C67: 2029-08-01 | D67: 3 | E67: 2029-08-01 | F67: 30 | G67: 1400 | H67: 31,848.19 | I67: 1,987.94 | J67: 302.20 | K67: 0 | L67: 0.00 | M67: 0 | N67: 2,290.14 | O67: 29,860.25 | P67: 0.64 | Q67: 0.64 | S67: =IFERROR((I67+J67+K67+L67+M67)*$J$12+('Simulador para calculos'!I67+'Simulador para calculos'!J67+'Simulador para calculos'!K67+'Simulador para calculos'!L67+'Simulador para calculos'!M67)*NOT($J$12),"") -> 2,290.14 | T67: 1,400.00 | U67: =IFERROR((1+'Simulación Cliente'!$E$22)^(T67/360),"") -> 2.46 | V67: 929.52 | AB67: 46 | AC67: 2026-07-01 | AD67: 30 | AE67: 1399 | AJ67: 400.10 | AK67: PC - Auto/4x4 con GPS Lima/Valor >50k | AS67: 46 | AT67: 2026-07-01 | AU67: 30 | AV67: 1399 | BA67: 400.10 | BB67: PC - Auto/4x4 con GPS Lima/Valor >50k | BJ67: 46 | BK67: 2026-07-01 | BL67: 30 | BM67: 1399 | BR67: 400.10 | BS67: PC - Auto/4x4 con GPS Lima/Valor >50k | CA67: 46 | CB67: 2026-07-01 | CC67: 30 | CD67: 1399 | CI67: 400.10 | CJ67: PC - Auto/4x4 con GPS Lima/Valor >50k | CR67: 46 | CS67: 2026-07-01 | CT67: 30 | CU67: 1399 | CZ67: 400.10 | DA67: PC - Auto/4x4 con GPS Lima/Valor >50k
B68: 47 | C68: 2029-09-01 | D68: 6 | E68: 2029-09-01 | F68: 31 | G68: 1431 | H68: 29,860.25 | I68: 1,997.32 | J68: 292.83 | K68: 0 | L68: 0.00 | M68: 0 | N68: 2,290.14 | O68: 27,862.93 | P68: 0.64 | Q68: 0.64 | S68: =IFERROR((I68+J68+K68+L68+M68)*$J$12+('Simulador para calculos'!I68+'Simulador para calculos'!J68+'Simulador para calculos'!K68+'Simulador para calculos'!L68+'Simulador para calculos'!M68)*NOT($J$12),"") -> 2,290.14 | T68: 1,431.00 | U68: =IFERROR((1+'Simulación Cliente'!$E$22)^(T68/360),"") -> 2.51 | V68: 911.15 | AB68: 47 | AC68: 2026-08-01 | AD68: 31 | AE68: 1430 | AJ68: 400.10 | AK68: PC - Auto/4x4 con GPS Lima/Valor >50k | AS68: 47 | AT68: 2026-08-01 | AU68: 31 | AV68: 1430 | BA68: 400.10 | BB68: PC - Auto/4x4 con GPS Lima/Valor >50k | BJ68: 47 | BK68: 2026-08-01 | BL68: 31 | BM68: 1430 | BR68: 400.10 | BS68: PC - Auto/4x4 con GPS Lima/Valor >50k | CA68: 47 | CB68: 2026-08-01 | CC68: 31 | CD68: 1430 | CI68: 400.10 | CJ68: PC - Auto/4x4 con GPS Lima/Valor >50k | CR68: 47 | CS68: 2026-08-01 | CT68: 31 | CU68: 1430 | CZ68: 400.10 | DA68: PC - Auto/4x4 con GPS Lima/Valor >50k
B69: 48 | C69: 2029-10-01 | D69: 1 | E69: 2029-10-01 | F69: 30 | G69: 1461 | H69: 27,862.93 | I69: 2,025.76 | J69: 264.39 | K69: 0 | L69: 0.00 | M69: 0 | N69: 2,290.14 | O69: 25,837.17 | P69: 0.63 | Q69: 0.63 | S69: =IFERROR((I69+J69+K69+L69+M69)*$J$12+('Simulador para calculos'!I69+'Simulador para calculos'!J69+'Simulador para calculos'!K69+'Simulador para calculos'!L69+'Simulador para calculos'!M69)*NOT($J$12),"") -> 2,290.14 | T69: 1,461.00 | U69: =IFERROR((1+'Simulación Cliente'!$E$22)^(T69/360),"") -> 2.56 | V69: 893.71 | AB69: 48 | AC69: 2026-09-01 | AD69: 31 | AE69: 1461 | AJ69: 400.10 | AK69: PC - Auto/4x4 con GPS Lima/Valor >50k | AS69: 48 | AT69: 2026-09-01 | AU69: 31 | AV69: 1461 | BA69: 400.10 | BB69: PC - Auto/4x4 con GPS Lima/Valor >50k | BJ69: 48 | BK69: 2026-09-01 | BL69: 31 | BM69: 1461 | BR69: 400.10 | BS69: PC - Auto/4x4 con GPS Lima/Valor >50k | CA69: 48 | CB69: 2026-09-01 | CC69: 31 | CD69: 1461 | CI69: 400.10 | CJ69: PC - Auto/4x4 con GPS Lima/Valor >50k | CR69: 48 | CS69: 2026-09-01 | CT69: 31 | CU69: 1461 | CZ69: 400.10 | DA69: PC - Auto/4x4 con GPS Lima/Valor >50k
B70: 49 | C70: 2029-11-01 | D70: 4 | E70: 2029-11-01 | F70: 31 | G70: 1492 | H70: 25,837.17 | I70: 2,036.77 | J70: 253.38 | K70: 0 | L70: 0.00 | M70: 0 | N70: 2,290.14 | O70: 23,800.40 | P70: 0.63 | Q70: 0.63 | S70: =IFERROR((I70+J70+K70+L70+M70)*$J$12+('Simulador para calculos'!I70+'Simulador para calculos'!J70+'Simulador para calculos'!K70+'Simulador para calculos'!L70+'Simulador para calculos'!M70)*NOT($J$12),"") -> 2,290.14 | T70: 1,492.00 | U70: =IFERROR((1+'Simulación Cliente'!$E$22)^(T70/360),"") -> 2.61 | V70: 876.04 | AB70: 49 | AC70: 2026-10-01 | AD70: 30 | AE70: 1491 | AJ70: 400.10 | AK70: PC - Auto/4x4 con GPS Lima/Valor >50k | AS70: 49 | AT70: 2026-10-01 | AU70: 30 | AV70: 1491 | BA70: 400.10 | BB70: PC - Auto/4x4 con GPS Lima/Valor >50k | BJ70: 49 | BK70: 2026-10-01 | BL70: 30 | BM70: 1491 | BR70: 400.10 | BS70: PC - Auto/4x4 con GPS Lima/Valor >50k | CA70: 49 | CB70: 2026-10-01 | CC70: 30 | CD70: 1491 | CI70: 400.10 | CJ70: PC - Auto/4x4 con GPS Lima/Valor >50k | CR70: 49 | CS70: 2026-10-01 | CT70: 30 | CU70: 1491 | CZ70: 400.10 | DA70: PC - Auto/4x4 con GPS Lima/Valor >50k
B71: 50 | C71: 2029-12-01 | D71: 6 | E71: 2029-12-01 | F71: 30 | G71: 1522 | H71: 23,800.40 | I71: 2,064.31 | J71: 225.84 | K71: 0 | L71: 0.00 | M71: 0 | N71: 2,290.14 | O71: 21,736.10 | P71: 0.62 | Q71: 0.62 | S71: =IFERROR((I71+J71+K71+L71+M71)*$J$12+('Simulador para calculos'!I71+'Simulador para calculos'!J71+'Simulador para calculos'!K71+'Simulador para calculos'!L71+'Simulador para calculos'!M71)*NOT($J$12),"") -> 2,290.14 | T71: 1,522.00 | U71: =IFERROR((1+'Simulación Cliente'!$E$22)^(T71/360),"") -> 2.67 | V71: 859.28 | AB71: 50 | AC71: 2026-11-01 | AD71: 31 | AE71: 1522 | AJ71: 400.10 | AK71: PC - Auto/4x4 con GPS Lima/Valor >50k | AS71: 50 | AT71: 2026-11-01 | AU71: 31 | AV71: 1522 | BA71: 400.10 | BB71: PC - Auto/4x4 con GPS Lima/Valor >50k | BJ71: 50 | BK71: 2026-11-01 | BL71: 31 | BM71: 1522 | BR71: 400.10 | BS71: PC - Auto/4x4 con GPS Lima/Valor >50k | CA71: 50 | CB71: 2026-11-01 | CC71: 31 | CD71: 1522 | CI71: 400.10 | CJ71: PC - Auto/4x4 con GPS Lima/Valor >50k | CR71: 50 | CS71: 2026-11-01 | CT71: 31 | CU71: 1522 | CZ71: 400.10 | DA71: PC - Auto/4x4 con GPS Lima/Valor >50k
B72: 51 | C72: 2030-01-01 | D72: 2 | E72: 2030-01-01 | F72: 31 | G72: 1553 | H72: 21,736.10 | I72: 2,076.99 | J72: 213.16 | K72: 0 | L72: 0.00 | M72: 0 | N72: 2,290.14 | O72: 19,659.11 | P72: 0.61 | Q72: 0.61 | S72: =IFERROR((I72+J72+K72+L72+M72)*$J$12+('Simulador para calculos'!I72+'Simulador para calculos'!J72+'Simulador para calculos'!K72+'Simulador para calculos'!L72+'Simulador para calculos'!M72)*NOT($J$12),"") -> 2,290.14 | T72: 1,553.00 | U72: =IFERROR((1+'Simulación Cliente'!$E$22)^(T72/360),"") -> 2.72 | V72: 842.29 | AB72: 51 | AC72: 2026-12-01 | AD72: 30 | AE72: 1552 | AJ72: 400.10 | AK72: PC - Auto/4x4 con GPS Lima/Valor >50k | AS72: 51 | AT72: 2026-12-01 | AU72: 30 | AV72: 1552 | BA72: 400.10 | BB72: PC - Auto/4x4 con GPS Lima/Valor >50k | BJ72: 51 | BK72: 2026-12-01 | BL72: 30 | BM72: 1552 | BR72: 400.10 | BS72: PC - Auto/4x4 con GPS Lima/Valor >50k | CA72: 51 | CB72: 2026-12-01 | CC72: 30 | CD72: 1552 | CI72: 400.10 | CJ72: PC - Auto/4x4 con GPS Lima/Valor >50k | CR72: 51 | CS72: 2026-12-01 | CT72: 30 | CU72: 1552 | CZ72: 400.10 | DA72: PC - Auto/4x4 con GPS Lima/Valor >50k
B73: 52 | C73: 2030-02-01 | D73: 5 | E73: 2030-02-01 | F73: 31 | G73: 1584 | H73: 19,659.11 | I73: 2,097.35 | J73: 192.79 | K73: 0 | L73: 0.00 | M73: 0 | N73: 2,290.14 | O73: 17,561.76 | P73: 0.61 | Q73: 0.61 | S73: =IFERROR((I73+J73+K73+L73+M73)*$J$12+('Simulador para calculos'!I73+'Simulador para calculos'!J73+'Simulador para calculos'!K73+'Simulador para calculos'!L73+'Simulador para calculos'!M73)*NOT($J$12),"") -> 2,290.14 | T73: 1,584.00 | U73: =IFERROR((1+'Simulación Cliente'!$E$22)^(T73/360),"") -> 2.77 | V73: 825.64 | AB73: 52 | AC73: 2027-01-01 | AD73: 31 | AE73: 1583 | AJ73: 400.10 | AK73: PC - Auto/4x4 con GPS Lima/Valor >50k | AS73: 52 | AT73: 2027-01-01 | AU73: 31 | AV73: 1583 | BA73: 400.10 | BB73: PC - Auto/4x4 con GPS Lima/Valor >50k | BJ73: 52 | BK73: 2027-01-01 | BL73: 31 | BM73: 1583 | BR73: 400.10 | BS73: PC - Auto/4x4 con GPS Lima/Valor >50k | CA73: 52 | CB73: 2027-01-01 | CC73: 31 | CD73: 1583 | CI73: 400.10 | CJ73: PC - Auto/4x4 con GPS Lima/Valor >50k | CR73: 52 | CS73: 2027-01-01 | CT73: 31 | CU73: 1583 | CZ73: 400.10 | DA73: PC - Auto/4x4 con GPS Lima/Valor >50k
B74: 53 | C74: 2030-03-01 | D74: 5 | E74: 2030-03-01 | F74: 28 | G74: 1612 | H74: 17,561.76 | I74: 2,134.66 | J74: 155.48 | K74: 0 | L74: 0.00 | M74: 0 | N74: 2,290.14 | O74: 15,427.09 | P74: 0.60 | Q74: 0.60 | S74: =IFERROR((I74+J74+K74+L74+M74)*$J$12+('Simulador para calculos'!I74+'Simulador para calculos'!J74+'Simulador para calculos'!K74+'Simulador para calculos'!L74+'Simulador para calculos'!M74)*NOT($J$12),"") -> 2,290.14 | T74: 1,612.00 | U74: =IFERROR((1+'Simulación Cliente'!$E$22)^(T74/360),"") -> 2.82 | V74: 810.88 | AB74: 53 | AC74: 2027-02-01 | AD74: 31 | AE74: 1614 | AJ74: 400.10 | AK74: PC - Auto/4x4 con GPS Lima/Valor >50k | AS74: 53 | AT74: 2027-02-01 | AU74: 31 | AV74: 1614 | BA74: 400.10 | BB74: PC - Auto/4x4 con GPS Lima/Valor >50k | BJ74: 53 | BK74: 2027-02-01 | BL74: 31 | BM74: 1614 | BR74: 400.10 | BS74: PC - Auto/4x4 con GPS Lima/Valor >50k | CA74: 53 | CB74: 2027-02-01 | CC74: 31 | CD74: 1614 | CI74: 400.10 | CJ74: PC - Auto/4x4 con GPS Lima/Valor >50k | CR74: 53 | CS74: 2027-02-01 | CT74: 31 | CU74: 1614 | CZ74: 400.10 | DA74: PC - Auto/4x4 con GPS Lima/Valor >50k
B75: 54 | C75: 2030-04-01 | D75: 1 | E75: 2030-04-01 | F75: 31 | G75: 1643 | H75: 15,427.09 | I75: 2,138.86 | J75: 151.29 | K75: 0 | L75: 0.00 | M75: 0 | N75: 2,290.14 | O75: 13,288.24 | P75: 0.60 | Q75: 0.60 | S75: =IFERROR((I75+J75+K75+L75+M75)*$J$12+('Simulador para calculos'!I75+'Simulador para calculos'!J75+'Simulador para calculos'!K75+'Simulador para calculos'!L75+'Simulador para calculos'!M75)*NOT($J$12),"") -> 2,290.14 | T75: 1,643.00 | U75: =IFERROR((1+'Simulación Cliente'!$E$22)^(T75/360),"") -> 2.88 | V75: 794.85 | AB75: 54 | AC75: 2027-03-01 | AD75: 28 | AE75: 1642 | AJ75: 400.10 | AK75: PC - Auto/4x4 con GPS Lima/Valor >50k | AS75: 54 | AT75: 2027-03-01 | AU75: 28 | AV75: 1642 | BA75: 400.10 | BB75: PC - Auto/4x4 con GPS Lima/Valor >50k | BJ75: 54 | BK75: 2027-03-01 | BL75: 28 | BM75: 1642 | BR75: 400.10 | BS75: PC - Auto/4x4 con GPS Lima/Valor >50k | CA75: 54 | CB75: 2027-03-01 | CC75: 28 | CD75: 1642 | CI75: 400.10 | CJ75: PC - Auto/4x4 con GPS Lima/Valor >50k | CR75: 54 | CS75: 2027-03-01 | CT75: 28 | CU75: 1642 | CZ75: 400.10 | DA75: PC - Auto/4x4 con GPS Lima/Valor >50k
B76: 55 | C76: 2030-05-01 | D76: 3 | E76: 2030-05-01 | F76: 30 | G76: 1673 | H76: 13,288.24 | I76: 2,164.05 | J76: 126.09 | K76: 0 | L76: 0.00 | M76: 0 | N76: 2,290.14 | O76: 11,124.18 | P76: 0.59 | Q76: 0.59 | S76: =IFERROR((I76+J76+K76+L76+M76)*$J$12+('Simulador para calculos'!I76+'Simulador para calculos'!J76+'Simulador para calculos'!K76+'Simulador para calculos'!L76+'Simulador para calculos'!M76)*NOT($J$12),"") -> 2,290.14 | T76: 1,673.00 | U76: =IFERROR((1+'Simulación Cliente'!$E$22)^(T76/360),"") -> 2.94 | V76: 779.64 | AB76: 55 | AC76: 2027-04-01 | AD76: 31 | AE76: 1673 | AJ76: 400.10 | AK76: PC - Auto/4x4 con GPS Lima/Valor >50k | AS76: 55 | AT76: 2027-04-01 | AU76: 31 | AV76: 1673 | BA76: 400.10 | BB76: PC - Auto/4x4 con GPS Lima/Valor >50k | BJ76: 55 | BK76: 2027-04-01 | BL76: 31 | BM76: 1673 | BR76: 400.10 | BS76: PC - Auto/4x4 con GPS Lima/Valor >50k | CA76: 55 | CB76: 2027-04-01 | CC76: 31 | CD76: 1673 | CI76: 400.10 | CJ76: PC - Auto/4x4 con GPS Lima/Valor >50k | CR76: 55 | CS76: 2027-04-01 | CT76: 31 | CU76: 1673 | CZ76: 400.10 | DA76: PC - Auto/4x4 con GPS Lima/Valor >50k
B77: 56 | C77: 2030-06-01 | D77: 6 | E77: 2030-06-01 | F77: 31 | G77: 1704 | H77: 11,124.18 | I77: 2,181.05 | J77: 109.09 | K77: 0 | L77: 0.00 | M77: 0 | N77: 2,290.14 | O77: 8,943.13 | P77: 0.58 | Q77: 0.58 | S77: =IFERROR((I77+J77+K77+L77+M77)*$J$12+('Simulador para calculos'!I77+'Simulador para calculos'!J77+'Simulador para calculos'!K77+'Simulador para calculos'!L77+'Simulador para calculos'!M77)*NOT($J$12),"") -> 2,290.14 | T77: 1,704.00 | U77: =IFERROR((1+'Simulación Cliente'!$E$22)^(T77/360),"") -> 3.00 | V77: 764.23 | AB77: 56 | AC77: 2027-05-01 | AD77: 30 | AE77: 1703 | AJ77: 400.10 | AK77: PC - Auto/4x4 con GPS Lima/Valor >50k | AS77: 56 | AT77: 2027-05-01 | AU77: 30 | AV77: 1703 | BA77: 400.10 | BB77: PC - Auto/4x4 con GPS Lima/Valor >50k | BJ77: 56 | BK77: 2027-05-01 | BL77: 30 | BM77: 1703 | BR77: 400.10 | BS77: PC - Auto/4x4 con GPS Lima/Valor >50k | CA77: 56 | CB77: 2027-05-01 | CC77: 30 | CD77: 1703 | CI77: 400.10 | CJ77: PC - Auto/4x4 con GPS Lima/Valor >50k | CR77: 56 | CS77: 2027-05-01 | CT77: 30 | CU77: 1703 | CZ77: 400.10 | DA77: PC - Auto/4x4 con GPS Lima/Valor >50k
B78: 57 | C78: 2030-07-01 | D78: 1 | E78: 2030-07-01 | F78: 30 | G78: 1734 | H78: 8,943.13 | I78: 2,205.28 | J78: 84.86 | K78: 0 | L78: 0.00 | M78: 0 | N78: 2,290.14 | O78: 6,737.84 | P78: 0.58 | Q78: 0.58 | S78: =IFERROR((I78+J78+K78+L78+M78)*$J$12+('Simulador para calculos'!I78+'Simulador para calculos'!J78+'Simulador para calculos'!K78+'Simulador para calculos'!L78+'Simulador para calculos'!M78)*NOT($J$12),"") -> 2,290.14 | T78: 1,734.00 | U78: =IFERROR((1+'Simulación Cliente'!$E$22)^(T78/360),"") -> 3.06 | V78: 749.61 | AB78: 57 | AC78: 2027-06-01 | AD78: 31 | AE78: 1734 | AJ78: 400.10 | AK78: PC - Auto/4x4 con GPS Lima/Valor >50k | AS78: 57 | AT78: 2027-06-01 | AU78: 31 | AV78: 1734 | BA78: 400.10 | BB78: PC - Auto/4x4 con GPS Lima/Valor >50k | BJ78: 57 | BK78: 2027-06-01 | BL78: 31 | BM78: 1734 | BR78: 400.10 | BS78: PC - Auto/4x4 con GPS Lima/Valor >50k | CA78: 57 | CB78: 2027-06-01 | CC78: 31 | CD78: 1734 | CI78: 400.10 | CJ78: PC - Auto/4x4 con GPS Lima/Valor >50k | CR78: 57 | CS78: 2027-06-01 | CT78: 31 | CU78: 1734 | CZ78: 400.10 | DA78: PC - Auto/4x4 con GPS Lima/Valor >50k
B79: 58 | C79: 2030-08-01 | D79: 4 | E79: 2030-08-01 | F79: 31 | G79: 1765 | H79: 6,737.84 | I79: 2,224.07 | J79: 66.08 | K79: 0 | L79: 0.00 | M79: 0 | N79: 2,290.14 | O79: 4,513.78 | P79: 0.57 | Q79: 0.57 | S79: =IFERROR((I79+J79+K79+L79+M79)*$J$12+('Simulador para calculos'!I79+'Simulador para calculos'!J79+'Simulador para calculos'!K79+'Simulador para calculos'!L79+'Simulador para calculos'!M79)*NOT($J$12),"") -> 2,290.14 | T79: 1,765.00 | U79: =IFERROR((1+'Simulación Cliente'!$E$22)^(T79/360),"") -> 3.12 | V79: 734.79 | AB79: 58 | AC79: 2027-07-01 | AD79: 30 | AE79: 1764 | AJ79: 400.10 | AK79: PC - Auto/4x4 con GPS Lima/Valor >50k | AS79: 58 | AT79: 2027-07-01 | AU79: 30 | AV79: 1764 | BA79: 400.10 | BB79: PC - Auto/4x4 con GPS Lima/Valor >50k | BJ79: 58 | BK79: 2027-07-01 | BL79: 30 | BM79: 1764 | BR79: 400.10 | BS79: PC - Auto/4x4 con GPS Lima/Valor >50k | CA79: 58 | CB79: 2027-07-01 | CC79: 30 | CD79: 1764 | CI79: 400.10 | CJ79: PC - Auto/4x4 con GPS Lima/Valor >50k | CR79: 58 | CS79: 2027-07-01 | CT79: 30 | CU79: 1764 | CZ79: 400.10 | DA79: PC - Auto/4x4 con GPS Lima/Valor >50k
B80: 59 | C80: 2030-09-01 | D80: 7 | E80: 2030-09-02 | F80: 32 | G80: 1797 | H80: 4,513.78 | I80: 2,244.44 | J80: 45.70 | K80: 0 | L80: 0.00 | M80: 0 | N80: 2,290.14 | O80: 2,269.33 | P80: 0.57 | Q80: 0.57 | S80: =IFERROR((I80+J80+K80+L80+M80)*$J$12+('Simulador para calculos'!I80+'Simulador para calculos'!J80+'Simulador para calculos'!K80+'Simulador para calculos'!L80+'Simulador para calculos'!M80)*NOT($J$12),"") -> 2,290.14 | T80: 1,797.00 | U80: =IFERROR((1+'Simulación Cliente'!$E$22)^(T80/360),"") -> 3.18 | V80: 719.80 | AB80: 59 | AC80: 2027-08-01 | AD80: 31 | AE80: 1795 | AJ80: 400.10 | AK80: PC - Auto/4x4 con GPS Lima/Valor >50k | AS80: 59 | AT80: 2027-08-01 | AU80: 31 | AV80: 1795 | BA80: 400.10 | BB80: PC - Auto/4x4 con GPS Lima/Valor >50k | BJ80: 59 | BK80: 2027-08-01 | BL80: 31 | BM80: 1795 | BR80: 400.10 | BS80: PC - Auto/4x4 con GPS Lima/Valor >50k | CA80: 59 | CB80: 2027-08-01 | CC80: 31 | CD80: 1795 | CI80: 400.10 | CJ80: PC - Auto/4x4 con GPS Lima/Valor >50k | CR80: 59 | CS80: 2027-08-01 | CT80: 31 | CU80: 1795 | CZ80: 400.10 | DA80: PC - Auto/4x4 con GPS Lima/Valor >50k
B81: 60 | C81: 2030-10-01 | D81: 2 | E81: 2030-10-01 | F81: 29 | G81: 1826 | H81: 2,269.33 | I81: 2,269.33 | J81: 20.81 | K81: 0 | L81: 0.00 | M81: 0 | N81: 2,290.14 | O81: 0 | P81: 0.56 | Q81: 0.56 | S81: =IFERROR((I81+J81+K81+L81+M81)*$J$12+('Simulador para calculos'!I81+'Simulador para calculos'!J81+'Simulador para calculos'!K81+'Simulador para calculos'!L81+'Simulador para calculos'!M81)*NOT($J$12),"") -> 2,290.14 | T81: 1,826.00 | U81: =IFERROR((1+'Simulación Cliente'!$E$22)^(T81/360),"") -> 3.24 | V81: 706.48 | AB81: 60 | AC81: 2027-09-01 | AD81: 31 | AE81: 1826 | AJ81: 400.10 | AK81: PC - Auto/4x4 con GPS Lima/Valor >50k | AS81: 60 | AT81: 2027-09-01 | AU81: 31 | AV81: 1826 | BA81: 400.10 | BB81: PC - Auto/4x4 con GPS Lima/Valor >50k | BJ81: 60 | BK81: 2027-09-01 | BL81: 31 | BM81: 1826 | BR81: 400.10 | BS81: PC - Auto/4x4 con GPS Lima/Valor >50k | CA81: 60 | CB81: 2027-09-01 | CC81: 31 | CD81: 1826 | CI81: 400.10 | CJ81: PC - Auto/4x4 con GPS Lima/Valor >50k | CR81: 60 | CS81: 2027-09-01 | CT81: 31 | CU81: 1826 | CZ81: 400.10 | DA81: PC - Auto/4x4 con GPS Lima/Valor >50k
B82: 61 | S82: =IFERROR((I82+J82+K82+L82+M82)*$J$12+('Simulador para calculos'!I82+'Simulador para calculos'!J82+'Simulador para calculos'!K82+'Simulador para calculos'!L82+'Simulador para calculos'!M82)*NOT($J$12),"") ->  | U82: =IFERROR((1+'Simulación Cliente'!$E$22)^(T82/360),"") ->  | AB82: 61 | AS82: 61 | AT82: 2027-10-01 | AU82: 30 | AV82: 1856 | BA82: 400.10 | BB82: PC - Auto/4x4 con GPS Lima/Valor >50k | BJ82: 61 | BK82: 2027-10-01 | BL82: 30 | BM82: 1856 | BR82: 400.10 | BS82: PC - Auto/4x4 con GPS Lima/Valor >50k | CA82: 61 | CB82: 2027-10-01 | CC82: 30 | CD82: 1856 | CI82: 400.10 | CJ82: PC - Auto/4x4 con GPS Lima/Valor >50k | CR82: 61 | CS82: 2027-10-01 | CT82: 30 | CU82: 1856 | CZ82: 400.10 | DA82: PC - Auto/4x4 con GPS Lima/Valor >50k
B83: 62 | S83: =IFERROR((I83+J83+K83+L83+M83)*$J$12+('Simulador para calculos'!I83+'Simulador para calculos'!J83+'Simulador para calculos'!K83+'Simulador para calculos'!L83+'Simulador para calculos'!M83)*NOT($J$12),"") ->  | U83: =IFERROR((1+'Simulación Cliente'!$E$22)^(T83/360),"") ->  | AB83: 62 | AS83: 62 | AT83: 2027-11-01 | AU83: 31 | AV83: 1887 | BA83: 400.10 | BB83: PC - Auto/4x4 con GPS Lima/Valor >50k | BJ83: 62 | BK83: 2027-11-01 | BL83: 31 | BM83: 1887 | BR83: 400.10 | BS83: PC - Auto/4x4 con GPS Lima/Valor >50k | CA83: 62 | CB83: 2027-11-01 | CC83: 31 | CD83: 1887 | CI83: 400.10 | CJ83: PC - Auto/4x4 con GPS Lima/Valor >50k | CR83: 62 | CS83: 2027-11-01 | CT83: 31 | CU83: 1887 | CZ83: 400.10 | DA83: PC - Auto/4x4 con GPS Lima/Valor >50k
B84: 63 | S84: =IFERROR((I84+J84+K84+L84+M84)*$J$12+('Simulador para calculos'!I84+'Simulador para calculos'!J84+'Simulador para calculos'!K84+'Simulador para calculos'!L84+'Simulador para calculos'!M84)*NOT($J$12),"") ->  | U84: =IFERROR((1+'Simulación Cliente'!$E$22)^(T84/360),"") ->  | AB84: 63 | AS84: 63 | AT84: 2027-12-01 | AU84: 30 | AV84: 1917 | BA84: 400.10 | BB84: PC - Auto/4x4 con GPS Lima/Valor >50k | BJ84: 63 | BK84: 2027-12-01 | BL84: 30 | BM84: 1917 | BR84: 400.10 | BS84: PC - Auto/4x4 con GPS Lima/Valor >50k | CA84: 63 | CB84: 2027-12-01 | CC84: 30 | CD84: 1917 | CI84: 400.10 | CJ84: PC - Auto/4x4 con GPS Lima/Valor >50k | CR84: 63 | CS84: 2027-12-01 | CT84: 30 | CU84: 1917 | CZ84: 400.10 | DA84: PC - Auto/4x4 con GPS Lima/Valor >50k
B85: 64 | S85: =IFERROR((I85+J85+K85+L85+M85)*$J$12+('Simulador para calculos'!I85+'Simulador para calculos'!J85+'Simulador para calculos'!K85+'Simulador para calculos'!L85+'Simulador para calculos'!M85)*NOT($J$12),"") ->  | U85: =IFERROR((1+'Simulación Cliente'!$E$22)^(T85/360),"") ->  | AB85: 64 | AS85: 64 | AT85: 2028-01-01 | AU85: 31 | AV85: 1948 | BA85: 400.10 | BB85: PC - Auto/4x4 con GPS Lima/Valor >50k | BJ85: 64 | BK85: 2028-01-01 | BL85: 31 | BM85: 1948 | BR85: 400.10 | BS85: PC - Auto/4x4 con GPS Lima/Valor >50k | CA85: 64 | CB85: 2028-01-01 | CC85: 31 | CD85: 1948 | CI85: 400.10 | CJ85: PC - Auto/4x4 con GPS Lima/Valor >50k | CR85: 64 | CS85: 2028-01-01 | CT85: 31 | CU85: 1948 | CZ85: 400.10 | DA85: PC - Auto/4x4 con GPS Lima/Valor >50k
B86: 65 | M86: =IF(B86>C$6,"",C$15) ->  | S86: =IFERROR((I86+J86+K86+L86+M86)*$J$12+('Simulador para calculos'!I86+'Simulador para calculos'!J86+'Simulador para calculos'!K86+'Simulador para calculos'!L86+'Simulador para calculos'!M86)*NOT($J$12),"") ->  | U86: =IFERROR((1+'Simulación Cliente'!$E$22)^(T86/360),"") ->  | AB86: 65 | AI86: =IF(AB86>AC$6,"",((1+AC$12)^(AD86/30)-1)*AF86) ->  | AJ86: =IF(AB86>AC$6,"",AC$4*AC$14) ->  | AK86: =IF(AB86>AC$6,"",AC$15) ->  | AL86: =IF(AB86>AC$6,"",IF(AB86=AC$6,AF86+AH86+AI86+AJ86+AK86,IF(AND(AC$9=2,MONTH(AC86)=7),2*AC$17,IF(AND(AC$10=2,MONTH(AC86)=12),2*AC$17,AC$17)))) ->  | AM86: =IF(AB86>AC$6,"",AF86-AG86) ->  | AS86: 65 | AT86: 2028-02-01 | AU86: 31 | AV86: 1979 | AZ86: =IF(AS86>AT$6,"",((1+AT$12)^(AU86/30)-1)*AW86) ->  | BA86: =IF(AS86>AT$6,"",AT$4*AT$14) -> 400.10 | BB86: =IF(AS86>AT$6,"",AT$15) -> PC - Auto/4x4 con GPS Lima/Valor >50k | BC86: =IF(AS86>AT$6,"",IF(AS86=AT$6,AW86+AY86+AZ86+BA86+BB86,IF(AND(AT$9=2,MONTH(AT86)=7),2*AT$17,IF(AND(AT$10=2,MONTH(AT86)=12),2*AT$17,AT$17)))) ->  | BD86: =IF(AS86>AT$6,"",AW86-AX86) ->  | BJ86: 65 | BK86: 2028-02-01 | BL86: 31 | BM86: 1979 | BQ86: =IF(BJ86>BK$6,"",((1+BK$12)^(BL86/30)-1)*BN86) ->  | BR86: =IF(BJ86>BK$6,"",BK$4*BK$14) -> 400.10 | BS86: =IF(BJ86>BK$6,"",BK$15) -> PC - Auto/4x4 con GPS Lima/Valor >50k | BT86: =IF(BJ86>BK$6,"",IF(BJ86=BK$6,BN86+BP86+BQ86+BR86+BS86,IF(AND(BK$9=2,MONTH(BK86)=7),2*BK$17,IF(AND(BK$10=2,MONTH(BK86)=12),2*BK$17,BK$17)))) ->  | BU86: =IF(BJ86>BK$6,"",BN86-BO86) ->  | CA86: 65 | CB86: 2028-02-01 | CC86: 31 | CD86: 1979 | CH86: =IF(CA86>CB$6,"",((1+CB$12)^(CC86/30)-1)*CE86) ->  | CI86: =IF(CA86>CB$6,"",CB$4*CB$14) -> 400.10 | CJ86: =IF(CA86>CB$6,"",CB$15) -> PC - Auto/4x4 con GPS Lima/Valor >50k | CK86: =IF(CA86>CB$6,"",IF(CA86=CB$6,CE86+CG86+CH86+CI86+CJ86,IF(AND(CB$9=2,MONTH(CB86)=7),2*CB$17,IF(AND(CB$10=2,MONTH(CB86)=12),2*CB$17,CB$17)))) ->  | CL86: =IF(CA86>CB$6,"",CE86-CF86) ->  | CR86: 65 | CS86: 2028-02-01 | CT86: 31 | CU86: 1979 | CY86: =IF(CR86>CS$6,"",((1+CS$12)^(CT86/30)-1)*CV86) ->  | CZ86: =IF(CR86>CS$6,"",CS$4*CS$14) -> 400.10 | DA86: =IF(CR86>CS$6,"",CS$15) -> PC - Auto/4x4 con GPS Lima/Valor >50k | DB86: =IF(CR86>CS$6,"",IF(CR86=CS$6,CV86+CX86+CY86+CZ86+DA86,IF(AND(CS$9=2,MONTH(CS86)=7),2*CS$17,IF(AND(CS$10=2,MONTH(CS86)=12),2*CS$17,CS$17)))) ->  | DC86: =IF(CR86>CS$6,"",CV86-CW86) -> 
B87: 66 | D87: =IF(B87<=$C$6,WEEKDAY(C87,2),"") ->  | E87: =IF(D87=7,C87+1,C87) ->  | G87: =IFERROR(F87+G86,"") ->  | H87: =IF(B87>C$6,"",O86) ->  | I87: =IF(B87>C$6,"",N87-M87-L87-K87-J87) ->  | K87: =IF(B87>C$6,"",0) ->  | L87: =IF(B87>C$6,"",D$4*C$14) ->  | N87: =IF(B87>C$6,"",IF(B87=C$6,H87+J87+K87+L87+M87,IF(AND(C$9=2,MONTH(C87)=7),2*C$17,IF(AND(C$10=2,MONTH(C87)=12),2*C$17,C$17)))) ->  | O87: =IF(B87>C$6,"",H87-I87) ->  | P87: =IFERROR(IF(AND(MONTH(C87)=7,C$9=2),2/(1+C$11)^(G87/360),IF(AND(MONTH(C87)=12,C$10=2),2/(1+C$11)^(G87/360),1/(1+C$11)^(G87/360))),"") ->  | Q87: =IFERROR(1/(1+C$11)^(G87/360),"") ->  | S87: =IFERROR((I87+J87+K87+L87+M87)*$J$12+('Simulador para calculos'!I87+'Simulador para calculos'!J87+'Simulador para calculos'!K87+'Simulador para calculos'!L87+'Simulador para calculos'!M87)*NOT($J$12),"") ->  | T87: =G87 ->  | U87: =IFERROR((1+'Simulación Cliente'!$E$22)^(T87/360),"") ->  | V87: =IFERROR(ROUND(S87/U87,2),"") ->  | AB87: 66 | AC87: =IF(AB87>AC$6,"",EDATE(AC$22,AB86)) ->  | AE87: =IFERROR(AD87+AE86,"") ->  | AF87: =IF(AB87>AC$6,"",AM86) ->  | AN87: =IFERROR(IF(AND(MONTH(AC87)=7,AC$9=2),2/(1+AC$13)^(AE87/360),IF(AND(MONTH(AC87)=12,AC$10=2),2/(1+AC$13)^(AE87/360),1/(1+AC$13)^(AE87/360))),"") ->  | AO87: =IFERROR(1/(1+AC$13)^(AE87/360),"") ->  | AS87: 66 | AT87: =IF(AS87>AT$6,"",EDATE(AT$22,AS86)) -> 2028-03-01 | AU87: 29 | AV87: =IFERROR(AU87+AV86,"") -> 2008 | AW87: =IF(AS87>AT$6,"",BD86) ->  | BA87: 400.10 | BB87: PC - Auto/4x4 con GPS Lima/Valor >50k | BE87: =IFERROR(IF(AND(MONTH(AT87)=7,AT$9=2),2/(1+AT$13)^(AV87/360),IF(AND(MONTH(AT87)=12,AT$10=2),2/(1+AT$13)^(AV87/360),1/(1+AT$13)^(AV87/360))),"") ->  | BF87: =IFERROR(1/(1+AT$13)^(AV87/360),"") ->  | BJ87: 66 | BK87: =IF(BJ87>BK$6,"",EDATE(BK$22,BJ86)) -> 2028-03-01 | BL87: 29 | BM87: =IFERROR(BL87+BM86,"") -> 2008 | BN87: =IF(BJ87>BK$6,"",BU86) ->  | BR87: 400.10 | BS87: PC - Auto/4x4 con GPS Lima/Valor >50k | BV87: =IFERROR(IF(AND(MONTH(BK87)=7,BK$9=2),2/(1+BK$13)^(BM87/360),IF(AND(MONTH(BK87)=12,BK$10=2),2/(1+BK$13)^(BM87/360),1/(1+BK$13)^(BM87/360))),"") ->  | BW87: =IFERROR(1/(1+BK$13)^(BM87/360),"") ->  | CA87: 66 | CB87: =IF(CA87>CB$6,"",EDATE(CB$22,CA86)) -> 2028-03-01 | CC87: 29 | CD87: =IFERROR(CC87+CD86,"") -> 2008 | CE87: =IF(CA87>CB$6,"",CL86) ->  | CI87: 400.10 | CJ87: PC - Auto/4x4 con GPS Lima/Valor >50k | CM87: =IFERROR(IF(AND(MONTH(CB87)=7,CB$9=2),2/(1+CB$13)^(CD87/360),IF(AND(MONTH(CB87)=12,CB$10=2),2/(1+CB$13)^(CD87/360),1/(1+CB$13)^(CD87/360))),"") ->  | CN87: =IFERROR(1/(1+CB$13)^(CD87/360),"") ->  | CR87: 66 | CS87: =IF(CR87>CS$6,"",EDATE(CS$22,CR86)) -> 2028-03-01 | CT87: 29 | CU87: =IFERROR(CT87+CU86,"") -> 2008 | CV87: =IF(CR87>CS$6,"",DC86) ->  | CZ87: 400.10 | DA87: PC - Auto/4x4 con GPS Lima/Valor >50k | DD87: =IFERROR(IF(AND(MONTH(CS87)=7,CS$9=2),2/(1+CS$13)^(CU87/360),IF(AND(MONTH(CS87)=12,CS$10=2),2/(1+CS$13)^(CU87/360),1/(1+CS$13)^(CU87/360))),"") ->  | DE87: =IFERROR(1/(1+CS$13)^(CU87/360),"") -> 
B88: 67 | C88: =IF(B88>C$6,"",EDATE(C$22,B87)) ->  | F88: =IF(B88>C$6,"",E88-E87) ->  | J88: =IF(B88>C$6,"",((1+C$11)^(F88/360)-1)*H88) ->  | S88: =IFERROR((I88+J88+K88+L88+M88)*$J$12+('Simulador para calculos'!I88+'Simulador para calculos'!J88+'Simulador para calculos'!K88+'Simulador para calculos'!L88+'Simulador para calculos'!M88)*NOT($J$12),"") ->  | U88: =IFERROR((1+'Simulación Cliente'!$E$22)^(T88/360),"") ->  | AB88: 67 | AH88: =IF(AB88>AC$6,"",((1+AC$11)^(AD88/360)-1)*AF88) ->  | AS88: 67 | AT88: 2028-04-01 | AU88: 31 | AV88: 2039 | AY88: =IF(AS88>AT$6,"",((1+AT$11)^(AU88/360)-1)*AW88) ->  | BA88: 400.10 | BB88: PC - Auto/4x4 con GPS Lima/Valor >50k | BJ88: 67 | BK88: 2028-04-01 | BL88: 31 | BM88: 2039 | BP88: =IF(BJ88>BK$6,"",((1+BK$11)^(BL88/360)-1)*BN88) ->  | BR88: 400.10 | BS88: PC - Auto/4x4 con GPS Lima/Valor >50k | CA88: 67 | CB88: 2028-04-01 | CC88: 31 | CD88: 2039 | CG88: =IF(CA88>CB$6,"",((1+CB$11)^(CC88/360)-1)*CE88) ->  | CI88: 400.10 | CJ88: PC - Auto/4x4 con GPS Lima/Valor >50k | CR88: 67 | CS88: 2028-04-01 | CT88: 31 | CU88: 2039 | CX88: =IF(CR88>CS$6,"",((1+CS$11)^(CT88/360)-1)*CV88) ->  | CZ88: 400.10 | DA88: PC - Auto/4x4 con GPS Lima/Valor >50k
B89: 68 | S89: =IFERROR((I89+J89+K89+L89+M89)*$J$12+('Simulador para calculos'!I89+'Simulador para calculos'!J89+'Simulador para calculos'!K89+'Simulador para calculos'!L89+'Simulador para calculos'!M89)*NOT($J$12),"") ->  | U89: =IFERROR((1+'Simulación Cliente'!$E$22)^(T89/360),"") ->  | AB89: 68 | AD89: =IF(AB89>AC$6,"",AC89-AC88) ->  | AG89: =IF(AB89>AC$6,"",AL89-AK89-AJ89-AI89-AH89) ->  | AS89: 68 | AT89: 2028-05-01 | AU89: =IF(AS89>AT$6,"",AT89-AT88) -> 30 | AV89: 2069 | AX89: =IF(AS89>AT$6,"",BC89-BB89-BA89-AZ89-AY89) ->  | BA89: 400.10 | BB89: PC - Auto/4x4 con GPS Lima/Valor >50k | BJ89: 68 | BK89: 2028-05-01 | BL89: =IF(BJ89>BK$6,"",BK89-BK88) -> 30 | BM89: 2069 | BO89: =IF(BJ89>BK$6,"",BT89-BS89-BR89-BQ89-BP89) ->  | BR89: 400.10 | BS89: PC - Auto/4x4 con GPS Lima/Valor >50k | CA89: 68 | CB89: 2028-05-01 | CC89: =IF(CA89>CB$6,"",CB89-CB88) -> 30 | CD89: 2069 | CF89: =IF(CA89>CB$6,"",CK89-CJ89-CI89-CH89-CG89) ->  | CI89: 400.10 | CJ89: PC - Auto/4x4 con GPS Lima/Valor >50k | CR89: 68 | CS89: 2028-05-01 | CT89: =IF(CR89>CS$6,"",CS89-CS88) -> 30 | CU89: 2069 | CW89: =IF(CR89>CS$6,"",DB89-DA89-CZ89-CY89-CX89) ->  | CZ89: 400.10 | DA89: PC - Auto/4x4 con GPS Lima/Valor >50k
B90: 69 | S90: =IFERROR((I90+J90+K90+L90+M90)*$J$12+('Simulador para calculos'!I90+'Simulador para calculos'!J90+'Simulador para calculos'!K90+'Simulador para calculos'!L90+'Simulador para calculos'!M90)*NOT($J$12),"") ->  | U90: =IFERROR((1+'Simulación Cliente'!$E$22)^(T90/360),"") ->  | AB90: 69 | AS90: 69 | AT90: 2028-06-01 | AU90: 31 | AV90: 2100 | BA90: 400.10 | BB90: PC - Auto/4x4 con GPS Lima/Valor >50k | BJ90: 69 | BK90: 2028-06-01 | BL90: 31 | BM90: 2100 | BR90: 400.10 | BS90: PC - Auto/4x4 con GPS Lima/Valor >50k | CA90: 69 | CB90: 2028-06-01 | CC90: 31 | CD90: 2100 | CI90: 400.10 | CJ90: PC - Auto/4x4 con GPS Lima/Valor >50k | CR90: 69 | CS90: 2028-06-01 | CT90: 31 | CU90: 2100 | CZ90: 400.10 | DA90: PC - Auto/4x4 con GPS Lima/Valor >50k
B91: 70 | S91: =IFERROR((I91+J91+K91+L91+M91)*$J$12+('Simulador para calculos'!I91+'Simulador para calculos'!J91+'Simulador para calculos'!K91+'Simulador para calculos'!L91+'Simulador para calculos'!M91)*NOT($J$12),"") ->  | U91: =IFERROR((1+'Simulación Cliente'!$E$22)^(T91/360),"") ->  | AB91: 70 | AS91: 70 | AT91: 2028-07-01 | AU91: 30 | AV91: 2130 | BA91: 400.10 | BB91: PC - Auto/4x4 con GPS Lima/Valor >50k | BJ91: 70 | BK91: 2028-07-01 | BL91: 30 | BM91: 2130 | BR91: 400.10 | BS91: PC - Auto/4x4 con GPS Lima/Valor >50k | CA91: 70 | CB91: 2028-07-01 | CC91: 30 | CD91: 2130 | CI91: 400.10 | CJ91: PC - Auto/4x4 con GPS Lima/Valor >50k | CR91: 70 | CS91: 2028-07-01 | CT91: 30 | CU91: 2130 | CZ91: 400.10 | DA91: PC - Auto/4x4 con GPS Lima/Valor >50k
B92: 71 | S92: =IFERROR((I92+J92+K92+L92+M92)*$J$12+('Simulador para calculos'!I92+'Simulador para calculos'!J92+'Simulador para calculos'!K92+'Simulador para calculos'!L92+'Simulador para calculos'!M92)*NOT($J$12),"") ->  | U92: =IFERROR((1+'Simulación Cliente'!$E$22)^(T92/360),"") ->  | AB92: 71 | AS92: 71 | AT92: 2028-08-01 | AU92: 31 | AV92: 2161 | BA92: 400.10 | BB92: PC - Auto/4x4 con GPS Lima/Valor >50k | BJ92: 71 | BK92: 2028-08-01 | BL92: 31 | BM92: 2161 | BR92: 400.10 | BS92: PC - Auto/4x4 con GPS Lima/Valor >50k | CA92: 71 | CB92: 2028-08-01 | CC92: 31 | CD92: 2161 | CI92: 400.10 | CJ92: PC - Auto/4x4 con GPS Lima/Valor >50k | CR92: 71 | CS92: 2028-08-01 | CT92: 31 | CU92: 2161 | CZ92: 400.10 | DA92: PC - Auto/4x4 con GPS Lima/Valor >50k
B93: 72 | S93: =IFERROR((I93+J93+K93+L93+M93)*$J$12+('Simulador para calculos'!I93+'Simulador para calculos'!J93+'Simulador para calculos'!K93+'Simulador para calculos'!L93+'Simulador para calculos'!M93)*NOT($J$12),"") ->  | U93: =IFERROR((1+'Simulación Cliente'!$E$22)^(T93/360),"") ->  | AB93: 72 | AS93: 72 | AT93: 2028-09-01 | AU93: 31 | AV93: 2192 | BA93: 400.10 | BB93: PC - Auto/4x4 con GPS Lima/Valor >50k | BJ93: 72 | BK93: 2028-09-01 | BL93: 31 | BM93: 2192 | BR93: 400.10 | BS93: PC - Auto/4x4 con GPS Lima/Valor >50k | CA93: 72 | CB93: 2028-09-01 | CC93: 31 | CD93: 2192 | CI93: 400.10 | CJ93: PC - Auto/4x4 con GPS Lima/Valor >50k | CR93: 72 | CS93: 2028-09-01 | CT93: 31 | CU93: 2192 | CZ93: 400.10 | DA93: PC - Auto/4x4 con GPS Lima/Valor >50k
B94: 73 | S94: =IFERROR((I94+J94+K94+L94+M94)*$J$12+('Simulador para calculos'!I94+'Simulador para calculos'!J94+'Simulador para calculos'!K94+'Simulador para calculos'!L94+'Simulador para calculos'!M94)*NOT($J$12),"") ->  | U94: =IFERROR((1+'Simulación Cliente'!$E$22)^(T94/360),"") ->  | AB94: 73 | AS94: 73 | AT94: 2028-10-01 | AU94: 30 | AV94: 2222 | BA94: 400.10 | BB94: PC - Auto/4x4 con GPS Lima/Valor >50k | BJ94: 73 | BK94: 2028-10-01 | BL94: 30 | BM94: 2222 | BR94: 400.10 | BS94: PC - Auto/4x4 con GPS Lima/Valor >50k | CA94: 73 | CB94: 2028-10-01 | CC94: 30 | CD94: 2222 | CI94: 400.10 | CJ94: PC - Auto/4x4 con GPS Lima/Valor >50k | CR94: 73 | CS94: 2028-10-01 | CT94: 30 | CU94: 2222 | CZ94: 400.10 | DA94: PC - Auto/4x4 con GPS Lima/Valor >50k
B95: 74 | S95: =IFERROR((I95+J95+K95+L95+M95)*$J$12+('Simulador para calculos'!I95+'Simulador para calculos'!J95+'Simulador para calculos'!K95+'Simulador para calculos'!L95+'Simulador para calculos'!M95)*NOT($J$12),"") ->  | U95: =IFERROR((1+'Simulación Cliente'!$E$22)^(T95/360),"") ->  | AB95: 74 | AS95: 74 | AT95: 2028-11-01 | AU95: 31 | AV95: 2253 | BA95: 400.10 | BB95: PC - Auto/4x4 con GPS Lima/Valor >50k | BJ95: 74 | BK95: 2028-11-01 | BL95: 31 | BM95: 2253 | BR95: 400.10 | BS95: PC - Auto/4x4 con GPS Lima/Valor >50k | CA95: 74 | CB95: 2028-11-01 | CC95: 31 | CD95: 2253 | CI95: 400.10 | CJ95: PC - Auto/4x4 con GPS Lima/Valor >50k | CR95: 74 | CS95: 2028-11-01 | CT95: 31 | CU95: 2253 | CZ95: 400.10 | DA95: PC - Auto/4x4 con GPS Lima/Valor >50k
B96: 75 | S96: =IFERROR((I96+J96+K96+L96+M96)*$J$12+('Simulador para calculos'!I96+'Simulador para calculos'!J96+'Simulador para calculos'!K96+'Simulador para calculos'!L96+'Simulador para calculos'!M96)*NOT($J$12),"") ->  | U96: =IFERROR((1+'Simulación Cliente'!$E$22)^(T96/360),"") ->  | AB96: 75 | AS96: 75 | AT96: 2028-12-01 | AU96: 30 | AV96: 2283 | BA96: 400.10 | BB96: PC - Auto/4x4 con GPS Lima/Valor >50k | BJ96: 75 | BK96: 2028-12-01 | BL96: 30 | BM96: 2283 | BR96: 400.10 | BS96: PC - Auto/4x4 con GPS Lima/Valor >50k | CA96: 75 | CB96: 2028-12-01 | CC96: 30 | CD96: 2283 | CI96: 400.10 | CJ96: PC - Auto/4x4 con GPS Lima/Valor >50k | CR96: 75 | CS96: 2028-12-01 | CT96: 30 | CU96: 2283 | CZ96: 400.10 | DA96: PC - Auto/4x4 con GPS Lima/Valor >50k
B97: 76 | S97: =IFERROR((I97+J97+K97+L97+M97)*$J$12+('Simulador para calculos'!I97+'Simulador para calculos'!J97+'Simulador para calculos'!K97+'Simulador para calculos'!L97+'Simulador para calculos'!M97)*NOT($J$12),"") ->  | U97: =IFERROR((1+'Simulación Cliente'!$E$22)^(T97/360),"") ->  | AB97: 76 | AS97: 76 | AT97: 2029-01-01 | AU97: 31 | AV97: 2314 | BA97: 400.10 | BB97: PC - Auto/4x4 con GPS Lima/Valor >50k | BJ97: 76 | BK97: 2029-01-01 | BL97: 31 | BM97: 2314 | BR97: 400.10 | BS97: PC - Auto/4x4 con GPS Lima/Valor >50k | CA97: 76 | CB97: 2029-01-01 | CC97: 31 | CD97: 2314 | CI97: 400.10 | CJ97: PC - Auto/4x4 con GPS Lima/Valor >50k | CR97: 76 | CS97: 2029-01-01 | CT97: 31 | CU97: 2314 | CZ97: 400.10 | DA97: PC - Auto/4x4 con GPS Lima/Valor >50k
B98: 77 | S98: =IFERROR((I98+J98+K98+L98+M98)*$J$12+('Simulador para calculos'!I98+'Simulador para calculos'!J98+'Simulador para calculos'!K98+'Simulador para calculos'!L98+'Simulador para calculos'!M98)*NOT($J$12),"") ->  | U98: =IFERROR((1+'Simulación Cliente'!$E$22)^(T98/360),"") ->  | AB98: 77 | AS98: 77 | AT98: 2029-02-01 | AU98: 31 | AV98: 2345 | BA98: 400.10 | BB98: PC - Auto/4x4 con GPS Lima/Valor >50k | BJ98: 77 | BK98: 2029-02-01 | BL98: 31 | BM98: 2345 | BR98: 400.10 | BS98: PC - Auto/4x4 con GPS Lima/Valor >50k | CA98: 77 | CB98: 2029-02-01 | CC98: 31 | CD98: 2345 | CI98: 400.10 | CJ98: PC - Auto/4x4 con GPS Lima/Valor >50k | CR98: 77 | CS98: 2029-02-01 | CT98: 31 | CU98: 2345 | CZ98: 400.10 | DA98: PC - Auto/4x4 con GPS Lima/Valor >50k
B99: 78 | S99: =IFERROR((I99+J99+K99+L99+M99)*$J$12+('Simulador para calculos'!I99+'Simulador para calculos'!J99+'Simulador para calculos'!K99+'Simulador para calculos'!L99+'Simulador para calculos'!M99)*NOT($J$12),"") ->  | U99: =IFERROR((1+'Simulación Cliente'!$E$22)^(T99/360),"") ->  | AB99: 78 | AS99: 78 | AT99: 2029-03-01 | AU99: 28 | AV99: 2373 | BA99: 400.10 | BB99: PC - Auto/4x4 con GPS Lima/Valor >50k | BJ99: 78 | BK99: 2029-03-01 | BL99: 28 | BM99: 2373 | BR99: 400.10 | BS99: PC - Auto/4x4 con GPS Lima/Valor >50k | CA99: 78 | CB99: 2029-03-01 | CC99: 28 | CD99: 2373 | CI99: 400.10 | CJ99: PC - Auto/4x4 con GPS Lima/Valor >50k | CR99: 78 | CS99: 2029-03-01 | CT99: 28 | CU99: 2373 | CZ99: 400.10 | DA99: PC - Auto/4x4 con GPS Lima/Valor >50k
B100: 79 | S100: =IFERROR((I100+J100+K100+L100+M100)*$J$12+('Simulador para calculos'!I100+'Simulador para calculos'!J100+'Simulador para calculos'!K100+'Simulador para calculos'!L100+'Simulador para calculos'!M100)*NOT($J$12),"") ->  | U100: =IFERROR((1+'Simulación Cliente'!$E$22)^(T100/360),"") ->  | AB100: 79 | AS100: 79 | AT100: 2029-04-01 | AU100: 31 | AV100: 2404 | BA100: 400.10 | BB100: PC - Auto/4x4 con GPS Lima/Valor >50k | BJ100: 79 | BK100: 2029-04-01 | BL100: 31 | BM100: 2404 | BR100: 400.10 | BS100: PC - Auto/4x4 con GPS Lima/Valor >50k | CA100: 79 | CB100: 2029-04-01 | CC100: 31 | CD100: 2404 | CI100: 400.10 | CJ100: PC - Auto/4x4 con GPS Lima/Valor >50k | CR100: 79 | CS100: 2029-04-01 | CT100: 31 | CU100: 2404 | CZ100: 400.10 | DA100: PC - Auto/4x4 con GPS Lima/Valor >50k
B101: 80 | S101: =IFERROR((I101+J101+K101+L101+M101)*$J$12+('Simulador para calculos'!I101+'Simulador para calculos'!J101+'Simulador para calculos'!K101+'Simulador para calculos'!L101+'Simulador para calculos'!M101)*NOT($J$12),"") ->  | U101: =IFERROR((1+'Simulación Cliente'!$E$22)^(T101/360),"") ->  | AB101: 80 | AS101: 80 | AT101: 2029-05-01 | AU101: 30 | AV101: 2434 | BA101: 400.10 | BB101: PC - Auto/4x4 con GPS Lima/Valor >50k | BJ101: 80 | BK101: 2029-05-01 | BL101: 30 | BM101: 2434 | BR101: 400.10 | BS101: PC - Auto/4x4 con GPS Lima/Valor >50k | CA101: 80 | CB101: 2029-05-01 | CC101: 30 | CD101: 2434 | CI101: 400.10 | CJ101: PC - Auto/4x4 con GPS Lima/Valor >50k | CR101: 80 | CS101: 2029-05-01 | CT101: 30 | CU101: 2434 | CZ101: 400.10 | DA101: PC - Auto/4x4 con GPS Lima/Valor >50k
B102: 81 | S102: =IFERROR((I102+J102+K102+L102+M102)*$J$12+('Simulador para calculos'!I102+'Simulador para calculos'!J102+'Simulador para calculos'!K102+'Simulador para calculos'!L102+'Simulador para calculos'!M102)*NOT($J$12),"") ->  | U102: =IFERROR((1+'Simulación Cliente'!$E$22)^(T102/360),"") ->  | AB102: 81 | AS102: 81 | AT102: 2029-06-01 | AU102: 31 | AV102: 2465 | BA102: 400.10 | BB102: PC - Auto/4x4 con GPS Lima/Valor >50k | BJ102: 81 | BK102: 2029-06-01 | BL102: 31 | BM102: 2465 | BR102: 400.10 | BS102: PC - Auto/4x4 con GPS Lima/Valor >50k | CA102: 81 | CB102: 2029-06-01 | CC102: 31 | CD102: 2465 | CI102: 400.10 | CJ102: PC - Auto/4x4 con GPS Lima/Valor >50k | CR102: 81 | CS102: 2029-06-01 | CT102: 31 | CU102: 2465 | CZ102: 400.10 | DA102: PC - Auto/4x4 con GPS Lima/Valor >50k
B103: 82 | S103: =IFERROR((I103+J103+K103+L103+M103)*$J$12+('Simulador para calculos'!I103+'Simulador para calculos'!J103+'Simulador para calculos'!K103+'Simulador para calculos'!L103+'Simulador para calculos'!M103)*NOT($J$12),"") ->  | U103: =IFERROR((1+'Simulación Cliente'!$E$22)^(T103/360),"") ->  | AB103: 82 | AS103: 82 | AT103: 2029-07-01 | AU103: 30 | AV103: 2495 | BA103: 400.10 | BB103: PC - Auto/4x4 con GPS Lima/Valor >50k | BJ103: 82 | BK103: 2029-07-01 | BL103: 30 | BM103: 2495 | BR103: 400.10 | BS103: PC - Auto/4x4 con GPS Lima/Valor >50k | CA103: 82 | CB103: 2029-07-01 | CC103: 30 | CD103: 2495 | CI103: 400.10 | CJ103: PC - Auto/4x4 con GPS Lima/Valor >50k | CR103: 82 | CS103: 2029-07-01 | CT103: 30 | CU103: 2495 | CZ103: 400.10 | DA103: PC - Auto/4x4 con GPS Lima/Valor >50k
B104: 83 | S104: =IFERROR((I104+J104+K104+L104+M104)*$J$12+('Simulador para calculos'!I104+'Simulador para calculos'!J104+'Simulador para calculos'!K104+'Simulador para calculos'!L104+'Simulador para calculos'!M104)*NOT($J$12),"") ->  | U104: =IFERROR((1+'Simulación Cliente'!$E$22)^(T104/360),"") ->  | AB104: 83 | AS104: 83 | AT104: 2029-08-01 | AU104: 31 | AV104: 2526 | BA104: 400.10 | BB104: PC - Auto/4x4 con GPS Lima/Valor >50k | BJ104: 83 | BK104: 2029-08-01 | BL104: 31 | BM104: 2526 | BR104: 400.10 | BS104: PC - Auto/4x4 con GPS Lima/Valor >50k | CA104: 83 | CB104: 2029-08-01 | CC104: 31 | CD104: 2526 | CI104: 400.10 | CJ104: PC - Auto/4x4 con GPS Lima/Valor >50k | CR104: 83 | CS104: 2029-08-01 | CT104: 31 | CU104: 2526 | CZ104: 400.10 | DA104: PC - Auto/4x4 con GPS Lima/Valor >50k
B105: 84 | S105: =IFERROR((I105+J105+K105+L105+M105)*$J$12+('Simulador para calculos'!I105+'Simulador para calculos'!J105+'Simulador para calculos'!K105+'Simulador para calculos'!L105+'Simulador para calculos'!M105)*NOT($J$12),"") ->  | U105: =IFERROR((1+'Simulación Cliente'!$E$22)^(T105/360),"") ->  | AB105: 84 | AS105: 84 | AT105: 2029-09-01 | AU105: 31 | AV105: 2557 | BA105: 400.10 | BB105: PC - Auto/4x4 con GPS Lima/Valor >50k | BJ105: 84 | BK105: 2029-09-01 | BL105: 31 | BM105: 2557 | BR105: 400.10 | BS105: PC - Auto/4x4 con GPS Lima/Valor >50k | CA105: 84 | CB105: 2029-09-01 | CC105: 31 | CD105: 2557 | CI105: 400.10 | CJ105: PC - Auto/4x4 con GPS Lima/Valor >50k | CR105: 84 | CS105: 2029-09-01 | CT105: 31 | CU105: 2557 | CZ105: 400.10 | DA105: PC - Auto/4x4 con GPS Lima/Valor >50k
B106: 85 | S106: =IFERROR((I106+J106+K106+L106+M106)*$J$12+('Simulador para calculos'!I106+'Simulador para calculos'!J106+'Simulador para calculos'!K106+'Simulador para calculos'!L106+'Simulador para calculos'!M106)*NOT($J$12),"") ->  | U106: =IFERROR((1+'Simulación Cliente'!$E$22)^(T106/360),"") ->  | AB106: 85 | AS106: 85 | AT106: 2029-10-01 | AU106: 30 | AV106: 2587 | BA106: 400.10 | BB106: PC - Auto/4x4 con GPS Lima/Valor >50k | BJ106: 85 | BK106: 2029-10-01 | BL106: 30 | BM106: 2587 | BR106: 400.10 | BS106: PC - Auto/4x4 con GPS Lima/Valor >50k | CA106: 85 | CB106: 2029-10-01 | CC106: 30 | CD106: 2587 | CI106: 400.10 | CJ106: PC - Auto/4x4 con GPS Lima/Valor >50k | CR106: 85 | CS106: 2029-10-01 | CT106: 30 | CU106: 2587 | CZ106: 400.10 | DA106: PC - Auto/4x4 con GPS Lima/Valor >50k
B107: 86 | S107: =IFERROR((I107+J107+K107+L107+M107)*$J$12+('Simulador para calculos'!I107+'Simulador para calculos'!J107+'Simulador para calculos'!K107+'Simulador para calculos'!L107+'Simulador para calculos'!M107)*NOT($J$12),"") ->  | U107: =IFERROR((1+'Simulación Cliente'!$E$22)^(T107/360),"") ->  | AB107: 86 | AS107: 86 | AT107: 2029-11-01 | AU107: 31 | AV107: 2618 | BA107: 400.10 | BB107: PC - Auto/4x4 con GPS Lima/Valor >50k | BJ107: 86 | BK107: 2029-11-01 | BL107: 31 | BM107: 2618 | BR107: 400.10 | BS107: PC - Auto/4x4 con GPS Lima/Valor >50k | CA107: 86 | CB107: 2029-11-01 | CC107: 31 | CD107: 2618 | CI107: 400.10 | CJ107: PC - Auto/4x4 con GPS Lima/Valor >50k | CR107: 86 | CS107: 2029-11-01 | CT107: 31 | CU107: 2618 | CZ107: 400.10 | DA107: PC - Auto/4x4 con GPS Lima/Valor >50k
B108: 87 | S108: =IFERROR((I108+J108+K108+L108+M108)*$J$12+('Simulador para calculos'!I108+'Simulador para calculos'!J108+'Simulador para calculos'!K108+'Simulador para calculos'!L108+'Simulador para calculos'!M108)*NOT($J$12),"") ->  | U108: =IFERROR((1+'Simulación Cliente'!$E$22)^(T108/360),"") ->  | AB108: 87 | AS108: 87 | AT108: 2029-12-01 | AU108: 30 | AV108: 2648 | BA108: 400.10 | BB108: PC - Auto/4x4 con GPS Lima/Valor >50k | BJ108: 87 | BK108: 2029-12-01 | BL108: 30 | BM108: 2648 | BR108: 400.10 | BS108: PC - Auto/4x4 con GPS Lima/Valor >50k | CA108: 87 | CB108: 2029-12-01 | CC108: 30 | CD108: 2648 | CI108: 400.10 | CJ108: PC - Auto/4x4 con GPS Lima/Valor >50k | CR108: 87 | CS108: 2029-12-01 | CT108: 30 | CU108: 2648 | CZ108: 400.10 | DA108: PC - Auto/4x4 con GPS Lima/Valor >50k
B109: 88 | S109: =IFERROR((I109+J109+K109+L109+M109)*$J$12+('Simulador para calculos'!I109+'Simulador para calculos'!J109+'Simulador para calculos'!K109+'Simulador para calculos'!L109+'Simulador para calculos'!M109)*NOT($J$12),"") ->  | U109: =IFERROR((1+'Simulación Cliente'!$E$22)^(T109/360),"") ->  | AB109: 88 | AS109: 88 | AT109: 2030-01-01 | AU109: 31 | AV109: 2679 | BA109: 400.10 | BB109: PC - Auto/4x4 con GPS Lima/Valor >50k | BJ109: 88 | BK109: 2030-01-01 | BL109: 31 | BM109: 2679 | BR109: 400.10 | BS109: PC - Auto/4x4 con GPS Lima/Valor >50k | CA109: 88 | CB109: 2030-01-01 | CC109: 31 | CD109: 2679 | CI109: 400.10 | CJ109: PC - Auto/4x4 con GPS Lima/Valor >50k | CR109: 88 | CS109: 2030-01-01 | CT109: 31 | CU109: 2679 | CZ109: 400.10 | DA109: PC - Auto/4x4 con GPS Lima/Valor >50k
B110: 89 | S110: =IFERROR((I110+J110+K110+L110+M110)*$J$12+('Simulador para calculos'!I110+'Simulador para calculos'!J110+'Simulador para calculos'!K110+'Simulador para calculos'!L110+'Simulador para calculos'!M110)*NOT($J$12),"") ->  | U110: =IFERROR((1+'Simulación Cliente'!$E$22)^(T110/360),"") ->  | AB110: 89 | AS110: 89 | AT110: 2030-02-01 | AU110: 31 | AV110: 2710 | BA110: 400.10 | BB110: PC - Auto/4x4 con GPS Lima/Valor >50k | BJ110: 89 | BK110: 2030-02-01 | BL110: 31 | BM110: 2710 | BR110: 400.10 | BS110: PC - Auto/4x4 con GPS Lima/Valor >50k | CA110: 89 | CB110: 2030-02-01 | CC110: 31 | CD110: 2710 | CI110: 400.10 | CJ110: PC - Auto/4x4 con GPS Lima/Valor >50k | CR110: 89 | CS110: 2030-02-01 | CT110: 31 | CU110: 2710 | CZ110: 400.10 | DA110: PC - Auto/4x4 con GPS Lima/Valor >50k
B111: 90 | S111: =IFERROR((I111+J111+K111+L111+M111)*$J$12+('Simulador para calculos'!I111+'Simulador para calculos'!J111+'Simulador para calculos'!K111+'Simulador para calculos'!L111+'Simulador para calculos'!M111)*NOT($J$12),"") ->  | U111: =IFERROR((1+'Simulación Cliente'!$E$22)^(T111/360),"") ->  | AB111: 90 | AS111: 90 | AT111: 2030-03-01 | AU111: 28 | AV111: 2738 | BA111: 400.10 | BB111: PC - Auto/4x4 con GPS Lima/Valor >50k | BJ111: 90 | BK111: 2030-03-01 | BL111: 28 | BM111: 2738 | BR111: 400.10 | BS111: PC - Auto/4x4 con GPS Lima/Valor >50k | CA111: 90 | CB111: 2030-03-01 | CC111: 28 | CD111: 2738 | CI111: 400.10 | CJ111: PC - Auto/4x4 con GPS Lima/Valor >50k | CR111: 90 | CS111: 2030-03-01 | CT111: 28 | CU111: 2738 | CZ111: 400.10 | DA111: PC - Auto/4x4 con GPS Lima/Valor >50k
B112: 91 | S112: =IFERROR((I112+J112+K112+L112+M112)*$J$12+('Simulador para calculos'!I112+'Simulador para calculos'!J112+'Simulador para calculos'!K112+'Simulador para calculos'!L112+'Simulador para calculos'!M112)*NOT($J$12),"") ->  | U112: =IFERROR((1+'Simulación Cliente'!$E$22)^(T112/360),"") ->  | AB112: 91 | AS112: 91 | AT112: 2030-04-01 | AU112: 31 | AV112: 2769 | BA112: 400.10 | BB112: PC - Auto/4x4 con GPS Lima/Valor >50k | BJ112: 91 | BK112: 2030-04-01 | BL112: 31 | BM112: 2769 | BR112: 400.10 | BS112: PC - Auto/4x4 con GPS Lima/Valor >50k | CA112: 91 | CB112: 2030-04-01 | CC112: 31 | CD112: 2769 | CI112: 400.10 | CJ112: PC - Auto/4x4 con GPS Lima/Valor >50k | CR112: 91 | CS112: 2030-04-01 | CT112: 31 | CU112: 2769 | CZ112: 400.10 | DA112: PC - Auto/4x4 con GPS Lima/Valor >50k
B113: 92 | S113: =IFERROR((I113+J113+K113+L113+M113)*$J$12+('Simulador para calculos'!I113+'Simulador para calculos'!J113+'Simulador para calculos'!K113+'Simulador para calculos'!L113+'Simulador para calculos'!M113)*NOT($J$12),"") ->  | U113: =IFERROR((1+'Simulación Cliente'!$E$22)^(T113/360),"") ->  | AB113: 92 | AS113: 92 | AT113: 2030-05-01 | AU113: 30 | AV113: 2799 | BA113: 400.10 | BB113: PC - Auto/4x4 con GPS Lima/Valor >50k | BJ113: 92 | BK113: 2030-05-01 | BL113: 30 | BM113: 2799 | BR113: 400.10 | BS113: PC - Auto/4x4 con GPS Lima/Valor >50k | CA113: 92 | CB113: 2030-05-01 | CC113: 30 | CD113: 2799 | CI113: 400.10 | CJ113: PC - Auto/4x4 con GPS Lima/Valor >50k | CR113: 92 | CS113: 2030-05-01 | CT113: 30 | CU113: 2799 | CZ113: 400.10 | DA113: PC - Auto/4x4 con GPS Lima/Valor >50k
B114: 93 | S114: =IFERROR((I114+J114+K114+L114+M114)*$J$12+('Simulador para calculos'!I114+'Simulador para calculos'!J114+'Simulador para calculos'!K114+'Simulador para calculos'!L114+'Simulador para calculos'!M114)*NOT($J$12),"") ->  | U114: =IFERROR((1+'Simulación Cliente'!$E$22)^(T114/360),"") ->  | AB114: 93 | AS114: 93 | AT114: 2030-06-01 | AU114: 31 | AV114: 2830 | BA114: 400.10 | BB114: PC - Auto/4x4 con GPS Lima/Valor >50k | BJ114: 93 | BK114: 2030-06-01 | BL114: 31 | BM114: 2830 | BR114: 400.10 | BS114: PC - Auto/4x4 con GPS Lima/Valor >50k | CA114: 93 | CB114: 2030-06-01 | CC114: 31 | CD114: 2830 | CI114: 400.10 | CJ114: PC - Auto/4x4 con GPS Lima/Valor >50k | CR114: 93 | CS114: 2030-06-01 | CT114: 31 | CU114: 2830 | CZ114: 400.10 | DA114: PC - Auto/4x4 con GPS Lima/Valor >50k
B115: 94 | S115: =IFERROR((I115+J115+K115+L115+M115)*$J$12+('Simulador para calculos'!I115+'Simulador para calculos'!J115+'Simulador para calculos'!K115+'Simulador para calculos'!L115+'Simulador para calculos'!M115)*NOT($J$12),"") ->  | U115: =IFERROR((1+'Simulación Cliente'!$E$22)^(T115/360),"") ->  | AB115: 94 | AS115: 94 | AT115: 2030-07-01 | AU115: 30 | AV115: 2860 | BA115: 400.10 | BB115: PC - Auto/4x4 con GPS Lima/Valor >50k | BJ115: 94 | BK115: 2030-07-01 | BL115: 30 | BM115: 2860 | BR115: 400.10 | BS115: PC - Auto/4x4 con GPS Lima/Valor >50k | CA115: 94 | CB115: 2030-07-01 | CC115: 30 | CD115: 2860 | CI115: 400.10 | CJ115: PC - Auto/4x4 con GPS Lima/Valor >50k | CR115: 94 | CS115: 2030-07-01 | CT115: 30 | CU115: 2860 | CZ115: 400.10 | DA115: PC - Auto/4x4 con GPS Lima/Valor >50k
B116: 95 | S116: =IFERROR((I116+J116+K116+L116+M116)*$J$12+('Simulador para calculos'!I116+'Simulador para calculos'!J116+'Simulador para calculos'!K116+'Simulador para calculos'!L116+'Simulador para calculos'!M116)*NOT($J$12),"") ->  | U116: =IFERROR((1+'Simulación Cliente'!$E$22)^(T116/360),"") ->  | AB116: 95 | AS116: 95 | AT116: 2030-08-01 | AU116: 31 | AV116: 2891 | BA116: 400.10 | BB116: PC - Auto/4x4 con GPS Lima/Valor >50k | BJ116: 95 | BK116: 2030-08-01 | BL116: 31 | BM116: 2891 | BR116: 400.10 | BS116: PC - Auto/4x4 con GPS Lima/Valor >50k | CA116: 95 | CB116: 2030-08-01 | CC116: 31 | CD116: 2891 | CI116: 400.10 | CJ116: PC - Auto/4x4 con GPS Lima/Valor >50k | CR116: 95 | CS116: 2030-08-01 | CT116: 31 | CU116: 2891 | CZ116: 400.10 | DA116: PC - Auto/4x4 con GPS Lima/Valor >50k
B117: 96 | S117: =IFERROR((I117+J117+K117+L117+M117)*$J$12+('Simulador para calculos'!I117+'Simulador para calculos'!J117+'Simulador para calculos'!K117+'Simulador para calculos'!L117+'Simulador para calculos'!M117)*NOT($J$12),"") ->  | U117: =IFERROR((1+'Simulación Cliente'!$E$22)^(T117/360),"") ->  | AB117: 96 | AS117: 96 | AT117: 2030-09-01 | AU117: 31 | AV117: 2922 | BA117: 400.10 | BB117: PC - Auto/4x4 con GPS Lima/Valor >50k | BJ117: 96 | BK117: 2030-09-01 | BL117: 31 | BM117: 2922 | BR117: 400.10 | BS117: PC - Auto/4x4 con GPS Lima/Valor >50k | CA117: 96 | CB117: 2030-09-01 | CC117: 31 | CD117: 2922 | CI117: 400.10 | CJ117: PC - Auto/4x4 con GPS Lima/Valor >50k | CR117: 96 | CS117: 2030-09-01 | CT117: 31 | CU117: 2922 | CZ117: 400.10 | DA117: PC - Auto/4x4 con GPS Lima/Valor >50k
B118: 97 | S118: =IFERROR((I118+J118+K118+L118+M118)*$J$12+('Simulador para calculos'!I118+'Simulador para calculos'!J118+'Simulador para calculos'!K118+'Simulador para calculos'!L118+'Simulador para calculos'!M118)*NOT($J$12),"") ->  | U118: =IFERROR((1+'Simulación Cliente'!$E$22)^(T118/360),"") ->  | AB118: 97 | AS118: 97 | AT118: 2030-10-01 | AU118: 30 | AV118: 2952 | BA118: 400.10 | BB118: PC - Auto/4x4 con GPS Lima/Valor >50k | BJ118: 97 | BK118: 2030-10-01 | BL118: 30 | BM118: 2952 | BR118: 400.10 | BS118: PC - Auto/4x4 con GPS Lima/Valor >50k | CA118: 97 | CB118: 2030-10-01 | CC118: 30 | CD118: 2952 | CI118: 400.10 | CJ118: PC - Auto/4x4 con GPS Lima/Valor >50k | CR118: 97 | CS118: 2030-10-01 | CT118: 30 | CU118: 2952 | CZ118: 400.10 | DA118: PC - Auto/4x4 con GPS Lima/Valor >50k
B119: 98 | S119: =IFERROR((I119+J119+K119+L119+M119)*$J$12+('Simulador para calculos'!I119+'Simulador para calculos'!J119+'Simulador para calculos'!K119+'Simulador para calculos'!L119+'Simulador para calculos'!M119)*NOT($J$12),"") ->  | U119: =IFERROR((1+'Simulación Cliente'!$E$22)^(T119/360),"") ->  | AB119: 98 | AS119: 98 | AT119: 2030-11-01 | AU119: 31 | AV119: 2983 | BA119: 400.10 | BB119: PC - Auto/4x4 con GPS Lima/Valor >50k | BJ119: 98 | BK119: 2030-11-01 | BL119: 31 | BM119: 2983 | BR119: 400.10 | BS119: PC - Auto/4x4 con GPS Lima/Valor >50k | CA119: 98 | CB119: 2030-11-01 | CC119: 31 | CD119: 2983 | CI119: 400.10 | CJ119: PC - Auto/4x4 con GPS Lima/Valor >50k | CR119: 98 | CS119: 2030-11-01 | CT119: 31 | CU119: 2983 | CZ119: 400.10 | DA119: PC - Auto/4x4 con GPS Lima/Valor >50k
B120: 99 | S120: =IFERROR((I120+J120+K120+L120+M120)*$J$12+('Simulador para calculos'!I120+'Simulador para calculos'!J120+'Simulador para calculos'!K120+'Simulador para calculos'!L120+'Simulador para calculos'!M120)*NOT($J$12),"") ->  | U120: =IFERROR((1+'Simulación Cliente'!$E$22)^(T120/360),"") ->  | AB120: 99 | AS120: 99 | AT120: 2030-12-01 | AU120: 30 | AV120: 3013 | BA120: 400.10 | BB120: PC - Auto/4x4 con GPS Lima/Valor >50k | BJ120: 99 | BK120: 2030-12-01 | BL120: 30 | BM120: 3013 | BR120: 400.10 | BS120: PC - Auto/4x4 con GPS Lima/Valor >50k | CA120: 99 | CB120: 2030-12-01 | CC120: 30 | CD120: 3013 | CI120: 400.10 | CJ120: PC - Auto/4x4 con GPS Lima/Valor >50k | CR120: 99 | CS120: 2030-12-01 | CT120: 30 | CU120: 3013 | CZ120: 400.10 | DA120: PC - Auto/4x4 con GPS Lima/Valor >50k
B121: 100 | S121: =IFERROR((I121+J121+K121+L121+M121)*$J$12+('Simulador para calculos'!I121+'Simulador para calculos'!J121+'Simulador para calculos'!K121+'Simulador para calculos'!L121+'Simulador para calculos'!M121)*NOT($J$12),"") ->  | U121: =IFERROR((1+'Simulación Cliente'!$E$22)^(T121/360),"") ->  | AB121: 100 | AS121: 100 | AT121: 2031-01-01 | AU121: 31 | AV121: 3044 | BA121: 400.10 | BB121: PC - Auto/4x4 con GPS Lima/Valor >50k | BJ121: 100 | BK121: 2031-01-01 | BL121: 31 | BM121: 3044 | BR121: 400.10 | BS121: PC - Auto/4x4 con GPS Lima/Valor >50k | CA121: 100 | CB121: 2031-01-01 | CC121: 31 | CD121: 3044 | CI121: 400.10 | CJ121: PC - Auto/4x4 con GPS Lima/Valor >50k | CR121: 100 | CS121: 2031-01-01 | CT121: 31 | CU121: 3044 | CZ121: 400.10 | DA121: PC - Auto/4x4 con GPS Lima/Valor >50k
B122: 101 | S122: =IFERROR((I122+J122+K122+L122+M122)*$J$12+('Simulador para calculos'!I122+'Simulador para calculos'!J122+'Simulador para calculos'!K122+'Simulador para calculos'!L122+'Simulador para calculos'!M122)*NOT($J$12),"") ->  | U122: =IFERROR((1+'Simulación Cliente'!$E$22)^(T122/360),"") ->  | AB122: 101 | AS122: 101 | AT122: 2031-02-01 | AU122: 31 | AV122: 3075 | BA122: 400.10 | BB122: PC - Auto/4x4 con GPS Lima/Valor >50k | BJ122: 101 | BK122: 2031-02-01 | BL122: 31 | BM122: 3075 | BR122: 400.10 | BS122: PC - Auto/4x4 con GPS Lima/Valor >50k | CA122: 101 | CB122: 2031-02-01 | CC122: 31 | CD122: 3075 | CI122: 400.10 | CJ122: PC - Auto/4x4 con GPS Lima/Valor >50k | CR122: 101 | CS122: 2031-02-01 | CT122: 31 | CU122: 3075 | CZ122: 400.10 | DA122: PC - Auto/4x4 con GPS Lima/Valor >50k
B123: 102 | S123: =IFERROR((I123+J123+K123+L123+M123)*$J$12+('Simulador para calculos'!I123+'Simulador para calculos'!J123+'Simulador para calculos'!K123+'Simulador para calculos'!L123+'Simulador para calculos'!M123)*NOT($J$12),"") ->  | U123: =IFERROR((1+'Simulación Cliente'!$E$22)^(T123/360),"") ->  | AB123: 102 | AS123: 102 | AT123: 2031-03-01 | AU123: 28 | AV123: 3103 | BA123: 400.10 | BB123: PC - Auto/4x4 con GPS Lima/Valor >50k | BJ123: 102 | BK123: 2031-03-01 | BL123: 28 | BM123: 3103 | BR123: 400.10 | BS123: PC - Auto/4x4 con GPS Lima/Valor >50k | CA123: 102 | CB123: 2031-03-01 | CC123: 28 | CD123: 3103 | CI123: 400.10 | CJ123: PC - Auto/4x4 con GPS Lima/Valor >50k | CR123: 102 | CS123: 2031-03-01 | CT123: 28 | CU123: 3103 | CZ123: 400.10 | DA123: PC - Auto/4x4 con GPS Lima/Valor >50k
B124: 103 | S124: =IFERROR((I124+J124+K124+L124+M124)*$J$12+('Simulador para calculos'!I124+'Simulador para calculos'!J124+'Simulador para calculos'!K124+'Simulador para calculos'!L124+'Simulador para calculos'!M124)*NOT($J$12),"") ->  | U124: =IFERROR((1+'Simulación Cliente'!$E$22)^(T124/360),"") ->  | AB124: 103 | AS124: 103 | AT124: 2031-04-01 | AU124: 31 | AV124: 3134 | BA124: 400.10 | BB124: PC - Auto/4x4 con GPS Lima/Valor >50k | BJ124: 103 | BK124: 2031-04-01 | BL124: 31 | BM124: 3134 | BR124: 400.10 | BS124: PC - Auto/4x4 con GPS Lima/Valor >50k | CA124: 103 | CB124: 2031-04-01 | CC124: 31 | CD124: 3134 | CI124: 400.10 | CJ124: PC - Auto/4x4 con GPS Lima/Valor >50k | CR124: 103 | CS124: 2031-04-01 | CT124: 31 | CU124: 3134 | CZ124: 400.10 | DA124: PC - Auto/4x4 con GPS Lima/Valor >50k
B125: 104 | S125: =IFERROR((I125+J125+K125+L125+M125)*$J$12+('Simulador para calculos'!I125+'Simulador para calculos'!J125+'Simulador para calculos'!K125+'Simulador para calculos'!L125+'Simulador para calculos'!M125)*NOT($J$12),"") ->  | U125: =IFERROR((1+'Simulación Cliente'!$E$22)^(T125/360),"") ->  | AB125: 104 | AS125: 104 | AT125: 2031-05-01 | AU125: 30 | AV125: 3164 | BA125: 400.10 | BB125: PC - Auto/4x4 con GPS Lima/Valor >50k | BJ125: 104 | BK125: 2031-05-01 | BL125: 30 | BM125: 3164 | BR125: 400.10 | BS125: PC - Auto/4x4 con GPS Lima/Valor >50k | CA125: 104 | CB125: 2031-05-01 | CC125: 30 | CD125: 3164 | CI125: 400.10 | CJ125: PC - Auto/4x4 con GPS Lima/Valor >50k | CR125: 104 | CS125: 2031-05-01 | CT125: 30 | CU125: 3164 | CZ125: 400.10 | DA125: PC - Auto/4x4 con GPS Lima/Valor >50k
B126: 105 | S126: =IFERROR((I126+J126+K126+L126+M126)*$J$12+('Simulador para calculos'!I126+'Simulador para calculos'!J126+'Simulador para calculos'!K126+'Simulador para calculos'!L126+'Simulador para calculos'!M126)*NOT($J$12),"") ->  | U126: =IFERROR((1+'Simulación Cliente'!$E$22)^(T126/360),"") ->  | AB126: 105 | AS126: 105 | AT126: 2031-06-01 | AU126: 31 | AV126: 3195 | BA126: 400.10 | BB126: PC - Auto/4x4 con GPS Lima/Valor >50k | BJ126: 105 | BK126: 2031-06-01 | BL126: 31 | BM126: 3195 | BR126: 400.10 | BS126: PC - Auto/4x4 con GPS Lima/Valor >50k | CA126: 105 | CB126: 2031-06-01 | CC126: 31 | CD126: 3195 | CI126: 400.10 | CJ126: PC - Auto/4x4 con GPS Lima/Valor >50k | CR126: 105 | CS126: 2031-06-01 | CT126: 31 | CU126: 3195 | CZ126: 400.10 | DA126: PC - Auto/4x4 con GPS Lima/Valor >50k
B127: 106 | S127: =IFERROR((I127+J127+K127+L127+M127)*$J$12+('Simulador para calculos'!I127+'Simulador para calculos'!J127+'Simulador para calculos'!K127+'Simulador para calculos'!L127+'Simulador para calculos'!M127)*NOT($J$12),"") ->  | U127: =IFERROR((1+'Simulación Cliente'!$E$22)^(T127/360),"") ->  | AB127: 106 | AS127: 106 | AT127: 2031-07-01 | AU127: 30 | AV127: 3225 | BA127: 400.10 | BB127: PC - Auto/4x4 con GPS Lima/Valor >50k | BJ127: 106 | BK127: 2031-07-01 | BL127: 30 | BM127: 3225 | BR127: 400.10 | BS127: PC - Auto/4x4 con GPS Lima/Valor >50k | CA127: 106 | CB127: 2031-07-01 | CC127: 30 | CD127: 3225 | CI127: 400.10 | CJ127: PC - Auto/4x4 con GPS Lima/Valor >50k | CR127: 106 | CS127: 2031-07-01 | CT127: 30 | CU127: 3225 | CZ127: 400.10 | DA127: PC - Auto/4x4 con GPS Lima/Valor >50k
B128: 107 | S128: =IFERROR((I128+J128+K128+L128+M128)*$J$12+('Simulador para calculos'!I128+'Simulador para calculos'!J128+'Simulador para calculos'!K128+'Simulador para calculos'!L128+'Simulador para calculos'!M128)*NOT($J$12),"") ->  | U128: =IFERROR((1+'Simulación Cliente'!$E$22)^(T128/360),"") ->  | AB128: 107 | AS128: 107 | AT128: 2031-08-01 | AU128: 31 | AV128: 3256 | BA128: 400.10 | BB128: PC - Auto/4x4 con GPS Lima/Valor >50k | BJ128: 107 | BK128: 2031-08-01 | BL128: 31 | BM128: 3256 | BR128: 400.10 | BS128: PC - Auto/4x4 con GPS Lima/Valor >50k | CA128: 107 | CB128: 2031-08-01 | CC128: 31 | CD128: 3256 | CI128: 400.10 | CJ128: PC - Auto/4x4 con GPS Lima/Valor >50k | CR128: 107 | CS128: 2031-08-01 | CT128: 31 | CU128: 3256 | CZ128: 400.10 | DA128: PC - Auto/4x4 con GPS Lima/Valor >50k
B129: 108 | S129: =IFERROR((I129+J129+K129+L129+M129)*$J$12+('Simulador para calculos'!I129+'Simulador para calculos'!J129+'Simulador para calculos'!K129+'Simulador para calculos'!L129+'Simulador para calculos'!M129)*NOT($J$12),"") ->  | U129: =IFERROR((1+'Simulación Cliente'!$E$22)^(T129/360),"") ->  | AB129: 108 | AS129: 108 | AT129: 2031-09-01 | AU129: 31 | AV129: 3287 | BA129: 400.10 | BB129: PC - Auto/4x4 con GPS Lima/Valor >50k | BJ129: 108 | BK129: 2031-09-01 | BL129: 31 | BM129: 3287 | BR129: 400.10 | BS129: PC - Auto/4x4 con GPS Lima/Valor >50k | CA129: 108 | CB129: 2031-09-01 | CC129: 31 | CD129: 3287 | CI129: 400.10 | CJ129: PC - Auto/4x4 con GPS Lima/Valor >50k | CR129: 108 | CS129: 2031-09-01 | CT129: 31 | CU129: 3287 | CZ129: 400.10 | DA129: PC - Auto/4x4 con GPS Lima/Valor >50k
B130: 109 | S130: =IFERROR((I130+J130+K130+L130+M130)*$J$12+('Simulador para calculos'!I130+'Simulador para calculos'!J130+'Simulador para calculos'!K130+'Simulador para calculos'!L130+'Simulador para calculos'!M130)*NOT($J$12),"") ->  | U130: =IFERROR((1+'Simulación Cliente'!$E$22)^(T130/360),"") ->  | AB130: 109 | AS130: 109 | AT130: 2031-10-01 | AU130: 30 | AV130: 3317 | BA130: 400.10 | BB130: PC - Auto/4x4 con GPS Lima/Valor >50k | BJ130: 109 | BK130: 2031-10-01 | BL130: 30 | BM130: 3317 | BR130: 400.10 | BS130: PC - Auto/4x4 con GPS Lima/Valor >50k | CA130: 109 | CB130: 2031-10-01 | CC130: 30 | CD130: 3317 | CI130: 400.10 | CJ130: PC - Auto/4x4 con GPS Lima/Valor >50k | CR130: 109 | CS130: 2031-10-01 | CT130: 30 | CU130: 3317 | CZ130: 400.10 | DA130: PC - Auto/4x4 con GPS Lima/Valor >50k
B131: 110 | S131: =IFERROR((I131+J131+K131+L131+M131)*$J$12+('Simulador para calculos'!I131+'Simulador para calculos'!J131+'Simulador para calculos'!K131+'Simulador para calculos'!L131+'Simulador para calculos'!M131)*NOT($J$12),"") ->  | U131: =IFERROR((1+'Simulación Cliente'!$E$22)^(T131/360),"") ->  | AB131: 110 | AS131: 110 | AT131: 2031-11-01 | AU131: 31 | AV131: 3348 | BA131: 400.10 | BB131: PC - Auto/4x4 con GPS Lima/Valor >50k | BJ131: 110 | BK131: 2031-11-01 | BL131: 31 | BM131: 3348 | BR131: 400.10 | BS131: PC - Auto/4x4 con GPS Lima/Valor >50k | CA131: 110 | CB131: 2031-11-01 | CC131: 31 | CD131: 3348 | CI131: 400.10 | CJ131: PC - Auto/4x4 con GPS Lima/Valor >50k | CR131: 110 | CS131: 2031-11-01 | CT131: 31 | CU131: 3348 | CZ131: 400.10 | DA131: PC - Auto/4x4 con GPS Lima/Valor >50k
B132: 111 | S132: =IFERROR((I132+J132+K132+L132+M132)*$J$12+('Simulador para calculos'!I132+'Simulador para calculos'!J132+'Simulador para calculos'!K132+'Simulador para calculos'!L132+'Simulador para calculos'!M132)*NOT($J$12),"") ->  | U132: =IFERROR((1+'Simulación Cliente'!$E$22)^(T132/360),"") ->  | AB132: 111 | AS132: 111 | AT132: 2031-12-01 | AU132: 30 | AV132: 3378 | BA132: 400.10 | BB132: PC - Auto/4x4 con GPS Lima/Valor >50k | BJ132: 111 | BK132: 2031-12-01 | BL132: 30 | BM132: 3378 | BR132: 400.10 | BS132: PC - Auto/4x4 con GPS Lima/Valor >50k | CA132: 111 | CB132: 2031-12-01 | CC132: 30 | CD132: 3378 | CI132: 400.10 | CJ132: PC - Auto/4x4 con GPS Lima/Valor >50k | CR132: 111 | CS132: 2031-12-01 | CT132: 30 | CU132: 3378 | CZ132: 400.10 | DA132: PC - Auto/4x4 con GPS Lima/Valor >50k
B133: 112 | S133: =IFERROR((I133+J133+K133+L133+M133)*$J$12+('Simulador para calculos'!I133+'Simulador para calculos'!J133+'Simulador para calculos'!K133+'Simulador para calculos'!L133+'Simulador para calculos'!M133)*NOT($J$12),"") ->  | U133: =IFERROR((1+'Simulación Cliente'!$E$22)^(T133/360),"") ->  | AB133: 112 | AS133: 112 | AT133: 2032-01-01 | AU133: 31 | AV133: 3409 | BA133: 400.10 | BB133: PC - Auto/4x4 con GPS Lima/Valor >50k | BJ133: 112 | BK133: 2032-01-01 | BL133: 31 | BM133: 3409 | BR133: 400.10 | BS133: PC - Auto/4x4 con GPS Lima/Valor >50k | CA133: 112 | CB133: 2032-01-01 | CC133: 31 | CD133: 3409 | CI133: 400.10 | CJ133: PC - Auto/4x4 con GPS Lima/Valor >50k | CR133: 112 | CS133: 2032-01-01 | CT133: 31 | CU133: 3409 | CZ133: 400.10 | DA133: PC - Auto/4x4 con GPS Lima/Valor >50k
B134: 113 | S134: =IFERROR((I134+J134+K134+L134+M134)*$J$12+('Simulador para calculos'!I134+'Simulador para calculos'!J134+'Simulador para calculos'!K134+'Simulador para calculos'!L134+'Simulador para calculos'!M134)*NOT($J$12),"") ->  | U134: =IFERROR((1+'Simulación Cliente'!$E$22)^(T134/360),"") ->  | AB134: 113 | AS134: 113 | AT134: 2032-02-01 | AU134: 31 | AV134: 3440 | BA134: 400.10 | BB134: PC - Auto/4x4 con GPS Lima/Valor >50k | BJ134: 113 | BK134: 2032-02-01 | BL134: 31 | BM134: 3440 | BR134: 400.10 | BS134: PC - Auto/4x4 con GPS Lima/Valor >50k | CA134: 113 | CB134: 2032-02-01 | CC134: 31 | CD134: 3440 | CI134: 400.10 | CJ134: PC - Auto/4x4 con GPS Lima/Valor >50k | CR134: 113 | CS134: 2032-02-01 | CT134: 31 | CU134: 3440 | CZ134: 400.10 | DA134: PC - Auto/4x4 con GPS Lima/Valor >50k
B135: 114 | S135: =IFERROR((I135+J135+K135+L135+M135)*$J$12+('Simulador para calculos'!I135+'Simulador para calculos'!J135+'Simulador para calculos'!K135+'Simulador para calculos'!L135+'Simulador para calculos'!M135)*NOT($J$12),"") ->  | U135: =IFERROR((1+'Simulación Cliente'!$E$22)^(T135/360),"") ->  | AB135: 114 | AS135: 114 | AT135: 2032-03-01 | AU135: 29 | AV135: 3469 | BA135: 400.10 | BB135: PC - Auto/4x4 con GPS Lima/Valor >50k | BJ135: 114 | BK135: 2032-03-01 | BL135: 29 | BM135: 3469 | BR135: 400.10 | BS135: PC - Auto/4x4 con GPS Lima/Valor >50k | CA135: 114 | CB135: 2032-03-01 | CC135: 29 | CD135: 3469 | CI135: 400.10 | CJ135: PC - Auto/4x4 con GPS Lima/Valor >50k | CR135: 114 | CS135: 2032-03-01 | CT135: 29 | CU135: 3469 | CZ135: 400.10 | DA135: PC - Auto/4x4 con GPS Lima/Valor >50k
B136: 115 | S136: =IFERROR((I136+J136+K136+L136+M136)*$J$12+('Simulador para calculos'!I136+'Simulador para calculos'!J136+'Simulador para calculos'!K136+'Simulador para calculos'!L136+'Simulador para calculos'!M136)*NOT($J$12),"") ->  | U136: =IFERROR((1+'Simulación Cliente'!$E$22)^(T136/360),"") ->  | AB136: 115 | AS136: 115 | AT136: 2032-04-01 | AU136: 31 | AV136: 3500 | BA136: 400.10 | BB136: PC - Auto/4x4 con GPS Lima/Valor >50k | BJ136: 115 | BK136: 2032-04-01 | BL136: 31 | BM136: 3500 | BR136: 400.10 | BS136: PC - Auto/4x4 con GPS Lima/Valor >50k | CA136: 115 | CB136: 2032-04-01 | CC136: 31 | CD136: 3500 | CI136: 400.10 | CJ136: PC - Auto/4x4 con GPS Lima/Valor >50k | CR136: 115 | CS136: 2032-04-01 | CT136: 31 | CU136: 3500 | CZ136: 400.10 | DA136: PC - Auto/4x4 con GPS Lima/Valor >50k
B137: 116 | S137: =IFERROR((I137+J137+K137+L137+M137)*$J$12+('Simulador para calculos'!I137+'Simulador para calculos'!J137+'Simulador para calculos'!K137+'Simulador para calculos'!L137+'Simulador para calculos'!M137)*NOT($J$12),"") ->  | U137: =IFERROR((1+'Simulación Cliente'!$E$22)^(T137/360),"") ->  | AB137: 116 | AS137: 116 | AT137: 2032-05-01 | AU137: 30 | AV137: 3530 | BA137: 400.10 | BB137: PC - Auto/4x4 con GPS Lima/Valor >50k | BJ137: 116 | BK137: 2032-05-01 | BL137: 30 | BM137: 3530 | BR137: 400.10 | BS137: PC - Auto/4x4 con GPS Lima/Valor >50k | CA137: 116 | CB137: 2032-05-01 | CC137: 30 | CD137: 3530 | CI137: 400.10 | CJ137: PC - Auto/4x4 con GPS Lima/Valor >50k | CR137: 116 | CS137: 2032-05-01 | CT137: 30 | CU137: 3530 | CZ137: 400.10 | DA137: PC - Auto/4x4 con GPS Lima/Valor >50k
B138: 117 | S138: =IFERROR((I138+J138+K138+L138+M138)*$J$12+('Simulador para calculos'!I138+'Simulador para calculos'!J138+'Simulador para calculos'!K138+'Simulador para calculos'!L138+'Simulador para calculos'!M138)*NOT($J$12),"") ->  | U138: =IFERROR((1+'Simulación Cliente'!$E$22)^(T138/360),"") ->  | AB138: 117 | AS138: 117 | AT138: 2032-06-01 | AU138: 31 | AV138: 3561 | BA138: 400.10 | BB138: PC - Auto/4x4 con GPS Lima/Valor >50k | BJ138: 117 | BK138: 2032-06-01 | BL138: 31 | BM138: 3561 | BR138: 400.10 | BS138: PC - Auto/4x4 con GPS Lima/Valor >50k | CA138: 117 | CB138: 2032-06-01 | CC138: 31 | CD138: 3561 | CI138: 400.10 | CJ138: PC - Auto/4x4 con GPS Lima/Valor >50k | CR138: 117 | CS138: 2032-06-01 | CT138: 31 | CU138: 3561 | CZ138: 400.10 | DA138: PC - Auto/4x4 con GPS Lima/Valor >50k
B139: 118 | S139: =IFERROR((I139+J139+K139+L139+M139)*$J$12+('Simulador para calculos'!I139+'Simulador para calculos'!J139+'Simulador para calculos'!K139+'Simulador para calculos'!L139+'Simulador para calculos'!M139)*NOT($J$12),"") ->  | U139: =IFERROR((1+'Simulación Cliente'!$E$22)^(T139/360),"") ->  | AB139: 118 | AS139: 118 | AT139: 2032-07-01 | AU139: 30 | AV139: 3591 | BA139: 400.10 | BB139: PC - Auto/4x4 con GPS Lima/Valor >50k | BJ139: 118 | BK139: 2032-07-01 | BL139: 30 | BM139: 3591 | BR139: 400.10 | BS139: PC - Auto/4x4 con GPS Lima/Valor >50k | CA139: 118 | CB139: 2032-07-01 | CC139: 30 | CD139: 3591 | CI139: 400.10 | CJ139: PC - Auto/4x4 con GPS Lima/Valor >50k | CR139: 118 | CS139: 2032-07-01 | CT139: 30 | CU139: 3591 | CZ139: 400.10 | DA139: PC - Auto/4x4 con GPS Lima/Valor >50k
B140: 119 | S140: =IFERROR((I140+J140+K140+L140+M140)*$J$12+('Simulador para calculos'!I140+'Simulador para calculos'!J140+'Simulador para calculos'!K140+'Simulador para calculos'!L140+'Simulador para calculos'!M140)*NOT($J$12),"") ->  | U140: =IFERROR((1+'Simulación Cliente'!$E$22)^(T140/360),"") ->  | AB140: 119 | AS140: 119 | AT140: 2032-08-01 | AU140: 31 | AV140: 3622 | BA140: 400.10 | BB140: PC - Auto/4x4 con GPS Lima/Valor >50k | BJ140: 119 | BK140: 2032-08-01 | BL140: 31 | BM140: 3622 | BR140: 400.10 | BS140: PC - Auto/4x4 con GPS Lima/Valor >50k | CA140: 119 | CB140: 2032-08-01 | CC140: 31 | CD140: 3622 | CI140: 400.10 | CJ140: PC - Auto/4x4 con GPS Lima/Valor >50k | CR140: 119 | CS140: 2032-08-01 | CT140: 31 | CU140: 3622 | CZ140: 400.10 | DA140: PC - Auto/4x4 con GPS Lima/Valor >50k
B141: 120 | S141: =IFERROR((I141+J141+K141+L141+M141)*$J$12+('Simulador para calculos'!I141+'Simulador para calculos'!J141+'Simulador para calculos'!K141+'Simulador para calculos'!L141+'Simulador para calculos'!M141)*NOT($J$12),"") ->  | U141: =IFERROR((1+'Simulación Cliente'!$E$22)^(T141/360),"") ->  | AB141: 120 | AS141: 120 | AT141: 2032-09-01 | AU141: 31 | AV141: 3653 | BA141: 400.10 | BB141: PC - Auto/4x4 con GPS Lima/Valor >50k | BJ141: 120 | BK141: 2032-09-01 | BL141: 31 | BM141: 3653 | BR141: 400.10 | BS141: PC - Auto/4x4 con GPS Lima/Valor >50k | CA141: 120 | CB141: 2032-09-01 | CC141: 31 | CD141: 3653 | CI141: 400.10 | CJ141: PC - Auto/4x4 con GPS Lima/Valor >50k | CR141: 120 | CS141: 2032-09-01 | CT141: 31 | CU141: 3653 | CZ141: 400.10 | DA141: PC - Auto/4x4 con GPS Lima/Valor >50k
B142: 121 | S142: =IFERROR((I142+J142+K142+L142+M142)*$J$12+('Simulador para calculos'!I142+'Simulador para calculos'!J142+'Simulador para calculos'!K142+'Simulador para calculos'!L142+'Simulador para calculos'!M142)*NOT($J$12),"") ->  | U142: =IFERROR((1+'Simulación Cliente'!$E$22)^(T142/360),"") ->  | AB142: 121 | AS142: 121 | AT142: 2032-10-01 | AU142: 30 | AV142: 3683 | BA142: 400.10 | BB142: PC - Auto/4x4 con GPS Lima/Valor >50k | BJ142: 121 | BK142: 2032-10-01 | BL142: 30 | BM142: 3683 | BR142: 400.10 | BS142: PC - Auto/4x4 con GPS Lima/Valor >50k | CA142: 121 | CB142: 2032-10-01 | CC142: 30 | CD142: 3683 | CI142: 400.10 | CJ142: PC - Auto/4x4 con GPS Lima/Valor >50k | CR142: 121 | CS142: 2032-10-01 | CT142: 30 | CU142: 3683 | CZ142: 400.10 | DA142: PC - Auto/4x4 con GPS Lima/Valor >50k
B143: 122 | S143: =IFERROR((I143+J143+K143+L143+M143)*$J$12+('Simulador para calculos'!I143+'Simulador para calculos'!J143+'Simulador para calculos'!K143+'Simulador para calculos'!L143+'Simulador para calculos'!M143)*NOT($J$12),"") ->  | U143: =IFERROR((1+'Simulación Cliente'!$E$22)^(T143/360),"") ->  | AB143: 122 | AS143: 122 | AT143: 2032-11-01 | AU143: 31 | AV143: 3714 | BA143: 400.10 | BB143: PC - Auto/4x4 con GPS Lima/Valor >50k | BJ143: 122 | BK143: 2032-11-01 | BL143: 31 | BM143: 3714 | BR143: 400.10 | BS143: PC - Auto/4x4 con GPS Lima/Valor >50k | CA143: 122 | CB143: 2032-11-01 | CC143: 31 | CD143: 3714 | CI143: 400.10 | CJ143: PC - Auto/4x4 con GPS Lima/Valor >50k | CR143: 122 | CS143: 2032-11-01 | CT143: 31 | CU143: 3714 | CZ143: 400.10 | DA143: PC - Auto/4x4 con GPS Lima/Valor >50k
B144: 123 | S144: =IFERROR((I144+J144+K144+L144+M144)*$J$12+('Simulador para calculos'!I144+'Simulador para calculos'!J144+'Simulador para calculos'!K144+'Simulador para calculos'!L144+'Simulador para calculos'!M144)*NOT($J$12),"") ->  | U144: =IFERROR((1+'Simulación Cliente'!$E$22)^(T144/360),"") ->  | AB144: 123 | AS144: 123 | AT144: 2032-12-01 | AU144: 30 | AV144: 3744 | BA144: 400.10 | BB144: PC - Auto/4x4 con GPS Lima/Valor >50k | BJ144: 123 | BK144: 2032-12-01 | BL144: 30 | BM144: 3744 | BR144: 400.10 | BS144: PC - Auto/4x4 con GPS Lima/Valor >50k | CA144: 123 | CB144: 2032-12-01 | CC144: 30 | CD144: 3744 | CI144: 400.10 | CJ144: PC - Auto/4x4 con GPS Lima/Valor >50k | CR144: 123 | CS144: 2032-12-01 | CT144: 30 | CU144: 3744 | CZ144: 400.10 | DA144: PC - Auto/4x4 con GPS Lima/Valor >50k
B145: 124 | S145: =IFERROR((I145+J145+K145+L145+M145)*$J$12+('Simulador para calculos'!I145+'Simulador para calculos'!J145+'Simulador para calculos'!K145+'Simulador para calculos'!L145+'Simulador para calculos'!M145)*NOT($J$12),"") ->  | U145: =IFERROR((1+'Simulación Cliente'!$E$22)^(T145/360),"") ->  | AB145: 124 | AS145: 124 | AT145: 2033-01-01 | AU145: 31 | AV145: 3775 | BA145: 400.10 | BB145: PC - Auto/4x4 con GPS Lima/Valor >50k | BJ145: 124 | BK145: 2033-01-01 | BL145: 31 | BM145: 3775 | BR145: 400.10 | BS145: PC - Auto/4x4 con GPS Lima/Valor >50k | CA145: 124 | CB145: 2033-01-01 | CC145: 31 | CD145: 3775 | CI145: 400.10 | CJ145: PC - Auto/4x4 con GPS Lima/Valor >50k | CR145: 124 | CS145: 2033-01-01 | CT145: 31 | CU145: 3775 | CZ145: 400.10 | DA145: PC - Auto/4x4 con GPS Lima/Valor >50k
B146: 125 | S146: =IFERROR((I146+J146+K146+L146+M146)*$J$12+('Simulador para calculos'!I146+'Simulador para calculos'!J146+'Simulador para calculos'!K146+'Simulador para calculos'!L146+'Simulador para calculos'!M146)*NOT($J$12),"") ->  | U146: =IFERROR((1+'Simulación Cliente'!$E$22)^(T146/360),"") ->  | AB146: 125 | AS146: 125 | AT146: 2033-02-01 | AU146: 31 | AV146: 3806 | BA146: 400.10 | BB146: PC - Auto/4x4 con GPS Lima/Valor >50k | BJ146: 125 | BK146: 2033-02-01 | BL146: 31 | BM146: 3806 | BR146: 400.10 | BS146: PC - Auto/4x4 con GPS Lima/Valor >50k | CA146: 125 | CB146: 2033-02-01 | CC146: 31 | CD146: 3806 | CI146: 400.10 | CJ146: PC - Auto/4x4 con GPS Lima/Valor >50k | CR146: 125 | CS146: 2033-02-01 | CT146: 31 | CU146: 3806 | CZ146: 400.10 | DA146: PC - Auto/4x4 con GPS Lima/Valor >50k
B147: 126 | S147: =IFERROR((I147+J147+K147+L147+M147)*$J$12+('Simulador para calculos'!I147+'Simulador para calculos'!J147+'Simulador para calculos'!K147+'Simulador para calculos'!L147+'Simulador para calculos'!M147)*NOT($J$12),"") ->  | U147: =IFERROR((1+'Simulación Cliente'!$E$22)^(T147/360),"") ->  | AB147: 126 | AS147: 126 | AT147: 2033-03-01 | AU147: 28 | AV147: 3834 | BA147: 400.10 | BB147: PC - Auto/4x4 con GPS Lima/Valor >50k | BJ147: 126 | BK147: 2033-03-01 | BL147: 28 | BM147: 3834 | BR147: 400.10 | BS147: PC - Auto/4x4 con GPS Lima/Valor >50k | CA147: 126 | CB147: 2033-03-01 | CC147: 28 | CD147: 3834 | CI147: 400.10 | CJ147: PC - Auto/4x4 con GPS Lima/Valor >50k | CR147: 126 | CS147: 2033-03-01 | CT147: 28 | CU147: 3834 | CZ147: 400.10 | DA147: PC - Auto/4x4 con GPS Lima/Valor >50k
B148: 127 | S148: =IFERROR((I148+J148+K148+L148+M148)*$J$12+('Simulador para calculos'!I148+'Simulador para calculos'!J148+'Simulador para calculos'!K148+'Simulador para calculos'!L148+'Simulador para calculos'!M148)*NOT($J$12),"") ->  | U148: =IFERROR((1+'Simulación Cliente'!$E$22)^(T148/360),"") ->  | AB148: 127 | AS148: 127 | AT148: 2033-04-01 | AU148: 31 | AV148: 3865 | BA148: 400.10 | BB148: PC - Auto/4x4 con GPS Lima/Valor >50k | BJ148: 127 | BK148: 2033-04-01 | BL148: 31 | BM148: 3865 | BR148: 400.10 | BS148: PC - Auto/4x4 con GPS Lima/Valor >50k | CA148: 127 | CB148: 2033-04-01 | CC148: 31 | CD148: 3865 | CI148: 400.10 | CJ148: PC - Auto/4x4 con GPS Lima/Valor >50k | CR148: 127 | CS148: 2033-04-01 | CT148: 31 | CU148: 3865 | CZ148: 400.10 | DA148: PC - Auto/4x4 con GPS Lima/Valor >50k
B149: 128 | S149: =IFERROR((I149+J149+K149+L149+M149)*$J$12+('Simulador para calculos'!I149+'Simulador para calculos'!J149+'Simulador para calculos'!K149+'Simulador para calculos'!L149+'Simulador para calculos'!M149)*NOT($J$12),"") ->  | U149: =IFERROR((1+'Simulación Cliente'!$E$22)^(T149/360),"") ->  | AB149: 128 | AS149: 128 | AT149: 2033-05-01 | AU149: 30 | AV149: 3895 | BA149: 400.10 | BB149: PC - Auto/4x4 con GPS Lima/Valor >50k | BJ149: 128 | BK149: 2033-05-01 | BL149: 30 | BM149: 3895 | BR149: 400.10 | BS149: PC - Auto/4x4 con GPS Lima/Valor >50k | CA149: 128 | CB149: 2033-05-01 | CC149: 30 | CD149: 3895 | CI149: 400.10 | CJ149: PC - Auto/4x4 con GPS Lima/Valor >50k | CR149: 128 | CS149: 2033-05-01 | CT149: 30 | CU149: 3895 | CZ149: 400.10 | DA149: PC - Auto/4x4 con GPS Lima/Valor >50k
B150: 129 | M150: =IF(B150>C$6,"",C$15) ->  | S150: =IFERROR((I150+J150+K150+L150+M150)*$J$12+('Simulador para calculos'!I150+'Simulador para calculos'!J150+'Simulador para calculos'!K150+'Simulador para calculos'!L150+'Simulador para calculos'!M150)*NOT($J$12),"") ->  | U150: =IFERROR((1+'Simulación Cliente'!$E$22)^(T150/360),"") ->  | AB150: 129 | AI150: =IF(AB150>AC$6,"",((1+AC$12)^(AD150/30)-1)*AF150) ->  | AJ150: =IF(AB150>AC$6,"",AC$4*AC$14) ->  | AK150: =IF(AB150>AC$6,"",AC$15) ->  | AL150: =IF(AB150>AC$6,"",IF(AB150=AC$6,AF150+AH150+AI150+AJ150+AK150,IF(AND(AC$9=2,MONTH(AC150)=7),2*AC$17,IF(AND(AC$10=2,MONTH(AC150)=12),2*AC$17,AC$17)))) ->  | AM150: =IF(AB150>AC$6,"",AF150-AG150) ->  | AS150: 129 | AT150: 2033-06-01 | AU150: 31 | AV150: 3926 | AZ150: =IF(AS150>AT$6,"",((1+AT$12)^(AU150/30)-1)*AW150) ->  | BA150: =IF(AS150>AT$6,"",AT$4*AT$14) -> 400.10 | BB150: =IF(AS150>AT$6,"",AT$15) -> PC - Auto/4x4 con GPS Lima/Valor >50k | BC150: =IF(AS150>AT$6,"",IF(AS150=AT$6,AW150+AY150+AZ150+BA150+BB150,IF(AND(AT$9=2,MONTH(AT150)=7),2*AT$17,IF(AND(AT$10=2,MONTH(AT150)=12),2*AT$17,AT$17)))) ->  | BD150: =IF(AS150>AT$6,"",AW150-AX150) ->  | BJ150: 129 | BK150: 2033-06-01 | BL150: 31 | BM150: 3926 | BQ150: =IF(BJ150>BK$6,"",((1+BK$12)^(BL150/30)-1)*BN150) ->  | BR150: =IF(BJ150>BK$6,"",BK$4*BK$14) -> 400.10 | BS150: =IF(BJ150>BK$6,"",BK$15) -> PC - Auto/4x4 con GPS Lima/Valor >50k | BT150: =IF(BJ150>BK$6,"",IF(BJ150=BK$6,BN150+BP150+BQ150+BR150+BS150,IF(AND(BK$9=2,MONTH(BK150)=7),2*BK$17,IF(AND(BK$10=2,MONTH(BK150)=12),2*BK$17,BK$17)))) ->  | BU150: =IF(BJ150>BK$6,"",BN150-BO150) ->  | CA150: 129 | CB150: 2033-06-01 | CC150: 31 | CD150: 3926 | CH150: =IF(CA150>CB$6,"",((1+CB$12)^(CC150/30)-1)*CE150) ->  | CI150: =IF(CA150>CB$6,"",CB$4*CB$14) -> 400.10 | CJ150: =IF(CA150>CB$6,"",CB$15) -> PC - Auto/4x4 con GPS Lima/Valor >50k | CK150: =IF(CA150>CB$6,"",IF(CA150=CB$6,CE150+CG150+CH150+CI150+CJ150,IF(AND(CB$9=2,MONTH(CB150)=7),2*CB$17,IF(AND(CB$10=2,MONTH(CB150)=12),2*CB$17,CB$17)))) ->  | CL150: =IF(CA150>CB$6,"",CE150-CF150) ->  | CR150: 129 | CS150: 2033-06-01 | CT150: 31 | CU150: 3926 | CY150: =IF(CR150>CS$6,"",((1+CS$12)^(CT150/30)-1)*CV150) ->  | CZ150: =IF(CR150>CS$6,"",CS$4*CS$14) -> 400.10 | DA150: =IF(CR150>CS$6,"",CS$15) -> PC - Auto/4x4 con GPS Lima/Valor >50k | DB150: =IF(CR150>CS$6,"",IF(CR150=CS$6,CV150+CX150+CY150+CZ150+DA150,IF(AND(CS$9=2,MONTH(CS150)=7),2*CS$17,IF(AND(CS$10=2,MONTH(CS150)=12),2*CS$17,CS$17)))) ->  | DC150: =IF(CR150>CS$6,"",CV150-CW150) -> 
B151: 130 | D151: =IF(B151<=$C$6,WEEKDAY(C151,2),"") ->  | E151: =IF(D151=7,C151+1,C151) ->  | G151: =IFERROR(F151+G150,"") ->  | H151: =IF(B151>C$6,"",O150) ->  | I151: =IF(B151>C$6,"",N151-M151-L151-K151-J151) ->  | K151: =IF(B151>C$6,"",0) ->  | L151: =IF(B151>C$6,"",D$4*C$14) ->  | N151: =IF(B151>C$6,"",IF(B151=C$6,H151+J151+K151+L151+M151,IF(AND(C$9=2,MONTH(C151)=7),2*C$17,IF(AND(C$10=2,MONTH(C151)=12),2*C$17,C$17)))) ->  | O151: =IF(B151>C$6,"",H151-I151) ->  | P151: =IFERROR(IF(AND(MONTH(C151)=7,C$9=2),2/(1+C$11)^(G151/360),IF(AND(MONTH(C151)=12,C$10=2),2/(1+C$11)^(G151/360),1/(1+C$11)^(G151/360))),"") ->  | Q151: =IFERROR(1/(1+C$11)^(G151/360),"") ->  | S151: =IFERROR((I151+J151+K151+L151+M151)*$J$12+('Simulador para calculos'!I151+'Simulador para calculos'!J151+'Simulador para calculos'!K151+'Simulador para calculos'!L151+'Simulador para calculos'!M151)*NOT($J$12),"") ->  | T151: =G151 ->  | U151: =IFERROR((1+'Simulación Cliente'!$E$22)^(T151/360),"") ->  | V151: =IFERROR(ROUND(S151/U151,2),"") ->  | AB151: 130 | AC151: =IF(AB151>AC$6,"",EDATE(AC$22,AB150)) ->  | AE151: =IFERROR(AD151+AE150,"") ->  | AF151: =IF(AB151>AC$6,"",AM150) ->  | AN151: =IFERROR(IF(AND(MONTH(AC151)=7,AC$9=2),2/(1+AC$13)^(AE151/360),IF(AND(MONTH(AC151)=12,AC$10=2),2/(1+AC$13)^(AE151/360),1/(1+AC$13)^(AE151/360))),"") ->  | AO151: =IFERROR(1/(1+AC$13)^(AE151/360),"") ->  | AS151: 130 | AT151: =IF(AS151>AT$6,"",EDATE(AT$22,AS150)) -> 2033-07-01 | AU151: 30 | AV151: =IFERROR(AU151+AV150,"") -> 3956 | AW151: =IF(AS151>AT$6,"",BD150) ->  | BA151: 400.10 | BB151: PC - Auto/4x4 con GPS Lima/Valor >50k | BE151: =IFERROR(IF(AND(MONTH(AT151)=7,AT$9=2),2/(1+AT$13)^(AV151/360),IF(AND(MONTH(AT151)=12,AT$10=2),2/(1+AT$13)^(AV151/360),1/(1+AT$13)^(AV151/360))),"") ->  | BF151: =IFERROR(1/(1+AT$13)^(AV151/360),"") ->  | BJ151: 130 | BK151: =IF(BJ151>BK$6,"",EDATE(BK$22,BJ150)) -> 2033-07-01 | BL151: 30 | BM151: =IFERROR(BL151+BM150,"") -> 3956 | BN151: =IF(BJ151>BK$6,"",BU150) ->  | BR151: 400.10 | BS151: PC - Auto/4x4 con GPS Lima/Valor >50k | BV151: =IFERROR(IF(AND(MONTH(BK151)=7,BK$9=2),2/(1+BK$13)^(BM151/360),IF(AND(MONTH(BK151)=12,BK$10=2),2/(1+BK$13)^(BM151/360),1/(1+BK$13)^(BM151/360))),"") ->  | BW151: =IFERROR(1/(1+BK$13)^(BM151/360),"") ->  | CA151: 130 | CB151: =IF(CA151>CB$6,"",EDATE(CB$22,CA150)) -> 2033-07-01 | CC151: 30 | CD151: =IFERROR(CC151+CD150,"") -> 3956 | CE151: =IF(CA151>CB$6,"",CL150) ->  | CI151: 400.10 | CJ151: PC - Auto/4x4 con GPS Lima/Valor >50k | CM151: =IFERROR(IF(AND(MONTH(CB151)=7,CB$9=2),2/(1+CB$13)^(CD151/360),IF(AND(MONTH(CB151)=12,CB$10=2),2/(1+CB$13)^(CD151/360),1/(1+CB$13)^(CD151/360))),"") ->  | CN151: =IFERROR(1/(1+CB$13)^(CD151/360),"") ->  | CR151: 130 | CS151: =IF(CR151>CS$6,"",EDATE(CS$22,CR150)) -> 2033-07-01 | CT151: 30 | CU151: =IFERROR(CT151+CU150,"") -> 3956 | CV151: =IF(CR151>CS$6,"",DC150) ->  | CZ151: 400.10 | DA151: PC - Auto/4x4 con GPS Lima/Valor >50k | DD151: =IFERROR(IF(AND(MONTH(CS151)=7,CS$9=2),2/(1+CS$13)^(CU151/360),IF(AND(MONTH(CS151)=12,CS$10=2),2/(1+CS$13)^(CU151/360),1/(1+CS$13)^(CU151/360))),"") ->  | DE151: =IFERROR(1/(1+CS$13)^(CU151/360),"") -> 
B152: 131 | C152: =IF(B152>C$6,"",EDATE(C$22,B151)) ->  | F152: =IF(B152>C$6,"",E152-E151) ->  | J152: =IF(B152>C$6,"",((1+C$11)^(F152/360)-1)*H152) ->  | S152: =IFERROR((I152+J152+K152+L152+M152)*$J$12+('Simulador para calculos'!I152+'Simulador para calculos'!J152+'Simulador para calculos'!K152+'Simulador para calculos'!L152+'Simulador para calculos'!M152)*NOT($J$12),"") ->  | U152: =IFERROR((1+'Simulación Cliente'!$E$22)^(T152/360),"") ->  | AB152: 131 | AH152: =IF(AB152>AC$6,"",((1+AC$11)^(AD152/360)-1)*AF152) ->  | AS152: 131 | AT152: 2033-08-01 | AU152: 31 | AV152: 3987 | AY152: =IF(AS152>AT$6,"",((1+AT$11)^(AU152/360)-1)*AW152) ->  | BA152: 400.10 | BB152: PC - Auto/4x4 con GPS Lima/Valor >50k | BJ152: 131 | BK152: 2033-08-01 | BL152: 31 | BM152: 3987 | BP152: =IF(BJ152>BK$6,"",((1+BK$11)^(BL152/360)-1)*BN152) ->  | BR152: 400.10 | BS152: PC - Auto/4x4 con GPS Lima/Valor >50k | CA152: 131 | CB152: 2033-08-01 | CC152: 31 | CD152: 3987 | CG152: =IF(CA152>CB$6,"",((1+CB$11)^(CC152/360)-1)*CE152) ->  | CI152: 400.10 | CJ152: PC - Auto/4x4 con GPS Lima/Valor >50k | CR152: 131 | CS152: 2033-08-01 | CT152: 31 | CU152: 3987 | CX152: =IF(CR152>CS$6,"",((1+CS$11)^(CT152/360)-1)*CV152) ->  | CZ152: 400.10 | DA152: PC - Auto/4x4 con GPS Lima/Valor >50k
B153: 132 | S153: =IFERROR((I153+J153+K153+L153+M153)*$J$12+('Simulador para calculos'!I153+'Simulador para calculos'!J153+'Simulador para calculos'!K153+'Simulador para calculos'!L153+'Simulador para calculos'!M153)*NOT($J$12),"") ->  | U153: =IFERROR((1+'Simulación Cliente'!$E$22)^(T153/360),"") ->  | AB153: 132 | AD153: =IF(AB153>AC$6,"",AC153-AC152) ->  | AG153: =IF(AB153>AC$6,"",AL153-AK153-AJ153-AI153-AH153) ->  | AS153: 132 | AT153: 2033-09-01 | AU153: =IF(AS153>AT$6,"",AT153-AT152) -> 31 | AV153: 4018 | AX153: =IF(AS153>AT$6,"",BC153-BB153-BA153-AZ153-AY153) ->  | BA153: 400.10 | BB153: PC - Auto/4x4 con GPS Lima/Valor >50k | BJ153: 132 | BK153: 2033-09-01 | BL153: =IF(BJ153>BK$6,"",BK153-BK152) -> 31 | BM153: 4018 | BO153: =IF(BJ153>BK$6,"",BT153-BS153-BR153-BQ153-BP153) ->  | BR153: 400.10 | BS153: PC - Auto/4x4 con GPS Lima/Valor >50k | CA153: 132 | CB153: 2033-09-01 | CC153: =IF(CA153>CB$6,"",CB153-CB152) -> 31 | CD153: 4018 | CF153: =IF(CA153>CB$6,"",CK153-CJ153-CI153-CH153-CG153) ->  | CI153: 400.10 | CJ153: PC - Auto/4x4 con GPS Lima/Valor >50k | CR153: 132 | CS153: 2033-09-01 | CT153: =IF(CR153>CS$6,"",CS153-CS152) -> 31 | CU153: 4018 | CW153: =IF(CR153>CS$6,"",DB153-DA153-CZ153-CY153-CX153) ->  | CZ153: 400.10 | DA153: PC - Auto/4x4 con GPS Lima/Valor >50k
B154: 133 | S154: =IFERROR((I154+J154+K154+L154+M154)*$J$12+('Simulador para calculos'!I154+'Simulador para calculos'!J154+'Simulador para calculos'!K154+'Simulador para calculos'!L154+'Simulador para calculos'!M154)*NOT($J$12),"") ->  | U154: =IFERROR((1+'Simulación Cliente'!$E$22)^(T154/360),"") ->  | AB154: 133 | AS154: 133 | AT154: 2033-10-01 | AU154: 30 | AV154: 4048 | BA154: 400.10 | BB154: PC - Auto/4x4 con GPS Lima/Valor >50k | BJ154: 133 | BK154: 2033-10-01 | BL154: 30 | BM154: 4048 | BR154: 400.10 | BS154: PC - Auto/4x4 con GPS Lima/Valor >50k | CA154: 133 | CB154: 2033-10-01 | CC154: 30 | CD154: 4048 | CI154: 400.10 | CJ154: PC - Auto/4x4 con GPS Lima/Valor >50k | CR154: 133 | CS154: 2033-10-01 | CT154: 30 | CU154: 4048 | CZ154: 400.10 | DA154: PC - Auto/4x4 con GPS Lima/Valor >50k
B155: 134 | S155: =IFERROR((I155+J155+K155+L155+M155)*$J$12+('Simulador para calculos'!I155+'Simulador para calculos'!J155+'Simulador para calculos'!K155+'Simulador para calculos'!L155+'Simulador para calculos'!M155)*NOT($J$12),"") ->  | U155: =IFERROR((1+'Simulación Cliente'!$E$22)^(T155/360),"") ->  | AB155: 134 | AS155: 134 | AT155: 2033-11-01 | AU155: 31 | AV155: 4079 | BA155: 400.10 | BB155: PC - Auto/4x4 con GPS Lima/Valor >50k | BJ155: 134 | BK155: 2033-11-01 | BL155: 31 | BM155: 4079 | BR155: 400.10 | BS155: PC - Auto/4x4 con GPS Lima/Valor >50k | CA155: 134 | CB155: 2033-11-01 | CC155: 31 | CD155: 4079 | CI155: 400.10 | CJ155: PC - Auto/4x4 con GPS Lima/Valor >50k | CR155: 134 | CS155: 2033-11-01 | CT155: 31 | CU155: 4079 | CZ155: 400.10 | DA155: PC - Auto/4x4 con GPS Lima/Valor >50k
B156: 135 | S156: =IFERROR((I156+J156+K156+L156+M156)*$J$12+('Simulador para calculos'!I156+'Simulador para calculos'!J156+'Simulador para calculos'!K156+'Simulador para calculos'!L156+'Simulador para calculos'!M156)*NOT($J$12),"") ->  | U156: =IFERROR((1+'Simulación Cliente'!$E$22)^(T156/360),"") ->  | AB156: 135 | AS156: 135 | AT156: 2033-12-01 | AU156: 30 | AV156: 4109 | BA156: 400.10 | BB156: PC - Auto/4x4 con GPS Lima/Valor >50k | BJ156: 135 | BK156: 2033-12-01 | BL156: 30 | BM156: 4109 | BR156: 400.10 | BS156: PC - Auto/4x4 con GPS Lima/Valor >50k | CA156: 135 | CB156: 2033-12-01 | CC156: 30 | CD156: 4109 | CI156: 400.10 | CJ156: PC - Auto/4x4 con GPS Lima/Valor >50k | CR156: 135 | CS156: 2033-12-01 | CT156: 30 | CU156: 4109 | CZ156: 400.10 | DA156: PC - Auto/4x4 con GPS Lima/Valor >50k
B157: 136 | S157: =IFERROR((I157+J157+K157+L157+M157)*$J$12+('Simulador para calculos'!I157+'Simulador para calculos'!J157+'Simulador para calculos'!K157+'Simulador para calculos'!L157+'Simulador para calculos'!M157)*NOT($J$12),"") ->  | U157: =IFERROR((1+'Simulación Cliente'!$E$22)^(T157/360),"") ->  | AB157: 136 | AS157: 136 | AT157: 2034-01-01 | AU157: 31 | AV157: 4140 | BA157: 400.10 | BB157: PC - Auto/4x4 con GPS Lima/Valor >50k | BJ157: 136 | BK157: 2034-01-01 | BL157: 31 | BM157: 4140 | BR157: 400.10 | BS157: PC - Auto/4x4 con GPS Lima/Valor >50k | CA157: 136 | CB157: 2034-01-01 | CC157: 31 | CD157: 4140 | CI157: 400.10 | CJ157: PC - Auto/4x4 con GPS Lima/Valor >50k | CR157: 136 | CS157: 2034-01-01 | CT157: 31 | CU157: 4140 | CZ157: 400.10 | DA157: PC - Auto/4x4 con GPS Lima/Valor >50k
B158: 137 | S158: =IFERROR((I158+J158+K158+L158+M158)*$J$12+('Simulador para calculos'!I158+'Simulador para calculos'!J158+'Simulador para calculos'!K158+'Simulador para calculos'!L158+'Simulador para calculos'!M158)*NOT($J$12),"") ->  | U158: =IFERROR((1+'Simulación Cliente'!$E$22)^(T158/360),"") ->  | AB158: 137 | AS158: 137 | AT158: 2034-02-01 | AU158: 31 | AV158: 4171 | BA158: 400.10 | BB158: PC - Auto/4x4 con GPS Lima/Valor >50k | BJ158: 137 | BK158: 2034-02-01 | BL158: 31 | BM158: 4171 | BR158: 400.10 | BS158: PC - Auto/4x4 con GPS Lima/Valor >50k | CA158: 137 | CB158: 2034-02-01 | CC158: 31 | CD158: 4171 | CI158: 400.10 | CJ158: PC - Auto/4x4 con GPS Lima/Valor >50k | CR158: 137 | CS158: 2034-02-01 | CT158: 31 | CU158: 4171 | CZ158: 400.10 | DA158: PC - Auto/4x4 con GPS Lima/Valor >50k
B159: 138 | S159: =IFERROR((I159+J159+K159+L159+M159)*$J$12+('Simulador para calculos'!I159+'Simulador para calculos'!J159+'Simulador para calculos'!K159+'Simulador para calculos'!L159+'Simulador para calculos'!M159)*NOT($J$12),"") ->  | U159: =IFERROR((1+'Simulación Cliente'!$E$22)^(T159/360),"") ->  | AB159: 138 | AS159: 138 | AT159: 2034-03-01 | AU159: 28 | AV159: 4199 | BA159: 400.10 | BB159: PC - Auto/4x4 con GPS Lima/Valor >50k | BJ159: 138 | BK159: 2034-03-01 | BL159: 28 | BM159: 4199 | BR159: 400.10 | BS159: PC - Auto/4x4 con GPS Lima/Valor >50k | CA159: 138 | CB159: 2034-03-01 | CC159: 28 | CD159: 4199 | CI159: 400.10 | CJ159: PC - Auto/4x4 con GPS Lima/Valor >50k | CR159: 138 | CS159: 2034-03-01 | CT159: 28 | CU159: 4199 | CZ159: 400.10 | DA159: PC - Auto/4x4 con GPS Lima/Valor >50k
B160: 139 | S160: =IFERROR((I160+J160+K160+L160+M160)*$J$12+('Simulador para calculos'!I160+'Simulador para calculos'!J160+'Simulador para calculos'!K160+'Simulador para calculos'!L160+'Simulador para calculos'!M160)*NOT($J$12),"") ->  | U160: =IFERROR((1+'Simulación Cliente'!$E$22)^(T160/360),"") ->  | AB160: 139 | AS160: 139 | AT160: 2034-04-01 | AU160: 31 | AV160: 4230 | BA160: 400.10 | BB160: PC - Auto/4x4 con GPS Lima/Valor >50k | BJ160: 139 | BK160: 2034-04-01 | BL160: 31 | BM160: 4230 | BR160: 400.10 | BS160: PC - Auto/4x4 con GPS Lima/Valor >50k | CA160: 139 | CB160: 2034-04-01 | CC160: 31 | CD160: 4230 | CI160: 400.10 | CJ160: PC - Auto/4x4 con GPS Lima/Valor >50k | CR160: 139 | CS160: 2034-04-01 | CT160: 31 | CU160: 4230 | CZ160: 400.10 | DA160: PC - Auto/4x4 con GPS Lima/Valor >50k
B161: 140 | S161: =IFERROR((I161+J161+K161+L161+M161)*$J$12+('Simulador para calculos'!I161+'Simulador para calculos'!J161+'Simulador para calculos'!K161+'Simulador para calculos'!L161+'Simulador para calculos'!M161)*NOT($J$12),"") ->  | U161: =IFERROR((1+'Simulación Cliente'!$E$22)^(T161/360),"") ->  | AB161: 140 | AS161: 140 | AT161: 2034-05-01 | AU161: 30 | AV161: 4260 | BA161: 400.10 | BB161: PC - Auto/4x4 con GPS Lima/Valor >50k | BJ161: 140 | BK161: 2034-05-01 | BL161: 30 | BM161: 4260 | BR161: 400.10 | BS161: PC - Auto/4x4 con GPS Lima/Valor >50k | CA161: 140 | CB161: 2034-05-01 | CC161: 30 | CD161: 4260 | CI161: 400.10 | CJ161: PC - Auto/4x4 con GPS Lima/Valor >50k | CR161: 140 | CS161: 2034-05-01 | CT161: 30 | CU161: 4260 | CZ161: 400.10 | DA161: PC - Auto/4x4 con GPS Lima/Valor >50k
B162: 141 | S162: =IFERROR((I162+J162+K162+L162+M162)*$J$12+('Simulador para calculos'!I162+'Simulador para calculos'!J162+'Simulador para calculos'!K162+'Simulador para calculos'!L162+'Simulador para calculos'!M162)*NOT($J$12),"") ->  | U162: =IFERROR((1+'Simulación Cliente'!$E$22)^(T162/360),"") ->  | AB162: 141 | AS162: 141 | AT162: 2034-06-01 | AU162: 31 | AV162: 4291 | BA162: 400.10 | BB162: PC - Auto/4x4 con GPS Lima/Valor >50k | BJ162: 141 | BK162: 2034-06-01 | BL162: 31 | BM162: 4291 | BR162: 400.10 | BS162: PC - Auto/4x4 con GPS Lima/Valor >50k | CA162: 141 | CB162: 2034-06-01 | CC162: 31 | CD162: 4291 | CI162: 400.10 | CJ162: PC - Auto/4x4 con GPS Lima/Valor >50k | CR162: 141 | CS162: 2034-06-01 | CT162: 31 | CU162: 4291 | CZ162: 400.10 | DA162: PC - Auto/4x4 con GPS Lima/Valor >50k
B163: 142 | S163: =IFERROR((I163+J163+K163+L163+M163)*$J$12+('Simulador para calculos'!I163+'Simulador para calculos'!J163+'Simulador para calculos'!K163+'Simulador para calculos'!L163+'Simulador para calculos'!M163)*NOT($J$12),"") ->  | U163: =IFERROR((1+'Simulación Cliente'!$E$22)^(T163/360),"") ->  | AB163: 142 | AS163: 142 | AT163: 2034-07-01 | AU163: 30 | AV163: 4321 | BA163: 400.10 | BB163: PC - Auto/4x4 con GPS Lima/Valor >50k | BJ163: 142 | BK163: 2034-07-01 | BL163: 30 | BM163: 4321 | BR163: 400.10 | BS163: PC - Auto/4x4 con GPS Lima/Valor >50k | CA163: 142 | CB163: 2034-07-01 | CC163: 30 | CD163: 4321 | CI163: 400.10 | CJ163: PC - Auto/4x4 con GPS Lima/Valor >50k | CR163: 142 | CS163: 2034-07-01 | CT163: 30 | CU163: 4321 | CZ163: 400.10 | DA163: PC - Auto/4x4 con GPS Lima/Valor >50k
B164: 143 | S164: =IFERROR((I164+J164+K164+L164+M164)*$J$12+('Simulador para calculos'!I164+'Simulador para calculos'!J164+'Simulador para calculos'!K164+'Simulador para calculos'!L164+'Simulador para calculos'!M164)*NOT($J$12),"") ->  | U164: =IFERROR((1+'Simulación Cliente'!$E$22)^(T164/360),"") ->  | AB164: 143 | AS164: 143 | AT164: 2034-08-01 | AU164: 31 | AV164: 4352 | BA164: 400.10 | BB164: PC - Auto/4x4 con GPS Lima/Valor >50k | BJ164: 143 | BK164: 2034-08-01 | BL164: 31 | BM164: 4352 | BR164: 400.10 | BS164: PC - Auto/4x4 con GPS Lima/Valor >50k | CA164: 143 | CB164: 2034-08-01 | CC164: 31 | CD164: 4352 | CI164: 400.10 | CJ164: PC - Auto/4x4 con GPS Lima/Valor >50k | CR164: 143 | CS164: 2034-08-01 | CT164: 31 | CU164: 4352 | CZ164: 400.10 | DA164: PC - Auto/4x4 con GPS Lima/Valor >50k
B165: 144 | S165: =IFERROR((I165+J165+K165+L165+M165)*$J$12+('Simulador para calculos'!I165+'Simulador para calculos'!J165+'Simulador para calculos'!K165+'Simulador para calculos'!L165+'Simulador para calculos'!M165)*NOT($J$12),"") ->  | U165: =IFERROR((1+'Simulación Cliente'!$E$22)^(T165/360),"") ->  | AB165: 144 | AS165: 144 | AT165: 2034-09-01 | AU165: 31 | AV165: 4383 | BA165: 400.10 | BB165: PC - Auto/4x4 con GPS Lima/Valor >50k | BJ165: 144 | BK165: 2034-09-01 | BL165: 31 | BM165: 4383 | BR165: 400.10 | BS165: PC - Auto/4x4 con GPS Lima/Valor >50k | CA165: 144 | CB165: 2034-09-01 | CC165: 31 | CD165: 4383 | CI165: 400.10 | CJ165: PC - Auto/4x4 con GPS Lima/Valor >50k | CR165: 144 | CS165: 2034-09-01 | CT165: 31 | CU165: 4383 | CZ165: 400.10 | DA165: PC - Auto/4x4 con GPS Lima/Valor >50k
B166: 145 | S166: =IFERROR((I166+J166+K166+L166+M166)*$J$12+('Simulador para calculos'!I166+'Simulador para calculos'!J166+'Simulador para calculos'!K166+'Simulador para calculos'!L166+'Simulador para calculos'!M166)*NOT($J$12),"") ->  | U166: =IFERROR((1+'Simulación Cliente'!$E$22)^(T166/360),"") ->  | AB166: 145 | AS166: 145 | AT166: 2034-10-01 | AU166: 30 | AV166: 4413 | BA166: 400.10 | BB166: PC - Auto/4x4 con GPS Lima/Valor >50k | BJ166: 145 | BK166: 2034-10-01 | BL166: 30 | BM166: 4413 | BR166: 400.10 | BS166: PC - Auto/4x4 con GPS Lima/Valor >50k | CA166: 145 | CB166: 2034-10-01 | CC166: 30 | CD166: 4413 | CI166: 400.10 | CJ166: PC - Auto/4x4 con GPS Lima/Valor >50k | CR166: 145 | CS166: 2034-10-01 | CT166: 30 | CU166: 4413 | CZ166: 400.10 | DA166: PC - Auto/4x4 con GPS Lima/Valor >50k
B167: 146 | S167: =IFERROR((I167+J167+K167+L167+M167)*$J$12+('Simulador para calculos'!I167+'Simulador para calculos'!J167+'Simulador para calculos'!K167+'Simulador para calculos'!L167+'Simulador para calculos'!M167)*NOT($J$12),"") ->  | U167: =IFERROR((1+'Simulación Cliente'!$E$22)^(T167/360),"") ->  | AB167: 146 | AS167: 146 | AT167: 2034-11-01 | AU167: 31 | AV167: 4444 | BA167: 400.10 | BB167: PC - Auto/4x4 con GPS Lima/Valor >50k | BJ167: 146 | BK167: 2034-11-01 | BL167: 31 | BM167: 4444 | BR167: 400.10 | BS167: PC - Auto/4x4 con GPS Lima/Valor >50k | CA167: 146 | CB167: 2034-11-01 | CC167: 31 | CD167: 4444 | CI167: 400.10 | CJ167: PC - Auto/4x4 con GPS Lima/Valor >50k | CR167: 146 | CS167: 2034-11-01 | CT167: 31 | CU167: 4444 | CZ167: 400.10 | DA167: PC - Auto/4x4 con GPS Lima/Valor >50k
B168: 147 | S168: =IFERROR((I168+J168+K168+L168+M168)*$J$12+('Simulador para calculos'!I168+'Simulador para calculos'!J168+'Simulador para calculos'!K168+'Simulador para calculos'!L168+'Simulador para calculos'!M168)*NOT($J$12),"") ->  | U168: =IFERROR((1+'Simulación Cliente'!$E$22)^(T168/360),"") ->  | AB168: 147 | AS168: 147 | AT168: 2034-12-01 | AU168: 30 | AV168: 4474 | BA168: 400.10 | BB168: PC - Auto/4x4 con GPS Lima/Valor >50k | BJ168: 147 | BK168: 2034-12-01 | BL168: 30 | BM168: 4474 | BR168: 400.10 | BS168: PC - Auto/4x4 con GPS Lima/Valor >50k | CA168: 147 | CB168: 2034-12-01 | CC168: 30 | CD168: 4474 | CI168: 400.10 | CJ168: PC - Auto/4x4 con GPS Lima/Valor >50k | CR168: 147 | CS168: 2034-12-01 | CT168: 30 | CU168: 4474 | CZ168: 400.10 | DA168: PC - Auto/4x4 con GPS Lima/Valor >50k
B169: 148 | S169: =IFERROR((I169+J169+K169+L169+M169)*$J$12+('Simulador para calculos'!I169+'Simulador para calculos'!J169+'Simulador para calculos'!K169+'Simulador para calculos'!L169+'Simulador para calculos'!M169)*NOT($J$12),"") ->  | U169: =IFERROR((1+'Simulación Cliente'!$E$22)^(T169/360),"") ->  | AB169: 148 | AS169: 148 | AT169: 2035-01-01 | AU169: 31 | AV169: 4505 | BA169: 400.10 | BB169: PC - Auto/4x4 con GPS Lima/Valor >50k | BJ169: 148 | BK169: 2035-01-01 | BL169: 31 | BM169: 4505 | BR169: 400.10 | BS169: PC - Auto/4x4 con GPS Lima/Valor >50k | CA169: 148 | CB169: 2035-01-01 | CC169: 31 | CD169: 4505 | CI169: 400.10 | CJ169: PC - Auto/4x4 con GPS Lima/Valor >50k | CR169: 148 | CS169: 2035-01-01 | CT169: 31 | CU169: 4505 | CZ169: 400.10 | DA169: PC - Auto/4x4 con GPS Lima/Valor >50k
B170: 149 | S170: =IFERROR((I170+J170+K170+L170+M170)*$J$12+('Simulador para calculos'!I170+'Simulador para calculos'!J170+'Simulador para calculos'!K170+'Simulador para calculos'!L170+'Simulador para calculos'!M170)*NOT($J$12),"") ->  | U170: =IFERROR((1+'Simulación Cliente'!$E$22)^(T170/360),"") ->  | AB170: 149 | AS170: 149 | AT170: 2035-02-01 | AU170: 31 | AV170: 4536 | BA170: 400.10 | BB170: PC - Auto/4x4 con GPS Lima/Valor >50k | BJ170: 149 | BK170: 2035-02-01 | BL170: 31 | BM170: 4536 | BR170: 400.10 | BS170: PC - Auto/4x4 con GPS Lima/Valor >50k | CA170: 149 | CB170: 2035-02-01 | CC170: 31 | CD170: 4536 | CI170: 400.10 | CJ170: PC - Auto/4x4 con GPS Lima/Valor >50k | CR170: 149 | CS170: 2035-02-01 | CT170: 31 | CU170: 4536 | CZ170: 400.10 | DA170: PC - Auto/4x4 con GPS Lima/Valor >50k
B171: 150 | S171: =IFERROR((I171+J171+K171+L171+M171)*$J$12+('Simulador para calculos'!I171+'Simulador para calculos'!J171+'Simulador para calculos'!K171+'Simulador para calculos'!L171+'Simulador para calculos'!M171)*NOT($J$12),"") ->  | U171: =IFERROR((1+'Simulación Cliente'!$E$22)^(T171/360),"") ->  | AB171: 150 | AS171: 150 | AT171: 2035-03-01 | AU171: 28 | AV171: 4564 | BA171: 400.10 | BB171: PC - Auto/4x4 con GPS Lima/Valor >50k | BJ171: 150 | BK171: 2035-03-01 | BL171: 28 | BM171: 4564 | BR171: 400.10 | BS171: PC - Auto/4x4 con GPS Lima/Valor >50k | CA171: 150 | CB171: 2035-03-01 | CC171: 28 | CD171: 4564 | CI171: 400.10 | CJ171: PC - Auto/4x4 con GPS Lima/Valor >50k | CR171: 150 | CS171: 2035-03-01 | CT171: 28 | CU171: 4564 | CZ171: 400.10 | DA171: PC - Auto/4x4 con GPS Lima/Valor >50k
B172: 151 | S172: =IFERROR((I172+J172+K172+L172+M172)*$J$12+('Simulador para calculos'!I172+'Simulador para calculos'!J172+'Simulador para calculos'!K172+'Simulador para calculos'!L172+'Simulador para calculos'!M172)*NOT($J$12),"") ->  | U172: =IFERROR((1+'Simulación Cliente'!$E$22)^(T172/360),"") ->  | AB172: 151 | AS172: 151 | AT172: 2035-04-01 | AU172: 31 | AV172: 4595 | BA172: 400.10 | BB172: PC - Auto/4x4 con GPS Lima/Valor >50k | BJ172: 151 | BK172: 2035-04-01 | BL172: 31 | BM172: 4595 | BR172: 400.10 | BS172: PC - Auto/4x4 con GPS Lima/Valor >50k | CA172: 151 | CB172: 2035-04-01 | CC172: 31 | CD172: 4595 | CI172: 400.10 | CJ172: PC - Auto/4x4 con GPS Lima/Valor >50k | CR172: 151 | CS172: 2035-04-01 | CT172: 31 | CU172: 4595 | CZ172: 400.10 | DA172: PC - Auto/4x4 con GPS Lima/Valor >50k
B173: 152 | S173: =IFERROR((I173+J173+K173+L173+M173)*$J$12+('Simulador para calculos'!I173+'Simulador para calculos'!J173+'Simulador para calculos'!K173+'Simulador para calculos'!L173+'Simulador para calculos'!M173)*NOT($J$12),"") ->  | U173: =IFERROR((1+'Simulación Cliente'!$E$22)^(T173/360),"") ->  | AB173: 152 | AS173: 152 | AT173: 2035-05-01 | AU173: 30 | AV173: 4625 | BA173: 400.10 | BB173: PC - Auto/4x4 con GPS Lima/Valor >50k | BJ173: 152 | BK173: 2035-05-01 | BL173: 30 | BM173: 4625 | BR173: 400.10 | BS173: PC - Auto/4x4 con GPS Lima/Valor >50k | CA173: 152 | CB173: 2035-05-01 | CC173: 30 | CD173: 4625 | CI173: 400.10 | CJ173: PC - Auto/4x4 con GPS Lima/Valor >50k | CR173: 152 | CS173: 2035-05-01 | CT173: 30 | CU173: 4625 | CZ173: 400.10 | DA173: PC - Auto/4x4 con GPS Lima/Valor >50k
B174: 153 | S174: =IFERROR((I174+J174+K174+L174+M174)*$J$12+('Simulador para calculos'!I174+'Simulador para calculos'!J174+'Simulador para calculos'!K174+'Simulador para calculos'!L174+'Simulador para calculos'!M174)*NOT($J$12),"") ->  | U174: =IFERROR((1+'Simulación Cliente'!$E$22)^(T174/360),"") ->  | AB174: 153 | AS174: 153 | AT174: 2035-06-01 | AU174: 31 | AV174: 4656 | BA174: 400.10 | BB174: PC - Auto/4x4 con GPS Lima/Valor >50k | BJ174: 153 | BK174: 2035-06-01 | BL174: 31 | BM174: 4656 | BR174: 400.10 | BS174: PC - Auto/4x4 con GPS Lima/Valor >50k | CA174: 153 | CB174: 2035-06-01 | CC174: 31 | CD174: 4656 | CI174: 400.10 | CJ174: PC - Auto/4x4 con GPS Lima/Valor >50k | CR174: 153 | CS174: 2035-06-01 | CT174: 31 | CU174: 4656 | CZ174: 400.10 | DA174: PC - Auto/4x4 con GPS Lima/Valor >50k
B175: 154 | S175: =IFERROR((I175+J175+K175+L175+M175)*$J$12+('Simulador para calculos'!I175+'Simulador para calculos'!J175+'Simulador para calculos'!K175+'Simulador para calculos'!L175+'Simulador para calculos'!M175)*NOT($J$12),"") ->  | U175: =IFERROR((1+'Simulación Cliente'!$E$22)^(T175/360),"") ->  | AB175: 154 | AS175: 154 | AT175: 2035-07-01 | AU175: 30 | AV175: 4686 | BA175: 400.10 | BB175: PC - Auto/4x4 con GPS Lima/Valor >50k | BJ175: 154 | BK175: 2035-07-01 | BL175: 30 | BM175: 4686 | BR175: 400.10 | BS175: PC - Auto/4x4 con GPS Lima/Valor >50k | CA175: 154 | CB175: 2035-07-01 | CC175: 30 | CD175: 4686 | CI175: 400.10 | CJ175: PC - Auto/4x4 con GPS Lima/Valor >50k | CR175: 154 | CS175: 2035-07-01 | CT175: 30 | CU175: 4686 | CZ175: 400.10 | DA175: PC - Auto/4x4 con GPS Lima/Valor >50k
B176: 155 | S176: =IFERROR((I176+J176+K176+L176+M176)*$J$12+('Simulador para calculos'!I176+'Simulador para calculos'!J176+'Simulador para calculos'!K176+'Simulador para calculos'!L176+'Simulador para calculos'!M176)*NOT($J$12),"") ->  | U176: =IFERROR((1+'Simulación Cliente'!$E$22)^(T176/360),"") ->  | AB176: 155 | AS176: 155 | AT176: 2035-08-01 | AU176: 31 | AV176: 4717 | BA176: 400.10 | BB176: PC - Auto/4x4 con GPS Lima/Valor >50k | BJ176: 155 | BK176: 2035-08-01 | BL176: 31 | BM176: 4717 | BR176: 400.10 | BS176: PC - Auto/4x4 con GPS Lima/Valor >50k | CA176: 155 | CB176: 2035-08-01 | CC176: 31 | CD176: 4717 | CI176: 400.10 | CJ176: PC - Auto/4x4 con GPS Lima/Valor >50k | CR176: 155 | CS176: 2035-08-01 | CT176: 31 | CU176: 4717 | CZ176: 400.10 | DA176: PC - Auto/4x4 con GPS Lima/Valor >50k
B177: 156 | S177: =IFERROR((I177+J177+K177+L177+M177)*$J$12+('Simulador para calculos'!I177+'Simulador para calculos'!J177+'Simulador para calculos'!K177+'Simulador para calculos'!L177+'Simulador para calculos'!M177)*NOT($J$12),"") ->  | U177: =IFERROR((1+'Simulación Cliente'!$E$22)^(T177/360),"") ->  | AB177: 156 | AS177: 156 | AT177: 2035-09-01 | AU177: 31 | AV177: 4748 | BA177: 400.10 | BB177: PC - Auto/4x4 con GPS Lima/Valor >50k | BJ177: 156 | BK177: 2035-09-01 | BL177: 31 | BM177: 4748 | BR177: 400.10 | BS177: PC - Auto/4x4 con GPS Lima/Valor >50k | CA177: 156 | CB177: 2035-09-01 | CC177: 31 | CD177: 4748 | CI177: 400.10 | CJ177: PC - Auto/4x4 con GPS Lima/Valor >50k | CR177: 156 | CS177: 2035-09-01 | CT177: 31 | CU177: 4748 | CZ177: 400.10 | DA177: PC - Auto/4x4 con GPS Lima/Valor >50k
B178: 157 | S178: =IFERROR((I178+J178+K178+L178+M178)*$J$12+('Simulador para calculos'!I178+'Simulador para calculos'!J178+'Simulador para calculos'!K178+'Simulador para calculos'!L178+'Simulador para calculos'!M178)*NOT($J$12),"") ->  | U178: =IFERROR((1+'Simulación Cliente'!$E$22)^(T178/360),"") ->  | AB178: 157 | AS178: 157 | AT178: 2035-10-01 | AU178: 30 | AV178: 4778 | BA178: 400.10 | BB178: PC - Auto/4x4 con GPS Lima/Valor >50k | BJ178: 157 | BK178: 2035-10-01 | BL178: 30 | BM178: 4778 | BR178: 400.10 | BS178: PC - Auto/4x4 con GPS Lima/Valor >50k | CA178: 157 | CB178: 2035-10-01 | CC178: 30 | CD178: 4778 | CI178: 400.10 | CJ178: PC - Auto/4x4 con GPS Lima/Valor >50k | CR178: 157 | CS178: 2035-10-01 | CT178: 30 | CU178: 4778 | CZ178: 400.10 | DA178: PC - Auto/4x4 con GPS Lima/Valor >50k
B179: 158 | S179: =IFERROR((I179+J179+K179+L179+M179)*$J$12+('Simulador para calculos'!I179+'Simulador para calculos'!J179+'Simulador para calculos'!K179+'Simulador para calculos'!L179+'Simulador para calculos'!M179)*NOT($J$12),"") ->  | U179: =IFERROR((1+'Simulación Cliente'!$E$22)^(T179/360),"") ->  | AB179: 158 | AS179: 158 | AT179: 2035-11-01 | AU179: 31 | AV179: 4809 | BA179: 400.10 | BB179: PC - Auto/4x4 con GPS Lima/Valor >50k | BJ179: 158 | BK179: 2035-11-01 | BL179: 31 | BM179: 4809 | BR179: 400.10 | BS179: PC - Auto/4x4 con GPS Lima/Valor >50k | CA179: 158 | CB179: 2035-11-01 | CC179: 31 | CD179: 4809 | CI179: 400.10 | CJ179: PC - Auto/4x4 con GPS Lima/Valor >50k | CR179: 158 | CS179: 2035-11-01 | CT179: 31 | CU179: 4809 | CZ179: 400.10 | DA179: PC - Auto/4x4 con GPS Lima/Valor >50k
B180: 159 | S180: =IFERROR((I180+J180+K180+L180+M180)*$J$12+('Simulador para calculos'!I180+'Simulador para calculos'!J180+'Simulador para calculos'!K180+'Simulador para calculos'!L180+'Simulador para calculos'!M180)*NOT($J$12),"") ->  | U180: =IFERROR((1+'Simulación Cliente'!$E$22)^(T180/360),"") ->  | AB180: 159 | AS180: 159 | AT180: 2035-12-01 | AU180: 30 | AV180: 4839 | BA180: 400.10 | BB180: PC - Auto/4x4 con GPS Lima/Valor >50k | BJ180: 159 | BK180: 2035-12-01 | BL180: 30 | BM180: 4839 | BR180: 400.10 | BS180: PC - Auto/4x4 con GPS Lima/Valor >50k | CA180: 159 | CB180: 2035-12-01 | CC180: 30 | CD180: 4839 | CI180: 400.10 | CJ180: PC - Auto/4x4 con GPS Lima/Valor >50k | CR180: 159 | CS180: 2035-12-01 | CT180: 30 | CU180: 4839 | CZ180: 400.10 | DA180: PC - Auto/4x4 con GPS Lima/Valor >50k
B181: 160 | S181: =IFERROR((I181+J181+K181+L181+M181)*$J$12+('Simulador para calculos'!I181+'Simulador para calculos'!J181+'Simulador para calculos'!K181+'Simulador para calculos'!L181+'Simulador para calculos'!M181)*NOT($J$12),"") ->  | U181: =IFERROR((1+'Simulación Cliente'!$E$22)^(T181/360),"") ->  | AB181: 160 | AS181: 160 | AT181: 2036-01-01 | AU181: 31 | AV181: 4870 | BA181: 400.10 | BB181: PC - Auto/4x4 con GPS Lima/Valor >50k | BJ181: 160 | BK181: 2036-01-01 | BL181: 31 | BM181: 4870 | BR181: 400.10 | BS181: PC - Auto/4x4 con GPS Lima/Valor >50k | CA181: 160 | CB181: 2036-01-01 | CC181: 31 | CD181: 4870 | CI181: 400.10 | CJ181: PC - Auto/4x4 con GPS Lima/Valor >50k | CR181: 160 | CS181: 2036-01-01 | CT181: 31 | CU181: 4870 | CZ181: 400.10 | DA181: PC - Auto/4x4 con GPS Lima/Valor >50k
B182: 161 | S182: =IFERROR((I182+J182+K182+L182+M182)*$J$12+('Simulador para calculos'!I182+'Simulador para calculos'!J182+'Simulador para calculos'!K182+'Simulador para calculos'!L182+'Simulador para calculos'!M182)*NOT($J$12),"") ->  | U182: =IFERROR((1+'Simulación Cliente'!$E$22)^(T182/360),"") ->  | AB182: 161 | AS182: 161 | AT182: 2036-02-01 | AU182: 31 | AV182: 4901 | BA182: 400.10 | BB182: PC - Auto/4x4 con GPS Lima/Valor >50k | BJ182: 161 | BK182: 2036-02-01 | BL182: 31 | BM182: 4901 | BR182: 400.10 | BS182: PC - Auto/4x4 con GPS Lima/Valor >50k | CA182: 161 | CB182: 2036-02-01 | CC182: 31 | CD182: 4901 | CI182: 400.10 | CJ182: PC - Auto/4x4 con GPS Lima/Valor >50k | CR182: 161 | CS182: 2036-02-01 | CT182: 31 | CU182: 4901 | CZ182: 400.10 | DA182: PC - Auto/4x4 con GPS Lima/Valor >50k
B183: 162 | S183: =IFERROR((I183+J183+K183+L183+M183)*$J$12+('Simulador para calculos'!I183+'Simulador para calculos'!J183+'Simulador para calculos'!K183+'Simulador para calculos'!L183+'Simulador para calculos'!M183)*NOT($J$12),"") ->  | U183: =IFERROR((1+'Simulación Cliente'!$E$22)^(T183/360),"") ->  | AB183: 162 | AS183: 162 | AT183: 2036-03-01 | AU183: 29 | AV183: 4930 | BA183: 400.10 | BB183: PC - Auto/4x4 con GPS Lima/Valor >50k | BJ183: 162 | BK183: 2036-03-01 | BL183: 29 | BM183: 4930 | BR183: 400.10 | BS183: PC - Auto/4x4 con GPS Lima/Valor >50k | CA183: 162 | CB183: 2036-03-01 | CC183: 29 | CD183: 4930 | CI183: 400.10 | CJ183: PC - Auto/4x4 con GPS Lima/Valor >50k | CR183: 162 | CS183: 2036-03-01 | CT183: 29 | CU183: 4930 | CZ183: 400.10 | DA183: PC - Auto/4x4 con GPS Lima/Valor >50k
B184: 163 | S184: =IFERROR((I184+J184+K184+L184+M184)*$J$12+('Simulador para calculos'!I184+'Simulador para calculos'!J184+'Simulador para calculos'!K184+'Simulador para calculos'!L184+'Simulador para calculos'!M184)*NOT($J$12),"") ->  | U184: =IFERROR((1+'Simulación Cliente'!$E$22)^(T184/360),"") ->  | AB184: 163 | AS184: 163 | AT184: 2036-04-01 | AU184: 31 | AV184: 4961 | BA184: 400.10 | BB184: PC - Auto/4x4 con GPS Lima/Valor >50k | BJ184: 163 | BK184: 2036-04-01 | BL184: 31 | BM184: 4961 | BR184: 400.10 | BS184: PC - Auto/4x4 con GPS Lima/Valor >50k | CA184: 163 | CB184: 2036-04-01 | CC184: 31 | CD184: 4961 | CI184: 400.10 | CJ184: PC - Auto/4x4 con GPS Lima/Valor >50k | CR184: 163 | CS184: 2036-04-01 | CT184: 31 | CU184: 4961 | CZ184: 400.10 | DA184: PC - Auto/4x4 con GPS Lima/Valor >50k
B185: 164 | S185: =IFERROR((I185+J185+K185+L185+M185)*$J$12+('Simulador para calculos'!I185+'Simulador para calculos'!J185+'Simulador para calculos'!K185+'Simulador para calculos'!L185+'Simulador para calculos'!M185)*NOT($J$12),"") ->  | U185: =IFERROR((1+'Simulación Cliente'!$E$22)^(T185/360),"") ->  | AB185: 164 | AS185: 164 | AT185: 2036-05-01 | AU185: 30 | AV185: 4991 | BA185: 400.10 | BB185: PC - Auto/4x4 con GPS Lima/Valor >50k | BJ185: 164 | BK185: 2036-05-01 | BL185: 30 | BM185: 4991 | BR185: 400.10 | BS185: PC - Auto/4x4 con GPS Lima/Valor >50k | CA185: 164 | CB185: 2036-05-01 | CC185: 30 | CD185: 4991 | CI185: 400.10 | CJ185: PC - Auto/4x4 con GPS Lima/Valor >50k | CR185: 164 | CS185: 2036-05-01 | CT185: 30 | CU185: 4991 | CZ185: 400.10 | DA185: PC - Auto/4x4 con GPS Lima/Valor >50k
B186: 165 | S186: =IFERROR((I186+J186+K186+L186+M186)*$J$12+('Simulador para calculos'!I186+'Simulador para calculos'!J186+'Simulador para calculos'!K186+'Simulador para calculos'!L186+'Simulador para calculos'!M186)*NOT($J$12),"") ->  | U186: =IFERROR((1+'Simulación Cliente'!$E$22)^(T186/360),"") ->  | AB186: 165 | AS186: 165 | AT186: 2036-06-01 | AU186: 31 | AV186: 5022 | BA186: 400.10 | BB186: PC - Auto/4x4 con GPS Lima/Valor >50k | BJ186: 165 | BK186: 2036-06-01 | BL186: 31 | BM186: 5022 | BR186: 400.10 | BS186: PC - Auto/4x4 con GPS Lima/Valor >50k | CA186: 165 | CB186: 2036-06-01 | CC186: 31 | CD186: 5022 | CI186: 400.10 | CJ186: PC - Auto/4x4 con GPS Lima/Valor >50k | CR186: 165 | CS186: 2036-06-01 | CT186: 31 | CU186: 5022 | CZ186: 400.10 | DA186: PC - Auto/4x4 con GPS Lima/Valor >50k
B187: 166 | S187: =IFERROR((I187+J187+K187+L187+M187)*$J$12+('Simulador para calculos'!I187+'Simulador para calculos'!J187+'Simulador para calculos'!K187+'Simulador para calculos'!L187+'Simulador para calculos'!M187)*NOT($J$12),"") ->  | U187: =IFERROR((1+'Simulación Cliente'!$E$22)^(T187/360),"") ->  | AB187: 166 | AS187: 166 | AT187: 2036-07-01 | AU187: 30 | AV187: 5052 | BA187: 400.10 | BB187: PC - Auto/4x4 con GPS Lima/Valor >50k | BJ187: 166 | BK187: 2036-07-01 | BL187: 30 | BM187: 5052 | BR187: 400.10 | BS187: PC - Auto/4x4 con GPS Lima/Valor >50k | CA187: 166 | CB187: 2036-07-01 | CC187: 30 | CD187: 5052 | CI187: 400.10 | CJ187: PC - Auto/4x4 con GPS Lima/Valor >50k | CR187: 166 | CS187: 2036-07-01 | CT187: 30 | CU187: 5052 | CZ187: 400.10 | DA187: PC - Auto/4x4 con GPS Lima/Valor >50k
B188: 167 | S188: =IFERROR((I188+J188+K188+L188+M188)*$J$12+('Simulador para calculos'!I188+'Simulador para calculos'!J188+'Simulador para calculos'!K188+'Simulador para calculos'!L188+'Simulador para calculos'!M188)*NOT($J$12),"") ->  | U188: =IFERROR((1+'Simulación Cliente'!$E$22)^(T188/360),"") ->  | AB188: 167 | AS188: 167 | AT188: 2036-08-01 | AU188: 31 | AV188: 5083 | BA188: 400.10 | BB188: PC - Auto/4x4 con GPS Lima/Valor >50k | BJ188: 167 | BK188: 2036-08-01 | BL188: 31 | BM188: 5083 | BR188: 400.10 | BS188: PC - Auto/4x4 con GPS Lima/Valor >50k | CA188: 167 | CB188: 2036-08-01 | CC188: 31 | CD188: 5083 | CI188: 400.10 | CJ188: PC - Auto/4x4 con GPS Lima/Valor >50k | CR188: 167 | CS188: 2036-08-01 | CT188: 31 | CU188: 5083 | CZ188: 400.10 | DA188: PC - Auto/4x4 con GPS Lima/Valor >50k
B189: 168 | S189: =IFERROR((I189+J189+K189+L189+M189)*$J$12+('Simulador para calculos'!I189+'Simulador para calculos'!J189+'Simulador para calculos'!K189+'Simulador para calculos'!L189+'Simulador para calculos'!M189)*NOT($J$12),"") ->  | U189: =IFERROR((1+'Simulación Cliente'!$E$22)^(T189/360),"") ->  | AB189: 168 | AS189: 168 | AT189: 2036-09-01 | AU189: 31 | AV189: 5114 | BA189: 400.10 | BB189: PC - Auto/4x4 con GPS Lima/Valor >50k | BJ189: 168 | BK189: 2036-09-01 | BL189: 31 | BM189: 5114 | BR189: 400.10 | BS189: PC - Auto/4x4 con GPS Lima/Valor >50k | CA189: 168 | CB189: 2036-09-01 | CC189: 31 | CD189: 5114 | CI189: 400.10 | CJ189: PC - Auto/4x4 con GPS Lima/Valor >50k | CR189: 168 | CS189: 2036-09-01 | CT189: 31 | CU189: 5114 | CZ189: 400.10 | DA189: PC - Auto/4x4 con GPS Lima/Valor >50k
B190: 169 | S190: =IFERROR((I190+J190+K190+L190+M190)*$J$12+('Simulador para calculos'!I190+'Simulador para calculos'!J190+'Simulador para calculos'!K190+'Simulador para calculos'!L190+'Simulador para calculos'!M190)*NOT($J$12),"") ->  | U190: =IFERROR((1+'Simulación Cliente'!$E$22)^(T190/360),"") ->  | AB190: 169 | AS190: 169 | AT190: 2036-10-01 | AU190: 30 | AV190: 5144 | BA190: 400.10 | BB190: PC - Auto/4x4 con GPS Lima/Valor >50k | BJ190: 169 | BK190: 2036-10-01 | BL190: 30 | BM190: 5144 | BR190: 400.10 | BS190: PC - Auto/4x4 con GPS Lima/Valor >50k | CA190: 169 | CB190: 2036-10-01 | CC190: 30 | CD190: 5144 | CI190: 400.10 | CJ190: PC - Auto/4x4 con GPS Lima/Valor >50k | CR190: 169 | CS190: 2036-10-01 | CT190: 30 | CU190: 5144 | CZ190: 400.10 | DA190: PC - Auto/4x4 con GPS Lima/Valor >50k
B191: 170 | S191: =IFERROR((I191+J191+K191+L191+M191)*$J$12+('Simulador para calculos'!I191+'Simulador para calculos'!J191+'Simulador para calculos'!K191+'Simulador para calculos'!L191+'Simulador para calculos'!M191)*NOT($J$12),"") ->  | U191: =IFERROR((1+'Simulación Cliente'!$E$22)^(T191/360),"") ->  | AB191: 170 | AS191: 170 | AT191: 2036-11-01 | AU191: 31 | AV191: 5175 | BA191: 400.10 | BB191: PC - Auto/4x4 con GPS Lima/Valor >50k | BJ191: 170 | BK191: 2036-11-01 | BL191: 31 | BM191: 5175 | BR191: 400.10 | BS191: PC - Auto/4x4 con GPS Lima/Valor >50k | CA191: 170 | CB191: 2036-11-01 | CC191: 31 | CD191: 5175 | CI191: 400.10 | CJ191: PC - Auto/4x4 con GPS Lima/Valor >50k | CR191: 170 | CS191: 2036-11-01 | CT191: 31 | CU191: 5175 | CZ191: 400.10 | DA191: PC - Auto/4x4 con GPS Lima/Valor >50k
B192: 171 | S192: =IFERROR((I192+J192+K192+L192+M192)*$J$12+('Simulador para calculos'!I192+'Simulador para calculos'!J192+'Simulador para calculos'!K192+'Simulador para calculos'!L192+'Simulador para calculos'!M192)*NOT($J$12),"") ->  | U192: =IFERROR((1+'Simulación Cliente'!$E$22)^(T192/360),"") ->  | AB192: 171 | AS192: 171 | AT192: 2036-12-01 | AU192: 30 | AV192: 5205 | BA192: 400.10 | BB192: PC - Auto/4x4 con GPS Lima/Valor >50k | BJ192: 171 | BK192: 2036-12-01 | BL192: 30 | BM192: 5205 | BR192: 400.10 | BS192: PC - Auto/4x4 con GPS Lima/Valor >50k | CA192: 171 | CB192: 2036-12-01 | CC192: 30 | CD192: 5205 | CI192: 400.10 | CJ192: PC - Auto/4x4 con GPS Lima/Valor >50k | CR192: 171 | CS192: 2036-12-01 | CT192: 30 | CU192: 5205 | CZ192: 400.10 | DA192: PC - Auto/4x4 con GPS Lima/Valor >50k
B193: 172 | S193: =IFERROR((I193+J193+K193+L193+M193)*$J$12+('Simulador para calculos'!I193+'Simulador para calculos'!J193+'Simulador para calculos'!K193+'Simulador para calculos'!L193+'Simulador para calculos'!M193)*NOT($J$12),"") ->  | U193: =IFERROR((1+'Simulación Cliente'!$E$22)^(T193/360),"") ->  | AB193: 172 | AS193: 172 | AT193: 2037-01-01 | AU193: 31 | AV193: 5236 | BA193: 400.10 | BB193: PC - Auto/4x4 con GPS Lima/Valor >50k | BJ193: 172 | BK193: 2037-01-01 | BL193: 31 | BM193: 5236 | BR193: 400.10 | BS193: PC - Auto/4x4 con GPS Lima/Valor >50k | CA193: 172 | CB193: 2037-01-01 | CC193: 31 | CD193: 5236 | CI193: 400.10 | CJ193: PC - Auto/4x4 con GPS Lima/Valor >50k | CR193: 172 | CS193: 2037-01-01 | CT193: 31 | CU193: 5236 | CZ193: 400.10 | DA193: PC - Auto/4x4 con GPS Lima/Valor >50k
B194: 173 | S194: =IFERROR((I194+J194+K194+L194+M194)*$J$12+('Simulador para calculos'!I194+'Simulador para calculos'!J194+'Simulador para calculos'!K194+'Simulador para calculos'!L194+'Simulador para calculos'!M194)*NOT($J$12),"") ->  | U194: =IFERROR((1+'Simulación Cliente'!$E$22)^(T194/360),"") ->  | AB194: 173 | AS194: 173 | AT194: 2037-02-01 | AU194: 31 | AV194: 5267 | BA194: 400.10 | BB194: PC - Auto/4x4 con GPS Lima/Valor >50k | BJ194: 173 | BK194: 2037-02-01 | BL194: 31 | BM194: 5267 | BR194: 400.10 | BS194: PC - Auto/4x4 con GPS Lima/Valor >50k | CA194: 173 | CB194: 2037-02-01 | CC194: 31 | CD194: 5267 | CI194: 400.10 | CJ194: PC - Auto/4x4 con GPS Lima/Valor >50k | CR194: 173 | CS194: 2037-02-01 | CT194: 31 | CU194: 5267 | CZ194: 400.10 | DA194: PC - Auto/4x4 con GPS Lima/Valor >50k
B195: 174 | S195: =IFERROR((I195+J195+K195+L195+M195)*$J$12+('Simulador para calculos'!I195+'Simulador para calculos'!J195+'Simulador para calculos'!K195+'Simulador para calculos'!L195+'Simulador para calculos'!M195)*NOT($J$12),"") ->  | U195: =IFERROR((1+'Simulación Cliente'!$E$22)^(T195/360),"") ->  | AB195: 174 | AS195: 174 | AT195: 2037-03-01 | AU195: 28 | AV195: 5295 | BA195: 400.10 | BB195: PC - Auto/4x4 con GPS Lima/Valor >50k | BJ195: 174 | BK195: 2037-03-01 | BL195: 28 | BM195: 5295 | BR195: 400.10 | BS195: PC - Auto/4x4 con GPS Lima/Valor >50k | CA195: 174 | CB195: 2037-03-01 | CC195: 28 | CD195: 5295 | CI195: 400.10 | CJ195: PC - Auto/4x4 con GPS Lima/Valor >50k | CR195: 174 | CS195: 2037-03-01 | CT195: 28 | CU195: 5295 | CZ195: 400.10 | DA195: PC - Auto/4x4 con GPS Lima/Valor >50k
B196: 175 | S196: =IFERROR((I196+J196+K196+L196+M196)*$J$12+('Simulador para calculos'!I196+'Simulador para calculos'!J196+'Simulador para calculos'!K196+'Simulador para calculos'!L196+'Simulador para calculos'!M196)*NOT($J$12),"") ->  | U196: =IFERROR((1+'Simulación Cliente'!$E$22)^(T196/360),"") ->  | AB196: 175 | AS196: 175 | AT196: 2037-04-01 | AU196: 31 | AV196: 5326 | BA196: 400.10 | BB196: PC - Auto/4x4 con GPS Lima/Valor >50k | BJ196: 175 | BK196: 2037-04-01 | BL196: 31 | BM196: 5326 | BR196: 400.10 | BS196: PC - Auto/4x4 con GPS Lima/Valor >50k | CA196: 175 | CB196: 2037-04-01 | CC196: 31 | CD196: 5326 | CI196: 400.10 | CJ196: PC - Auto/4x4 con GPS Lima/Valor >50k | CR196: 175 | CS196: 2037-04-01 | CT196: 31 | CU196: 5326 | CZ196: 400.10 | DA196: PC - Auto/4x4 con GPS Lima/Valor >50k
B197: 176 | S197: =IFERROR((I197+J197+K197+L197+M197)*$J$12+('Simulador para calculos'!I197+'Simulador para calculos'!J197+'Simulador para calculos'!K197+'Simulador para calculos'!L197+'Simulador para calculos'!M197)*NOT($J$12),"") ->  | U197: =IFERROR((1+'Simulación Cliente'!$E$22)^(T197/360),"") ->  | AB197: 176 | AS197: 176 | AT197: 2037-05-01 | AU197: 30 | AV197: 5356 | BA197: 400.10 | BB197: PC - Auto/4x4 con GPS Lima/Valor >50k | BJ197: 176 | BK197: 2037-05-01 | BL197: 30 | BM197: 5356 | BR197: 400.10 | BS197: PC - Auto/4x4 con GPS Lima/Valor >50k | CA197: 176 | CB197: 2037-05-01 | CC197: 30 | CD197: 5356 | CI197: 400.10 | CJ197: PC - Auto/4x4 con GPS Lima/Valor >50k | CR197: 176 | CS197: 2037-05-01 | CT197: 30 | CU197: 5356 | CZ197: 400.10 | DA197: PC - Auto/4x4 con GPS Lima/Valor >50k
B198: 177 | S198: =IFERROR((I198+J198+K198+L198+M198)*$J$12+('Simulador para calculos'!I198+'Simulador para calculos'!J198+'Simulador para calculos'!K198+'Simulador para calculos'!L198+'Simulador para calculos'!M198)*NOT($J$12),"") ->  | U198: =IFERROR((1+'Simulación Cliente'!$E$22)^(T198/360),"") ->  | AB198: 177 | AS198: 177 | AT198: 2037-06-01 | AU198: 31 | AV198: 5387 | BA198: 400.10 | BB198: PC - Auto/4x4 con GPS Lima/Valor >50k | BJ198: 177 | BK198: 2037-06-01 | BL198: 31 | BM198: 5387 | BR198: 400.10 | BS198: PC - Auto/4x4 con GPS Lima/Valor >50k | CA198: 177 | CB198: 2037-06-01 | CC198: 31 | CD198: 5387 | CI198: 400.10 | CJ198: PC - Auto/4x4 con GPS Lima/Valor >50k | CR198: 177 | CS198: 2037-06-01 | CT198: 31 | CU198: 5387 | CZ198: 400.10 | DA198: PC - Auto/4x4 con GPS Lima/Valor >50k
B199: 178 | S199: =IFERROR((I199+J199+K199+L199+M199)*$J$12+('Simulador para calculos'!I199+'Simulador para calculos'!J199+'Simulador para calculos'!K199+'Simulador para calculos'!L199+'Simulador para calculos'!M199)*NOT($J$12),"") ->  | U199: =IFERROR((1+'Simulación Cliente'!$E$22)^(T199/360),"") ->  | AB199: 178 | AS199: 178 | AT199: 2037-07-01 | AU199: 30 | AV199: 5417 | BA199: 400.10 | BB199: PC - Auto/4x4 con GPS Lima/Valor >50k | BJ199: 178 | BK199: 2037-07-01 | BL199: 30 | BM199: 5417 | BR199: 400.10 | BS199: PC - Auto/4x4 con GPS Lima/Valor >50k | CA199: 178 | CB199: 2037-07-01 | CC199: 30 | CD199: 5417 | CI199: 400.10 | CJ199: PC - Auto/4x4 con GPS Lima/Valor >50k | CR199: 178 | CS199: 2037-07-01 | CT199: 30 | CU199: 5417 | CZ199: 400.10 | DA199: PC - Auto/4x4 con GPS Lima/Valor >50k
B200: 179 | S200: =IFERROR((I200+J200+K200+L200+M200)*$J$12+('Simulador para calculos'!I200+'Simulador para calculos'!J200+'Simulador para calculos'!K200+'Simulador para calculos'!L200+'Simulador para calculos'!M200)*NOT($J$12),"") ->  | U200: =IFERROR((1+'Simulación Cliente'!$E$22)^(T200/360),"") ->  | AB200: 179 | AS200: 179 | AT200: 2037-08-01 | AU200: 31 | AV200: 5448 | BA200: 400.10 | BB200: PC - Auto/4x4 con GPS Lima/Valor >50k | BJ200: 179 | BK200: 2037-08-01 | BL200: 31 | BM200: 5448 | BR200: 400.10 | BS200: PC - Auto/4x4 con GPS Lima/Valor >50k | CA200: 179 | CB200: 2037-08-01 | CC200: 31 | CD200: 5448 | CI200: 400.10 | CJ200: PC - Auto/4x4 con GPS Lima/Valor >50k | CR200: 179 | CS200: 2037-08-01 | CT200: 31 | CU200: 5448 | CZ200: 400.10 | DA200: PC - Auto/4x4 con GPS Lima/Valor >50k
B201: 180 | S201: =IFERROR((I201+J201+K201+L201+M201)*$J$12+('Simulador para calculos'!I201+'Simulador para calculos'!J201+'Simulador para calculos'!K201+'Simulador para calculos'!L201+'Simulador para calculos'!M201)*NOT($J$12),"") ->  | U201: =IFERROR((1+'Simulación Cliente'!$E$22)^(T201/360),"") ->  | AB201: 180 | AS201: 180 | AT201: 2037-09-01 | AU201: 31 | AV201: 5479 | BA201: 400.10 | BB201: PC - Auto/4x4 con GPS Lima/Valor >50k | BJ201: 180 | BK201: 2037-09-01 | BL201: 31 | BM201: 5479 | BR201: 400.10 | BS201: PC - Auto/4x4 con GPS Lima/Valor >50k | CA201: 180 | CB201: 2037-09-01 | CC201: 31 | CD201: 5479 | CI201: 400.10 | CJ201: PC - Auto/4x4 con GPS Lima/Valor >50k | CR201: 180 | CS201: 2037-09-01 | CT201: 31 | CU201: 5479 | CZ201: 400.10 | DA201: PC - Auto/4x4 con GPS Lima/Valor >50k
B202: 181 | S202: =IFERROR((I202+J202+K202+L202+M202)*$J$12+('Simulador para calculos'!I202+'Simulador para calculos'!J202+'Simulador para calculos'!K202+'Simulador para calculos'!L202+'Simulador para calculos'!M202)*NOT($J$12),"") ->  | U202: =IFERROR((1+'Simulación Cliente'!$E$22)^(T202/360),"") ->  | AB202: 181 | AS202: 181 | BJ202: 181 | CA202: 181 | CB202: 2037-10-01 | CC202: 30 | CD202: 5509 | CI202: 400.10 | CJ202: PC - Auto/4x4 con GPS Lima/Valor >50k | CR202: 181 | CS202: 2037-10-01 | CT202: 30 | CU202: 5509 | CZ202: 400.10 | DA202: PC - Auto/4x4 con GPS Lima/Valor >50k
... 179 more rows

Sheet Simulador para calculos (hidden)
B1: simulacion con Cuota simple | X1: simulacion con CD | AO1: simulacion a 180 | BF1: simulacion a 180 con CD | BW1: simulacion a 240 | CN1: simulacion a 240 con CD
B3: MAF | C3: ='Simulación Cliente'!E9+I8 -> 104,006.00 | X3: MAF | Y3: =+'Simulación Cliente'!$E$11 -> 104,006.00 | AO3: MAF | AP3: =+'Simulación Cliente'!$E$11 -> 104,006.00 | BF3: MAF | BG3: =+'Simulación Cliente'!$E$11 -> 104,006.00 | BW3: MAF | BX3: =+'Simulación Cliente'!$E$11 -> 104,006.00 | CN3: MAF | CO3: =+'Simulación Cliente'!$E$11 -> 104,006.00
B4: Monto del Bien | C4: =+'Simulación Cliente'!$E$7 -> 100,000.00 | D4: =C4*J12 -> 0 | X4: Monto del Bien | Y4: =+'Simulación Cliente'!$E$7 -> 100,000.00 | AO4: Monto del Bien | AP4: =+'Simulación Cliente'!$E$7 -> 100,000.00 | BF4: Monto del Bien | BG4: =+'Simulación Cliente'!$E$7 -> 100,000.00 | BW4: Monto del Bien | BX4: =+'Simulación Cliente'!$E$7 -> 100,000.00 | CN4: Monto del Bien | CO4: =+'Simulación Cliente'!$E$7 -> 100,000.00
B5: Moneda | C5: Soles | E5: Suma de Prima Mensual | F5: =SUM(K22:K381) -> 0 | H5: Ultima fecha pago | I5: =MAX(C22:C381) -> 2030-10-01 | X5: Moneda | Y5: Soles | AO5: Moneda | AP5: Soles | BF5: Moneda | BG5: Soles | BW5: Moneda | BX5: Soles | CN5: Moneda | CO5: Soles
B6: Plazo | C6: =+'Simulación Cliente'!$E$18 -> 60 | E6: VPN - Valor Presente | F6: =NPV(F7,K22:K381) -> 0 | H6: Cuotas de seguro | I6: =RESTAMESES(C7,I5) -> 60 | X6: Plazo | Y6: =+'Simulación Cliente'!$E$18 -> 60 | AO6: Plazo | AP6: 180 | BF6: Plazo | BG6: 180 | BW6: Plazo | BX6: 240 | CN6: Plazo | CO6: 240
B7: Fecha de Desembolso | C7: ='Simulación Cliente'!E13 -> 2025-10-01 | E7: Tasa de Actualización | F7: 0.2871% | H7: Seguro mensual | I7: =C14*C4 -> 400.10 | X7: Fecha de Desembolso | Y7: 2022-09-01 | AO7: Fecha de Desembolso | AP7: 2022-09-01 | BF7: Fecha de Desembolso | BG7: 2022-09-01 | BW7: Fecha de Desembolso | BX7: 2022-09-01 | CN7: Fecha de Desembolso | CO7: 2022-09-01
B8: Fecha de 1er Pago | C8: ='Simulación Cliente'!E14 -> 2025-11-01 | H8: Total Prima Única | I8: =I7*I6*NOT(J12) -> 24,006.00 | X8: Fecha de 1er Pago | Y8: 2022-10-01 | AO8: Fecha de 1er Pago | AP8: 2022-10-01 | BF8: Fecha de 1er Pago | BG8: 2022-10-01 | BW8: Fecha de 1er Pago | BX8: 2022-10-01 | CN8: Fecha de 1er Pago | CO8: 2022-10-01
B9: Cuota Julio | C9: 1 | X9: Cuota Julio | Y9: 2 | AO9: Cuota Julio | AP9: 1 | BF9: Cuota Julio | BG9: 2 | BW9: Cuota Julio | BX9: 1 | CN9: Cuota Julio | CO9: 2
B10: Cuota Diciembre | C10: 1 | E10: Monto inicial | F10: =C3 -> 104,006.00 | X10: Cuota Diciembre | Y10: 2 | AO10: Cuota Diciembre | AP10: 1 | BF10: Cuota Diciembre | BG10: 2 | BW10: Cuota Diciembre | BX10: 1 | CN10: Cuota Diciembre | CO10: 2
B11: TEA | C11: =+'Simulación Cliente'!$E$21 -> 12.000% | E11: Monto adicional de Desgravamen / Vida | F11: =F6 -> 0 | H11: seg desg | I11: seg vida | J11: Seg bien mensual | K11: NO | X11: TEA | Y11: =+'Simulación Cliente'!$E$21 -> 12.000% | AO11: TEA | AP11: =+'Simulación Cliente'!$E$21 -> 12.000% | BF11: TEA | BG11: =+'Simulación Cliente'!$E$21 -> 12.000% | BW11: TEA | BX11: =+'Simulación Cliente'!$E$21 -> 12.000% | CN11: TEA | CO11: =+'Simulación Cliente'!$E$21 -> 12.000%
B12: Seguro de Desgravamen | C12: =+'Simulación Cliente'!$F$19 -> 0.0000% | E12: Prima de Seguro de Desgravamen / Vida | F12: =F11/F10 -> 0.0000% | H12: =NOT(OR('Simulación Cliente'!$E$19='Simulación Cliente'!$Q$21,'Simulación Cliente'!$E$19='Simulación Cliente'!$Q$22)) -> TRUE | I12: =OR('Simulación Cliente'!$E$19='Simulación Cliente'!$Q$21,'Simulación Cliente'!$E$19='Simulación Cliente'!$Q$22) -> FALSE | J12: =K11="SI" -> FALSE | X12: Seguro de Desgravamen | Y12: =+'Simulación Cliente'!$F$19 -> 0.000% | AO12: Seguro de Desgravamen | AP12: =+'Simulación Cliente'!$F$19 -> 0.000% | BF12: Seguro de Desgravamen | BG12: =+'Simulación Cliente'!$F$19 -> 0.000% | BW12: Seguro de Desgravamen | BX12: =+'Simulación Cliente'!$F$19 -> 0.000% | CN12: Seguro de Desgravamen | CO12: =+'Simulación Cliente'!$F$19 -> 0.000%
B13: TEA Total | C13: =(1+(((1+C11)^(30/360)-1)+C12*H12+C16))^12-1 -> 12.0000% | E13: MAF Inicial | F13: =F10+F11 -> 104,006.00 | X13: TCEA | Y13: =(1+(((1+Y11)^(30/360)-1)+Y12+Y16))^12-1 ->  | AO13: TCEA | AP13: =(1+(((1+AP11)^(30/360)-1)+AP12+AP16))^12-1 ->  | BF13: TCEA | BG13: =(1+(((1+BG11)^(30/360)-1)+BG12+BG16))^12-1 ->  | BW13: TCEA | BX13: =(1+(((1+BX11)^(30/360)-1)+BX12+BX16))^12-1 ->  | CN13: TCEA | CO13: =(1+(((1+CO11)^(30/360)-1)+CO12+CO16))^12-1 -> 
B14: Seguro del Bien | C14: =+'Simulación Cliente'!$F$20 -> 0.400% | X14: Seguro del Bien | Y14: =+'Simulación Cliente'!$F$20 -> 0.400% | AO14: Seguro del Bien | AP14: =+'Simulación Cliente'!$F$20 -> 0.400% | BF14: Seguro del Bien | BG14: =+'Simulación Cliente'!$F$20 -> 0.400% | BW14: Seguro del Bien | BX14: =+'Simulación Cliente'!$F$20 -> 0.400% | CN14: Seguro del Bien | CO14: =+'Simulación Cliente'!$F$20 -> 0.400%
B15: Portes | X15: Portes | Y15: =+'Simulación Cliente'!$E$20 -> PC - Auto/4x4 con GPS Lima/Valor >50k | AO15: Portes | AP15: =+'Simulación Cliente'!$E$20 -> PC - Auto/4x4 con GPS Lima/Valor >50k | BF15: Portes | BG15: =+'Simulación Cliente'!$E$20 -> PC - Auto/4x4 con GPS Lima/Valor >50k | BW15: Portes | BX15: =+'Simulación Cliente'!$E$20 -> PC - Auto/4x4 con GPS Lima/Valor >50k | CN15: Portes | CO15: =+'Simulación Cliente'!$E$20 -> PC - Auto/4x4 con GPS Lima/Valor >50k
B16: % Portes | C16: =C15/C3 -> 0.0000% | X16: % Portes | Y16: =Y15/Y3 ->  | AO16: % Portes | AP16: =AP15/AP3 ->  | BF16: % Portes | BG16: =BG15/BG3 ->  | BW16: % Portes | BX16: =BX15/BX3 ->  | CN16: % Portes | CO16: =CO15/CO3 -> 
B17: VALOR CUOTA | C17: =(C3+(C14*D4)*Q20)/P20 -> 2,290.1 | X17: VALOR CUOTA | Y17: =(Y3+(Y14*Y4)*AK20)/AJ20 ->  | AO17: VALOR CUOTA | AP17: =(AP3+(AP14*AP4)*BB20)/BA20 ->  | BF17: VALOR CUOTA | BG17: =(BG3+(BG14*BG4)*BS20)/BR20 ->  | BW17: VALOR CUOTA | BX17: =(BX3+(BX14*BX4)*CJ20)/CI20 ->  | CN17: VALOR CUOTA | CO17: =(CO3+(CO14*CO4)*DA20)/CZ20 -> 
P20: =SUM(P22:P381) -> 45.41 | Q20: =SUM(Q22:Q381) -> 45.41 | AJ20: =SUM(AJ22:AJ381) -> 0 | AK20: =SUM(AK22:AK381) -> 0 | BA20: =SUM(BA22:BA381) -> 0 | BB20: =SUM(BB22:BB381) -> 0 | BR20: =SUM(BR22:BR381) -> 0 | BS20: =SUM(BS22:BS381) -> 0 | CI20: =SUM(CI22:CI381) -> 0 | CJ20: =SUM(CJ22:CJ381) -> 0 | CZ20: =SUM(CZ22:CZ381) -> 0 | DA20: =SUM(DA22:DA381) -> 0
B21: N° Cuota | C21: Fecha de pago Simul | D21: Día | E21: Fecha Pago | F21: Días | G21: Dias Acumulados | H21: Saldo Inicial | I21: Amortización | J21: Interés | K21: Seguro Desgravamen | L21: Seguro del Bien | M21: Portes | N21: VALOR CUOTA | O21: Saldo Final | P21: Factor Cronograma | Q21: Factor Cronograma 2 | X21: N° Cuota | Y21: Fecha de pago | Z21: Días | AA21: Dias Acumulados | AB21: Saldo Inicial | AC21: Amortización | AD21: Interés | AE21: Seguro Desgravamen | AF21: Seguro del Bien | AG21: Portes | AH21: VALOR CUOTA | AI21: Saldo Final | AJ21: Factor Cronograma | AK21: Factor Cronograma 2 | AO21: N° Cuota | AP21: Fecha de pago | AQ21: Días | AR21: Dias Acumulados | AS21: Saldo Inicial | AT21: Amortización | AU21: Interés | AV21: Seguro Desgravamen | AW21: Seguro del Bien | AX21: Portes | AY21: VALOR CUOTA | AZ21: Saldo Final | BA21: Factor Cronograma | BB21: Factor Cronograma 2 | BF21: N° Cuota | BG21: Fecha de pago | BH21: Días | BI21: Dias Acumulados | BJ21: Saldo Inicial | BK21: Amortización | BL21: Interés | BM21: Seguro Desgravamen | BN21: Seguro del Bien | BO21: Portes | BP21: VALOR CUOTA | BQ21: Saldo Final | BR21: Factor Cronograma | BS21: Factor Cronograma 2 | BW21: N° Cuota | BX21: Fecha de pago | BY21: Días | BZ21: Dias Acumulados | CA21: Saldo Inicial | CB21: Amortización | CC21: Interés | CD21: Seguro Desgravamen | CE21: Seguro del Bien | CF21: Portes | CG21: VALOR CUOTA | CH21: Saldo Final | CI21: Factor Cronograma | CJ21: Factor Cronograma 2 | CN21: N° Cuota | CO21: Fecha de pago | CP21: Días | CQ21: Dias Acumulados | CR21: Saldo Inicial | CS21: Amortización | CT21: Interés | CU21: Seguro Desgravamen | CV21: Seguro del Bien | CW21: Portes | CX21: VALOR CUOTA | CY21: Saldo Final | CZ21: Factor Cronograma | DA21: Factor Cronograma 2
B22: 1 | C22: =C8 -> 2025-11-01 | D22: =IF(B22<=$C$6,WEEKDAY(C22,2),"") -> 6 | E22: =IF(D22=7,C22+1,C22) -> 2025-11-01 | F22: =E22-C7 -> 31 | G22: =F22 -> 31 | H22: =C3 -> 104,006.00 | I22: =IF(B22>C$6,"",N22-M22-L22-K22-J22) -> 1,270.20 | J22: =IF(B22>C$6,"",((1+C$11)^(F22/360)-1)*H22) -> 1,019.95 | K22: =IF(B22>C$6,"",((1+C$12)^(F22/30)-1)*H22*$H$12) -> 0 | L22: =IF(B22>C$6,"",D$4*C$14) -> 0.00 | M22: =IF(B22>C$6,"",C$15) -> 0 | N22: =IF(B22>C$6,"",IF(B22=C$6,H22+J22+K22+L22+M22,IF(AND(C$9=2,MONTH(C22)=7),2*C$17,IF(AND(C$10=2,MONTH(C22)=12),2*C$17,C$17)))) -> 2,290.14 | O22: =IF(B22>C$6,"",H22-I22) -> 102,735.80 | P22: =IFERROR(IF(AND(MONTH(C22)=7,C$9=2),2/(1+C$13)^(G22/360),IF(AND(MONTH(C22)=12,C$10=2),2/(1+C$13)^(G22/360),1/(1+C$13)^(G22/360))),"") -> 0.99 | Q22: =IFERROR(1/(1+C$13)^(G22/360),"") -> 0.99 | X22: 1 | Y22: =Y8 -> 2022-10-01 | Z22: =Y22-Y7 -> 30 | AA22: =Z22 -> 30 | AB22: =Y3 -> 104,006.00 | AC22: =IF(X22>Y$6,"",AH22-AG22-AF22-AE22-AD22) ->  | AD22: =IF(X22>Y$6,"",((1+Y$11)^(Z22/360)-1)*AB22) -> 986.89 | AE22: =IF(X22>Y$6,"",((1+Y$12)^(Z22/30)-1)*AB22) -> 0 | AF22: =IF(X22>Y$6,"",Y$4*Y$14) -> 400.10 | AG22: =IF(X22>Y$6,"",Y$15) -> PC - Auto/4x4 con GPS Lima/Valor >50k | AH22: =IF(X22>Y$6,"",IF(X22=Y$6,AB22+AD22+AE22+AF22+AG22,IF(AND(Y$9=2,MONTH(Y22)=7),2*Y$17,IF(AND(Y$10=2,MONTH(Y22)=12),2*Y$17,Y$17)))) ->  | AI22: =IF(X22>Y$6,"",AB22-AC22) ->  | AJ22: =IFERROR(IF(AND(MONTH(Y22)=7,Y$9=2),2/(1+Y$13)^(AA22/360),IF(AND(MONTH(Y22)=12,Y$10=2),2/(1+Y$13)^(AA22/360),1/(1+Y$13)^(AA22/360))),"") ->  | AK22: =IFERROR(1/(1+Y$13)^(AA22/360),"") ->  | AO22: 1 | AP22: =AP8 -> 2022-10-01 | AQ22: =AP22-AP7 -> 30 | AR22: =AQ22 -> 30 | AS22: =AP3 -> 104,006.00 | AT22: =IF(AO22>AP$6,"",AY22-AX22-AW22-AV22-AU22) ->  | AU22: =IF(AO22>AP$6,"",((1+AP$11)^(AQ22/360)-1)*AS22) -> 986.89 | AV22: =IF(AO22>AP$6,"",((1+AP$12)^(AQ22/30)-1)*AS22) -> 0 | AW22: =IF(AO22>AP$6,"",AP$4*AP$14) -> 400.10 | AX22: =IF(AO22>AP$6,"",AP$15) -> PC - Auto/4x4 con GPS Lima/Valor >50k | AY22: =IF(AO22>AP$6,"",IF(AO22=AP$6,AS22+AU22+AV22+AW22+AX22,IF(AND(AP$9=2,MONTH(AP22)=7),2*AP$17,IF(AND(AP$10=2,MONTH(AP22)=12),2*AP$17,AP$17)))) ->  | AZ22: =IF(AO22>AP$6,"",AS22-AT22) ->  | BA22: =IFERROR(IF(AND(MONTH(AP22)=7,AP$9=2),2/(1+AP$13)^(AR22/360),IF(AND(MONTH(AP22)=12,AP$10=2),2/(1+AP$13)^(AR22/360),1/(1+AP$13)^(AR22/360))),"") ->  | BB22: =IFERROR(1/(1+AP$13)^(AR22/360),"") ->  | BF22: 1 | BG22: =BG8 -> 2022-10-01 | BH22: =BG22-BG7 -> 30 | BI22: =BH22 -> 30 | BJ22: =BG3 -> 104,006.00 | BK22: =IF(BF22>BG$6,"",BP22-BO22-BN22-BM22-BL22) ->  | BL22: =IF(BF22>BG$6,"",((1+BG$11)^(BH22/360)-1)*BJ22) -> 986.89 | BM22: =IF(BF22>BG$6,"",((1+BG$12)^(BH22/30)-1)*BJ22) -> 0 | BN22: =IF(BF22>BG$6,"",BG$4*BG$14) -> 400.10 | BO22: =IF(BF22>BG$6,"",BG$15) -> PC - Auto/4x4 con GPS Lima/Valor >50k | BP22: =IF(BF22>BG$6,"",IF(BF22=BG$6,BJ22+BL22+BM22+BN22+BO22,IF(AND(BG$9=2,MONTH(BG22)=7),2*BG$17,IF(AND(BG$10=2,MONTH(BG22)=12),2*BG$17,BG$17)))) ->  | BQ22: =IF(BF22>BG$6,"",BJ22-BK22) ->  | BR22: =IFERROR(IF(AND(MONTH(BG22)=7,BG$9=2),2/(1+BG$13)^(BI22/360),IF(AND(MONTH(BG22)=12,BG$10=2),2/(1+BG$13)^(BI22/360),1/(1+BG$13)^(BI22/360))),"") ->  | BS22: =IFERROR(1/(1+BG$13)^(BI22/360),"") ->  | BW22: 1 | BX22: =BX8 -> 2022-10-01 | BY22: =BX22-BX7 -> 30 | BZ22: =BY22 -> 30 | CA22: =BX3 -> 104,006.00 | CB22: =IF(BW22>BX$6,"",CG22-CF22-CE22-CD22-CC22) ->  | CC22: =IF(BW22>BX$6,"",((1+BX$11)^(BY22/360)-1)*CA22) -> 986.89 | CD22: =IF(BW22>BX$6,"",((1+BX$12)^(BY22/30)-1)*CA22) -> 0 | CE22: =IF(BW22>BX$6,"",BX$4*BX$14) -> 400.10 | CF22: =IF(BW22>BX$6,"",BX$15) -> PC - Auto/4x4 con GPS Lima/Valor >50k | CG22: =IF(BW22>BX$6,"",IF(BW22=BX$6,CA22+CC22+CD22+CE22+CF22,IF(AND(BX$9=2,MONTH(BX22)=7),2*BX$17,IF(AND(BX$10=2,MONTH(BX22)=12),2*BX$17,BX$17)))) ->  | CH22: =IF(BW22>BX$6,"",CA22-CB22) ->  | CI22: =IFERROR(IF(AND(MONTH(BX22)=7,BX$9=2),2/(1+BX$13)^(BZ22/360),IF(AND(MONTH(BX22)=12,BX$10=2),2/(1+BX$13)^(BZ22/360),1/(1+BX$13)^(BZ22/360))),"") ->  | CJ22: =IFERROR(1/(1+BX$13)^(BZ22/360),"") ->  | CN22: 1 | CO22: =CO8 -> 2022-10-01 | CP22: =CO22-CO7 -> 30 | CQ22: =CP22 -> 30 | CR22: =CO3 -> 104,006.00 | CS22: =IF(CN22>CO$6,"",CX22-CW22-CV22-CU22-CT22) ->  | CT22: =IF(CN22>CO$6,"",((1+CO$11)^(CP22/360)-1)*CR22) -> 986.89 | CU22: =IF(CN22>CO$6,"",((1+CO$12)^(CP22/30)-1)*CR22) -> 0 | CV22: =IF(CN22>CO$6,"",CO$4*CO$14) -> 400.10 | CW22: =IF(CN22>CO$6,"",CO$15) -> PC - Auto/4x4 con GPS Lima/Valor >50k | CX22: =IF(CN22>CO$6,"",IF(CN22=CO$6,CR22+CT22+CU22+CV22+CW22,IF(AND(CO$9=2,MONTH(CO22)=7),2*CO$17,IF(AND(CO$10=2,MONTH(CO22)=12),2*CO$17,CO$17)))) ->  | CY22: =IF(CN22>CO$6,"",CR22-CS22) ->  | CZ22: =IFERROR(IF(AND(MONTH(CO22)=7,CO$9=2),2/(1+CO$13)^(CQ22/360),IF(AND(MONTH(CO22)=12,CO$10=2),2/(1+CO$13)^(CQ22/360),1/(1+CO$13)^(CQ22/360))),"") ->  | DA22: =IFERROR(1/(1+CO$13)^(CQ22/360),"") -> 
B23: 2 | C23: =IF(B23>C$6,"",EDATE(C$22,B22)) -> 2025-12-01 | D23: =IF(B23<=$C$6,WEEKDAY(C23,2),"") -> 1 | E23: =IF(D23=7,C23+1,C23) -> 2025-12-01 | F23: =IF(B23>C$6,"",E23-E22) -> 30 | G23: =IFERROR(F23+G22,"") -> 61 | H23: =IF(B23>C$6,"",O22) -> 102,735.80 | I23: =IF(B23>C$6,"",N23-M23-L23-K23-J23) -> 1,315.31 | J23: =IF(B23>C$6,"",((1+C$11)^(F23/360)-1)*H23) -> 974.84 | K23: =IF(B23>C$6,"",((1+C$12)^(F23/30)-1)*H23*$H$12) -> 0 | L23: =IF(B23>C$6,"",D$4*C$14) -> 0.00 | M23: 0 | N23: =IF(B23>C$6,"",IF(B23=C$6,H23+J23+K23+L23+M23,IF(AND(C$9=2,MONTH(C23)=7),2*C$17,IF(AND(C$10=2,MONTH(C23)=12),2*C$17,C$17)))) -> 2,290.14 | O23: =IF(B23>C$6,"",H23-I23) -> 101,420.50 | P23: =IFERROR(IF(AND(MONTH(C23)=7,C$9=2),2/(1+C$13)^(G23/360),IF(AND(MONTH(C23)=12,C$10=2),2/(1+C$13)^(G23/360),1/(1+C$13)^(G23/360))),"") -> 0.98 | Q23: =IFERROR(1/(1+C$13)^(G23/360),"") -> 0.98 | X23: 2 | Y23: =IF(X23>Y$6,"",EDATE(Y$22,X22)) -> 2022-11-01 | Z23: =IF(X23>Y$6,"",Y23-Y22) -> 31 | AA23: =IFERROR(Z23+AA22,"") -> 61 | AB23: =IF(X23>Y$6,"",AI22) ->  | AD23: =IF(X23>Y$6,"",((1+Y$11)^(Z23/360)-1)*AB23) ->  | AF23: 400.10 | AG23: PC - Auto/4x4 con GPS Lima/Valor >50k | AJ23: =IFERROR(IF(AND(MONTH(Y23)=7,Y$9=2),2/(1+Y$13)^(AA23/360),IF(AND(MONTH(Y23)=12,Y$10=2),2/(1+Y$13)^(AA23/360),1/(1+Y$13)^(AA23/360))),"") ->  | AK23: =IFERROR(1/(1+Y$13)^(AA23/360),"") ->  | AO23: 2 | AP23: =IF(AO23>AP$6,"",EDATE(AP$22,AO22)) -> 2022-11-01 | AQ23: =IF(AO23>AP$6,"",AP23-AP22) -> 31 | AR23: =IFERROR(AQ23+AR22,"") -> 61 | AS23: =IF(AO23>AP$6,"",AZ22) ->  | AU23: =IF(AO23>AP$6,"",((1+AP$11)^(AQ23/360)-1)*AS23) ->  | AW23: 400.10 | AX23: PC - Auto/4x4 con GPS Lima/Valor >50k | BA23: =IFERROR(IF(AND(MONTH(AP23)=7,AP$9=2),2/(1+AP$13)^(AR23/360),IF(AND(MONTH(AP23)=12,AP$10=2),2/(1+AP$13)^(AR23/360),1/(1+AP$13)^(AR23/360))),"") ->  | BB23: =IFERROR(1/(1+AP$13)^(AR23/360),"") ->  | BF23: 2 | BG23: =IF(BF23>BG$6,"",EDATE(BG$22,BF22)) -> 2022-11-01 | BH23: =IF(BF23>BG$6,"",BG23-BG22) -> 31 | BI23: =IFERROR(BH23+BI22,"") -> 61 | BJ23: =IF(BF23>BG$6,"",BQ22) ->  | BL23: =IF(BF23>BG$6,"",((1+BG$11)^(BH23/360)-1)*BJ23) ->  | BN23: 400.10 | BO23: PC - Auto/4x4 con GPS Lima/Valor >50k | BR23: =IFERROR(IF(AND(MONTH(BG23)=7,BG$9=2),2/(1+BG$13)^(BI23/360),IF(AND(MONTH(BG23)=12,BG$10=2),2/(1+BG$13)^(BI23/360),1/(1+BG$13)^(BI23/360))),"") ->  | BS23: =IFERROR(1/(1+BG$13)^(BI23/360),"") ->  | BW23: 2 | BX23: =IF(BW23>BX$6,"",EDATE(BX$22,BW22)) -> 2022-11-01 | BY23: =IF(BW23>BX$6,"",BX23-BX22) -> 31 | BZ23: =IFERROR(BY23+BZ22,"") -> 61 | CA23: =IF(BW23>BX$6,"",CH22) ->  | CC23: =IF(BW23>BX$6,"",((1+BX$11)^(BY23/360)-1)*CA23) ->  | CE23: 400.10 | CF23: PC - Auto/4x4 con GPS Lima/Valor >50k | CI23: =IFERROR(IF(AND(MONTH(BX23)=7,BX$9=2),2/(1+BX$13)^(BZ23/360),IF(AND(MONTH(BX23)=12,BX$10=2),2/(1+BX$13)^(BZ23/360),1/(1+BX$13)^(BZ23/360))),"") ->  | CJ23: =IFERROR(1/(1+BX$13)^(BZ23/360),"") ->  | CN23: 2 | CO23: =IF(CN23>CO$6,"",EDATE(CO$22,CN22)) -> 2022-11-01 | CP23: =IF(CN23>CO$6,"",CO23-CO22) -> 31 | CQ23: =IFERROR(CP23+CQ22,"") -> 61 | CR23: =IF(CN23>CO$6,"",CY22) ->  | CT23: =IF(CN23>CO$6,"",((1+CO$11)^(CP23/360)-1)*CR23) ->  | CV23: 400.10 | CW23: PC - Auto/4x4 con GPS Lima/Valor >50k | CZ23: =IFERROR(IF(AND(MONTH(CO23)=7,CO$9=2),2/(1+CO$13)^(CQ23/360),IF(AND(MONTH(CO23)=12,CO$10=2),2/(1+CO$13)^(CQ23/360),1/(1+CO$13)^(CQ23/360))),"") ->  | DA23: =IFERROR(1/(1+CO$13)^(CQ23/360),"") -> 
B24: 3 | C24: =IF(B24>C$6,"",EDATE(C$22,B23)) -> 2026-01-01 | D24: 4 | E24: 2026-01-01 | F24: =IF(B24>C$6,"",E24-E23) -> 31 | G24: 92 | H24: 101,420.50 | I24: =IF(B24>C$6,"",N24-M24-L24-K24-J24) -> 1,295.55 | J24: =IF(B24>C$6,"",((1+C$11)^(F24/360)-1)*H24) -> 994.59 | K24: 0 | L24: 0.00 | M24: 0 | N24: 2,290.14 | O24: 100,124.95 | P24: =IFERROR(IF(AND(MONTH(C24)=7,C$9=2),2/(1+C$13)^(G24/360),IF(AND(MONTH(C24)=12,C$10=2),2/(1+C$13)^(G24/360),1/(1+C$13)^(G24/360))),"") -> 0.97 | Q24: =IFERROR(1/(1+C$13)^(G24/360),"") -> 0.97 | X24: 3 | Y24: 2022-12-01 | Z24: =IF(X24>Y$6,"",Y24-Y23) -> 30 | AA24: 91 | AC24: =IF(X24>Y$6,"",AH24-AG24-AF24-AE24-AD24) ->  | AD24: =IF(X24>Y$6,"",((1+Y$11)^(Z24/360)-1)*AB24) ->  | AF24: 400.10 | AG24: PC - Auto/4x4 con GPS Lima/Valor >50k | AO24: 3 | AP24: 2022-12-01 | AQ24: =IF(AO24>AP$6,"",AP24-AP23) -> 30 | AR24: 91 | AT24: =IF(AO24>AP$6,"",AY24-AX24-AW24-AV24-AU24) ->  | AU24: =IF(AO24>AP$6,"",((1+AP$11)^(AQ24/360)-1)*AS24) ->  | AW24: 400.10 | AX24: PC - Auto/4x4 con GPS Lima/Valor >50k | BF24: 3 | BG24: 2022-12-01 | BH24: =IF(BF24>BG$6,"",BG24-BG23) -> 30 | BI24: 91 | BK24: =IF(BF24>BG$6,"",BP24-BO24-BN24-BM24-BL24) ->  | BL24: =IF(BF24>BG$6,"",((1+BG$11)^(BH24/360)-1)*BJ24) ->  | BN24: 400.10 | BO24: PC - Auto/4x4 con GPS Lima/Valor >50k | BW24: 3 | BX24: 2022-12-01 | BY24: =IF(BW24>BX$6,"",BX24-BX23) -> 30 | BZ24: 91 | CB24: =IF(BW24>BX$6,"",CG24-CF24-CE24-CD24-CC24) ->  | CC24: =IF(BW24>BX$6,"",((1+BX$11)^(BY24/360)-1)*CA24) ->  | CE24: 400.10 | CF24: PC - Auto/4x4 con GPS Lima/Valor >50k | CN24: 3 | CO24: 2022-12-01 | CP24: =IF(CN24>CO$6,"",CO24-CO23) -> 30 | CQ24: 91 | CS24: =IF(CN24>CO$6,"",CX24-CW24-CV24-CU24-CT24) ->  | CT24: =IF(CN24>CO$6,"",((1+CO$11)^(CP24/360)-1)*CR24) ->  | CV24: 400.10 | CW24: PC - Auto/4x4 con GPS Lima/Valor >50k
B25: 4 | C25: 2026-02-01 | D25: 7 | E25: 2026-02-02 | F25: 32 | G25: 124 | H25: 100,124.95 | I25: 1,276.42 | J25: 1,013.72 | K25: 0 | L25: 0.00 | M25: 0 | N25: 2,290.14 | O25: 98,848.53 | P25: 0.96 | Q25: 0.96 | X25: 4 | Y25: 2023-01-01 | Z25: =IF(X25>Y$6,"",Y25-Y24) -> 31 | AA25: 122 | AC25: =IF(X25>Y$6,"",AH25-AG25-AF25-AE25-AD25) ->  | AF25: 400.10 | AG25: PC - Auto/4x4 con GPS Lima/Valor >50k | AO25: 4 | AP25: 2023-01-01 | AQ25: =IF(AO25>AP$6,"",AP25-AP24) -> 31 | AR25: 122 | AT25: =IF(AO25>AP$6,"",AY25-AX25-AW25-AV25-AU25) ->  | AW25: 400.10 | AX25: PC - Auto/4x4 con GPS Lima/Valor >50k | BF25: 4 | BG25: 2023-01-01 | BH25: =IF(BF25>BG$6,"",BG25-BG24) -> 31 | BI25: 122 | BK25: =IF(BF25>BG$6,"",BP25-BO25-BN25-BM25-BL25) ->  | BN25: 400.10 | BO25: PC - Auto/4x4 con GPS Lima/Valor >50k | BW25: 4 | BX25: 2023-01-01 | BY25: =IF(BW25>BX$6,"",BX25-BX24) -> 31 | BZ25: 122 | CB25: =IF(BW25>BX$6,"",CG25-CF25-CE25-CD25-CC25) ->  | CE25: 400.10 | CF25: PC - Auto/4x4 con GPS Lima/Valor >50k | CN25: 4 | CO25: 2023-01-01 | CP25: =IF(CN25>CO$6,"",CO25-CO24) -> 31 | CQ25: 122 | CS25: =IF(CN25>CO$6,"",CX25-CW25-CV25-CU25-CT25) ->  | CV25: 400.10 | CW25: PC - Auto/4x4 con GPS Lima/Valor >50k
B26: 5 | C26: 2026-03-01 | D26: 7 | E26: 2026-03-02 | F26: 28 | G26: 152 | H26: 98,848.53 | I26: 1,415.00 | J26: 875.15 | K26: 0 | L26: 0.00 | M26: 0 | N26: 2,290.14 | O26: 97,433.53 | P26: 0.95 | Q26: 0.95 | X26: 5 | Y26: 2023-02-01 | Z26: 31 | AA26: 153 | AF26: 400.10 | AG26: PC - Auto/4x4 con GPS Lima/Valor >50k | AO26: 5 | AP26: 2023-02-01 | AQ26: 31 | AR26: 153 | AW26: 400.10 | AX26: PC - Auto/4x4 con GPS Lima/Valor >50k | BF26: 5 | BG26: 2023-02-01 | BH26: 31 | BI26: 153 | BN26: 400.10 | BO26: PC - Auto/4x4 con GPS Lima/Valor >50k | BW26: 5 | BX26: 2023-02-01 | BY26: 31 | BZ26: 153 | CE26: 400.10 | CF26: PC - Auto/4x4 con GPS Lima/Valor >50k | CN26: 5 | CO26: 2023-02-01 | CP26: 31 | CQ26: 153 | CV26: 400.10 | CW26: PC - Auto/4x4 con GPS Lima/Valor >50k
B27: 6 | C27: 2026-04-01 | D27: 3 | E27: 2026-04-01 | F27: 30 | G27: 182 | H27: 97,433.53 | I27: 1,365.62 | J27: 924.53 | K27: 0 | L27: 0.00 | M27: 0 | N27: 2,290.14 | O27: 96,067.91 | P27: 0.94 | Q27: 0.94 | X27: 6 | Y27: 2023-03-01 | Z27: 28 | AA27: 181 | AF27: 400.10 | AG27: PC - Auto/4x4 con GPS Lima/Valor >50k | AO27: 6 | AP27: 2023-03-01 | AQ27: 28 | AR27: 181 | AW27: 400.10 | AX27: PC - Auto/4x4 con GPS Lima/Valor >50k | BF27: 6 | BG27: 2023-03-01 | BH27: 28 | BI27: 181 | BN27: 400.10 | BO27: PC - Auto/4x4 con GPS Lima/Valor >50k | BW27: 6 | BX27: 2023-03-01 | BY27: 28 | BZ27: 181 | CE27: 400.10 | CF27: PC - Auto/4x4 con GPS Lima/Valor >50k | CN27: 6 | CO27: 2023-03-01 | CP27: 28 | CQ27: 181 | CV27: 400.10 | CW27: PC - Auto/4x4 con GPS Lima/Valor >50k
B28: 7 | C28: 2026-05-01 | D28: 5 | E28: 2026-05-01 | F28: 30 | G28: 212 | H28: 96,067.91 | I28: 1,378.58 | J28: 911.57 | K28: 0 | L28: 0.00 | M28: 0 | N28: 2,290.14 | O28: 94,689.34 | P28: 0.94 | Q28: 0.94 | X28: 7 | Y28: 2023-04-01 | Z28: 31 | AA28: 212 | AF28: 400.10 | AG28: PC - Auto/4x4 con GPS Lima/Valor >50k | AO28: 7 | AP28: 2023-04-01 | AQ28: 31 | AR28: 212 | AW28: 400.10 | AX28: PC - Auto/4x4 con GPS Lima/Valor >50k | BF28: 7 | BG28: 2023-04-01 | BH28: 31 | BI28: 212 | BN28: 400.10 | BO28: PC - Auto/4x4 con GPS Lima/Valor >50k | BW28: 7 | BX28: 2023-04-01 | BY28: 31 | BZ28: 212 | CE28: 400.10 | CF28: PC - Auto/4x4 con GPS Lima/Valor >50k | CN28: 7 | CO28: 2023-04-01 | CP28: 31 | CQ28: 212 | CV28: 400.10 | CW28: PC - Auto/4x4 con GPS Lima/Valor >50k
B29: 8 | C29: 2026-06-01 | D29: 1 | E29: 2026-06-01 | F29: 31 | G29: 243 | H29: 94,689.34 | I29: 1,361.56 | J29: 928.58 | K29: 0 | L29: 0.00 | M29: 0 | N29: 2,290.14 | O29: 93,327.77 | P29: 0.93 | Q29: 0.93 | X29: 8 | Y29: 2023-05-01 | Z29: 30 | AA29: 242 | AF29: 400.10 | AG29: PC - Auto/4x4 con GPS Lima/Valor >50k | AO29: 8 | AP29: 2023-05-01 | AQ29: 30 | AR29: 242 | AW29: 400.10 | AX29: PC - Auto/4x4 con GPS Lima/Valor >50k | BF29: 8 | BG29: 2023-05-01 | BH29: 30 | BI29: 242 | BN29: 400.10 | BO29: PC - Auto/4x4 con GPS Lima/Valor >50k | BW29: 8 | BX29: 2023-05-01 | BY29: 30 | BZ29: 242 | CE29: 400.10 | CF29: PC - Auto/4x4 con GPS Lima/Valor >50k | CN29: 8 | CO29: 2023-05-01 | CP29: 30 | CQ29: 242 | CV29: 400.10 | CW29: PC - Auto/4x4 con GPS Lima/Valor >50k
B30: 9 | C30: 2026-07-01 | D30: 3 | E30: 2026-07-01 | F30: 30 | G30: 273 | H30: 93,327.77 | I30: 1,404.58 | J30: 885.57 | K30: 0 | L30: 0.00 | M30: 0 | N30: 2,290.14 | O30: 91,923.20 | P30: 0.92 | Q30: 0.92 | X30: 9 | Y30: 2023-06-01 | Z30: 31 | AA30: 273 | AF30: 400.10 | AG30: PC - Auto/4x4 con GPS Lima/Valor >50k | AO30: 9 | AP30: 2023-06-01 | AQ30: 31 | AR30: 273 | AW30: 400.10 | AX30: PC - Auto/4x4 con GPS Lima/Valor >50k | BF30: 9 | BG30: 2023-06-01 | BH30: 31 | BI30: 273 | BN30: 400.10 | BO30: PC - Auto/4x4 con GPS Lima/Valor >50k | BW30: 9 | BX30: 2023-06-01 | BY30: 31 | BZ30: 273 | CE30: 400.10 | CF30: PC - Auto/4x4 con GPS Lima/Valor >50k | CN30: 9 | CO30: 2023-06-01 | CP30: 31 | CQ30: 273 | CV30: 400.10 | CW30: PC - Auto/4x4 con GPS Lima/Valor >50k
B31: 10 | C31: 2026-08-01 | D31: 6 | E31: 2026-08-01 | F31: 31 | G31: 304 | H31: 91,923.20 | I31: =IF(B31>C$6,"",N31-M31-L31-K31-J31) -> 1,388.69 | J31: 901.46 | K31: 0 | L31: 0.00 | M31: 0 | N31: 2,290.14 | O31: 90,534.51 | P31: 0.91 | Q31: 0.91 | X31: 10 | Y31: 2023-07-01 | Z31: 30 | AA31: 303 | AF31: 400.10 | AG31: PC - Auto/4x4 con GPS Lima/Valor >50k | AO31: 10 | AP31: 2023-07-01 | AQ31: 30 | AR31: 303 | AW31: 400.10 | AX31: PC - Auto/4x4 con GPS Lima/Valor >50k | BF31: 10 | BG31: 2023-07-01 | BH31: 30 | BI31: 303 | BN31: 400.10 | BO31: PC - Auto/4x4 con GPS Lima/Valor >50k | BW31: 10 | BX31: 2023-07-01 | BY31: 30 | BZ31: 303 | CE31: 400.10 | CF31: PC - Auto/4x4 con GPS Lima/Valor >50k | CN31: 10 | CO31: 2023-07-01 | CP31: 30 | CQ31: 303 | CV31: 400.10 | CW31: PC - Auto/4x4 con GPS Lima/Valor >50k
B32: 11 | C32: 2026-09-01 | D32: 2 | E32: 2026-09-01 | F32: 31 | G32: 335 | H32: 90,534.51 | I32: 1,402.31 | J32: 887.84 | K32: 0 | L32: 0.00 | M32: 0 | N32: 2,290.14 | O32: 89,132.21 | P32: 0.90 | Q32: 0.90 | X32: 11 | Y32: 2023-08-01 | Z32: 31 | AA32: 334 | AF32: 400.10 | AG32: PC - Auto/4x4 con GPS Lima/Valor >50k | AO32: 11 | AP32: 2023-08-01 | AQ32: 31 | AR32: 334 | AW32: 400.10 | AX32: PC - Auto/4x4 con GPS Lima/Valor >50k | BF32: 11 | BG32: 2023-08-01 | BH32: 31 | BI32: 334 | BN32: 400.10 | BO32: PC - Auto/4x4 con GPS Lima/Valor >50k | BW32: 11 | BX32: 2023-08-01 | BY32: 31 | BZ32: 334 | CE32: 400.10 | CF32: PC - Auto/4x4 con GPS Lima/Valor >50k | CN32: 11 | CO32: 2023-08-01 | CP32: 31 | CQ32: 334 | CV32: 400.10 | CW32: PC - Auto/4x4 con GPS Lima/Valor >50k
B33: 12 | C33: 2026-10-01 | D33: 4 | E33: 2026-10-01 | F33: 30 | G33: 365 | H33: 89,132.21 | I33: 1,444.39 | J33: 845.76 | K33: 0 | L33: 0.00 | M33: 0 | N33: =IF(B33>C$6,"",IF(B33=C$6,H33+J33+K33+L33+M33,IF(AND(C$9=2,MONTH(C33)=7),2*C$17,IF(AND(C$10=2,MONTH(C33)=12),2*C$17,C$17)))) -> 2,290.14 | O33: 87,687.82 | P33: 0.89 | Q33: 0.89 | X33: 12 | Y33: 2023-09-01 | Z33: 31 | AA33: 365 | AF33: 400.10 | AG33: PC - Auto/4x4 con GPS Lima/Valor >50k | AO33: 12 | AP33: 2023-09-01 | AQ33: 31 | AR33: 365 | AW33: 400.10 | AX33: PC - Auto/4x4 con GPS Lima/Valor >50k | BF33: 12 | BG33: 2023-09-01 | BH33: 31 | BI33: 365 | BN33: 400.10 | BO33: PC - Auto/4x4 con GPS Lima/Valor >50k | BW33: 12 | BX33: 2023-09-01 | BY33: 31 | BZ33: 365 | CE33: 400.10 | CF33: PC - Auto/4x4 con GPS Lima/Valor >50k | CN33: 12 | CO33: 2023-09-01 | CP33: 31 | CQ33: 365 | CV33: 400.10 | CW33: PC - Auto/4x4 con GPS Lima/Valor >50k
B34: 13 | C34: 2026-11-01 | D34: 7 | E34: 2026-11-02 | F34: 32 | G34: 397 | H34: 87,687.82 | I34: 1,402.34 | J34: 887.80 | K34: 0 | L34: 0.00 | M34: 0 | N34: 2,290.14 | O34: 86,285.48 | P34: 0.88 | Q34: 0.88 | X34: 13 | Y34: 2023-10-01 | Z34: 30 | AA34: 395 | AF34: 400.10 | AG34: PC - Auto/4x4 con GPS Lima/Valor >50k | AO34: 13 | AP34: 2023-10-01 | AQ34: 30 | AR34: 395 | AW34: 400.10 | AX34: PC - Auto/4x4 con GPS Lima/Valor >50k | BF34: 13 | BG34: 2023-10-01 | BH34: 30 | BI34: 395 | BN34: 400.10 | BO34: PC - Auto/4x4 con GPS Lima/Valor >50k | BW34: 13 | BX34: 2023-10-01 | BY34: 30 | BZ34: 395 | CE34: 400.10 | CF34: PC - Auto/4x4 con GPS Lima/Valor >50k | CN34: 13 | CO34: 2023-10-01 | CP34: 30 | CQ34: 395 | CV34: 400.10 | CW34: PC - Auto/4x4 con GPS Lima/Valor >50k
B35: 14 | C35: 2026-12-01 | D35: 2 | E35: 2026-12-01 | F35: 29 | G35: 426 | H35: 86,285.48 | I35: 1,498.82 | J35: 791.33 | K35: 0 | L35: 0.00 | M35: 0 | N35: 2,290.14 | O35: 84,786.66 | P35: 0.87 | Q35: 0.87 | X35: 14 | Y35: 2023-11-01 | Z35: 31 | AA35: 426 | AF35: 400.10 | AG35: PC - Auto/4x4 con GPS Lima/Valor >50k | AO35: 14 | AP35: 2023-11-01 | AQ35: 31 | AR35: 426 | AW35: 400.10 | AX35: PC - Auto/4x4 con GPS Lima/Valor >50k | BF35: 14 | BG35: 2023-11-01 | BH35: 31 | BI35: 426 | BN35: 400.10 | BO35: PC - Auto/4x4 con GPS Lima/Valor >50k | BW35: 14 | BX35: 2023-11-01 | BY35: 31 | BZ35: 426 | CE35: 400.10 | CF35: PC - Auto/4x4 con GPS Lima/Valor >50k | CN35: 14 | CO35: 2023-11-01 | CP35: 31 | CQ35: 426 | CV35: 400.10 | CW35: PC - Auto/4x4 con GPS Lima/Valor >50k
B36: 15 | C36: 2027-01-01 | D36: 5 | E36: 2027-01-01 | F36: 31 | G36: 457 | H36: 84,786.66 | I36: 1,458.67 | J36: 831.47 | K36: 0 | L36: 0.00 | M36: 0 | N36: 2,290.14 | O36: 83,327.99 | P36: 0.87 | Q36: 0.87 | X36: 15 | Y36: 2023-12-01 | Z36: 30 | AA36: 456 | AF36: 400.10 | AG36: PC - Auto/4x4 con GPS Lima/Valor >50k | AO36: 15 | AP36: 2023-12-01 | AQ36: 30 | AR36: 456 | AW36: 400.10 | AX36: PC - Auto/4x4 con GPS Lima/Valor >50k | BF36: 15 | BG36: 2023-12-01 | BH36: 30 | BI36: 456 | BN36: 400.10 | BO36: PC - Auto/4x4 con GPS Lima/Valor >50k | BW36: 15 | BX36: 2023-12-01 | BY36: 30 | BZ36: 456 | CE36: 400.10 | CF36: PC - Auto/4x4 con GPS Lima/Valor >50k | CN36: 15 | CO36: 2023-12-01 | CP36: 30 | CQ36: 456 | CV36: 400.10 | CW36: PC - Auto/4x4 con GPS Lima/Valor >50k
B37: 16 | C37: 2027-02-01 | D37: 1 | E37: 2027-02-01 | F37: 31 | G37: 488 | H37: 83,327.99 | I37: 1,472.98 | J37: 817.17 | K37: 0 | L37: 0.00 | M37: 0 | N37: 2,290.14 | O37: 81,855.01 | P37: 0.86 | Q37: 0.86 | X37: 16 | Y37: 2024-01-01 | Z37: 31 | AA37: 487 | AF37: 400.10 | AG37: PC - Auto/4x4 con GPS Lima/Valor >50k | AO37: 16 | AP37: 2024-01-01 | AQ37: 31 | AR37: 487 | AW37: 400.10 | AX37: PC - Auto/4x4 con GPS Lima/Valor >50k | BF37: 16 | BG37: 2024-01-01 | BH37: 31 | BI37: 487 | BN37: 400.10 | BO37: PC - Auto/4x4 con GPS Lima/Valor >50k | BW37: 16 | BX37: 2024-01-01 | BY37: 31 | BZ37: 487 | CE37: 400.10 | CF37: PC - Auto/4x4 con GPS Lima/Valor >50k | CN37: 16 | CO37: 2024-01-01 | CP37: 31 | CQ37: 487 | CV37: 400.10 | CW37: PC - Auto/4x4 con GPS Lima/Valor >50k
B38: 17 | C38: 2027-03-01 | D38: 1 | E38: 2027-03-01 | F38: 28 | G38: 516 | H38: 81,855.01 | I38: 1,565.45 | J38: 724.70 | K38: 0 | L38: 0.00 | M38: 0 | N38: 2,290.14 | O38: 80,289.56 | P38: 0.85 | Q38: 0.85 | X38: 17 | Y38: 2024-02-01 | Z38: 31 | AA38: 518 | AF38: 400.10 | AG38: PC - Auto/4x4 con GPS Lima/Valor >50k | AO38: 17 | AP38: 2024-02-01 | AQ38: 31 | AR38: 518 | AW38: 400.10 | AX38: PC - Auto/4x4 con GPS Lima/Valor >50k | BF38: 17 | BG38: 2024-02-01 | BH38: 31 | BI38: 518 | BN38: 400.10 | BO38: PC - Auto/4x4 con GPS Lima/Valor >50k | BW38: 17 | BX38: 2024-02-01 | BY38: 31 | BZ38: 518 | CE38: 400.10 | CF38: PC - Auto/4x4 con GPS Lima/Valor >50k | CN38: 17 | CO38: 2024-02-01 | CP38: 31 | CQ38: 518 | CV38: 400.10 | CW38: PC - Auto/4x4 con GPS Lima/Valor >50k
B39: 18 | C39: 2027-04-01 | D39: 4 | E39: 2027-04-01 | F39: 31 | G39: 547 | H39: 80,289.56 | I39: 1,502.77 | J39: 787.37 | K39: 0 | L39: 0.00 | M39: 0 | N39: 2,290.14 | O39: 78,786.79 | P39: 0.84 | Q39: 0.84 | X39: 18 | Y39: 2024-03-01 | Z39: 29 | AA39: 547 | AF39: 400.10 | AG39: PC - Auto/4x4 con GPS Lima/Valor >50k | AO39: 18 | AP39: 2024-03-01 | AQ39: 29 | AR39: 547 | AW39: 400.10 | AX39: PC - Auto/4x4 con GPS Lima/Valor >50k | BF39: 18 | BG39: 2024-03-01 | BH39: 29 | BI39: 547 | BN39: 400.10 | BO39: PC - Auto/4x4 con GPS Lima/Valor >50k | BW39: 18 | BX39: 2024-03-01 | BY39: 29 | BZ39: 547 | CE39: 400.10 | CF39: PC - Auto/4x4 con GPS Lima/Valor >50k | CN39: 18 | CO39: 2024-03-01 | CP39: 29 | CQ39: 547 | CV39: 400.10 | CW39: PC - Auto/4x4 con GPS Lima/Valor >50k
B40: 19 | C40: 2027-05-01 | D40: 6 | E40: 2027-05-01 | F40: 30 | G40: 577 | H40: 78,786.79 | I40: 1,542.55 | J40: 747.59 | K40: 0 | L40: 0.00 | M40: 0 | N40: 2,290.14 | O40: 77,244.24 | P40: 0.83 | Q40: 0.83 | X40: 19 | Y40: 2024-04-01 | Z40: 31 | AA40: 578 | AF40: 400.10 | AG40: PC - Auto/4x4 con GPS Lima/Valor >50k | AO40: 19 | AP40: 2024-04-01 | AQ40: 31 | AR40: 578 | AW40: 400.10 | AX40: PC - Auto/4x4 con GPS Lima/Valor >50k | BF40: 19 | BG40: 2024-04-01 | BH40: 31 | BI40: 578 | BN40: 400.10 | BO40: PC - Auto/4x4 con GPS Lima/Valor >50k | BW40: 19 | BX40: 2024-04-01 | BY40: 31 | BZ40: 578 | CE40: 400.10 | CF40: PC - Auto/4x4 con GPS Lima/Valor >50k | CN40: 19 | CO40: 2024-04-01 | CP40: 31 | CQ40: 578 | CV40: 400.10 | CW40: PC - Auto/4x4 con GPS Lima/Valor >50k
B41: 20 | C41: 2027-06-01 | D41: 2 | E41: 2027-06-01 | F41: 31 | G41: 608 | H41: 77,244.24 | I41: 1,532.64 | J41: 757.51 | K41: 0 | L41: 0.00 | M41: 0 | N41: 2,290.14 | O41: 75,711.60 | P41: 0.83 | Q41: 0.83 | X41: 20 | Y41: 2024-05-01 | Z41: 30 | AA41: 608 | AF41: 400.10 | AG41: PC - Auto/4x4 con GPS Lima/Valor >50k | AO41: 20 | AP41: 2024-05-01 | AQ41: 30 | AR41: 608 | AW41: 400.10 | AX41: PC - Auto/4x4 con GPS Lima/Valor >50k | BF41: 20 | BG41: 2024-05-01 | BH41: 30 | BI41: 608 | BN41: 400.10 | BO41: PC - Auto/4x4 con GPS Lima/Valor >50k | BW41: 20 | BX41: 2024-05-01 | BY41: 30 | BZ41: 608 | CE41: 400.10 | CF41: PC - Auto/4x4 con GPS Lima/Valor >50k | CN41: 20 | CO41: 2024-05-01 | CP41: 30 | CQ41: 608 | CV41: 400.10 | CW41: PC - Auto/4x4 con GPS Lima/Valor >50k
B42: 21 | C42: 2027-07-01 | D42: 4 | E42: 2027-07-01 | F42: 30 | G42: 638 | H42: 75,711.60 | I42: 1,571.73 | J42: 718.41 | K42: 0 | L42: 0.00 | M42: 0 | N42: 2,290.14 | O42: 74,139.87 | P42: 0.82 | Q42: 0.82 | X42: 21 | Y42: 2024-06-01 | Z42: 31 | AA42: 639 | AF42: 400.10 | AG42: PC - Auto/4x4 con GPS Lima/Valor >50k | AO42: 21 | AP42: 2024-06-01 | AQ42: 31 | AR42: 639 | AW42: 400.10 | AX42: PC - Auto/4x4 con GPS Lima/Valor >50k | BF42: 21 | BG42: 2024-06-01 | BH42: 31 | BI42: 639 | BN42: 400.10 | BO42: PC - Auto/4x4 con GPS Lima/Valor >50k | BW42: 21 | BX42: 2024-06-01 | BY42: 31 | BZ42: 639 | CE42: 400.10 | CF42: PC - Auto/4x4 con GPS Lima/Valor >50k | CN42: 21 | CO42: 2024-06-01 | CP42: 31 | CQ42: 639 | CV42: 400.10 | CW42: PC - Auto/4x4 con GPS Lima/Valor >50k
B43: 22 | C43: 2027-08-01 | D43: 7 | E43: 2027-08-02 | F43: 32 | G43: 670 | H43: 74,139.87 | I43: 1,539.51 | J43: 750.63 | K43: 0 | L43: 0.00 | M43: 0 | N43: 2,290.14 | O43: 72,600.36 | P43: 0.81 | Q43: 0.81 | X43: 22 | Y43: 2024-07-01 | Z43: 30 | AA43: 669 | AF43: 400.10 | AG43: PC - Auto/4x4 con GPS Lima/Valor >50k | AO43: 22 | AP43: 2024-07-01 | AQ43: 30 | AR43: 669 | AW43: 400.10 | AX43: PC - Auto/4x4 con GPS Lima/Valor >50k | BF43: 22 | BG43: 2024-07-01 | BH43: 30 | BI43: 669 | BN43: 400.10 | BO43: PC - Auto/4x4 con GPS Lima/Valor >50k | BW43: 22 | BX43: 2024-07-01 | BY43: 30 | BZ43: 669 | CE43: 400.10 | CF43: PC - Auto/4x4 con GPS Lima/Valor >50k | CN43: 22 | CO43: 2024-07-01 | CP43: 30 | CQ43: 669 | CV43: 400.10 | CW43: PC - Auto/4x4 con GPS Lima/Valor >50k
B44: 23 | C44: 2027-09-01 | D44: 3 | E44: 2027-09-01 | F44: 30 | G44: 700 | H44: 72,600.36 | I44: 1,601.25 | J44: 688.89 | K44: 0 | L44: 0.00 | M44: 0 | N44: 2,290.14 | O44: 70,999.10 | P44: 0.80 | Q44: 0.80 | X44: 23 | Y44: 2024-08-01 | Z44: 31 | AA44: 700 | AF44: 400.10 | AG44: PC - Auto/4x4 con GPS Lima/Valor >50k | AO44: 23 | AP44: 2024-08-01 | AQ44: 31 | AR44: 700 | AW44: 400.10 | AX44: PC - Auto/4x4 con GPS Lima/Valor >50k | BF44: 23 | BG44: 2024-08-01 | BH44: 31 | BI44: 700 | BN44: 400.10 | BO44: PC - Auto/4x4 con GPS Lima/Valor >50k | BW44: 23 | BX44: 2024-08-01 | BY44: 31 | BZ44: 700 | CE44: 400.10 | CF44: PC - Auto/4x4 con GPS Lima/Valor >50k | CN44: 23 | CO44: 2024-08-01 | CP44: 31 | CQ44: 700 | CV44: 400.10 | CW44: PC - Auto/4x4 con GPS Lima/Valor >50k
B45: 24 | C45: 2027-10-01 | D45: 5 | E45: 2027-10-01 | F45: 30 | G45: 730 | H45: 70,999.10 | I45: 1,616.45 | J45: 673.70 | K45: 0 | L45: 0.00 | M45: 0 | N45: 2,290.14 | O45: 69,382.65 | P45: 0.79 | Q45: 0.79 | X45: 24 | Y45: 2024-09-01 | Z45: 31 | AA45: 731 | AF45: 400.10 | AG45: PC - Auto/4x4 con GPS Lima/Valor >50k | AO45: 24 | AP45: 2024-09-01 | AQ45: 31 | AR45: 731 | AW45: 400.10 | AX45: PC - Auto/4x4 con GPS Lima/Valor >50k | BF45: 24 | BG45: 2024-09-01 | BH45: 31 | BI45: 731 | BN45: 400.10 | BO45: PC - Auto/4x4 con GPS Lima/Valor >50k | BW45: 24 | BX45: 2024-09-01 | BY45: 31 | BZ45: 731 | CE45: 400.10 | CF45: PC - Auto/4x4 con GPS Lima/Valor >50k | CN45: 24 | CO45: 2024-09-01 | CP45: 31 | CQ45: 731 | CV45: 400.10 | CW45: PC - Auto/4x4 con GPS Lima/Valor >50k
B46: 25 | C46: 2027-11-01 | D46: 1 | E46: 2027-11-01 | F46: 31 | G46: 761 | H46: 69,382.65 | I46: 1,609.73 | J46: 680.41 | K46: 0 | L46: 0.00 | M46: 0 | N46: 2,290.14 | O46: 67,772.92 | P46: 0.79 | Q46: 0.79 | X46: 25 | Y46: 2024-10-01 | Z46: 30 | AA46: 761 | AF46: 400.10 | AG46: PC - Auto/4x4 con GPS Lima/Valor >50k | AO46: 25 | AP46: 2024-10-01 | AQ46: 30 | AR46: 761 | AW46: 400.10 | AX46: PC - Auto/4x4 con GPS Lima/Valor >50k | BF46: 25 | BG46: 2024-10-01 | BH46: 30 | BI46: 761 | BN46: 400.10 | BO46: PC - Auto/4x4 con GPS Lima/Valor >50k | BW46: 25 | BX46: 2024-10-01 | BY46: 30 | BZ46: 761 | CE46: 400.10 | CF46: PC - Auto/4x4 con GPS Lima/Valor >50k | CN46: 25 | CO46: 2024-10-01 | CP46: 30 | CQ46: 761 | CV46: 400.10 | CW46: PC - Auto/4x4 con GPS Lima/Valor >50k
B47: 26 | C47: 2027-12-01 | D47: 3 | E47: 2027-12-01 | F47: 30 | G47: 791 | H47: 67,772.92 | I47: 1,647.06 | J47: 643.08 | K47: 0 | L47: 0.00 | M47: 0 | N47: 2,290.14 | O47: 66,125.86 | P47: 0.78 | Q47: 0.78 | X47: 26 | Y47: 2024-11-01 | Z47: 31 | AA47: 792 | AF47: 400.10 | AG47: PC - Auto/4x4 con GPS Lima/Valor >50k | AO47: 26 | AP47: 2024-11-01 | AQ47: 31 | AR47: 792 | AW47: 400.10 | AX47: PC - Auto/4x4 con GPS Lima/Valor >50k | BF47: 26 | BG47: 2024-11-01 | BH47: 31 | BI47: 792 | BN47: 400.10 | BO47: PC - Auto/4x4 con GPS Lima/Valor >50k | BW47: 26 | BX47: 2024-11-01 | BY47: 31 | BZ47: 792 | CE47: 400.10 | CF47: PC - Auto/4x4 con GPS Lima/Valor >50k | CN47: 26 | CO47: 2024-11-01 | CP47: 31 | CQ47: 792 | CV47: 400.10 | CW47: PC - Auto/4x4 con GPS Lima/Valor >50k
B48: 27 | C48: 2028-01-01 | D48: 6 | E48: 2028-01-01 | F48: 31 | G48: 822 | H48: 66,125.86 | I48: 1,641.67 | J48: 648.47 | K48: 0 | L48: 0.00 | M48: 0 | N48: 2,290.14 | O48: 64,484.18 | P48: 0.77 | Q48: 0.77 | X48: 27 | Y48: 2024-12-01 | Z48: 30 | AA48: 822 | AF48: 400.10 | AG48: PC - Auto/4x4 con GPS Lima/Valor >50k | AO48: 27 | AP48: 2024-12-01 | AQ48: 30 | AR48: 822 | AW48: 400.10 | AX48: PC - Auto/4x4 con GPS Lima/Valor >50k | BF48: 27 | BG48: 2024-12-01 | BH48: 30 | BI48: 822 | BN48: 400.10 | BO48: PC - Auto/4x4 con GPS Lima/Valor >50k | BW48: 27 | BX48: 2024-12-01 | BY48: 30 | BZ48: 822 | CE48: 400.10 | CF48: PC - Auto/4x4 con GPS Lima/Valor >50k | CN48: 27 | CO48: 2024-12-01 | CP48: 30 | CQ48: 822 | CV48: 400.10 | CW48: PC - Auto/4x4 con GPS Lima/Valor >50k
B49: 28 | C49: 2028-02-01 | D49: 2 | E49: 2028-02-01 | F49: 31 | G49: 853 | H49: 64,484.18 | I49: 1,657.77 | J49: 632.37 | K49: 0 | L49: 0.00 | M49: 0 | N49: 2,290.14 | O49: 62,826.41 | P49: 0.76 | Q49: 0.76 | X49: 28 | Y49: 2025-01-01 | Z49: 31 | AA49: 853 | AF49: 400.10 | AG49: PC - Auto/4x4 con GPS Lima/Valor >50k | AO49: 28 | AP49: 2025-01-01 | AQ49: 31 | AR49: 853 | AW49: 400.10 | AX49: PC - Auto/4x4 con GPS Lima/Valor >50k | BF49: 28 | BG49: 2025-01-01 | BH49: 31 | BI49: 853 | BN49: 400.10 | BO49: PC - Auto/4x4 con GPS Lima/Valor >50k | BW49: 28 | BX49: 2025-01-01 | BY49: 31 | BZ49: 853 | CE49: 400.10 | CF49: PC - Auto/4x4 con GPS Lima/Valor >50k | CN49: 28 | CO49: 2025-01-01 | CP49: 31 | CQ49: 853 | CV49: 400.10 | CW49: PC - Auto/4x4 con GPS Lima/Valor >50k
B50: 29 | C50: 2028-03-01 | D50: 3 | E50: 2028-03-01 | F50: 29 | G50: 882 | H50: 62,826.41 | I50: 1,713.96 | J50: 576.18 | K50: 0 | L50: 0.00 | M50: 0 | N50: 2,290.14 | O50: 61,112.45 | P50: 0.76 | Q50: 0.76 | X50: 29 | Y50: 2025-02-01 | Z50: 31 | AA50: 884 | AF50: 400.10 | AG50: PC - Auto/4x4 con GPS Lima/Valor >50k | AO50: 29 | AP50: 2025-02-01 | AQ50: 31 | AR50: 884 | AW50: 400.10 | AX50: PC - Auto/4x4 con GPS Lima/Valor >50k | BF50: 29 | BG50: 2025-02-01 | BH50: 31 | BI50: 884 | BN50: 400.10 | BO50: PC - Auto/4x4 con GPS Lima/Valor >50k | BW50: 29 | BX50: 2025-02-01 | BY50: 31 | BZ50: 884 | CE50: 400.10 | CF50: PC - Auto/4x4 con GPS Lima/Valor >50k | CN50: 29 | CO50: 2025-02-01 | CP50: 31 | CQ50: 884 | CV50: 400.10 | CW50: PC - Auto/4x4 con GPS Lima/Valor >50k
B51: 30 | C51: 2028-04-01 | D51: 6 | E51: 2028-04-01 | F51: 31 | G51: 913 | H51: 61,112.45 | I51: 1,690.84 | J51: 599.31 | K51: 0 | L51: 0.00 | M51: 0 | N51: 2,290.14 | O51: 59,421.62 | P51: 0.75 | Q51: 0.75 | X51: 30 | Y51: 2025-03-01 | Z51: 28 | AA51: 912 | AF51: 400.10 | AG51: PC - Auto/4x4 con GPS Lima/Valor >50k | AO51: 30 | AP51: 2025-03-01 | AQ51: 28 | AR51: 912 | AW51: 400.10 | AX51: PC - Auto/4x4 con GPS Lima/Valor >50k | BF51: 30 | BG51: 2025-03-01 | BH51: 28 | BI51: 912 | BN51: 400.10 | BO51: PC - Auto/4x4 con GPS Lima/Valor >50k | BW51: 30 | BX51: 2025-03-01 | BY51: 28 | BZ51: 912 | CE51: 400.10 | CF51: PC - Auto/4x4 con GPS Lima/Valor >50k | CN51: 30 | CO51: 2025-03-01 | CP51: 28 | CQ51: 912 | CV51: 400.10 | CW51: PC - Auto/4x4 con GPS Lima/Valor >50k
B52: 31 | C52: 2028-05-01 | D52: 1 | E52: 2028-05-01 | F52: 30 | G52: 943 | H52: 59,421.62 | I52: 1,726.30 | J52: 563.84 | K52: 0 | L52: 0.00 | M52: 0 | N52: 2,290.14 | O52: 57,695.31 | P52: 0.74 | Q52: 0.74 | X52: 31 | Y52: 2025-04-01 | Z52: 31 | AA52: 943 | AF52: 400.10 | AG52: PC - Auto/4x4 con GPS Lima/Valor >50k | AO52: 31 | AP52: 2025-04-01 | AQ52: 31 | AR52: 943 | AW52: 400.10 | AX52: PC - Auto/4x4 con GPS Lima/Valor >50k | BF52: 31 | BG52: 2025-04-01 | BH52: 31 | BI52: 943 | BN52: 400.10 | BO52: PC - Auto/4x4 con GPS Lima/Valor >50k | BW52: 31 | BX52: 2025-04-01 | BY52: 31 | BZ52: 943 | CE52: 400.10 | CF52: PC - Auto/4x4 con GPS Lima/Valor >50k | CN52: 31 | CO52: 2025-04-01 | CP52: 31 | CQ52: 943 | CV52: 400.10 | CW52: PC - Auto/4x4 con GPS Lima/Valor >50k
B53: 32 | C53: 2028-06-01 | D53: 4 | E53: 2028-06-01 | F53: 31 | G53: 974 | H53: 57,695.31 | I53: 1,724.35 | J53: 565.80 | K53: 0 | L53: 0.00 | M53: 0 | N53: 2,290.14 | O53: 55,970.96 | P53: 0.74 | Q53: 0.74 | X53: 32 | Y53: 2025-05-01 | Z53: 30 | AA53: 973 | AF53: 400.10 | AG53: PC - Auto/4x4 con GPS Lima/Valor >50k | AO53: 32 | AP53: 2025-05-01 | AQ53: 30 | AR53: 973 | AW53: 400.10 | AX53: PC - Auto/4x4 con GPS Lima/Valor >50k | BF53: 32 | BG53: 2025-05-01 | BH53: 30 | BI53: 973 | BN53: 400.10 | BO53: PC - Auto/4x4 con GPS Lima/Valor >50k | BW53: 32 | BX53: 2025-05-01 | BY53: 30 | BZ53: 973 | CE53: 400.10 | CF53: PC - Auto/4x4 con GPS Lima/Valor >50k | CN53: 32 | CO53: 2025-05-01 | CP53: 30 | CQ53: 973 | CV53: 400.10 | CW53: PC - Auto/4x4 con GPS Lima/Valor >50k
B54: 33 | C54: 2028-07-01 | D54: 6 | E54: 2028-07-01 | F54: 30 | G54: 1004 | H54: 55,970.96 | I54: 1,759.05 | J54: 531.10 | K54: 0 | L54: 0.00 | M54: 0 | N54: 2,290.14 | O54: 54,211.92 | P54: 0.73 | Q54: 0.73 | X54: 33 | Y54: 2025-06-01 | Z54: 31 | AA54: 1004 | AF54: 400.10 | AG54: PC - Auto/4x4 con GPS Lima/Valor >50k | AO54: 33 | AP54: 2025-06-01 | AQ54: 31 | AR54: 1004 | AW54: 400.10 | AX54: PC - Auto/4x4 con GPS Lima/Valor >50k | BF54: 33 | BG54: 2025-06-01 | BH54: 31 | BI54: 1004 | BN54: 400.10 | BO54: PC - Auto/4x4 con GPS Lima/Valor >50k | BW54: 33 | BX54: 2025-06-01 | BY54: 31 | BZ54: 1004 | CE54: 400.10 | CF54: PC - Auto/4x4 con GPS Lima/Valor >50k | CN54: 33 | CO54: 2025-06-01 | CP54: 31 | CQ54: 1004 | CV54: 400.10 | CW54: PC - Auto/4x4 con GPS Lima/Valor >50k
B55: 34 | C55: 2028-08-01 | D55: 2 | E55: 2028-08-01 | F55: 31 | G55: 1035 | H55: 54,211.92 | I55: 1,758.51 | J55: 531.64 | K55: 0 | L55: 0.00 | M55: 0 | N55: 2,290.14 | O55: 52,453.41 | P55: 0.72 | Q55: 0.72 | X55: 34 | Y55: 2025-07-01 | Z55: 30 | AA55: 1034 | AF55: 400.10 | AG55: PC - Auto/4x4 con GPS Lima/Valor >50k | AO55: 34 | AP55: 2025-07-01 | AQ55: 30 | AR55: 1034 | AW55: 400.10 | AX55: PC - Auto/4x4 con GPS Lima/Valor >50k | BF55: 34 | BG55: 2025-07-01 | BH55: 30 | BI55: 1034 | BN55: 400.10 | BO55: PC - Auto/4x4 con GPS Lima/Valor >50k | BW55: 34 | BX55: 2025-07-01 | BY55: 30 | BZ55: 1034 | CE55: 400.10 | CF55: PC - Auto/4x4 con GPS Lima/Valor >50k | CN55: 34 | CO55: 2025-07-01 | CP55: 30 | CQ55: 1034 | CV55: 400.10 | CW55: PC - Auto/4x4 con GPS Lima/Valor >50k
B56: 35 | C56: 2028-09-01 | D56: 5 | E56: 2028-09-01 | F56: 31 | G56: 1066 | H56: 52,453.41 | I56: 1,775.75 | J56: 514.39 | K56: 0 | L56: 0.00 | M56: 0 | N56: 2,290.14 | O56: 50,677.66 | P56: 0.71 | Q56: 0.71 | X56: 35 | Y56: 2025-08-01 | Z56: 31 | AA56: 1065 | AF56: 400.10 | AG56: PC - Auto/4x4 con GPS Lima/Valor >50k | AO56: 35 | AP56: 2025-08-01 | AQ56: 31 | AR56: 1065 | AW56: 400.10 | AX56: PC - Auto/4x4 con GPS Lima/Valor >50k | BF56: 35 | BG56: 2025-08-01 | BH56: 31 | BI56: 1065 | BN56: 400.10 | BO56: PC - Auto/4x4 con GPS Lima/Valor >50k | BW56: 35 | BX56: 2025-08-01 | BY56: 31 | BZ56: 1065 | CE56: 400.10 | CF56: PC - Auto/4x4 con GPS Lima/Valor >50k | CN56: 35 | CO56: 2025-08-01 | CP56: 31 | CQ56: 1065 | CV56: 400.10 | CW56: PC - Auto/4x4 con GPS Lima/Valor >50k
B57: 36 | C57: 2028-10-01 | D57: 7 | E57: 2028-10-02 | F57: 31 | G57: 1097 | H57: 50,677.66 | I57: 1,793.17 | J57: 496.98 | K57: 0 | L57: 0.00 | M57: 0 | N57: 2,290.14 | O57: 48,884.49 | P57: 0.71 | Q57: 0.71 | X57: 36 | Y57: 2025-09-01 | Z57: 31 | AA57: 1096 | AF57: 400.10 | AG57: PC - Auto/4x4 con GPS Lima/Valor >50k | AO57: 36 | AP57: 2025-09-01 | AQ57: 31 | AR57: 1096 | AW57: 400.10 | AX57: PC - Auto/4x4 con GPS Lima/Valor >50k | BF57: 36 | BG57: 2025-09-01 | BH57: 31 | BI57: 1096 | BN57: 400.10 | BO57: PC - Auto/4x4 con GPS Lima/Valor >50k | BW57: 36 | BX57: 2025-09-01 | BY57: 31 | BZ57: 1096 | CE57: 400.10 | CF57: PC - Auto/4x4 con GPS Lima/Valor >50k | CN57: 36 | CO57: 2025-09-01 | CP57: 31 | CQ57: 1096 | CV57: 400.10 | CW57: PC - Auto/4x4 con GPS Lima/Valor >50k
B58: 37 | C58: 2028-11-01 | D58: 3 | E58: 2028-11-01 | F58: 30 | G58: 1127 | H58: 48,884.49 | I58: 1,826.29 | J58: 463.85 | K58: 0 | L58: 0.00 | M58: 0 | N58: 2,290.14 | O58: 47,058.20 | P58: 0.70 | Q58: 0.70 | X58: 37 | Y58: 2025-10-01 | Z58: 30 | AA58: 1126 | AF58: 400.10 | AG58: PC - Auto/4x4 con GPS Lima/Valor >50k | AO58: 37 | AP58: 2025-10-01 | AQ58: 30 | AR58: 1126 | AW58: 400.10 | AX58: PC - Auto/4x4 con GPS Lima/Valor >50k | BF58: 37 | BG58: 2025-10-01 | BH58: 30 | BI58: 1126 | BN58: 400.10 | BO58: PC - Auto/4x4 con GPS Lima/Valor >50k | BW58: 37 | BX58: 2025-10-01 | BY58: 30 | BZ58: 1126 | CE58: 400.10 | CF58: PC - Auto/4x4 con GPS Lima/Valor >50k | CN58: 37 | CO58: 2025-10-01 | CP58: 30 | CQ58: 1126 | CV58: 400.10 | CW58: PC - Auto/4x4 con GPS Lima/Valor >50k
B59: 38 | C59: 2028-12-01 | D59: 5 | E59: 2028-12-01 | F59: 30 | G59: 1157 | H59: 47,058.20 | I59: 1,843.62 | J59: 446.53 | K59: 0 | L59: 0.00 | M59: 0 | N59: 2,290.14 | O59: 45,214.58 | P59: 0.69 | Q59: 0.69 | X59: 38 | Y59: 2025-11-01 | Z59: 31 | AA59: 1157 | AF59: 400.10 | AG59: PC - Auto/4x4 con GPS Lima/Valor >50k | AO59: 38 | AP59: 2025-11-01 | AQ59: 31 | AR59: 1157 | AW59: 400.10 | AX59: PC - Auto/4x4 con GPS Lima/Valor >50k | BF59: 38 | BG59: 2025-11-01 | BH59: 31 | BI59: 1157 | BN59: 400.10 | BO59: PC - Auto/4x4 con GPS Lima/Valor >50k | BW59: 38 | BX59: 2025-11-01 | BY59: 31 | BZ59: 1157 | CE59: 400.10 | CF59: PC - Auto/4x4 con GPS Lima/Valor >50k | CN59: 38 | CO59: 2025-11-01 | CP59: 31 | CQ59: 1157 | CV59: 400.10 | CW59: PC - Auto/4x4 con GPS Lima/Valor >50k
B60: 39 | C60: 2029-01-01 | D60: 1 | E60: 2029-01-01 | F60: 31 | G60: 1188 | H60: 45,214.58 | I60: 1,846.74 | J60: 443.40 | K60: 0 | L60: 0.00 | M60: 0 | N60: 2,290.14 | O60: 43,367.84 | P60: 0.69 | Q60: 0.69 | X60: 39 | Y60: 2025-12-01 | Z60: 30 | AA60: 1187 | AF60: 400.10 | AG60: PC - Auto/4x4 con GPS Lima/Valor >50k | AO60: 39 | AP60: 2025-12-01 | AQ60: 30 | AR60: 1187 | AW60: 400.10 | AX60: PC - Auto/4x4 con GPS Lima/Valor >50k | BF60: 39 | BG60: 2025-12-01 | BH60: 30 | BI60: 1187 | BN60: 400.10 | BO60: PC - Auto/4x4 con GPS Lima/Valor >50k | BW60: 39 | BX60: 2025-12-01 | BY60: 30 | BZ60: 1187 | CE60: 400.10 | CF60: PC - Auto/4x4 con GPS Lima/Valor >50k | CN60: 39 | CO60: 2025-12-01 | CP60: 30 | CQ60: 1187 | CV60: 400.10 | CW60: PC - Auto/4x4 con GPS Lima/Valor >50k
B61: 40 | C61: 2029-02-01 | D61: 4 | E61: 2029-02-01 | F61: 31 | G61: 1219 | H61: 43,367.84 | I61: 1,864.85 | J61: 425.29 | K61: 0 | L61: 0.00 | M61: 0 | N61: 2,290.14 | O61: 41,502.99 | P61: 0.68 | Q61: 0.68 | X61: 40 | Y61: 2026-01-01 | Z61: 31 | AA61: 1218 | AF61: 400.10 | AG61: PC - Auto/4x4 con GPS Lima/Valor >50k | AO61: 40 | AP61: 2026-01-01 | AQ61: 31 | AR61: 1218 | AW61: 400.10 | AX61: PC - Auto/4x4 con GPS Lima/Valor >50k | BF61: 40 | BG61: 2026-01-01 | BH61: 31 | BI61: 1218 | BN61: 400.10 | BO61: PC - Auto/4x4 con GPS Lima/Valor >50k | BW61: 40 | BX61: 2026-01-01 | BY61: 31 | BZ61: 1218 | CE61: 400.10 | CF61: PC - Auto/4x4 con GPS Lima/Valor >50k | CN61: 40 | CO61: 2026-01-01 | CP61: 31 | CQ61: 1218 | CV61: 400.10 | CW61: PC - Auto/4x4 con GPS Lima/Valor >50k
B62: 41 | C62: 2029-03-01 | D62: 4 | E62: 2029-03-01 | F62: 28 | G62: 1247 | H62: 41,502.99 | I62: 1,922.70 | J62: 367.44 | K62: 0 | L62: 0.00 | M62: 0 | N62: 2,290.14 | O62: 39,580.29 | P62: 0.68 | Q62: 0.68 | X62: 41 | Y62: 2026-02-01 | Z62: 31 | AA62: 1249 | AF62: 400.10 | AG62: PC - Auto/4x4 con GPS Lima/Valor >50k | AO62: 41 | AP62: 2026-02-01 | AQ62: 31 | AR62: 1249 | AW62: 400.10 | AX62: PC - Auto/4x4 con GPS Lima/Valor >50k | BF62: 41 | BG62: 2026-02-01 | BH62: 31 | BI62: 1249 | BN62: 400.10 | BO62: PC - Auto/4x4 con GPS Lima/Valor >50k | BW62: 41 | BX62: 2026-02-01 | BY62: 31 | BZ62: 1249 | CE62: 400.10 | CF62: PC - Auto/4x4 con GPS Lima/Valor >50k | CN62: 41 | CO62: 2026-02-01 | CP62: 31 | CQ62: 1249 | CV62: 400.10 | CW62: PC - Auto/4x4 con GPS Lima/Valor >50k
B63: 42 | C63: 2029-04-01 | D63: 7 | E63: 2029-04-02 | F63: 32 | G63: 1279 | H63: 39,580.29 | I63: 1,889.41 | J63: 400.73 | K63: 0 | L63: 0.00 | M63: 0 | N63: 2,290.14 | O63: 37,690.88 | P63: 0.67 | Q63: 0.67 | X63: 42 | Y63: 2026-03-01 | Z63: 28 | AA63: 1277 | AF63: 400.10 | AG63: PC - Auto/4x4 con GPS Lima/Valor >50k | AO63: 42 | AP63: 2026-03-01 | AQ63: 28 | AR63: 1277 | AW63: 400.10 | AX63: PC - Auto/4x4 con GPS Lima/Valor >50k | BF63: 42 | BG63: 2026-03-01 | BH63: 28 | BI63: 1277 | BN63: 400.10 | BO63: PC - Auto/4x4 con GPS Lima/Valor >50k | BW63: 42 | BX63: 2026-03-01 | BY63: 28 | BZ63: 1277 | CE63: 400.10 | CF63: PC - Auto/4x4 con GPS Lima/Valor >50k | CN63: 42 | CO63: 2026-03-01 | CP63: 28 | CQ63: 1277 | CV63: 400.10 | CW63: PC - Auto/4x4 con GPS Lima/Valor >50k
B64: 43 | C64: 2029-05-01 | D64: 2 | E64: 2029-05-01 | F64: 29 | G64: 1308 | H64: 37,690.88 | I64: 1,944.48 | J64: 345.67 | K64: 0 | L64: 0.00 | M64: 0 | N64: 2,290.14 | O64: 35,746.40 | P64: 0.66 | Q64: 0.66 | X64: 43 | Y64: 2026-04-01 | Z64: 31 | AA64: 1308 | AF64: 400.10 | AG64: PC - Auto/4x4 con GPS Lima/Valor >50k | AO64: 43 | AP64: 2026-04-01 | AQ64: 31 | AR64: 1308 | AW64: 400.10 | AX64: PC - Auto/4x4 con GPS Lima/Valor >50k | BF64: 43 | BG64: 2026-04-01 | BH64: 31 | BI64: 1308 | BN64: 400.10 | BO64: PC - Auto/4x4 con GPS Lima/Valor >50k | BW64: 43 | BX64: 2026-04-01 | BY64: 31 | BZ64: 1308 | CE64: 400.10 | CF64: PC - Auto/4x4 con GPS Lima/Valor >50k | CN64: 43 | CO64: 2026-04-01 | CP64: 31 | CQ64: 1308 | CV64: 400.10 | CW64: PC - Auto/4x4 con GPS Lima/Valor >50k
B65: 44 | C65: 2029-06-01 | D65: 5 | E65: 2029-06-01 | F65: 31 | G65: 1339 | H65: 35,746.40 | I65: 1,939.59 | J65: 350.55 | K65: 0 | L65: 0.00 | M65: 0 | N65: 2,290.14 | O65: 33,806.80 | P65: 0.66 | Q65: 0.66 | X65: 44 | Y65: 2026-05-01 | Z65: 30 | AA65: 1338 | AF65: 400.10 | AG65: PC - Auto/4x4 con GPS Lima/Valor >50k | AO65: 44 | AP65: 2026-05-01 | AQ65: 30 | AR65: 1338 | AW65: 400.10 | AX65: PC - Auto/4x4 con GPS Lima/Valor >50k | BF65: 44 | BG65: 2026-05-01 | BH65: 30 | BI65: 1338 | BN65: 400.10 | BO65: PC - Auto/4x4 con GPS Lima/Valor >50k | BW65: 44 | BX65: 2026-05-01 | BY65: 30 | BZ65: 1338 | CE65: 400.10 | CF65: PC - Auto/4x4 con GPS Lima/Valor >50k | CN65: 44 | CO65: 2026-05-01 | CP65: 30 | CQ65: 1338 | CV65: 400.10 | CW65: PC - Auto/4x4 con GPS Lima/Valor >50k
B66: 45 | C66: 2029-07-01 | D66: 7 | E66: 2029-07-02 | F66: 31 | G66: 1370 | H66: 33,806.80 | I66: 1,958.61 | J66: 331.53 | K66: 0 | L66: 0.00 | M66: 0 | N66: 2,290.14 | O66: 31,848.19 | P66: 0.65 | Q66: 0.65 | X66: 45 | Y66: 2026-06-01 | Z66: 31 | AA66: 1369 | AF66: 400.10 | AG66: PC - Auto/4x4 con GPS Lima/Valor >50k | AO66: 45 | AP66: 2026-06-01 | AQ66: 31 | AR66: 1369 | AW66: 400.10 | AX66: PC - Auto/4x4 con GPS Lima/Valor >50k | BF66: 45 | BG66: 2026-06-01 | BH66: 31 | BI66: 1369 | BN66: 400.10 | BO66: PC - Auto/4x4 con GPS Lima/Valor >50k | BW66: 45 | BX66: 2026-06-01 | BY66: 31 | BZ66: 1369 | CE66: 400.10 | CF66: PC - Auto/4x4 con GPS Lima/Valor >50k | CN66: 45 | CO66: 2026-06-01 | CP66: 31 | CQ66: 1369 | CV66: 400.10 | CW66: PC - Auto/4x4 con GPS Lima/Valor >50k
B67: 46 | C67: 2029-08-01 | D67: 3 | E67: 2029-08-01 | F67: 30 | G67: 1400 | H67: 31,848.19 | I67: 1,987.94 | J67: 302.20 | K67: 0 | L67: 0.00 | M67: 0 | N67: 2,290.14 | O67: 29,860.25 | P67: 0.64 | Q67: 0.64 | X67: 46 | Y67: 2026-07-01 | Z67: 30 | AA67: 1399 | AF67: 400.10 | AG67: PC - Auto/4x4 con GPS Lima/Valor >50k | AO67: 46 | AP67: 2026-07-01 | AQ67: 30 | AR67: 1399 | AW67: 400.10 | AX67: PC - Auto/4x4 con GPS Lima/Valor >50k | BF67: 46 | BG67: 2026-07-01 | BH67: 30 | BI67: 1399 | BN67: 400.10 | BO67: PC - Auto/4x4 con GPS Lima/Valor >50k | BW67: 46 | BX67: 2026-07-01 | BY67: 30 | BZ67: 1399 | CE67: 400.10 | CF67: PC - Auto/4x4 con GPS Lima/Valor >50k | CN67: 46 | CO67: 2026-07-01 | CP67: 30 | CQ67: 1399 | CV67: 400.10 | CW67: PC - Auto/4x4 con GPS Lima/Valor >50k
B68: 47 | C68: 2029-09-01 | D68: 6 | E68: 2029-09-01 | F68: 31 | G68: 1431 | H68: 29,860.25 | I68: 1,997.32 | J68: 292.83 | K68: 0 | L68: 0.00 | M68: 0 | N68: 2,290.14 | O68: 27,862.93 | P68: 0.64 | Q68: 0.64 | X68: 47 | Y68: 2026-08-01 | Z68: 31 | AA68: 1430 | AF68: 400.10 | AG68: PC - Auto/4x4 con GPS Lima/Valor >50k | AO68: 47 | AP68: 2026-08-01 | AQ68: 31 | AR68: 1430 | AW68: 400.10 | AX68: PC - Auto/4x4 con GPS Lima/Valor >50k | BF68: 47 | BG68: 2026-08-01 | BH68: 31 | BI68: 1430 | BN68: 400.10 | BO68: PC - Auto/4x4 con GPS Lima/Valor >50k | BW68: 47 | BX68: 2026-08-01 | BY68: 31 | BZ68: 1430 | CE68: 400.10 | CF68: PC - Auto/4x4 con GPS Lima/Valor >50k | CN68: 47 | CO68: 2026-08-01 | CP68: 31 | CQ68: 1430 | CV68: 400.10 | CW68: PC - Auto/4x4 con GPS Lima/Valor >50k
B69: 48 | C69: 2029-10-01 | D69: 1 | E69: 2029-10-01 | F69: 30 | G69: 1461 | H69: 27,862.93 | I69: 2,025.76 | J69: 264.39 | K69: 0 | L69: 0.00 | M69: 0 | N69: 2,290.14 | O69: 25,837.17 | P69: 0.63 | Q69: 0.63 | X69: 48 | Y69: 2026-09-01 | Z69: 31 | AA69: 1461 | AF69: 400.10 | AG69: PC - Auto/4x4 con GPS Lima/Valor >50k | AO69: 48 | AP69: 2026-09-01 | AQ69: 31 | AR69: 1461 | AW69: 400.10 | AX69: PC - Auto/4x4 con GPS Lima/Valor >50k | BF69: 48 | BG69: 2026-09-01 | BH69: 31 | BI69: 1461 | BN69: 400.10 | BO69: PC - Auto/4x4 con GPS Lima/Valor >50k | BW69: 48 | BX69: 2026-09-01 | BY69: 31 | BZ69: 1461 | CE69: 400.10 | CF69: PC - Auto/4x4 con GPS Lima/Valor >50k | CN69: 48 | CO69: 2026-09-01 | CP69: 31 | CQ69: 1461 | CV69: 400.10 | CW69: PC - Auto/4x4 con GPS Lima/Valor >50k
B70: 49 | C70: 2029-11-01 | D70: 4 | E70: 2029-11-01 | F70: 31 | G70: 1492 | H70: 25,837.17 | I70: 2,036.77 | J70: 253.38 | K70: 0 | L70: 0.00 | M70: 0 | N70: 2,290.14 | O70: 23,800.40 | P70: 0.63 | Q70: 0.63 | X70: 49 | Y70: 2026-10-01 | Z70: 30 | AA70: 1491 | AF70: 400.10 | AG70: PC - Auto/4x4 con GPS Lima/Valor >50k | AO70: 49 | AP70: 2026-10-01 | AQ70: 30 | AR70: 1491 | AW70: 400.10 | AX70: PC - Auto/4x4 con GPS Lima/Valor >50k | BF70: 49 | BG70: 2026-10-01 | BH70: 30 | BI70: 1491 | BN70: 400.10 | BO70: PC - Auto/4x4 con GPS Lima/Valor >50k | BW70: 49 | BX70: 2026-10-01 | BY70: 30 | BZ70: 1491 | CE70: 400.10 | CF70: PC - Auto/4x4 con GPS Lima/Valor >50k | CN70: 49 | CO70: 2026-10-01 | CP70: 30 | CQ70: 1491 | CV70: 400.10 | CW70: PC - Auto/4x4 con GPS Lima/Valor >50k
B71: 50 | C71: 2029-12-01 | D71: 6 | E71: 2029-12-01 | F71: 30 | G71: 1522 | H71: 23,800.40 | I71: 2,064.31 | J71: 225.84 | K71: 0 | L71: 0.00 | M71: 0 | N71: 2,290.14 | O71: 21,736.10 | P71: 0.62 | Q71: 0.62 | X71: 50 | Y71: 2026-11-01 | Z71: 31 | AA71: 1522 | AF71: 400.10 | AG71: PC - Auto/4x4 con GPS Lima/Valor >50k | AO71: 50 | AP71: 2026-11-01 | AQ71: 31 | AR71: 1522 | AW71: 400.10 | AX71: PC - Auto/4x4 con GPS Lima/Valor >50k | BF71: 50 | BG71: 2026-11-01 | BH71: 31 | BI71: 1522 | BN71: 400.10 | BO71: PC - Auto/4x4 con GPS Lima/Valor >50k | BW71: 50 | BX71: 2026-11-01 | BY71: 31 | BZ71: 1522 | CE71: 400.10 | CF71: PC - Auto/4x4 con GPS Lima/Valor >50k | CN71: 50 | CO71: 2026-11-01 | CP71: 31 | CQ71: 1522 | CV71: 400.10 | CW71: PC - Auto/4x4 con GPS Lima/Valor >50k
B72: 51 | C72: 2030-01-01 | D72: 2 | E72: 2030-01-01 | F72: 31 | G72: 1553 | H72: 21,736.10 | I72: 2,076.99 | J72: 213.16 | K72: 0 | L72: 0.00 | M72: 0 | N72: 2,290.14 | O72: 19,659.11 | P72: 0.61 | Q72: 0.61 | X72: 51 | Y72: 2026-12-01 | Z72: 30 | AA72: 1552 | AF72: 400.10 | AG72: PC - Auto/4x4 con GPS Lima/Valor >50k | AO72: 51 | AP72: 2026-12-01 | AQ72: 30 | AR72: 1552 | AW72: 400.10 | AX72: PC - Auto/4x4 con GPS Lima/Valor >50k | BF72: 51 | BG72: 2026-12-01 | BH72: 30 | BI72: 1552 | BN72: 400.10 | BO72: PC - Auto/4x4 con GPS Lima/Valor >50k | BW72: 51 | BX72: 2026-12-01 | BY72: 30 | BZ72: 1552 | CE72: 400.10 | CF72: PC - Auto/4x4 con GPS Lima/Valor >50k | CN72: 51 | CO72: 2026-12-01 | CP72: 30 | CQ72: 1552 | CV72: 400.10 | CW72: PC - Auto/4x4 con GPS Lima/Valor >50k
B73: 52 | C73: 2030-02-01 | D73: 5 | E73: 2030-02-01 | F73: 31 | G73: 1584 | H73: 19,659.11 | I73: 2,097.35 | J73: 192.79 | K73: 0 | L73: 0.00 | M73: 0 | N73: 2,290.14 | O73: 17,561.76 | P73: 0.61 | Q73: 0.61 | X73: 52 | Y73: 2027-01-01 | Z73: 31 | AA73: 1583 | AF73: 400.10 | AG73: PC - Auto/4x4 con GPS Lima/Valor >50k | AO73: 52 | AP73: 2027-01-01 | AQ73: 31 | AR73: 1583 | AW73: 400.10 | AX73: PC - Auto/4x4 con GPS Lima/Valor >50k | BF73: 52 | BG73: 2027-01-01 | BH73: 31 | BI73: 1583 | BN73: 400.10 | BO73: PC - Auto/4x4 con GPS Lima/Valor >50k | BW73: 52 | BX73: 2027-01-01 | BY73: 31 | BZ73: 1583 | CE73: 400.10 | CF73: PC - Auto/4x4 con GPS Lima/Valor >50k | CN73: 52 | CO73: 2027-01-01 | CP73: 31 | CQ73: 1583 | CV73: 400.10 | CW73: PC - Auto/4x4 con GPS Lima/Valor >50k
B74: 53 | C74: 2030-03-01 | D74: 5 | E74: 2030-03-01 | F74: 28 | G74: 1612 | H74: 17,561.76 | I74: 2,134.66 | J74: 155.48 | K74: 0 | L74: 0.00 | M74: 0 | N74: 2,290.14 | O74: 15,427.09 | P74: 0.60 | Q74: 0.60 | X74: 53 | Y74: 2027-02-01 | Z74: 31 | AA74: 1614 | AF74: 400.10 | AG74: PC - Auto/4x4 con GPS Lima/Valor >50k | AO74: 53 | AP74: 2027-02-01 | AQ74: 31 | AR74: 1614 | AW74: 400.10 | AX74: PC - Auto/4x4 con GPS Lima/Valor >50k | BF74: 53 | BG74: 2027-02-01 | BH74: 31 | BI74: 1614 | BN74: 400.10 | BO74: PC - Auto/4x4 con GPS Lima/Valor >50k | BW74: 53 | BX74: 2027-02-01 | BY74: 31 | BZ74: 1614 | CE74: 400.10 | CF74: PC - Auto/4x4 con GPS Lima/Valor >50k | CN74: 53 | CO74: 2027-02-01 | CP74: 31 | CQ74: 1614 | CV74: 400.10 | CW74: PC - Auto/4x4 con GPS Lima/Valor >50k
B75: 54 | C75: 2030-04-01 | D75: 1 | E75: 2030-04-01 | F75: 31 | G75: 1643 | H75: 15,427.09 | I75: 2,138.86 | J75: 151.29 | K75: 0 | L75: 0.00 | M75: 0 | N75: 2,290.14 | O75: 13,288.24 | P75: 0.60 | Q75: 0.60 | X75: 54 | Y75: 2027-03-01 | Z75: 28 | AA75: 1642 | AF75: 400.10 | AG75: PC - Auto/4x4 con GPS Lima/Valor >50k | AO75: 54 | AP75: 2027-03-01 | AQ75: 28 | AR75: 1642 | AW75: 400.10 | AX75: PC - Auto/4x4 con GPS Lima/Valor >50k | BF75: 54 | BG75: 2027-03-01 | BH75: 28 | BI75: 1642 | BN75: 400.10 | BO75: PC - Auto/4x4 con GPS Lima/Valor >50k | BW75: 54 | BX75: 2027-03-01 | BY75: 28 | BZ75: 1642 | CE75: 400.10 | CF75: PC - Auto/4x4 con GPS Lima/Valor >50k | CN75: 54 | CO75: 2027-03-01 | CP75: 28 | CQ75: 1642 | CV75: 400.10 | CW75: PC - Auto/4x4 con GPS Lima/Valor >50k
B76: 55 | C76: 2030-05-01 | D76: 3 | E76: 2030-05-01 | F76: 30 | G76: 1673 | H76: 13,288.24 | I76: 2,164.05 | J76: 126.09 | K76: 0 | L76: 0.00 | M76: 0 | N76: 2,290.14 | O76: 11,124.18 | P76: 0.59 | Q76: 0.59 | X76: 55 | Y76: 2027-04-01 | Z76: 31 | AA76: 1673 | AF76: 400.10 | AG76: PC - Auto/4x4 con GPS Lima/Valor >50k | AO76: 55 | AP76: 2027-04-01 | AQ76: 31 | AR76: 1673 | AW76: 400.10 | AX76: PC - Auto/4x4 con GPS Lima/Valor >50k | BF76: 55 | BG76: 2027-04-01 | BH76: 31 | BI76: 1673 | BN76: 400.10 | BO76: PC - Auto/4x4 con GPS Lima/Valor >50k | BW76: 55 | BX76: 2027-04-01 | BY76: 31 | BZ76: 1673 | CE76: 400.10 | CF76: PC - Auto/4x4 con GPS Lima/Valor >50k | CN76: 55 | CO76: 2027-04-01 | CP76: 31 | CQ76: 1673 | CV76: 400.10 | CW76: PC - Auto/4x4 con GPS Lima/Valor >50k
B77: 56 | C77: 2030-06-01 | D77: 6 | E77: 2030-06-01 | F77: 31 | G77: 1704 | H77: 11,124.18 | I77: 2,181.05 | J77: 109.09 | K77: 0 | L77: 0.00 | M77: 0 | N77: 2,290.14 | O77: 8,943.13 | P77: 0.58 | Q77: 0.58 | X77: 56 | Y77: 2027-05-01 | Z77: 30 | AA77: 1703 | AF77: 400.10 | AG77: PC - Auto/4x4 con GPS Lima/Valor >50k | AO77: 56 | AP77: 2027-05-01 | AQ77: 30 | AR77: 1703 | AW77: 400.10 | AX77: PC - Auto/4x4 con GPS Lima/Valor >50k | BF77: 56 | BG77: 2027-05-01 | BH77: 30 | BI77: 1703 | BN77: 400.10 | BO77: PC - Auto/4x4 con GPS Lima/Valor >50k | BW77: 56 | BX77: 2027-05-01 | BY77: 30 | BZ77: 1703 | CE77: 400.10 | CF77: PC - Auto/4x4 con GPS Lima/Valor >50k | CN77: 56 | CO77: 2027-05-01 | CP77: 30 | CQ77: 1703 | CV77: 400.10 | CW77: PC - Auto/4x4 con GPS Lima/Valor >50k
B78: 57 | C78: 2030-07-01 | D78: 1 | E78: 2030-07-01 | F78: 30 | G78: 1734 | H78: 8,943.13 | I78: 2,205.28 | J78: 84.86 | K78: 0 | L78: 0.00 | M78: 0 | N78: 2,290.14 | O78: 6,737.84 | P78: 0.58 | Q78: 0.58 | X78: 57 | Y78: 2027-06-01 | Z78: 31 | AA78: 1734 | AF78: 400.10 | AG78: PC - Auto/4x4 con GPS Lima/Valor >50k | AO78: 57 | AP78: 2027-06-01 | AQ78: 31 | AR78: 1734 | AW78: 400.10 | AX78: PC - Auto/4x4 con GPS Lima/Valor >50k | BF78: 57 | BG78: 2027-06-01 | BH78: 31 | BI78: 1734 | BN78: 400.10 | BO78: PC - Auto/4x4 con GPS Lima/Valor >50k | BW78: 57 | BX78: 2027-06-01 | BY78: 31 | BZ78: 1734 | CE78: 400.10 | CF78: PC - Auto/4x4 con GPS Lima/Valor >50k | CN78: 57 | CO78: 2027-06-01 | CP78: 31 | CQ78: 1734 | CV78: 400.10 | CW78: PC - Auto/4x4 con GPS Lima/Valor >50k
B79: 58 | C79: 2030-08-01 | D79: 4 | E79: 2030-08-01 | F79: 31 | G79: 1765 | H79: 6,737.84 | I79: 2,224.07 | J79: 66.08 | K79: 0 | L79: 0.00 | M79: 0 | N79: 2,290.14 | O79: 4,513.78 | P79: 0.57 | Q79: 0.57 | X79: 58 | Y79: 2027-07-01 | Z79: 30 | AA79: 1764 | AF79: 400.10 | AG79: PC - Auto/4x4 con GPS Lima/Valor >50k | AO79: 58 | AP79: 2027-07-01 | AQ79: 30 | AR79: 1764 | AW79: 400.10 | AX79: PC - Auto/4x4 con GPS Lima/Valor >50k | BF79: 58 | BG79: 2027-07-01 | BH79: 30 | BI79: 1764 | BN79: 400.10 | BO79: PC - Auto/4x4 con GPS Lima/Valor >50k | BW79: 58 | BX79: 2027-07-01 | BY79: 30 | BZ79: 1764 | CE79: 400.10 | CF79: PC - Auto/4x4 con GPS Lima/Valor >50k | CN79: 58 | CO79: 2027-07-01 | CP79: 30 | CQ79: 1764 | CV79: 400.10 | CW79: PC - Auto/4x4 con GPS Lima/Valor >50k
B80: 59 | C80: 2030-09-01 | D80: 7 | E80: 2030-09-02 | F80: 32 | G80: 1797 | H80: 4,513.78 | I80: 2,244.44 | J80: 45.70 | K80: 0 | L80: 0.00 | M80: 0 | N80: 2,290.14 | O80: 2,269.33 | P80: 0.57 | Q80: 0.57 | X80: 59 | Y80: 2027-08-01 | Z80: 31 | AA80: 1795 | AF80: 400.10 | AG80: PC - Auto/4x4 con GPS Lima/Valor >50k | AO80: 59 | AP80: 2027-08-01 | AQ80: 31 | AR80: 1795 | AW80: 400.10 | AX80: PC - Auto/4x4 con GPS Lima/Valor >50k | BF80: 59 | BG80: 2027-08-01 | BH80: 31 | BI80: 1795 | BN80: 400.10 | BO80: PC - Auto/4x4 con GPS Lima/Valor >50k | BW80: 59 | BX80: 2027-08-01 | BY80: 31 | BZ80: 1795 | CE80: 400.10 | CF80: PC - Auto/4x4 con GPS Lima/Valor >50k | CN80: 59 | CO80: 2027-08-01 | CP80: 31 | CQ80: 1795 | CV80: 400.10 | CW80: PC - Auto/4x4 con GPS Lima/Valor >50k
B81: 60 | C81: 2030-10-01 | D81: 2 | E81: 2030-10-01 | F81: 29 | G81: 1826 | H81: 2,269.33 | I81: 2,269.33 | J81: 20.81 | K81: 0 | L81: 0.00 | M81: 0 | N81: 2,290.14 | O81: 0 | P81: 0.56 | Q81: 0.56 | X81: 60 | Y81: 2027-09-01 | Z81: 31 | AA81: 1826 | AF81: 400.10 | AG81: PC - Auto/4x4 con GPS Lima/Valor >50k | AO81: 60 | AP81: 2027-09-01 | AQ81: 31 | AR81: 1826 | AW81: 400.10 | AX81: PC - Auto/4x4 con GPS Lima/Valor >50k | BF81: 60 | BG81: 2027-09-01 | BH81: 31 | BI81: 1826 | BN81: 400.10 | BO81: PC - Auto/4x4 con GPS Lima/Valor >50k | BW81: 60 | BX81: 2027-09-01 | BY81: 31 | BZ81: 1826 | CE81: 400.10 | CF81: PC - Auto/4x4 con GPS Lima/Valor >50k | CN81: 60 | CO81: 2027-09-01 | CP81: 31 | CQ81: 1826 | CV81: 400.10 | CW81: PC - Auto/4x4 con GPS Lima/Valor >50k
B82: 61 | X82: 61 | AO82: 61 | AP82: 2027-10-01 | AQ82: 30 | AR82: 1856 | AW82: 400.10 | AX82: PC - Auto/4x4 con GPS Lima/Valor >50k | BF82: 61 | BG82: 2027-10-01 | BH82: 30 | BI82: 1856 | BN82: 400.10 | BO82: PC - Auto/4x4 con GPS Lima/Valor >50k | BW82: 61 | BX82: 2027-10-01 | BY82: 30 | BZ82: 1856 | CE82: 400.10 | CF82: PC - Auto/4x4 con GPS Lima/Valor >50k | CN82: 61 | CO82: 2027-10-01 | CP82: 30 | CQ82: 1856 | CV82: 400.10 | CW82: PC - Auto/4x4 con GPS Lima/Valor >50k
B83: 62 | X83: 62 | AO83: 62 | AP83: 2027-11-01 | AQ83: 31 | AR83: 1887 | AW83: 400.10 | AX83: PC - Auto/4x4 con GPS Lima/Valor >50k | BF83: 62 | BG83: 2027-11-01 | BH83: 31 | BI83: 1887 | BN83: 400.10 | BO83: PC - Auto/4x4 con GPS Lima/Valor >50k | BW83: 62 | BX83: 2027-11-01 | BY83: 31 | BZ83: 1887 | CE83: 400.10 | CF83: PC - Auto/4x4 con GPS Lima/Valor >50k | CN83: 62 | CO83: 2027-11-01 | CP83: 31 | CQ83: 1887 | CV83: 400.10 | CW83: PC - Auto/4x4 con GPS Lima/Valor >50k
B84: 63 | X84: 63 | AO84: 63 | AP84: 2027-12-01 | AQ84: 30 | AR84: 1917 | AW84: 400.10 | AX84: PC - Auto/4x4 con GPS Lima/Valor >50k | BF84: 63 | BG84: 2027-12-01 | BH84: 30 | BI84: 1917 | BN84: 400.10 | BO84: PC - Auto/4x4 con GPS Lima/Valor >50k | BW84: 63 | BX84: 2027-12-01 | BY84: 30 | BZ84: 1917 | CE84: 400.10 | CF84: PC - Auto/4x4 con GPS Lima/Valor >50k | CN84: 63 | CO84: 2027-12-01 | CP84: 30 | CQ84: 1917 | CV84: 400.10 | CW84: PC - Auto/4x4 con GPS Lima/Valor >50k
B85: 64 | X85: 64 | AO85: 64 | AP85: 2028-01-01 | AQ85: 31 | AR85: 1948 | AW85: 400.10 | AX85: PC - Auto/4x4 con GPS Lima/Valor >50k | BF85: 64 | BG85: 2028-01-01 | BH85: 31 | BI85: 1948 | BN85: 400.10 | BO85: PC - Auto/4x4 con GPS Lima/Valor >50k | BW85: 64 | BX85: 2028-01-01 | BY85: 31 | BZ85: 1948 | CE85: 400.10 | CF85: PC - Auto/4x4 con GPS Lima/Valor >50k | CN85: 64 | CO85: 2028-01-01 | CP85: 31 | CQ85: 1948 | CV85: 400.10 | CW85: PC - Auto/4x4 con GPS Lima/Valor >50k
B86: 65 | I86: =IF(B86>C$6,"",N86-M86-L86-K86-J86) ->  | M86: =IF(B86>C$6,"",C$15) ->  | N86: =IF(B86>C$6,"",IF(B86=C$6,H86+J86+K86+L86+M86,IF(AND(C$9=2,MONTH(C86)=7),2*C$17,IF(AND(C$10=2,MONTH(C86)=12),2*C$17,C$17)))) ->  | O86: =IF(B86>C$6,"",H86-I86) ->  | X86: 65 | AE86: =IF(X86>Y$6,"",((1+Y$12)^(Z86/30)-1)*AB86) ->  | AF86: =IF(X86>Y$6,"",Y$4*Y$14) ->  | AG86: =IF(X86>Y$6,"",Y$15) ->  | AH86: =IF(X86>Y$6,"",IF(X86=Y$6,AB86+AD86+AE86+AF86+AG86,IF(AND(Y$9=2,MONTH(Y86)=7),2*Y$17,IF(AND(Y$10=2,MONTH(Y86)=12),2*Y$17,Y$17)))) ->  | AI86: =IF(X86>Y$6,"",AB86-AC86) ->  | AO86: 65 | AP86: 2028-02-01 | AQ86: 31 | AR86: 1979 | AV86: =IF(AO86>AP$6,"",((1+AP$12)^(AQ86/30)-1)*AS86) ->  | AW86: =IF(AO86>AP$6,"",AP$4*AP$14) -> 400.10 | AX86: =IF(AO86>AP$6,"",AP$15) -> PC - Auto/4x4 con GPS Lima/Valor >50k | AY86: =IF(AO86>AP$6,"",IF(AO86=AP$6,AS86+AU86+AV86+AW86+AX86,IF(AND(AP$9=2,MONTH(AP86)=7),2*AP$17,IF(AND(AP$10=2,MONTH(AP86)=12),2*AP$17,AP$17)))) ->  | AZ86: =IF(AO86>AP$6,"",AS86-AT86) ->  | BF86: 65 | BG86: 2028-02-01 | BH86: 31 | BI86: 1979 | BM86: =IF(BF86>BG$6,"",((1+BG$12)^(BH86/30)-1)*BJ86) ->  | BN86: =IF(BF86>BG$6,"",BG$4*BG$14) -> 400.10 | BO86: =IF(BF86>BG$6,"",BG$15) -> PC - Auto/4x4 con GPS Lima/Valor >50k | BP86: =IF(BF86>BG$6,"",IF(BF86=BG$6,BJ86+BL86+BM86+BN86+BO86,IF(AND(BG$9=2,MONTH(BG86)=7),2*BG$17,IF(AND(BG$10=2,MONTH(BG86)=12),2*BG$17,BG$17)))) ->  | BQ86: =IF(BF86>BG$6,"",BJ86-BK86) ->  | BW86: 65 | BX86: 2028-02-01 | BY86: 31 | BZ86: 1979 | CD86: =IF(BW86>BX$6,"",((1+BX$12)^(BY86/30)-1)*CA86) ->  | CE86: =IF(BW86>BX$6,"",BX$4*BX$14) -> 400.10 | CF86: =IF(BW86>BX$6,"",BX$15) -> PC - Auto/4x4 con GPS Lima/Valor >50k | CG86: =IF(BW86>BX$6,"",IF(BW86=BX$6,CA86+CC86+CD86+CE86+CF86,IF(AND(BX$9=2,MONTH(BX86)=7),2*BX$17,IF(AND(BX$10=2,MONTH(BX86)=12),2*BX$17,BX$17)))) ->  | CH86: =IF(BW86>BX$6,"",CA86-CB86) ->  | CN86: 65 | CO86: 2028-02-01 | CP86: 31 | CQ86: 1979 | CU86: =IF(CN86>CO$6,"",((1+CO$12)^(CP86/30)-1)*CR86) ->  | CV86: =IF(CN86>CO$6,"",CO$4*CO$14) -> 400.10 | CW86: =IF(CN86>CO$6,"",CO$15) -> PC - Auto/4x4 con GPS Lima/Valor >50k | CX86: =IF(CN86>CO$6,"",IF(CN86=CO$6,CR86+CT86+CU86+CV86+CW86,IF(AND(CO$9=2,MONTH(CO86)=7),2*CO$17,IF(AND(CO$10=2,MONTH(CO86)=12),2*CO$17,CO$17)))) ->  | CY86: =IF(CN86>CO$6,"",CR86-CS86) -> 
B87: 66 | C87: =IF(B87>C$6,"",EDATE(C$22,B86)) ->  | D87: =IF(B87<=$C$6,WEEKDAY(C87,2),"") ->  | E87: =IF(D87=7,C87+1,C87) ->  | G87: =IFERROR(F87+G86,"") ->  | H87: =IF(B87>C$6,"",O86) ->  | K87: =IF(B87>C$6,"",((1+C$12)^(F87/30)-1)*H87*$H$12) ->  | L87: =IF(B87>C$6,"",D$4*C$14) ->  | P87: =IFERROR(IF(AND(MONTH(C87)=7,C$9=2),2/(1+C$13)^(G87/360),IF(AND(MONTH(C87)=12,C$10=2),2/(1+C$13)^(G87/360),1/(1+C$13)^(G87/360))),"") ->  | Q87: =IFERROR(1/(1+C$13)^(G87/360),"") ->  | X87: 66 | Y87: =IF(X87>Y$6,"",EDATE(Y$22,X86)) ->  | AA87: =IFERROR(Z87+AA86,"") ->  | AB87: =IF(X87>Y$6,"",AI86) ->  | AJ87: =IFERROR(IF(AND(MONTH(Y87)=7,Y$9=2),2/(1+Y$13)^(AA87/360),IF(AND(MONTH(Y87)=12,Y$10=2),2/(1+Y$13)^(AA87/360),1/(1+Y$13)^(AA87/360))),"") ->  | AK87: =IFERROR(1/(1+Y$13)^(AA87/360),"") ->  | AO87: 66 | AP87: =IF(AO87>AP$6,"",EDATE(AP$22,AO86)) -> 2028-03-01 | AQ87: 29 | AR87: =IFERROR(AQ87+AR86,"") -> 2008 | AS87: =IF(AO87>AP$6,"",AZ86) ->  | AW87: 400.10 | AX87: PC - Auto/4x4 con GPS Lima/Valor >50k | BA87: =IFERROR(IF(AND(MONTH(AP87)=7,AP$9=2),2/(1+AP$13)^(AR87/360),IF(AND(MONTH(AP87)=12,AP$10=2),2/(1+AP$13)^(AR87/360),1/(1+AP$13)^(AR87/360))),"") ->  | BB87: =IFERROR(1/(1+AP$13)^(AR87/360),"") ->  | BF87: 66 | BG87: =IF(BF87>BG$6,"",EDATE(BG$22,BF86)) -> 2028-03-01 | BH87: 29 | BI87: =IFERROR(BH87+BI86,"") -> 2008 | BJ87: =IF(BF87>BG$6,"",BQ86) ->  | BN87: 400.10 | BO87: PC - Auto/4x4 con GPS Lima/Valor >50k | BR87: =IFERROR(IF(AND(MONTH(BG87)=7,BG$9=2),2/(1+BG$13)^(BI87/360),IF(AND(MONTH(BG87)=12,BG$10=2),2/(1+BG$13)^(BI87/360),1/(1+BG$13)^(BI87/360))),"") ->  | BS87: =IFERROR(1/(1+BG$13)^(BI87/360),"") ->  | BW87: 66 | BX87: =IF(BW87>BX$6,"",EDATE(BX$22,BW86)) -> 2028-03-01 | BY87: 29 | BZ87: =IFERROR(BY87+BZ86,"") -> 2008 | CA87: =IF(BW87>BX$6,"",CH86) ->  | CE87: 400.10 | CF87: PC - Auto/4x4 con GPS Lima/Valor >50k | CI87: =IFERROR(IF(AND(MONTH(BX87)=7,BX$9=2),2/(1+BX$13)^(BZ87/360),IF(AND(MONTH(BX87)=12,BX$10=2),2/(1+BX$13)^(BZ87/360),1/(1+BX$13)^(BZ87/360))),"") ->  | CJ87: =IFERROR(1/(1+BX$13)^(BZ87/360),"") ->  | CN87: 66 | CO87: =IF(CN87>CO$6,"",EDATE(CO$22,CN86)) -> 2028-03-01 | CP87: 29 | CQ87: =IFERROR(CP87+CQ86,"") -> 2008 | CR87: =IF(CN87>CO$6,"",CY86) ->  | CV87: 400.10 | CW87: PC - Auto/4x4 con GPS Lima/Valor >50k | CZ87: =IFERROR(IF(AND(MONTH(CO87)=7,CO$9=2),2/(1+CO$13)^(CQ87/360),IF(AND(MONTH(CO87)=12,CO$10=2),2/(1+CO$13)^(CQ87/360),1/(1+CO$13)^(CQ87/360))),"") ->  | DA87: =IFERROR(1/(1+CO$13)^(CQ87/360),"") -> 
B88: 67 | F88: =IF(B88>C$6,"",E88-E87) ->  | J88: =IF(B88>C$6,"",((1+C$11)^(F88/360)-1)*H88) ->  | X88: 67 | AD88: =IF(X88>Y$6,"",((1+Y$11)^(Z88/360)-1)*AB88) ->  | AO88: 67 | AP88: 2028-04-01 | AQ88: 31 | AR88: 2039 | AU88: =IF(AO88>AP$6,"",((1+AP$11)^(AQ88/360)-1)*AS88) ->  | AW88: 400.10 | AX88: PC - Auto/4x4 con GPS Lima/Valor >50k | BF88: 67 | BG88: 2028-04-01 | BH88: 31 | BI88: 2039 | BL88: =IF(BF88>BG$6,"",((1+BG$11)^(BH88/360)-1)*BJ88) ->  | BN88: 400.10 | BO88: PC - Auto/4x4 con GPS Lima/Valor >50k | BW88: 67 | BX88: 2028-04-01 | BY88: 31 | BZ88: 2039 | CC88: =IF(BW88>BX$6,"",((1+BX$11)^(BY88/360)-1)*CA88) ->  | CE88: 400.10 | CF88: PC - Auto/4x4 con GPS Lima/Valor >50k | CN88: 67 | CO88: 2028-04-01 | CP88: 31 | CQ88: 2039 | CT88: =IF(CN88>CO$6,"",((1+CO$11)^(CP88/360)-1)*CR88) ->  | CV88: 400.10 | CW88: PC - Auto/4x4 con GPS Lima/Valor >50k
B89: 68 | X89: 68 | Z89: =IF(X89>Y$6,"",Y89-Y88) ->  | AC89: =IF(X89>Y$6,"",AH89-AG89-AF89-AE89-AD89) ->  | AO89: 68 | AP89: 2028-05-01 | AQ89: =IF(AO89>AP$6,"",AP89-AP88) -> 30 | AR89: 2069 | AT89: =IF(AO89>AP$6,"",AY89-AX89-AW89-AV89-AU89) ->  | AW89: 400.10 | AX89: PC - Auto/4x4 con GPS Lima/Valor >50k | BF89: 68 | BG89: 2028-05-01 | BH89: =IF(BF89>BG$6,"",BG89-BG88) -> 30 | BI89: 2069 | BK89: =IF(BF89>BG$6,"",BP89-BO89-BN89-BM89-BL89) ->  | BN89: 400.10 | BO89: PC - Auto/4x4 con GPS Lima/Valor >50k | BW89: 68 | BX89: 2028-05-01 | BY89: =IF(BW89>BX$6,"",BX89-BX88) -> 30 | BZ89: 2069 | CB89: =IF(BW89>BX$6,"",CG89-CF89-CE89-CD89-CC89) ->  | CE89: 400.10 | CF89: PC - Auto/4x4 con GPS Lima/Valor >50k | CN89: 68 | CO89: 2028-05-01 | CP89: =IF(CN89>CO$6,"",CO89-CO88) -> 30 | CQ89: 2069 | CS89: =IF(CN89>CO$6,"",CX89-CW89-CV89-CU89-CT89) ->  | CV89: 400.10 | CW89: PC - Auto/4x4 con GPS Lima/Valor >50k
B90: 69 | X90: 69 | AO90: 69 | AP90: 2028-06-01 | AQ90: 31 | AR90: 2100 | AW90: 400.10 | AX90: PC - Auto/4x4 con GPS Lima/Valor >50k | BF90: 69 | BG90: 2028-06-01 | BH90: 31 | BI90: 2100 | BN90: 400.10 | BO90: PC - Auto/4x4 con GPS Lima/Valor >50k | BW90: 69 | BX90: 2028-06-01 | BY90: 31 | BZ90: 2100 | CE90: 400.10 | CF90: PC - Auto/4x4 con GPS Lima/Valor >50k | CN90: 69 | CO90: 2028-06-01 | CP90: 31 | CQ90: 2100 | CV90: 400.10 | CW90: PC - Auto/4x4 con GPS Lima/Valor >50k
B91: 70 | X91: 70 | AO91: 70 | AP91: 2028-07-01 | AQ91: 30 | AR91: 2130 | AW91: 400.10 | AX91: PC - Auto/4x4 con GPS Lima/Valor >50k | BF91: 70 | BG91: 2028-07-01 | BH91: 30 | BI91: 2130 | BN91: 400.10 | BO91: PC - Auto/4x4 con GPS Lima/Valor >50k | BW91: 70 | BX91: 2028-07-01 | BY91: 30 | BZ91: 2130 | CE91: 400.10 | CF91: PC - Auto/4x4 con GPS Lima/Valor >50k | CN91: 70 | CO91: 2028-07-01 | CP91: 30 | CQ91: 2130 | CV91: 400.10 | CW91: PC - Auto/4x4 con GPS Lima/Valor >50k
B92: 71 | X92: 71 | AO92: 71 | AP92: 2028-08-01 | AQ92: 31 | AR92: 2161 | AW92: 400.10 | AX92: PC - Auto/4x4 con GPS Lima/Valor >50k | BF92: 71 | BG92: 2028-08-01 | BH92: 31 | BI92: 2161 | BN92: 400.10 | BO92: PC - Auto/4x4 con GPS Lima/Valor >50k | BW92: 71 | BX92: 2028-08-01 | BY92: 31 | BZ92: 2161 | CE92: 400.10 | CF92: PC - Auto/4x4 con GPS Lima/Valor >50k | CN92: 71 | CO92: 2028-08-01 | CP92: 31 | CQ92: 2161 | CV92: 400.10 | CW92: PC - Auto/4x4 con GPS Lima/Valor >50k
B93: 72 | X93: 72 | AO93: 72 | AP93: 2028-09-01 | AQ93: 31 | AR93: 2192 | AW93: 400.10 | AX93: PC - Auto/4x4 con GPS Lima/Valor >50k | BF93: 72 | BG93: 2028-09-01 | BH93: 31 | BI93: 2192 | BN93: 400.10 | BO93: PC - Auto/4x4 con GPS Lima/Valor >50k | BW93: 72 | BX93: 2028-09-01 | BY93: 31 | BZ93: 2192 | CE93: 400.10 | CF93: PC - Auto/4x4 con GPS Lima/Valor >50k | CN93: 72 | CO93: 2028-09-01 | CP93: 31 | CQ93: 2192 | CV93: 400.10 | CW93: PC - Auto/4x4 con GPS Lima/Valor >50k
B94: 73 | X94: 73 | AO94: 73 | AP94: 2028-10-01 | AQ94: 30 | AR94: 2222 | AW94: 400.10 | AX94: PC - Auto/4x4 con GPS Lima/Valor >50k | BF94: 73 | BG94: 2028-10-01 | BH94: 30 | BI94: 2222 | BN94: 400.10 | BO94: PC - Auto/4x4 con GPS Lima/Valor >50k | BW94: 73 | BX94: 2028-10-01 | BY94: 30 | BZ94: 2222 | CE94: 400.10 | CF94: PC - Auto/4x4 con GPS Lima/Valor >50k | CN94: 73 | CO94: 2028-10-01 | CP94: 30 | CQ94: 2222 | CV94: 400.10 | CW94: PC - Auto/4x4 con GPS Lima/Valor >50k
B95: 74 | X95: 74 | AO95: 74 | AP95: 2028-11-01 | AQ95: 31 | AR95: 2253 | AW95: 400.10 | AX95: PC - Auto/4x4 con GPS Lima/Valor >50k | BF95: 74 | BG95: 2028-11-01 | BH95: 31 | BI95: 2253 | BN95: 400.10 | BO95: PC - Auto/4x4 con GPS Lima/Valor >50k | BW95: 74 | BX95: 2028-11-01 | BY95: 31 | BZ95: 2253 | CE95: 400.10 | CF95: PC - Auto/4x4 con GPS Lima/Valor >50k | CN95: 74 | CO95: 2028-11-01 | CP95: 31 | CQ95: 2253 | CV95: 400.10 | CW95: PC - Auto/4x4 con GPS Lima/Valor >50k
B96: 75 | X96: 75 | AO96: 75 | AP96: 2028-12-01 | AQ96: 30 | AR96: 2283 | AW96: 400.10 | AX96: PC - Auto/4x4 con GPS Lima/Valor >50k | BF96: 75 | BG96: 2028-12-01 | BH96: 30 | BI96: 2283 | BN96: 400.10 | BO96: PC - Auto/4x4 con GPS Lima/Valor >50k | BW96: 75 | BX96: 2028-12-01 | BY96: 30 | BZ96: 2283 | CE96: 400.10 | CF96: PC - Auto/4x4 con GPS Lima/Valor >50k | CN96: 75 | CO96: 2028-12-01 | CP96: 30 | CQ96: 2283 | CV96: 400.10 | CW96: PC - Auto/4x4 con GPS Lima/Valor >50k
B97: 76 | X97: 76 | AO97: 76 | AP97: 2029-01-01 | AQ97: 31 | AR97: 2314 | AW97: 400.10 | AX97: PC - Auto/4x4 con GPS Lima/Valor >50k | BF97: 76 | BG97: 2029-01-01 | BH97: 31 | BI97: 2314 | BN97: 400.10 | BO97: PC - Auto/4x4 con GPS Lima/Valor >50k | BW97: 76 | BX97: 2029-01-01 | BY97: 31 | BZ97: 2314 | CE97: 400.10 | CF97: PC - Auto/4x4 con GPS Lima/Valor >50k | CN97: 76 | CO97: 2029-01-01 | CP97: 31 | CQ97: 2314 | CV97: 400.10 | CW97: PC - Auto/4x4 con GPS Lima/Valor >50k
B98: 77 | X98: 77 | AO98: 77 | AP98: 2029-02-01 | AQ98: 31 | AR98: 2345 | AW98: 400.10 | AX98: PC - Auto/4x4 con GPS Lima/Valor >50k | BF98: 77 | BG98: 2029-02-01 | BH98: 31 | BI98: 2345 | BN98: 400.10 | BO98: PC - Auto/4x4 con GPS Lima/Valor >50k | BW98: 77 | BX98: 2029-02-01 | BY98: 31 | BZ98: 2345 | CE98: 400.10 | CF98: PC - Auto/4x4 con GPS Lima/Valor >50k | CN98: 77 | CO98: 2029-02-01 | CP98: 31 | CQ98: 2345 | CV98: 400.10 | CW98: PC - Auto/4x4 con GPS Lima/Valor >50k
B99: 78 | X99: 78 | AO99: 78 | AP99: 2029-03-01 | AQ99: 28 | AR99: 2373 | AW99: 400.10 | AX99: PC - Auto/4x4 con GPS Lima/Valor >50k | BF99: 78 | BG99: 2029-03-01 | BH99: 28 | BI99: 2373 | BN99: 400.10 | BO99: PC - Auto/4x4 con GPS Lima/Valor >50k | BW99: 78 | BX99: 2029-03-01 | BY99: 28 | BZ99: 2373 | CE99: 400.10 | CF99: PC - Auto/4x4 con GPS Lima/Valor >50k | CN99: 78 | CO99: 2029-03-01 | CP99: 28 | CQ99: 2373 | CV99: 400.10 | CW99: PC - Auto/4x4 con GPS Lima/Valor >50k
B100: 79 | X100: 79 | AO100: 79 | AP100: 2029-04-01 | AQ100: 31 | AR100: 2404 | AW100: 400.10 | AX100: PC - Auto/4x4 con GPS Lima/Valor >50k | BF100: 79 | BG100: 2029-04-01 | BH100: 31 | BI100: 2404 | BN100: 400.10 | BO100: PC - Auto/4x4 con GPS Lima/Valor >50k | BW100: 79 | BX100: 2029-04-01 | BY100: 31 | BZ100: 2404 | CE100: 400.10 | CF100: PC - Auto/4x4 con GPS Lima/Valor >50k | CN100: 79 | CO100: 2029-04-01 | CP100: 31 | CQ100: 2404 | CV100: 400.10 | CW100: PC - Auto/4x4 con GPS Lima/Valor >50k
B101: 80 | X101: 80 | AO101: 80 | AP101: 2029-05-01 | AQ101: 30 | AR101: 2434 | AW101: 400.10 | AX101: PC - Auto/4x4 con GPS Lima/Valor >50k | BF101: 80 | BG101: 2029-05-01 | BH101: 30 | BI101: 2434 | BN101: 400.10 | BO101: PC - Auto/4x4 con GPS Lima/Valor >50k | BW101: 80 | BX101: 2029-05-01 | BY101: 30 | BZ101: 2434 | CE101: 400.10 | CF101: PC - Auto/4x4 con GPS Lima/Valor >50k | CN101: 80 | CO101: 2029-05-01 | CP101: 30 | CQ101: 2434 | CV101: 400.10 | CW101: PC - Auto/4x4 con GPS Lima/Valor >50k
B102: 81 | X102: 81 | AO102: 81 | AP102: 2029-06-01 | AQ102: 31 | AR102: 2465 | AW102: 400.10 | AX102: PC - Auto/4x4 con GPS Lima/Valor >50k | BF102: 81 | BG102: 2029-06-01 | BH102: 31 | BI102: 2465 | BN102: 400.10 | BO102: PC - Auto/4x4 con GPS Lima/Valor >50k | BW102: 81 | BX102: 2029-06-01 | BY102: 31 | BZ102: 2465 | CE102: 400.10 | CF102: PC - Auto/4x4 con GPS Lima/Valor >50k | CN102: 81 | CO102: 2029-06-01 | CP102: 31 | CQ102: 2465 | CV102: 400.10 | CW102: PC - Auto/4x4 con GPS Lima/Valor >50k
B103: 82 | X103: 82 | AO103: 82 | AP103: 2029-07-01 | AQ103: 30 | AR103: 2495 | AW103: 400.10 | AX103: PC - Auto/4x4 con GPS Lima/Valor >50k | BF103: 82 | BG103: 2029-07-01 | BH103: 30 | BI103: 2495 | BN103: 400.10 | BO103: PC - Auto/4x4 con GPS Lima/Valor >50k | BW103: 82 | BX103: 2029-07-01 | BY103: 30 | BZ103: 2495 | CE103: 400.10 | CF103: PC - Auto/4x4 con GPS Lima/Valor >50k | CN103: 82 | CO103: 2029-07-01 | CP103: 30 | CQ103: 2495 | CV103: 400.10 | CW103: PC - Auto/4x4 con GPS Lima/Valor >50k
B104: 83 | X104: 83 | AO104: 83 | AP104: 2029-08-01 | AQ104: 31 | AR104: 2526 | AW104: 400.10 | AX104: PC - Auto/4x4 con GPS Lima/Valor >50k | BF104: 83 | BG104: 2029-08-01 | BH104: 31 | BI104: 2526 | BN104: 400.10 | BO104: PC - Auto/4x4 con GPS Lima/Valor >50k | BW104: 83 | BX104: 2029-08-01 | BY104: 31 | BZ104: 2526 | CE104: 400.10 | CF104: PC - Auto/4x4 con GPS Lima/Valor >50k | CN104: 83 | CO104: 2029-08-01 | CP104: 31 | CQ104: 2526 | CV104: 400.10 | CW104: PC - Auto/4x4 con GPS Lima/Valor >50k
B105: 84 | X105: 84 | AO105: 84 | AP105: 2029-09-01 | AQ105: 31 | AR105: 2557 | AW105: 400.10 | AX105: PC - Auto/4x4 con GPS Lima/Valor >50k | BF105: 84 | BG105: 2029-09-01 | BH105: 31 | BI105: 2557 | BN105: 400.10 | BO105: PC - Auto/4x4 con GPS Lima/Valor >50k | BW105: 84 | BX105: 2029-09-01 | BY105: 31 | BZ105: 2557 | CE105: 400.10 | CF105: PC - Auto/4x4 con GPS Lima/Valor >50k | CN105: 84 | CO105: 2029-09-01 | CP105: 31 | CQ105: 2557 | CV105: 400.10 | CW105: PC - Auto/4x4 con GPS Lima/Valor >50k
B106: 85 | X106: 85 | AO106: 85 | AP106: 2029-10-01 | AQ106: 30 | AR106: 2587 | AW106: 400.10 | AX106: PC - Auto/4x4 con GPS Lima/Valor >50k | BF106: 85 | BG106: 2029-10-01 | BH106: 30 | BI106: 2587 | BN106: 400.10 | BO106: PC - Auto/4x4 con GPS Lima/Valor >50k | BW106: 85 | BX106: 2029-10-01 | BY106: 30 | BZ106: 2587 | CE106: 400.10 | CF106: PC - Auto/4x4 con GPS Lima/Valor >50k | CN106: 85 | CO106: 2029-10-01 | CP106: 30 | CQ106: 2587 | CV106: 400.10 | CW106: PC - Auto/4x4 con GPS Lima/Valor >50k
B107: 86 | X107: 86 | AO107: 86 | AP107: 2029-11-01 | AQ107: 31 | AR107: 2618 | AW107: 400.10 | AX107: PC - Auto/4x4 con GPS Lima/Valor >50k | BF107: 86 | BG107: 2029-11-01 | BH107: 31 | BI107: 2618 | BN107: 400.10 | BO107: PC - Auto/4x4 con GPS Lima/Valor >50k | BW107: 86 | BX107: 2029-11-01 | BY107: 31 | BZ107: 2618 | CE107: 400.10 | CF107: PC - Auto/4x4 con GPS Lima/Valor >50k | CN107: 86 | CO107: 2029-11-01 | CP107: 31 | CQ107: 2618 | CV107: 400.10 | CW107: PC - Auto/4x4 con GPS Lima/Valor >50k
B108: 87 | X108: 87 | AO108: 87 | AP108: 2029-12-01 | AQ108: 30 | AR108: 2648 | AW108: 400.10 | AX108: PC - Auto/4x4 con GPS Lima/Valor >50k | BF108: 87 | BG108: 2029-12-01 | BH108: 30 | BI108: 2648 | BN108: 400.10 | BO108: PC - Auto/4x4 con GPS Lima/Valor >50k | BW108: 87 | BX108: 2029-12-01 | BY108: 30 | BZ108: 2648 | CE108: 400.10 | CF108: PC - Auto/4x4 con GPS Lima/Valor >50k | CN108: 87 | CO108: 2029-12-01 | CP108: 30 | CQ108: 2648 | CV108: 400.10 | CW108: PC - Auto/4x4 con GPS Lima/Valor >50k
B109: 88 | X109: 88 | AO109: 88 | AP109: 2030-01-01 | AQ109: 31 | AR109: 2679 | AW109: 400.10 | AX109: PC - Auto/4x4 con GPS Lima/Valor >50k | BF109: 88 | BG109: 2030-01-01 | BH109: 31 | BI109: 2679 | BN109: 400.10 | BO109: PC - Auto/4x4 con GPS Lima/Valor >50k | BW109: 88 | BX109: 2030-01-01 | BY109: 31 | BZ109: 2679 | CE109: 400.10 | CF109: PC - Auto/4x4 con GPS Lima/Valor >50k | CN109: 88 | CO109: 2030-01-01 | CP109: 31 | CQ109: 2679 | CV109: 400.10 | CW109: PC - Auto/4x4 con GPS Lima/Valor >50k
B110: 89 | X110: 89 | AO110: 89 | AP110: 2030-02-01 | AQ110: 31 | AR110: 2710 | AW110: 400.10 | AX110: PC - Auto/4x4 con GPS Lima/Valor >50k | BF110: 89 | BG110: 2030-02-01 | BH110: 31 | BI110: 2710 | BN110: 400.10 | BO110: PC - Auto/4x4 con GPS Lima/Valor >50k | BW110: 89 | BX110: 2030-02-01 | BY110: 31 | BZ110: 2710 | CE110: 400.10 | CF110: PC - Auto/4x4 con GPS Lima/Valor >50k | CN110: 89 | CO110: 2030-02-01 | CP110: 31 | CQ110: 2710 | CV110: 400.10 | CW110: PC - Auto/4x4 con GPS Lima/Valor >50k
B111: 90 | X111: 90 | AO111: 90 | AP111: 2030-03-01 | AQ111: 28 | AR111: 2738 | AW111: 400.10 | AX111: PC - Auto/4x4 con GPS Lima/Valor >50k | BF111: 90 | BG111: 2030-03-01 | BH111: 28 | BI111: 2738 | BN111: 400.10 | BO111: PC - Auto/4x4 con GPS Lima/Valor >50k | BW111: 90 | BX111: 2030-03-01 | BY111: 28 | BZ111: 2738 | CE111: 400.10 | CF111: PC - Auto/4x4 con GPS Lima/Valor >50k | CN111: 90 | CO111: 2030-03-01 | CP111: 28 | CQ111: 2738 | CV111: 400.10 | CW111: PC - Auto/4x4 con GPS Lima/Valor >50k
B112: 91 | X112: 91 | AO112: 91 | AP112: 2030-04-01 | AQ112: 31 | AR112: 2769 | AW112: 400.10 | AX112: PC - Auto/4x4 con GPS Lima/Valor >50k | BF112: 91 | BG112: 2030-04-01 | BH112: 31 | BI112: 2769 | BN112: 400.10 | BO112: PC - Auto/4x4 con GPS Lima/Valor >50k | BW112: 91 | BX112: 2030-04-01 | BY112: 31 | BZ112: 2769 | CE112: 400.10 | CF112: PC - Auto/4x4 con GPS Lima/Valor >50k | CN112: 91 | CO112: 2030-04-01 | CP112: 31 | CQ112: 2769 | CV112: 400.10 | CW112: PC - Auto/4x4 con GPS Lima/Valor >50k
B113: 92 | X113: 92 | AO113: 92 | AP113: 2030-05-01 | AQ113: 30 | AR113: 2799 | AW113: 400.10 | AX113: PC - Auto/4x4 con GPS Lima/Valor >50k | BF113: 92 | BG113: 2030-05-01 | BH113: 30 | BI113: 2799 | BN113: 400.10 | BO113: PC - Auto/4x4 con GPS Lima/Valor >50k | BW113: 92 | BX113: 2030-05-01 | BY113: 30 | BZ113: 2799 | CE113: 400.10 | CF113: PC - Auto/4x4 con GPS Lima/Valor >50k | CN113: 92 | CO113: 2030-05-01 | CP113: 30 | CQ113: 2799 | CV113: 400.10 | CW113: PC - Auto/4x4 con GPS Lima/Valor >50k
B114: 93 | X114: 93 | AO114: 93 | AP114: 2030-06-01 | AQ114: 31 | AR114: 2830 | AW114: 400.10 | AX114: PC - Auto/4x4 con GPS Lima/Valor >50k | BF114: 93 | BG114: 2030-06-01 | BH114: 31 | BI114: 2830 | BN114: 400.10 | BO114: PC - Auto/4x4 con GPS Lima/Valor >50k | BW114: 93 | BX114: 2030-06-01 | BY114: 31 | BZ114: 2830 | CE114: 400.10 | CF114: PC - Auto/4x4 con GPS Lima/Valor >50k | CN114: 93 | CO114: 2030-06-01 | CP114: 31 | CQ114: 2830 | CV114: 400.10 | CW114: PC - Auto/4x4 con GPS Lima/Valor >50k
B115: 94 | X115: 94 | AO115: 94 | AP115: 2030-07-01 | AQ115: 30 | AR115: 2860 | AW115: 400.10 | AX115: PC - Auto/4x4 con GPS Lima/Valor >50k | BF115: 94 | BG115: 2030-07-01 | BH115: 30 | BI115: 2860 | BN115: 400.10 | BO115: PC - Auto/4x4 con GPS Lima/Valor >50k | BW115: 94 | BX115: 2030-07-01 | BY115: 30 | BZ115: 2860 | CE115: 400.10 | CF115: PC - Auto/4x4 con GPS Lima/Valor >50k | CN115: 94 | CO115: 2030-07-01 | CP115: 30 | CQ115: 2860 | CV115: 400.10 | CW115: PC - Auto/4x4 con GPS Lima/Valor >50k
B116: 95 | X116: 95 | AO116: 95 | AP116: 2030-08-01 | AQ116: 31 | AR116: 2891 | AW116: 400.10 | AX116: PC - Auto/4x4 con GPS Lima/Valor >50k | BF116: 95 | BG116: 2030-08-01 | BH116: 31 | BI116: 2891 | BN116: 400.10 | BO116: PC - Auto/4x4 con GPS Lima/Valor >50k | BW116: 95 | BX116: 2030-08-01 | BY116: 31 | BZ116: 2891 | CE116: 400.10 | CF116: PC - Auto/4x4 con GPS Lima/Valor >50k | CN116: 95 | CO116: 2030-08-01 | CP116: 31 | CQ116: 2891 | CV116: 400.10 | CW116: PC - Auto/4x4 con GPS Lima/Valor >50k
B117: 96 | X117: 96 | AO117: 96 | AP117: 2030-09-01 | AQ117: 31 | AR117: 2922 | AW117: 400.10 | AX117: PC - Auto/4x4 con GPS Lima/Valor >50k | BF117: 96 | BG117: 2030-09-01 | BH117: 31 | BI117: 2922 | BN117: 400.10 | BO117: PC - Auto/4x4 con GPS Lima/Valor >50k | BW117: 96 | BX117: 2030-09-01 | BY117: 31 | BZ117: 2922 | CE117: 400.10 | CF117: PC - Auto/4x4 con GPS Lima/Valor >50k | CN117: 96 | CO117: 2030-09-01 | CP117: 31 | CQ117: 2922 | CV117: 400.10 | CW117: PC - Auto/4x4 con GPS Lima/Valor >50k
B118: 97 | X118: 97 | AO118: 97 | AP118: 2030-10-01 | AQ118: 30 | AR118: 2952 | AW118: 400.10 | AX118: PC - Auto/4x4 con GPS Lima/Valor >50k | BF118: 97 | BG118: 2030-10-01 | BH118: 30 | BI118: 2952 | BN118: 400.10 | BO118: PC - Auto/4x4 con GPS Lima/Valor >50k | BW118: 97 | BX118: 2030-10-01 | BY118: 30 | BZ118: 2952 | CE118: 400.10 | CF118: PC - Auto/4x4 con GPS Lima/Valor >50k | CN118: 97 | CO118: 2030-10-01 | CP118: 30 | CQ118: 2952 | CV118: 400.10 | CW118: PC - Auto/4x4 con GPS Lima/Valor >50k
B119: 98 | X119: 98 | AO119: 98 | AP119: 2030-11-01 | AQ119: 31 | AR119: 2983 | AW119: 400.10 | AX119: PC - Auto/4x4 con GPS Lima/Valor >50k | BF119: 98 | BG119: 2030-11-01 | BH119: 31 | BI119: 2983 | BN119: 400.10 | BO119: PC - Auto/4x4 con GPS Lima/Valor >50k | BW119: 98 | BX119: 2030-11-01 | BY119: 31 | BZ119: 2983 | CE119: 400.10 | CF119: PC - Auto/4x4 con GPS Lima/Valor >50k | CN119: 98 | CO119: 2030-11-01 | CP119: 31 | CQ119: 2983 | CV119: 400.10 | CW119: PC - Auto/4x4 con GPS Lima/Valor >50k
B120: 99 | X120: 99 | AO120: 99 | AP120: 2030-12-01 | AQ120: 30 | AR120: 3013 | AW120: 400.10 | AX120: PC - Auto/4x4 con GPS Lima/Valor >50k | BF120: 99 | BG120: 2030-12-01 | BH120: 30 | BI120: 3013 | BN120: 400.10 | BO120: PC - Auto/4x4 con GPS Lima/Valor >50k | BW120: 99 | BX120: 2030-12-01 | BY120: 30 | BZ120: 3013 | CE120: 400.10 | CF120: PC - Auto/4x4 con GPS Lima/Valor >50k | CN120: 99 | CO120: 2030-12-01 | CP120: 30 | CQ120: 3013 | CV120: 400.10 | CW120: PC - Auto/4x4 con GPS Lima/Valor >50k
B121: 100 | X121: 100 | AO121: 100 | AP121: 2031-01-01 | AQ121: 31 | AR121: 3044 | AW121: 400.10 | AX121: PC - Auto/4x4 con GPS Lima/Valor >50k | BF121: 100 | BG121: 2031-01-01 | BH121: 31 | BI121: 3044 | BN121: 400.10 | BO121: PC - Auto/4x4 con GPS Lima/Valor >50k | BW121: 100 | BX121: 2031-01-01 | BY121: 31 | BZ121: 3044 | CE121: 400.10 | CF121: PC - Auto/4x4 con GPS Lima/Valor >50k | CN121: 100 | CO121: 2031-01-01 | CP121: 31 | CQ121: 3044 | CV121: 400.10 | CW121: PC - Auto/4x4 con GPS Lima/Valor >50k
B122: 101 | X122: 101 | AO122: 101 | AP122: 2031-02-01 | AQ122: 31 | AR122: 3075 | AW122: 400.10 | AX122: PC - Auto/4x4 con GPS Lima/Valor >50k | BF122: 101 | BG122: 2031-02-01 | BH122: 31 | BI122: 3075 | BN122: 400.10 | BO122: PC - Auto/4x4 con GPS Lima/Valor >50k | BW122: 101 | BX122: 2031-02-01 | BY122: 31 | BZ122: 3075 | CE122: 400.10 | CF122: PC - Auto/4x4 con GPS Lima/Valor >50k | CN122: 101 | CO122: 2031-02-01 | CP122: 31 | CQ122: 3075 | CV122: 400.10 | CW122: PC - Auto/4x4 con GPS Lima/Valor >50k
B123: 102 | X123: 102 | AO123: 102 | AP123: 2031-03-01 | AQ123: 28 | AR123: 3103 | AW123: 400.10 | AX123: PC - Auto/4x4 con GPS Lima/Valor >50k | BF123: 102 | BG123: 2031-03-01 | BH123: 28 | BI123: 3103 | BN123: 400.10 | BO123: PC - Auto/4x4 con GPS Lima/Valor >50k | BW123: 102 | BX123: 2031-03-01 | BY123: 28 | BZ123: 3103 | CE123: 400.10 | CF123: PC - Auto/4x4 con GPS Lima/Valor >50k | CN123: 102 | CO123: 2031-03-01 | CP123: 28 | CQ123: 3103 | CV123: 400.10 | CW123: PC - Auto/4x4 con GPS Lima/Valor >50k
B124: 103 | X124: 103 | AO124: 103 | AP124: 2031-04-01 | AQ124: 31 | AR124: 3134 | AW124: 400.10 | AX124: PC - Auto/4x4 con GPS Lima/Valor >50k | BF124: 103 | BG124: 2031-04-01 | BH124: 31 | BI124: 3134 | BN124: 400.10 | BO124: PC - Auto/4x4 con GPS Lima/Valor >50k | BW124: 103 | BX124: 2031-04-01 | BY124: 31 | BZ124: 3134 | CE124: 400.10 | CF124: PC - Auto/4x4 con GPS Lima/Valor >50k | CN124: 103 | CO124: 2031-04-01 | CP124: 31 | CQ124: 3134 | CV124: 400.10 | CW124: PC - Auto/4x4 con GPS Lima/Valor >50k
B125: 104 | X125: 104 | AO125: 104 | AP125: 2031-05-01 | AQ125: 30 | AR125: 3164 | AW125: 400.10 | AX125: PC - Auto/4x4 con GPS Lima/Valor >50k | BF125: 104 | BG125: 2031-05-01 | BH125: 30 | BI125: 3164 | BN125: 400.10 | BO125: PC - Auto/4x4 con GPS Lima/Valor >50k | BW125: 104 | BX125: 2031-05-01 | BY125: 30 | BZ125: 3164 | CE125: 400.10 | CF125: PC - Auto/4x4 con GPS Lima/Valor >50k | CN125: 104 | CO125: 2031-05-01 | CP125: 30 | CQ125: 3164 | CV125: 400.10 | CW125: PC - Auto/4x4 con GPS Lima/Valor >50k
B126: 105 | X126: 105 | AO126: 105 | AP126: 2031-06-01 | AQ126: 31 | AR126: 3195 | AW126: 400.10 | AX126: PC - Auto/4x4 con GPS Lima/Valor >50k | BF126: 105 | BG126: 2031-06-01 | BH126: 31 | BI126: 3195 | BN126: 400.10 | BO126: PC - Auto/4x4 con GPS Lima/Valor >50k | BW126: 105 | BX126: 2031-06-01 | BY126: 31 | BZ126: 3195 | CE126: 400.10 | CF126: PC - Auto/4x4 con GPS Lima/Valor >50k | CN126: 105 | CO126: 2031-06-01 | CP126: 31 | CQ126: 3195 | CV126: 400.10 | CW126: PC - Auto/4x4 con GPS Lima/Valor >50k
B127: 106 | X127: 106 | AO127: 106 | AP127: 2031-07-01 | AQ127: 30 | AR127: 3225 | AW127: 400.10 | AX127: PC - Auto/4x4 con GPS Lima/Valor >50k | BF127: 106 | BG127: 2031-07-01 | BH127: 30 | BI127: 3225 | BN127: 400.10 | BO127: PC - Auto/4x4 con GPS Lima/Valor >50k | BW127: 106 | BX127: 2031-07-01 | BY127: 30 | BZ127: 3225 | CE127: 400.10 | CF127: PC - Auto/4x4 con GPS Lima/Valor >50k | CN127: 106 | CO127: 2031-07-01 | CP127: 30 | CQ127: 3225 | CV127: 400.10 | CW127: PC - Auto/4x4 con GPS Lima/Valor >50k
B128: 107 | X128: 107 | AO128: 107 | AP128: 2031-08-01 | AQ128: 31 | AR128: 3256 | AW128: 400.10 | AX128: PC - Auto/4x4 con GPS Lima/Valor >50k | BF128: 107 | BG128: 2031-08-01 | BH128: 31 | BI128: 3256 | BN128: 400.10 | BO128: PC - Auto/4x4 con GPS Lima/Valor >50k | BW128: 107 | BX128: 2031-08-01 | BY128: 31 | BZ128: 3256 | CE128: 400.10 | CF128: PC - Auto/4x4 con GPS Lima/Valor >50k | CN128: 107 | CO128: 2031-08-01 | CP128: 31 | CQ128: 3256 | CV128: 400.10 | CW128: PC - Auto/4x4 con GPS Lima/Valor >50k
B129: 108 | X129: 108 | AO129: 108 | AP129: 2031-09-01 | AQ129: 31 | AR129: 3287 | AW129: 400.10 | AX129: PC - Auto/4x4 con GPS Lima/Valor >50k | BF129: 108 | BG129: 2031-09-01 | BH129: 31 | BI129: 3287 | BN129: 400.10 | BO129: PC - Auto/4x4 con GPS Lima/Valor >50k | BW129: 108 | BX129: 2031-09-01 | BY129: 31 | BZ129: 3287 | CE129: 400.10 | CF129: PC - Auto/4x4 con GPS Lima/Valor >50k | CN129: 108 | CO129: 2031-09-01 | CP129: 31 | CQ129: 3287 | CV129: 400.10 | CW129: PC - Auto/4x4 con GPS Lima/Valor >50k
B130: 109 | X130: 109 | AO130: 109 | AP130: 2031-10-01 | AQ130: 30 | AR130: 3317 | AW130: 400.10 | AX130: PC - Auto/4x4 con GPS Lima/Valor >50k | BF130: 109 | BG130: 2031-10-01 | BH130: 30 | BI130: 3317 | BN130: 400.10 | BO130: PC - Auto/4x4 con GPS Lima/Valor >50k | BW130: 109 | BX130: 2031-10-01 | BY130: 30 | BZ130: 3317 | CE130: 400.10 | CF130: PC - Auto/4x4 con GPS Lima/Valor >50k | CN130: 109 | CO130: 2031-10-01 | CP130: 30 | CQ130: 3317 | CV130: 400.10 | CW130: PC - Auto/4x4 con GPS Lima/Valor >50k
B131: 110 | X131: 110 | AO131: 110 | AP131: 2031-11-01 | AQ131: 31 | AR131: 3348 | AW131: 400.10 | AX131: PC - Auto/4x4 con GPS Lima/Valor >50k | BF131: 110 | BG131: 2031-11-01 | BH131: 31 | BI131: 3348 | BN131: 400.10 | BO131: PC - Auto/4x4 con GPS Lima/Valor >50k | BW131: 110 | BX131: 2031-11-01 | BY131: 31 | BZ131: 3348 | CE131: 400.10 | CF131: PC - Auto/4x4 con GPS Lima/Valor >50k | CN131: 110 | CO131: 2031-11-01 | CP131: 31 | CQ131: 3348 | CV131: 400.10 | CW131: PC - Auto/4x4 con GPS Lima/Valor >50k
B132: 111 | X132: 111 | AO132: 111 | AP132: 2031-12-01 | AQ132: 30 | AR132: 3378 | AW132: 400.10 | AX132: PC - Auto/4x4 con GPS Lima/Valor >50k | BF132: 111 | BG132: 2031-12-01 | BH132: 30 | BI132: 3378 | BN132: 400.10 | BO132: PC - Auto/4x4 con GPS Lima/Valor >50k | BW132: 111 | BX132: 2031-12-01 | BY132: 30 | BZ132: 3378 | CE132: 400.10 | CF132: PC - Auto/4x4 con GPS Lima/Valor >50k | CN132: 111 | CO132: 2031-12-01 | CP132: 30 | CQ132: 3378 | CV132: 400.10 | CW132: PC - Auto/4x4 con GPS Lima/Valor >50k
B133: 112 | X133: 112 | AO133: 112 | AP133: 2032-01-01 | AQ133: 31 | AR133: 3409 | AW133: 400.10 | AX133: PC - Auto/4x4 con GPS Lima/Valor >50k | BF133: 112 | BG133: 2032-01-01 | BH133: 31 | BI133: 3409 | BN133: 400.10 | BO133: PC - Auto/4x4 con GPS Lima/Valor >50k | BW133: 112 | BX133: 2032-01-01 | BY133: 31 | BZ133: 3409 | CE133: 400.10 | CF133: PC - Auto/4x4 con GPS Lima/Valor >50k | CN133: 112 | CO133: 2032-01-01 | CP133: 31 | CQ133: 3409 | CV133: 400.10 | CW133: PC - Auto/4x4 con GPS Lima/Valor >50k
B134: 113 | X134: 113 | AO134: 113 | AP134: 2032-02-01 | AQ134: 31 | AR134: 3440 | AW134: 400.10 | AX134: PC - Auto/4x4 con GPS Lima/Valor >50k | BF134: 113 | BG134: 2032-02-01 | BH134: 31 | BI134: 3440 | BN134: 400.10 | BO134: PC - Auto/4x4 con GPS Lima/Valor >50k | BW134: 113 | BX134: 2032-02-01 | BY134: 31 | BZ134: 3440 | CE134: 400.10 | CF134: PC - Auto/4x4 con GPS Lima/Valor >50k | CN134: 113 | CO134: 2032-02-01 | CP134: 31 | CQ134: 3440 | CV134: 400.10 | CW134: PC - Auto/4x4 con GPS Lima/Valor >50k
B135: 114 | X135: 114 | AO135: 114 | AP135: 2032-03-01 | AQ135: 29 | AR135: 3469 | AW135: 400.10 | AX135: PC - Auto/4x4 con GPS Lima/Valor >50k | BF135: 114 | BG135: 2032-03-01 | BH135: 29 | BI135: 3469 | BN135: 400.10 | BO135: PC - Auto/4x4 con GPS Lima/Valor >50k | BW135: 114 | BX135: 2032-03-01 | BY135: 29 | BZ135: 3469 | CE135: 400.10 | CF135: PC - Auto/4x4 con GPS Lima/Valor >50k | CN135: 114 | CO135: 2032-03-01 | CP135: 29 | CQ135: 3469 | CV135: 400.10 | CW135: PC - Auto/4x4 con GPS Lima/Valor >50k
B136: 115 | X136: 115 | AO136: 115 | AP136: 2032-04-01 | AQ136: 31 | AR136: 3500 | AW136: 400.10 | AX136: PC - Auto/4x4 con GPS Lima/Valor >50k | BF136: 115 | BG136: 2032-04-01 | BH136: 31 | BI136: 3500 | BN136: 400.10 | BO136: PC - Auto/4x4 con GPS Lima/Valor >50k | BW136: 115 | BX136: 2032-04-01 | BY136: 31 | BZ136: 3500 | CE136: 400.10 | CF136: PC - Auto/4x4 con GPS Lima/Valor >50k | CN136: 115 | CO136: 2032-04-01 | CP136: 31 | CQ136: 3500 | CV136: 400.10 | CW136: PC - Auto/4x4 con GPS Lima/Valor >50k
B137: 116 | X137: 116 | AO137: 116 | AP137: 2032-05-01 | AQ137: 30 | AR137: 3530 | AW137: 400.10 | AX137: PC - Auto/4x4 con GPS Lima/Valor >50k | BF137: 116 | BG137: 2032-05-01 | BH137: 30 | BI137: 3530 | BN137: 400.10 | BO137: PC - Auto/4x4 con GPS Lima/Valor >50k | BW137: 116 | BX137: 2032-05-01 | BY137: 30 | BZ137: 3530 | CE137: 400.10 | CF137: PC - Auto/4x4 con GPS Lima/Valor >50k | CN137: 116 | CO137: 2032-05-01 | CP137: 30 | CQ137: 3530 | CV137: 400.10 | CW137: PC - Auto/4x4 con GPS Lima/Valor >50k
B138: 117 | X138: 117 | AO138: 117 | AP138: 2032-06-01 | AQ138: 31 | AR138: 3561 | AW138: 400.10 | AX138: PC - Auto/4x4 con GPS Lima/Valor >50k | BF138: 117 | BG138: 2032-06-01 | BH138: 31 | BI138: 3561 | BN138: 400.10 | BO138: PC - Auto/4x4 con GPS Lima/Valor >50k | BW138: 117 | BX138: 2032-06-01 | BY138: 31 | BZ138: 3561 | CE138: 400.10 | CF138: PC - Auto/4x4 con GPS Lima/Valor >50k | CN138: 117 | CO138: 2032-06-01 | CP138: 31 | CQ138: 3561 | CV138: 400.10 | CW138: PC - Auto/4x4 con GPS Lima/Valor >50k
B139: 118 | X139: 118 | AO139: 118 | AP139: 2032-07-01 | AQ139: 30 | AR139: 3591 | AW139: 400.10 | AX139: PC - Auto/4x4 con GPS Lima/Valor >50k | BF139: 118 | BG139: 2032-07-01 | BH139: 30 | BI139: 3591 | BN139: 400.10 | BO139: PC - Auto/4x4 con GPS Lima/Valor >50k | BW139: 118 | BX139: 2032-07-01 | BY139: 30 | BZ139: 3591 | CE139: 400.10 | CF139: PC - Auto/4x4 con GPS Lima/Valor >50k | CN139: 118 | CO139: 2032-07-01 | CP139: 30 | CQ139: 3591 | CV139: 400.10 | CW139: PC - Auto/4x4 con GPS Lima/Valor >50k
B140: 119 | X140: 119 | AO140: 119 | AP140: 2032-08-01 | AQ140: 31 | AR140: 3622 | AW140: 400.10 | AX140: PC - Auto/4x4 con GPS Lima/Valor >50k | BF140: 119 | BG140: 2032-08-01 | BH140: 31 | BI140: 3622 | BN140: 400.10 | BO140: PC - Auto/4x4 con GPS Lima/Valor >50k | BW140: 119 | BX140: 2032-08-01 | BY140: 31 | BZ140: 3622 | CE140: 400.10 | CF140: PC - Auto/4x4 con GPS Lima/Valor >50k | CN140: 119 | CO140: 2032-08-01 | CP140: 31 | CQ140: 3622 | CV140: 400.10 | CW140: PC - Auto/4x4 con GPS Lima/Valor >50k
B141: 120 | X141: 120 | AO141: 120 | AP141: 2032-09-01 | AQ141: 31 | AR141: 3653 | AW141: 400.10 | AX141: PC - Auto/4x4 con GPS Lima/Valor >50k | BF141: 120 | BG141: 2032-09-01 | BH141: 31 | BI141: 3653 | BN141: 400.10 | BO141: PC - Auto/4x4 con GPS Lima/Valor >50k | BW141: 120 | BX141: 2032-09-01 | BY141: 31 | BZ141: 3653 | CE141: 400.10 | CF141: PC - Auto/4x4 con GPS Lima/Valor >50k | CN141: 120 | CO141: 2032-09-01 | CP141: 31 | CQ141: 3653 | CV141: 400.10 | CW141: PC - Auto/4x4 con GPS Lima/Valor >50k
B142: 121 | X142: 121 | AO142: 121 | AP142: 2032-10-01 | AQ142: 30 | AR142: 3683 | AW142: 400.10 | AX142: PC - Auto/4x4 con GPS Lima/Valor >50k | BF142: 121 | BG142: 2032-10-01 | BH142: 30 | BI142: 3683 | BN142: 400.10 | BO142: PC - Auto/4x4 con GPS Lima/Valor >50k | BW142: 121 | BX142: 2032-10-01 | BY142: 30 | BZ142: 3683 | CE142: 400.10 | CF142: PC - Auto/4x4 con GPS Lima/Valor >50k | CN142: 121 | CO142: 2032-10-01 | CP142: 30 | CQ142: 3683 | CV142: 400.10 | CW142: PC - Auto/4x4 con GPS Lima/Valor >50k
B143: 122 | X143: 122 | AO143: 122 | AP143: 2032-11-01 | AQ143: 31 | AR143: 3714 | AW143: 400.10 | AX143: PC - Auto/4x4 con GPS Lima/Valor >50k | BF143: 122 | BG143: 2032-11-01 | BH143: 31 | BI143: 3714 | BN143: 400.10 | BO143: PC - Auto/4x4 con GPS Lima/Valor >50k | BW143: 122 | BX143: 2032-11-01 | BY143: 31 | BZ143: 3714 | CE143: 400.10 | CF143: PC - Auto/4x4 con GPS Lima/Valor >50k | CN143: 122 | CO143: 2032-11-01 | CP143: 31 | CQ143: 3714 | CV143: 400.10 | CW143: PC - Auto/4x4 con GPS Lima/Valor >50k
B144: 123 | X144: 123 | AO144: 123 | AP144: 2032-12-01 | AQ144: 30 | AR144: 3744 | AW144: 400.10 | AX144: PC - Auto/4x4 con GPS Lima/Valor >50k | BF144: 123 | BG144: 2032-12-01 | BH144: 30 | BI144: 3744 | BN144: 400.10 | BO144: PC - Auto/4x4 con GPS Lima/Valor >50k | BW144: 123 | BX144: 2032-12-01 | BY144: 30 | BZ144: 3744 | CE144: 400.10 | CF144: PC - Auto/4x4 con GPS Lima/Valor >50k | CN144: 123 | CO144: 2032-12-01 | CP144: 30 | CQ144: 3744 | CV144: 400.10 | CW144: PC - Auto/4x4 con GPS Lima/Valor >50k
B145: 124 | X145: 124 | AO145: 124 | AP145: 2033-01-01 | AQ145: 31 | AR145: 3775 | AW145: 400.10 | AX145: PC - Auto/4x4 con GPS Lima/Valor >50k | BF145: 124 | BG145: 2033-01-01 | BH145: 31 | BI145: 3775 | BN145: 400.10 | BO145: PC - Auto/4x4 con GPS Lima/Valor >50k | BW145: 124 | BX145: 2033-01-01 | BY145: 31 | BZ145: 3775 | CE145: 400.10 | CF145: PC - Auto/4x4 con GPS Lima/Valor >50k | CN145: 124 | CO145: 2033-01-01 | CP145: 31 | CQ145: 3775 | CV145: 400.10 | CW145: PC - Auto/4x4 con GPS Lima/Valor >50k
B146: 125 | X146: 125 | AO146: 125 | AP146: 2033-02-01 | AQ146: 31 | AR146: 3806 | AW146: 400.10 | AX146: PC - Auto/4x4 con GPS Lima/Valor >50k | BF146: 125 | BG146: 2033-02-01 | BH146: 31 | BI146: 3806 | BN146: 400.10 | BO146: PC - Auto/4x4 con GPS Lima/Valor >50k | BW146: 125 | BX146: 2033-02-01 | BY146: 31 | BZ146: 3806 | CE146: 400.10 | CF146: PC - Auto/4x4 con GPS Lima/Valor >50k | CN146: 125 | CO146: 2033-02-01 | CP146: 31 | CQ146: 3806 | CV146: 400.10 | CW146: PC - Auto/4x4 con GPS Lima/Valor >50k
